Workbook

Sheet General (hidden)
BA1: No. | BC1: Admin | BD1: Quarter | BE1: =Settings!$T$6 -> 1
BA2: 1 | BD2: FIRST QUARTER ENDED 30 JUNE 2020
BA3: 2 | BD3: SECOND QUARTER ENDED 30 SEPTEMBER 2020
BA4: 3 | BD4: THIRD QUARTER ENDED 31 DECEMBER 2020
BA5: 4 | BD5: FOURTH QUARTER ENDED 31 MARCH 2021
BA6: 5
BA7: 6 | BD7: =INDEX($BD$2:$BD$5,BE1) -> FIRST QUARTER ENDED 30 JUNE 2020
BA8: 7
BA9: 8
BA10: 9
BA11: 10
BA12: 11
BA13: 12
BA14: 13
BA15: 14
BA16: 15
BA17: 16
BA18: 17
BA19: 18
BA20: 19
BA21: 20

Sheet Settings (hidden)
R3: Selections:
Q5: FALSE | R5: =INDEX($R$8:$R$17,$R$6,1) -> 2022/23 | S5: =INDEX($S$8:$S$17,$S$6,1) -> All Provinces | T5: =INDEX($T$8:$T$11,$T$6,1) -> 1st Quarter | U5: =LEFT(FinYear,4) & "-" & RIGHT(FinYear,2) -> 2022-23 | V5: =INDEX($V$8:$V$17,$V$6,1) -> ALL PROVINCES
R6: 8 | S6: 2 | T6: 1 | V6: 10
C7: Import Selection: | Q7: FALSE | R7: Financial Year | S7: Print | T7: Quarter | U7: PrintYear | V7: Province | W7: Province code | X7: Accounting officers | Y7: Title | Z7: Position | AA7: Provincial Treasury | AB7: Tel No.
R8: 2015/16 | S8: All Provinces | T8: 1st Quarter | V8: EASTERN CAPE | W8: EC | X8: Daluhlanga Majeke | Y8: Mr | Z8: Head Official | AA8: Eastern Cape | AB8: (040) 609-5612
R9: 2016/17 | S9: =PROPER(Prov) -> All Provinces | T9: 2nd Quarter | V9: FREE STATE | W9: FS | X9: Masechaba Sesing | Y9: Mr | Z9: Acting Head Official | AA9: Free State | AB9: (051) 403-3066
R10: 2017/18 | T10: 3rd Quarter | V10: GAUTENG | W10: GT | X10: Ncumisa Mnyani | Y10: Ms | Z10: Head Official | AA10: Gauteng | AB10: (011) 689-8233
R11: 2019/20 | T11: 4th Quarter | V11: KWAZULU-NATAL | W11: KZN | X11: Carol Coetzee | Y11: Mr | Z11: Head Official | AA11: KwaZulu-Natal | AB11: (033) 897-4547
R12: 2019/20 | V12: LIMPOPO | W12: LIM | X12: Gavin Pratt | Y12: Mr | Z12: Head Official | AA12: Limpopo | AB12: (015) 298-7123
R13: 2020/21 | V13: MPUMALANGA | W13: MPU | X13: Gugu Mashiteng | Y13: Ms | Z13: Head Official | AA13: Mpumalanga | AB13: (013) 766-4571
R14: 2021/22 | V14: NORTHERN CAPE | W14: NC | X14: Moses Gasela | Y14: Ms | Z14: Acting Head Official | AA14: Northern Cape | AB14: (053) 830-8357
R15: 2022/23 | V15: NORTH WEST | W15: NW | X15: Ndlela Kunene | Y15: Mr | Z15: Head Official | AA15: North West | AB15: (018) 388-4441
R16: 2023/24 | V16: WESTERN CAPE | W16: WC | X16: David Savage | Y16: Mr | Z16: Head Official | AA16: Western Cape | AB16: (021) 483-3749
R17: 2024/25 | V17: ALL PROVINCES
C21: Print Settings: | J21: Print Directory:
J23: K:\CD - PROVINCIAL BUDGET ANALYSIS\Provinces\Early Warning System\2019-20\06. Section 32 Publication\3rd Quarter\Final\02. Publication
C24: =PROPER(Prov) -> All Provinces

Sheet Overview (hidden)
C3: ="STATEMENT OF RECEIPTS AND PAYMENTS FOR THE " & QUARTER -> STATEMENT OF RECEIPTS AND PAYMENTS FOR THE FIRST QUARTER ENDED 30 JUNE 2020 | T3: ="NATIONAL TREASURY: " & C3 -> NATIONAL TREASURY: STATEMENT OF RECEIPTS AND PAYMENTS FOR THE FIRST QUARTER ENDED 30 JUNE 2020 | AK3: ="VARIANCE FROM NATIONAL TREASURY: " & C3 -> VARIANCE FROM NATIONAL TREASURY: STATEMENT OF RECEIPTS AND PAYMENTS FOR THE FIRST QUARTER ENDED 30 JUNE 2020
C4: =UPPER(Prov) & " PROVINCE" -> ALL PROVINCES PROVINCE | T4: =C4 -> ALL PROVINCES PROVINCE | AK4: =C4 -> ALL PROVINCES PROVINCE
C6: Provincial departments | D6: =Settings!$R$5 -> 2022/23 | T6: Provincial departments | U6: 2019/20 | AK6: Provincial departments | AL6: 2019/20
D7: Budget | H7: Payments by Quarter | M7: Payments to Date | U7: Budget | Y7: Payments by Quarter | AD7: Payments to Date | AL7: Budget | AP7: Payments by Quarter | AU7: Payments to Date
D8: Main Budget1. | E8: Adjustments | F8: Adjusted Budget2. | H8: First Quarter | I8: Second Quarter | J8: Third Quarter | K8: Fourth Quarter | M8: Actual Payments | N8: % Actual Payments | U8: Main Budget1. | V8: Adjustments | W8: Adjusted Budget2. | Y8: First Quarter | Z8: Second Quarter | AA8: Third Quarter | AB8: Fourth Quarter | AD8: Actual Payments | AE8: % Actual Payments | AL8: Main Budget1. | AM8: Adjustments | AN8: Adjusted Budget2. | AP8: First Quarter | AQ8: Second Quarter | AR8: Third Quarter | AS8: Fourth Quarter | AU8: Actual Payments | AV8: % Actual Payments
A9: Filter | D9: R'000 | E9: R'000 | F9: R'000 | H9: R'000 | I9: R'000 | J9: R'000 | K9: R'000 | M9: R'000 | N9: % | U9: R'000 | V9: R'000 | W9: R'000 | Y9: R'000 | Z9: R'000 | AA9: R'000 | AB9: R'000 | AD9: R'000 | AE9: % | AL9: R'000 | AM9: R'000 | AN9: R'000 | AP9: R'000 | AQ9: R'000 | AR9: R'000 | AS9: R'000 | AU9: R'000 | AV9: %
A10: 1
A11: 1 | C11: Receipts | T11: Receipts | AK11: Receipts
A12: 1 | C12: Transfers from National Revenue Fund | D12: =SUM(D13:D15) ->  | E12: =SUM(E13:E15) ->  | H12: =SUM(H13:H15) ->  | M12: =SUM(M13:M15) ->  | N12: =IFERROR(M12/D12,0) -> 0 | T12: =C12 -> Transfers from National Revenue Fund | U12: 611858281.2 | V12: 0 | W12: 611858281.2 | Y12: 153798224.3 | Z12: 154419901 | AA12: 0 | AB12: 0 | AD12: 308218125.3 | AE12: 0.5037410374 | AK12: Transfers from National Revenue Fund | AL12: =SUM(AL13:AL14) -> 0 | AM12: =SUM(AM13:AM14) -> 0 | AN12: =SUM(AN13:AN14) -> 0 | AP12: =SUM(AP13:AP14) -> 0 | AQ12: =SUM(AQ13:AQ14) -> 0 | AR12: 0 | AS12: 0 | AU12: =SUM(AU13:AU14) -> 0
A13: 1 | C13: Equitable share of revenue | D13: =#REF!+#REF!+#REF!+#REF!+#REF!+#REF!+#REF!+#REF!+#REF! ->  | E13: =F13-D13 ->  | F13: =#REF!+#REF!+#REF!+#REF!+#REF!+#REF!+#REF!+#REF!+#REF! ->  | H13: =#REF!+#REF!+#REF!+#REF!+#REF!+#REF!+#REF!+#REF!+#REF! ->  | I13: =#REF!+#REF!+#REF!+#REF!+#REF!+#REF!+#REF!+#REF!+#REF! ->  | J13: =#REF!+#REF!+#REF!+#REF!+#REF!+#REF!+#REF!+#REF!+#REF! ->  | K13: =#REF!+#REF!+#REF!+#REF!+#REF!+#REF!+#REF!+#REF!+#REF! ->  | M13: =SUM(H13:K13) ->  | N13: =IFERROR(M13/D13,0) -> 0 | T13: =C13 -> Equitable share of revenue | U13: 505553753 | V13: 0 | W13: 505553753 | Y13: 126388448 | Z13: 126388442 | AA13: 0 | AB13: 0 | AD13: 252776890 | AE13: 0.5000000267 | AK13: Equitable share of revenue | AL13: =IFERROR(U13-D13,0) -> 0 | AM13: =IFERROR(V13-E13,0) -> 0 | AN13: =IFERROR(W13-F13,0) -> 0 | AP13: =IFERROR(Y13-H13,0) -> 0 | AQ13: =IFERROR(Z13-I13,0) -> 0 | AR13: =IFERROR(AA13-J13,0) -> 0 | AS13: =IFERROR(AB13-K13,0) -> 0 | AU13: =IFERROR(AD13-M13,0) -> 0
A14: 1 | C14: Conditional grants | D14: =#REF!+#REF!+#REF!+#REF!+#REF!+#REF!+#REF!+#REF!+#REF! ->  | E14: =F14-D14 ->  | F14: =#REF!+#REF!+#REF!+#REF!+#REF!+#REF!+#REF!+#REF!+#REF! ->  | H14: =#REF!+#REF!+#REF!+#REF!+#REF!+#REF!+#REF!+#REF!+#REF! ->  | I14: =#REF!+#REF!+#REF!+#REF!+#REF!+#REF!+#REF!+#REF!+#REF! ->  | J14: =#REF!+#REF!+#REF!+#REF!+#REF!+#REF!+#REF!+#REF!+#REF! ->  | K14: =#REF!+#REF!+#REF!+#REF!+#REF!+#REF!+#REF!+#REF!+#REF! ->  | M14: =SUM(H14:K14) ->  | N14: 0 | T14: Conditional grants | U14: 106304528.2 | V14: 0 | W14: 106304528.2 | Y14: 27409776.33 | Z14: 28031459 | AA14: 0 | AB14: 0 | AD14: 55441235.33 | AE14: 0.5215322082 | AK14: Conditional grants | AL14: 0 | AM14: 0 | AN14: 0 | AP14: =IFERROR(Y14-H14,0) -> 0 | AQ14: 0 | AR14: 0 | AS14: 0 | AU14: 0
A15: 1 | C15: Provincial own receipts | D15: =#REF!+#REF!+#REF!+#REF!+#REF!+#REF!+#REF!+#REF!+#REF! ->  | F15: =#REF!+#REF!+#REF!+#REF!+#REF!+#REF!+#REF!+#REF!+#REF! ->  | H15: =#REF!+#REF!+#REF!+#REF!+#REF!+#REF!+#REF!+#REF!+#REF! ->  | I15: =#REF!+#REF!+#REF!+#REF!+#REF!+#REF!+#REF!+#REF!+#REF! ->  | J15: =#REF!+#REF!+#REF!+#REF!+#REF!+#REF!+#REF!+#REF!+#REF! ->  | K15: =#REF!+#REF!+#REF!+#REF!+#REF!+#REF!+#REF!+#REF!+#REF! ->  | N15: 0 | T15: Provincial own receipts | U15: 19913905.47 | V15: 0 | W15: 19913905.47 | Y15: 5080097.347 | Z15: 5764382.395 | AA15: 0 | AB15: 0 | AD15: 10844479.74 | AE15: 0.5445682043 | AK15: Provincial own receipts | AL15: 0 | AM15: 0 | AN15: 0 | AP15: 0 | AQ15: 0 | AR15: 0 | AS15: 0 | AU15: 0
A16: 1
A17: 1 | C17: Total receipts | D17: =D12+D15 ->  | E17: =E12+E15 ->  | F17: =F12+F15 ->  | G17: 0 | I17: =IF(General!$BE$1>1,I12+I15,"") ->  | J17: =IF(General!$BE$1>2,J12+J15,"") ->  | K17: =IF(General!$BE$1>2,K12+K15,"") ->  | M17: =M12+M15 ->  | N17: =IFERROR(M17/D17,0) -> 0 | T17: Total receipts | U17: 631772186.7 | V17: 0 | W17: 631772186.7 | X17: 0 | Y17: 158878321.7 | Z17: 160184283.4 | AD17: 319062605.1 | AE17: 0.5050279386 | AK17: Total receipts | AL17: =AL12+AL15 -> 0 | AM17: =AM12+AM15 -> 0 | AN17: 0 | AO17: =AO12+AO15 -> 0 | AP17: 0 | AQ17: =AQ12+AQ15 -> 0 | AR17: 0 | AS17: 0 | AU17: =AU12+AU15 -> 0
A18: 1
A19: 1 | C19: Payments by provincial departments | T19: Payments by provincial departments | AK19: Payments by provincial departments
A20: =IF(LEN(C20)>3,1,0) -> 1 | C20: Eastern Cape | D20: =#REF! ->  | E20: =F20-D20 ->  | F20: =#REF! ->  | H20: =#REF! ->  | I20: =#REF! ->  | J20: =#REF! ->  | K20: =#REF! ->  | M20: =SUM(H20:K20) ->  | N20: =IFERROR(M20/D20,0) -> 0 | T20: =C20 -> Eastern Cape | U20: 82198245.27 | V20: 0 | W20: 82198245.27 | Y20: 21789359.04 | Z20: 20799153.57 | AA20: 0 | AD20: 42588512.61 | AE20: 0.5181194862 | AK20: =C20 -> Eastern Cape | AL20: =IFERROR(U20-D20,0) -> 0 | AM20: =IFERROR(V20-E20,0) -> 0 | AN20: =IFERROR(W20-F20,0) -> 0 | AP20: =IFERROR(Y20-H20,0) -> 0 | AQ20: =IFERROR(Z20-I20,0) -> 0 | AR20: =IFERROR(AA20-J20,0) -> 0 | AS20: =IFERROR(AB20-K20,0) -> 0 | AU20: =IFERROR(AD20-M20,0) -> 0
A21: =IF(LEN(C21)>3,1,0) -> 1 | C21: Free State | D21: =#REF! ->  | F21: =#REF! ->  | H21: =#REF! ->  | I21: =#REF! ->  | J21: =#REF! ->  | K21: =#REF! ->  | N21: 0 | T21: Free State | U21: 37274018 | V21: 0 | W21: 37274018 | Y21: 8962964 | Z21: 9036969 | AA21: 0 | AD21: 17999933 | AE21: 0.4829083089 | AK21: =C21 -> Free State | AL21: 0 | AM21: 0 | AN21: 0 | AP21: 0 | AQ21: 0 | AR21: 0 | AS21: 0 | AU21: 0
A22: 1 | C22: Gauteng | D22: =#REF! ->  | F22: =#REF! ->  | H22: =#REF! ->  | I22: =#REF! ->  | J22: =#REF! ->  | K22: =#REF! ->  | N22: 0 | T22: Gauteng | U22: 132442501 | V22: 0 | W22: 132442501 | Y22: 30749660.6 | Z22: 30439757 | AA22: 0 | AD22: 61189417.6 | AE22: 0.4620074156 | AK22: Gauteng | AL22: 0 | AM22: 0 | AN22: 0 | AP22: 0 | AQ22: 0 | AR22: 0 | AS22: 0 | AU22: 0
A23: 1 | C23: KwaZulu-Natal | D23: =#REF! ->  | F23: =#REF! ->  | H23: =#REF! ->  | I23: =#REF! ->  | J23: =#REF! ->  | K23: =#REF! ->  | N23: 0 | T23: KwaZulu-Natal | U23: 130474221 | V23: 0 | W23: 130474221 | Y23: 29866683 | Z23: 31694200 | AA23: 0 | AD23: 61560883 | AE23: 0.4718241085 | AK23: KwaZulu-Natal | AL23: 0 | AM23: 0 | AN23: 0 | AP23: 0 | AQ23: 0 | AR23: 0 | AS23: 0 | AU23: 0
A24: 1 | C24: Limpopo | D24: =#REF! ->  | F24: =#REF! ->  | H24: =#REF! ->  | I24: =#REF! ->  | J24: =#REF! ->  | K24: =#REF! ->  | N24: 0 | T24: Limpopo | U24: 69500910.14 | V24: 0 | W24: 69500910.14 | Y24: 16780589 | Z24: 16627341 | AA24: 0 | AD24: 33407930 | AE24: 0.4806833455 | AK24: Limpopo | AL24: 0 | AM24: 0 | AN24: 0 | AP24: 0 | AQ24: 0 | AR24: 0 | AS24: 0 | AU24: 0
A25: 1 | C25: Mpumalanga | D25: =#REF! ->  | F25: =#REF! ->  | H25: =#REF! ->  | I25: =#REF! ->  | J25: =#REF! ->  | K25: =#REF! ->  | N25: 0 | T25: Mpumalanga | U25: 50981105 | V25: 0 | W25: 50981105 | Y25: 12218034 | Z25: 12621778 | AA25: 0 | AD25: 24839812 | AE25: 0.4872356533 | AK25: Mpumalanga | AL25: 0 | AM25: 0 | AN25: 0 | AP25: 0 | AQ25: 0 | AR25: 0 | AS25: 0 | AU25: 0
A26: 1 | C26: Northern Cape | D26: =#REF! ->  | F26: =#REF! ->  | H26: =#REF! ->  | I26: =#REF! ->  | J26: =#REF! ->  | K26: =#REF! ->  | N26: 0 | T26: Northern Cape | U26: 18255416.41 | V26: 0 | W26: 18255416.41 | Y26: 4569432 | Z26: 4451310.285 | AA26: 0 | AD26: 9020742.285 | AE26: 0.4941405927 | AK26: Northern Cape | AL26: 0 | AM26: 0 | AN26: 0 | AP26: 0 | AQ26: 0 | AR26: 0 | AS26: 0 | AU26: 0
A27: 1 | C27: North West | D27: =#REF! ->  | F27: =#REF! ->  | H27: =#REF! ->  | I27: =#REF! ->  | J27: =#REF! ->  | K27: =#REF! ->  | N27: 0 | T27: North West | U27: 44028547.2 | V27: 0 | W27: 44028547.2 | Y27: 9780722 | Z27: 10657495.4 | AA27: 0 | AD27: 20438217.4 | AE27: 0.4642037655 | AK27: North West | AL27: 0 | AM27: 0 | AN27: 0 | AP27: 0 | AQ27: 0 | AR27: 0 | AS27: 0 | AU27: 0
A28: 1 | C28: Western Cape | D28: =#REF! ->  | F28: =#REF! ->  | H28: =#REF! ->  | I28: =#REF! ->  | J28: =#REF! ->  | K28: =#REF! ->  | N28: 0 | T28: Western Cape | U28: 67191484 | V28: 0 | W28: 67191484 | Y28: 15409780 | Z28: 16775647 | AA28: 0 | AD28: 32185427 | AE28: 0.4790105097 | AK28: Western Cape | AL28: 0 | AM28: 0 | AN28: 0 | AP28: 0 | AQ28: 0 | AR28: 0 | AS28: 0 | AU28: 0
A29: 0 | E29: 0 | M29: 0 | N29: 0 | T29: 0 | V29: 0 | AD29: 0 | AE29: 0 | AK29: 0 | AL29: 0 | AM29: 0 | AN29: 0 | AP29: 0 | AQ29: 0 | AR29: 0 | AS29: 0 | AU29: 0
A30: 0 | E30: 0 | M30: 0 | N30: 0 | T30: 0 | V30: 0 | AD30: 0 | AE30: 0 | AK30: 0 | AL30: 0 | AM30: 0 | AN30: 0 | AP30: 0 | AQ30: 0 | AR30: 0 | AS30: 0 | AU30: 0
A31: 0 | E31: 0 | M31: 0 | N31: 0 | T31: 0 | V31: 0 | AD31: 0 | AE31: 0 | AK31: 0 | AL31: 0 | AM31: 0 | AN31: 0 | AP31: 0 | AQ31: 0 | AR31: 0 | AS31: 0 | AU31: 0
A32: 0 | E32: 0 | M32: 0 | N32: 0 | T32: 0 | V32: 0 | AD32: 0 | AE32: 0 | AK32: 0 | AL32: 0 | AM32: 0 | AN32: 0 | AP32: 0 | AQ32: 0 | AR32: 0 | AS32: 0 | AU32: 0
A33: 0 | E33: 0 | M33: 0 | N33: 0 | T33: 0 | V33: 0 | AD33: 0 | AE33: 0 | AK33: 0 | AL33: 0 | AM33: 0 | AN33: 0 | AP33: 0 | AQ33: 0 | AR33: 0 | AS33: 0 | AU33: 0
A34: 0 | M34: 0 | N34: 0 | T34: 0 | AD34: 0 | AE34: 0 | AK34: 0 | AL34: =U34-D34 -> 0 | AM34: =AN34-AL34 -> 0 | AN34: 0 | AP34: 0 | AQ34: =Z34-I34 -> 0 | AR34: =AA34-J34 -> 0 | AS34: =AB34-K34 -> 0 | AU34: =SUM(AP34:AQ34) -> 0
A35: 0 | M35: 0 | N35: 0 | T35: 0 | AD35: 0 | AE35: 0 | AK35: 0 | AL35: 0 | AM35: 0 | AN35: 0 | AP35: 0 | AQ35: 0 | AR35: 0 | AS35: 0 | AU35: 0
A36: 0 | M36: 0 | N36: 0 | T36: 0 | AD36: 0 | AE36: 0 | AK36: 0 | AL36: 0 | AM36: 0 | AN36: 0 | AP36: 0 | AQ36: 0 | AR36: 0 | AS36: 0 | AU36: 0
A37: 0 | M37: 0 | N37: 0 | T37: 0 | AD37: 0 | AE37: 0 | AK37: 0 | AL37: 0 | AM37: 0 | AN37: 0 | AP37: 0 | AQ37: 0 | AR37: 0 | AS37: 0 | AU37: 0
A38: 0 | M38: 0 | N38: 0 | T38: 0 | AD38: 0 | AE38: 0 | AK38: 0 | AL38: 0 | AM38: 0 | AN38: 0 | AP38: 0 | AQ38: 0 | AR38: 0 | AS38: 0 | AU38: 0
A39: 0 | M39: 0 | N39: 0 | T39: 0 | AD39: 0 | AE39: 0 | AK39: 0 | AL39: 0 | AM39: 0 | AN39: 0 | AP39: 0 | AQ39: 0 | AR39: 0 | AS39: 0 | AU39: 0
A40: 1
A41: 1 | C41: Total payments | D41: =SUM(D20:D39) ->  | E41: =SUM(E20:E39) ->  | H41: =SUM(H20:H39) ->  | I41: =IF(General!$BE$1>1,SUM(I20:I39),"") ->  | J41: =IF(General!$BE$1>2,SUM(J20:J39),"") ->  | K41: =IF(General!$BE$1>2,SUM(K20:K39),"") ->  | M41: =SUM(M20:M39) ->  | N41: =IFERROR(M41/D41,0) -> 0 | T41: Total payments | U41: 632346448 | V41: 0 | W41: 632346448 | Y41: 150127223.6 | Z41: 153103651.3 | AD41: 303230874.9 | AE41: 0.4795328191 | AK41: Total payments | AL41: =SUM(AL20:AL39) -> 0 | AM41: =SUM(AM20:AM39) -> 0 | AN41: =SUM(AN20:AN39) -> 0 | AP41: =SUM(AP20:AP39) -> 0 | AQ41: =SUM(AQ20:AQ39) -> 0 | AR41: 0 | AS41: 0 | AU41: =SUM(AU20:AU39) -> 0
A42: 1
A43: 1 | C43: Payments by economic classification | T43: Payments by economic classification | AK43: Payments by economic classification
A44: 1 | C44: Current payments | D44: =SUM(D45:D47) ->  | E44: =SUM(E45:E47) ->  | G44: 0 | J44: =SUM(J45:J47) ->  | K44: =SUM(K45:K47) ->  | N44: =IFERROR(M44/D44,0) -> 0 | T44: =C44 -> Current payments | U44: 517162385.5 | V44: 0 | W44: 517162385.5 | X44: 0 | Y44: 123189152.4 | Z44: 127770205.8 | AA44: 0 | AB44: 0 | AD44: 250959358.2 | AE44: 0.4852622024 | AK44: Current payments | AL44: =SUM(AL45:AL47) -> 0 | AM44: =SUM(AM45:AM47) -> 0 | AN44: =SUM(AN45:AN47) -> 0 | AO44: 0 | AP44: =SUM(AP45:AP47) -> 0 | AQ44: =SUM(AQ45:AQ47) -> 0 | AR44: 0 | AS44: 0 | AU44: =SUM(AU45:AU47) -> 0
A45: 1 | C45: Compensation of employees | D45: =#REF!+#REF!+#REF!+#REF!+#REF!+#REF!+#REF!+#REF!+#REF! ->  | E45: =F45-D45 ->  | F45: =#REF!+#REF!+#REF!+#REF!+#REF!+#REF!+#REF!+#REF!+#REF! ->  | H45: =#REF!+#REF!+#REF!+#REF!+#REF!+#REF!+#REF!+#REF!+#REF! ->  | I45: =#REF!+#REF!+#REF!+#REF!+#REF!+#REF!+#REF!+#REF!+#REF! ->  | J45: =#REF!+#REF!+#REF!+#REF!+#REF!+#REF!+#REF!+#REF!+#REF! ->  | K45: =#REF!+#REF!+#REF!+#REF!+#REF!+#REF!+#REF!+#REF!+#REF! ->  | M45: =SUM(H45:K45) ->  | N45: 0 | T45: Compensation of employees | U45: 389601795.5 | V45: 0 | W45: 389601795.5 | Y45: 94256640.33 | Z45: 95952953.6 | AA45: 0 | AB45: 0 | AD45: 190209593.9 | AE45: 0.4882153936 | AK45: Compensation of employees | AL45: =IFERROR(U45-D45,0) -> 0 | AM45: =IFERROR(V45-E45,0) -> 0 | AN45: =IFERROR(W45-F45,0) -> 0 | AP45: =IFERROR(Y45-H45,0) -> 0 | AQ45: =IFERROR(Z45-I45,0) -> 0 | AR45: =IFERROR(AA45-J45,0) -> 0 | AS45: =IFERROR(AB45-K45,0) -> 0 | AU45: =IFERROR(AD45-M45,0) -> 0
A46: 1 | C46: Goods and services | D46: =#REF!+#REF!+#REF!+#REF!+#REF!+#REF!+#REF!+#REF!+#REF! ->  | F46: =#REF!+#REF!+#REF!+#REF!+#REF!+#REF!+#REF!+#REF!+#REF! ->  | H46: =#REF!+#REF!+#REF!+#REF!+#REF!+#REF!+#REF!+#REF!+#REF! ->  | I46: =#REF!+#REF!+#REF!+#REF!+#REF!+#REF!+#REF!+#REF!+#REF! ->  | J46: =#REF!+#REF!+#REF!+#REF!+#REF!+#REF!+#REF!+#REF!+#REF! ->  | K46: =#REF!+#REF!+#REF!+#REF!+#REF!+#REF!+#REF!+#REF!+#REF! ->  | N46: 0 | T46: Goods and services | U46: 127552746 | V46: 0 | W46: 127552746 | Y46: 28917149.06 | Z46: 31801029.78 | AA46: 0 | AB46: 0 | AD46: 60718178.84 | AE46: 0.4760240822 | AK46: Goods and services | AL46: 0 | AM46: 0 | AN46: 0 | AP46: 0 | AQ46: 0 | AR46: 0 | AS46: 0 | AU46: 0
A47: 1 | C47: Interest and rent on land | D47: =#REF!+#REF!+#REF!+#REF!+#REF!+#REF!+#REF!+#REF!+#REF! ->  | F47: =#REF!+#REF!+#REF!+#REF!+#REF!+#REF!+#REF!+#REF!+#REF! ->  | H47: =#REF!+#REF!+#REF!+#REF!+#REF!+#REF!+#REF!+#REF!+#REF! ->  | I47: =#REF!+#REF!+#REF!+#REF!+#REF!+#REF!+#REF!+#REF!+#REF! ->  | J47: =#REF!+#REF!+#REF!+#REF!+#REF!+#REF!+#REF!+#REF!+#REF! ->  | K47: =#REF!+#REF!+#REF!+#REF!+#REF!+#REF!+#REF!+#REF!+#REF! ->  | N47: 0 | T47: Interest and rent on land | U47: 7844 | V47: 0 | W47: 7844 | Y47: 15363 | Z47: 16222.389 | AA47: 0 | AB47: 0 | AD47: 31585.389 | AE47: 4.026694161 | AK47: Interest and rent on land | AL47: 0 | AM47: 0 | AN47: 0 | AP47: 0 | AQ47: 0 | AR47: 0 | AS47: 0 | AU47: 0
A48: 1 | C48: Transfers and subsidies | D48: =SUM(D49:D55) ->  | E48: =SUM(E49:E55) ->  | F48: =SUM(F49:F55) ->  | G48: 0 | H48: =SUM(H49:H55) ->  | I48: =SUM(I49:I55) ->  | K48: =SUM(K49:K55) ->  | N48: 0 | T48: Transfers and subsidies | U48: 79200277.85 | V48: 0 | W48: 79200277.85 | X48: 0 | Y48: 21122423.39 | Z48: 18201285.06 | AA48: 0 | AB48: 0 | AD48: 39323708.45 | AE48: 0.4965097284 | AK48: Transfers and subsidies | AL48: =SUM(AL49:AL55) -> 0 | AM48: =SUM(AM49:AM55) -> 0 | AN48: =SUM(AN49:AN55) -> 0 | AO48: 0 | AP48: =SUM(AP49:AP55) -> 0 | AQ48: =SUM(AQ49:AQ55) -> 0 | AR48: 0 | AS48: 0 | AU48: =SUM(AU49:AU55) -> 0
A49: 1 | C49: Provinces and municipalities | D49: =#REF!+#REF!+#REF!+#REF!+#REF!+#REF!+#REF!+#REF!+#REF! ->  | E49: =F49-D49 ->  | F49: =#REF!+#REF!+#REF!+#REF!+#REF!+#REF!+#REF!+#REF!+#REF! ->  | H49: =#REF!+#REF!+#REF!+#REF!+#REF!+#REF!+#REF!+#REF!+#REF! ->  | I49: =#REF!+#REF!+#REF!+#REF!+#REF!+#REF!+#REF!+#REF!+#REF! ->  | J49: =#REF!+#REF!+#REF!+#REF!+#REF!+#REF!+#REF!+#REF!+#REF! ->  | K49: =#REF!+#REF!+#REF!+#REF!+#REF!+#REF!+#REF!+#REF!+#REF! ->  | M49: =SUM(H49:K49) ->  | N49: 0 | T49: Provinces and municipalities | U49: 7089391 | V49: 0 | W49: 7089391 | Y49: 1008266.093 | Z49: 2243015 | AA49: 0 | AB49: 0 | AD49: 3251281.093 | AE49: 0.4586121845 | AK49: Provinces and municipalities | AL49: =IFERROR(U49-D49,0) -> 0 | AM49: =IFERROR(V49-E49,0) -> 0 | AN49: =IFERROR(W49-F49,0) -> 0 | AP49: =IFERROR(Y49-H49,0) -> 0 | AQ49: =IFERROR(Z49-I49,0) -> 0 | AR49: =IFERROR(AA49-J49,0) -> 0 | AS49: =IFERROR(AB49-K49,0) -> 0 | AU49: =IFERROR(AD49-M49,0) -> 0
A50: 1 | C50: Departmental agencies and accounts | D50: =#REF!+#REF!+#REF!+#REF!+#REF!+#REF!+#REF!+#REF!+#REF! ->  | F50: =#REF!+#REF!+#REF!+#REF!+#REF!+#REF!+#REF!+#REF!+#REF! ->  | H50: =#REF!+#REF!+#REF!+#REF!+#REF!+#REF!+#REF!+#REF!+#REF! ->  | I50: =#REF!+#REF!+#REF!+#REF!+#REF!+#REF!+#REF!+#REF!+#REF! ->  | J50: =#REF!+#REF!+#REF!+#REF!+#REF!+#REF!+#REF!+#REF!+#REF! ->  | K50: =#REF!+#REF!+#REF!+#REF!+#REF!+#REF!+#REF!+#REF!+#REF! ->  | N50: 0 | T50: Departmental agencies and accounts | U50: 11273418 | V50: 0 | W50: 11273418 | Y50: 3019889.6 | Z50: 2691786.906 | AA50: 0 | AB50: 0 | AD50: 5711676.506 | AE50: 0.5066499358 | AK50: Departmental agencies and accounts | AL50: 0 | AM50: 0 | AN50: 0 | AP50: 0 | AQ50: 0 | AR50: 0 | AS50: 0 | AU50: 0
A51: 1 | C51: Higher education and institutions | D51: =#REF!+#REF!+#REF!+#REF!+#REF!+#REF!+#REF!+#REF!+#REF! ->  | F51: =#REF!+#REF!+#REF!+#REF!+#REF!+#REF!+#REF!+#REF!+#REF! ->  | H51: =#REF!+#REF!+#REF!+#REF!+#REF!+#REF!+#REF!+#REF!+#REF! ->  | I51: =#REF!+#REF!+#REF!+#REF!+#REF!+#REF!+#REF!+#REF!+#REF! ->  | J51: =#REF!+#REF!+#REF!+#REF!+#REF!+#REF!+#REF!+#REF!+#REF! ->  | K51: =#REF!+#REF!+#REF!+#REF!+#REF!+#REF!+#REF!+#REF!+#REF! ->  | N51: 0 | T51: Higher education and institutions | U51: 142537 | V51: 0 | W51: 142537 | Y51: 29547 | Z51: 19561 | AA51: 0 | AB51: 0 | AD51: 49108 | AE51: 0.3445280874 | AK51: Higher education and institutions | AL51: 0 | AM51: 0 | AN51: 0 | AP51: 0 | AQ51: 0 | AR51: 0 | AS51: 0 | AU51: 0
A52: 1 | C52: Foreign governments and international organisations | D52: =#REF!+#REF!+#REF!+#REF!+#REF!+#REF!+#REF!+#REF!+#REF! ->  | F52: =#REF!+#REF!+#REF!+#REF!+#REF!+#REF!+#REF!+#REF!+#REF! ->  | H52: =#REF!+#REF!+#REF!+#REF!+#REF!+#REF!+#REF!+#REF!+#REF! ->  | I52: =#REF!+#REF!+#REF!+#REF!+#REF!+#REF!+#REF!+#REF!+#REF! ->  | J52: =#REF!+#REF!+#REF!+#REF!+#REF!+#REF!+#REF!+#REF!+#REF! ->  | K52: =#REF!+#REF!+#REF!+#REF!+#REF!+#REF!+#REF!+#REF!+#REF! ->  | N52: 0 | T52: Foreign governments and international organisations | U52: 554 | V52: 0 | W52: 554 | Y52: 0 | Z52: 0 | AA52: 0 | AB52: 0 | AD52: 0 | AE52: 0 | AK52: Foreign governments and international organisations | AL52: 0 | AM52: 0 | AN52: 0 | AP52: 0 | AQ52: 0 | AR52: 0 | AS52: 0 | AU52: 0
A53: 1 | C53: Public corporations and private enterprises | D53: =#REF!+#REF!+#REF!+#REF!+#REF!+#REF!+#REF!+#REF!+#REF! ->  | F53: =#REF!+#REF!+#REF!+#REF!+#REF!+#REF!+#REF!+#REF!+#REF! ->  | H53: =#REF!+#REF!+#REF!+#REF!+#REF!+#REF!+#REF!+#REF!+#REF! ->  | I53: =#REF!+#REF!+#REF!+#REF!+#REF!+#REF!+#REF!+#REF!+#REF! ->  | J53: =#REF!+#REF!+#REF!+#REF!+#REF!+#REF!+#REF!+#REF!+#REF! ->  | K53: =#REF!+#REF!+#REF!+#REF!+#REF!+#REF!+#REF!+#REF!+#REF! ->  | N53: 0 | T53: Public corporations and private enterprises | U53: 8827389 | V53: 0 | W53: 8827389 | Y53: 1563658.521 | Z53: 2158397.554 | AA53: 0 | AB53: 0 | AD53: 3722056.075 | AE53: 0.4216485843 | AK53: Public corporations and private enterprises | AL53: 0 | AM53: 0 | AN53: 0 | AP53: 0 | AQ53: 0 | AR53: 0 | AS53: 0 | AU53: 0
A54: 1 | C54: Non profit institutions | D54: =#REF!+#REF!+#REF!+#REF!+#REF!+#REF!+#REF!+#REF!+#REF! ->  | F54: =#REF!+#REF!+#REF!+#REF!+#REF!+#REF!+#REF!+#REF!+#REF! ->  | H54: =#REF!+#REF!+#REF!+#REF!+#REF!+#REF!+#REF!+#REF!+#REF! ->  | I54: =#REF!+#REF!+#REF!+#REF!+#REF!+#REF!+#REF!+#REF!+#REF! ->  | J54: =#REF!+#REF!+#REF!+#REF!+#REF!+#REF!+#REF!+#REF!+#REF! ->  | K54: =#REF!+#REF!+#REF!+#REF!+#REF!+#REF!+#REF!+#REF!+#REF! ->  | N54: 0 | T54: Non profit institutions | U54: 28125855.75 | V54: 0 | W54: 28125855.75 | Y54: 9761444 | Z54: 5252023 | AA54: 0 | AB54: 0 | AD54: 15013467 | AE54: 0.5337959184 | AK54: Non profit institutions | AL54: 0 | AM54: 0 | AN54: 0 | AP54: 0 | AQ54: 0 | AR54: 0 | AS54: 0 | AU54: 0
A55: 1 | C55: Households | D55: =#REF!+#REF!+#REF!+#REF!+#REF!+#REF!+#REF!+#REF!+#REF! ->  | F55: =#REF!+#REF!+#REF!+#REF!+#REF!+#REF!+#REF!+#REF!+#REF! ->  | H55: =#REF!+#REF!+#REF!+#REF!+#REF!+#REF!+#REF!+#REF!+#REF! ->  | I55: =#REF!+#REF!+#REF!+#REF!+#REF!+#REF!+#REF!+#REF!+#REF! ->  | J55: =#REF!+#REF!+#REF!+#REF!+#REF!+#REF!+#REF!+#REF!+#REF! ->  | K55: =#REF!+#REF!+#REF!+#REF!+#REF!+#REF!+#REF!+#REF!+#REF! ->  | N55: 0 | T55: Households | U55: 23741133.1 | V55: 0 | W55: 23741133.1 | Y55: 5739618.171 | Z55: 5836501.602 | AA55: 0 | AB55: 0 | AD55: 11576119.77 | AE55: 0.4875976106 | AK55: Households | AL55: 0 | AM55: 0 | AN55: 0 | AP55: 0 | AQ55: 0 | AR55: 0 | AS55: 0 | AU55: 0
A56: 1 | C56: Payments for capital assets | D56: =SUM(D57:D63) ->  | E56: =SUM(E57:E63) ->  | F56: =SUM(F57:F63) ->  | G56: 0 | H56: =SUM(H57:H63) ->  | I56: =SUM(I57:I63) ->  | K56: =SUM(K57:K63) ->  | N56: 0 | T56: Payments for capital assets | U56: 35977129.76 | V56: 0 | W56: 35977129.76 | X56: 0 | Y56: 5810214.985 | Z56: 7121714.125 | AA56: 0 | AB56: 0 | AD56: 12931929.11 | AE56: 0.3594486052 | AK56: Payments for capital assets | AL56: =SUM(AL57:AL63) -> 0 | AM56: =SUM(AM57:AM63) -> 0 | AN56: =SUM(AN57:AN63) -> 0 | AO56: 0 | AP56: =SUM(AP57:AP63) -> 0 | AQ56: =SUM(AQ57:AQ63) -> 0 | AR56: 0 | AS56: 0 | AU56: =SUM(AU57:AU63) -> 0
A57: 1 | C57: Buildings and other fixed structures | D57: =#REF!+#REF!+#REF!+#REF!+#REF!+#REF!+#REF!+#REF!+#REF! ->  | E57: =F57-D57 ->  | F57: =#REF!+#REF!+#REF!+#REF!+#REF!+#REF!+#REF!+#REF!+#REF! ->  | H57: =#REF!+#REF!+#REF!+#REF!+#REF!+#REF!+#REF!+#REF!+#REF! ->  | I57: =#REF!+#REF!+#REF!+#REF!+#REF!+#REF!+#REF!+#REF!+#REF! ->  | J57: =#REF!+#REF!+#REF!+#REF!+#REF!+#REF!+#REF!+#REF!+#REF! ->  | K57: =#REF!+#REF!+#REF!+#REF!+#REF!+#REF!+#REF!+#REF!+#REF! ->  | M57: =SUM(H57:K57) ->  | N57: 0 | T57: Buildings and other fixed structures | U57: 28372649 | V57: 0 | W57: 28372649 | Y57: 4734647.964 | Z57: 5655269.795 | AA57: 0 | AB57: 0 | AD57: 10389917.76 | AE57: 0.3661948435 | AK57: Buildings and other fixed structures | AL57: =IFERROR(U57-D57,0) -> 0 | AM57: =IFERROR(V57-E57,0) -> 0 | AN57: =IFERROR(W57-F57,0) -> 0 | AP57: =IFERROR(Y57-H57,0) -> 0 | AQ57: =IFERROR(Z57-I57,0) -> 0 | AR57: =IFERROR(AA57-J57,0) -> 0 | AS57: =IFERROR(AB57-K57,0) -> 0 | AU57: =IFERROR(AD57-M57,0) -> 0
A58: 1 | C58: Machinery and equipment | D58: =#REF!+#REF!+#REF!+#REF!+#REF!+#REF!+#REF!+#REF!+#REF! ->  | F58: =#REF!+#REF!+#REF!+#REF!+#REF!+#REF!+#REF!+#REF!+#REF! ->  | H58: =#REF!+#REF!+#REF!+#REF!+#REF!+#REF!+#REF!+#REF!+#REF! ->  | I58: =#REF!+#REF!+#REF!+#REF!+#REF!+#REF!+#REF!+#REF!+#REF! ->  | J58: =#REF!+#REF!+#REF!+#REF!+#REF!+#REF!+#REF!+#REF!+#REF! ->  | K58: =#REF!+#REF!+#REF!+#REF!+#REF!+#REF!+#REF!+#REF!+#REF! ->  | N58: 0 | T58: Machinery and equipment | U58: 7470287.74 | V58: 0 | W58: 7470287.74 | Y58: 987833.021 | Z58: 1389910.936 | AA58: 0 | AB58: 0 | AD58: 2377743.957 | AE58: 0.3182934901 | AK58: Machinery and equipment | AL58: 0 | AM58: 0 | AN58: 0 | AP58: 0 | AQ58: 0 | AR58: 0 | AS58: 0 | AU58: 0
A59: 1 | C59: Heritage assets | D59: =#REF!+#REF!+#REF!+#REF!+#REF!+#REF!+#REF!+#REF!+#REF! ->  | F59: =#REF!+#REF!+#REF!+#REF!+#REF!+#REF!+#REF!+#REF!+#REF! ->  | H59: =#REF!+#REF!+#REF!+#REF!+#REF!+#REF!+#REF!+#REF!+#REF! ->  | I59: =#REF!+#REF!+#REF!+#REF!+#REF!+#REF!+#REF!+#REF!+#REF! ->  | J59: =#REF!+#REF!+#REF!+#REF!+#REF!+#REF!+#REF!+#REF!+#REF! ->  | K59: =#REF!+#REF!+#REF!+#REF!+#REF!+#REF!+#REF!+#REF!+#REF! ->  | N59: 0 | T59: Heritage assets | U59: 15447 | V59: 0 | W59: 15447 | Y59: 560 | Z59: 0 | AA59: 0 | AB59: 0 | AD59: 560 | AE59: 0.03625299411 | AK59: Heritage assets | AL59: 0 | AM59: 0 | AN59: 0 | AP59: 0 | AQ59: 0 | AR59: 0 | AS59: 0 | AU59: 0
A60: 1 | C60: Specialised military assets | D60: =#REF!+#REF!+#REF!+#REF!+#REF!+#REF!+#REF!+#REF!+#REF! ->  | F60: =#REF!+#REF!+#REF!+#REF!+#REF!+#REF!+#REF!+#REF!+#REF! ->  | H60: =#REF!+#REF!+#REF!+#REF!+#REF!+#REF!+#REF!+#REF!+#REF! ->  | I60: =#REF!+#REF!+#REF!+#REF!+#REF!+#REF!+#REF!+#REF!+#REF! ->  | J60: =#REF!+#REF!+#REF!+#REF!+#REF!+#REF!+#REF!+#REF!+#REF! ->  | K60: =#REF!+#REF!+#REF!+#REF!+#REF!+#REF!+#REF!+#REF!+#REF! ->  | N60: 0 | T60: Specialised military assets | U60: 35 | V60: 0 | W60: 35 | Y60: 0 | Z60: 0 | AA60: 0 | AB60: 0 | AD60: 0 | AE60: 0 | AK60: Specialised military assets | AL60: 0 | AM60: 0 | AN60: 0 | AP60: 0 | AQ60: 0 | AR60: 0 | AS60: 0 | AU60: 0
A61: 1 | C61: Biological assets | D61: =#REF!+#REF!+#REF!+#REF!+#REF!+#REF!+#REF!+#REF!+#REF! ->  | F61: =#REF!+#REF!+#REF!+#REF!+#REF!+#REF!+#REF!+#REF!+#REF! ->  | H61: =#REF!+#REF!+#REF!+#REF!+#REF!+#REF!+#REF!+#REF!+#REF! ->  | I61: =#REF!+#REF!+#REF!+#REF!+#REF!+#REF!+#REF!+#REF!+#REF! ->  | J61: =#REF!+#REF!+#REF!+#REF!+#REF!+#REF!+#REF!+#REF!+#REF! ->  | K61: =#REF!+#REF!+#REF!+#REF!+#REF!+#REF!+#REF!+#REF!+#REF! ->  | N61: 0 | T61: Biological assets | U61: 22585 | V61: 0 | W61: 22585 | Y61: 0 | Z61: 3372 | AA61: 0 | AB61: 0 | AD61: 3372 | AE61: 0.1493026345 | AK61: Biological assets | AL61: 0 | AM61: 0 | AN61: 0 | AP61: 0 | AQ61: 0 | AR61: 0 | AS61: 0 | AU61: 0
A62: 1 | C62: Land and sub-soil assets | D62: =#REF!+#REF!+#REF!+#REF!+#REF!+#REF!+#REF!+#REF!+#REF! ->  | F62: =#REF!+#REF!+#REF!+#REF!+#REF!+#REF!+#REF!+#REF!+#REF! ->  | H62: =#REF!+#REF!+#REF!+#REF!+#REF!+#REF!+#REF!+#REF!+#REF! ->  | I62: =#REF!+#REF!+#REF!+#REF!+#REF!+#REF!+#REF!+#REF!+#REF! ->  | J62: =#REF!+#REF!+#REF!+#REF!+#REF!+#REF!+#REF!+#REF!+#REF! ->  | K62: =#REF!+#REF!+#REF!+#REF!+#REF!+#REF!+#REF!+#REF!+#REF! ->  | N62: 0 | T62: Land and sub-soil assets | U62: 14568 | V62: 0 | W62: 14568 | Y62: 3404 | Z62: 6906 | AA62: 0 | AB62: 0 | AD62: 10310 | AE62: 0.7077155409 | AK62: Land and sub-soil assets | AL62: 0 | AM62: 0 | AN62: 0 | AP62: 0 | AQ62: 0 | AR62: 0 | AS62: 0 | AU62: 0
A63: 1 | C63: Software and other intangible assets | D63: =#REF!+#REF!+#REF!+#REF!+#REF!+#REF!+#REF!+#REF!+#REF! ->  | F63: =#REF!+#REF!+#REF!+#REF!+#REF!+#REF!+#REF!+#REF!+#REF! ->  | H63: =#REF!+#REF!+#REF!+#REF!+#REF!+#REF!+#REF!+#REF!+#REF! ->  | I63: =#REF!+#REF!+#REF!+#REF!+#REF!+#REF!+#REF!+#REF!+#REF! ->  | J63: =#REF!+#REF!+#REF!+#REF!+#REF!+#REF!+#REF!+#REF!+#REF! ->  | K63: =#REF!+#REF!+#REF!+#REF!+#REF!+#REF!+#REF!+#REF!+#REF! ->  | N63: 0 | T63: Software and other intangible assets | U63: 81558.02 | V63: 0 | W63: 81558.02 | Y63: 83770 | Z63: 66255.39424 | AA63: 0 | AB63: 0 | AD63: 150025.3942 | AE63: 1.839492845 | AK63: Software and other intangible assets | AL63: 0 | AM63: 0 | AN63: 0 | AP63: 0 | AQ63: 0 | AR63: 0 | AS63: 0 | AU63: 0
A64: 1 | C64: Payments for financial assets | D64: =#REF!+#REF!+#REF!+#REF!+#REF!+#REF!+#REF!+#REF!+#REF! ->  | F64: =#REF!+#REF!+#REF!+#REF!+#REF!+#REF!+#REF!+#REF!+#REF! ->  | H64: =#REF!+#REF!+#REF!+#REF!+#REF!+#REF!+#REF!+#REF!+#REF! ->  | I64: =#REF!+#REF!+#REF!+#REF!+#REF!+#REF!+#REF!+#REF!+#REF! ->  | J64: =#REF!+#REF!+#REF!+#REF!+#REF!+#REF!+#REF!+#REF!+#REF! ->  | K64: =#REF!+#REF!+#REF!+#REF!+#REF!+#REF!+#REF!+#REF!+#REF! ->  | N64: 0 | T64: Payments for financial assets | U64: 6655 | V64: 0 | W64: 6655 | Y64: 5433 | Z64: 10446 | AA64: 0 | AB64: 0 | AD64: 15879 | AE64: 2.386025545 | AK64: Payments for financial assets | AL64: 0 | AM64: 0 | AN64: 0 | AP64: 0 | AQ64: 0 | AR64: 0 | AS64: 0 | AU64: 0
A65: 1
A66: 1 | C66: Total payments | D66: =D44+D48+D56+D64 ->  | E66: =E44+E48+E56+E64 ->  | H66: =H44+H48+H56+H64 ->  | I66: =IF(General!$BE$1>1,I44+I48+I56+I64,"") ->  | J66: =IF(General!$BE$1>2,J44+J48+J56+J64,"") ->  | K66: =IF(General!$BE$1=4,K44+K48+K56+K64,"") ->  | M66: =M44+M48+M56+M64 ->  | N66: =IFERROR(M66/D66,0) -> 0 | T66: Total payments | U66: 632346448.1 | V66: 0 | W66: 632346448.1 | Y66: 150127223.8 | Z66: 153103651 | AD66: 303230874.7 | AE66: 0.4795328188 | AK66: Total payments | AL66: =AL44+AL48+AL56+AL64 -> 0 | AM66: =AM44+AM48+AM56+AM64 -> 0 | AN66: =AN44+AN48+AN56+AN64 -> 0 | AP66: =AP44+AP48+AP56+AP64 -> 0 | AQ66: =AQ44+AQ48+AQ56+AQ64 -> 0 | AR66: 0 | AS66: 0 | AU66: =AU44+AU48+AU56+AU64 -> 0
A67: 1
A68: 1 | C68: Information submitted by provinces
A69: 1
A70: 1 | B70: 1. | C70: ="Main Budget figures are based on the " & Settings!FinYear & " Estimates of Provincial Revenue and Expenditure tabled in the Provincial Legislature during March " & LEFT(Settings!FinYear,4) & "." -> Main Budget figures are based on the 2022/23 Estimates of Provincial Revenue and Expenditure tabled in the Provincial Legislature during March 2022.
A71: 1 | B71: =IF(General!$BE$1>2,"2.","") ->  | C71: =IF(General!$BE$1>2,"Adjusted Budget figures are based on the " & Settings!FinYear & " Adjusted Estimates of Provincial Revenue and Expenditure tabled in the Provincial Legislature during November " & LEFT(Settings!FinYear,4) & ".","") -> 
A72: 1
A73: 1
A74: 1
A75: 1
A76: 1
A77: 1

Sheet Conditional Grants (hidden)
C3: ="CONDITIONAL GRANTS TRANSFERRED FROM NATIONAL DEPARTMENTS AND ACTUAL PAYMENTS MADE BY PROVINCES FOR THE " & QUARTER -> CONDITIONAL GRANTS TRANSFERRED FROM NATIONAL DEPARTMENTS AND ACTUAL PAYMENTS MADE BY PROVINCES FOR THE FIRST QUARTER ENDED 30 JUNE 2020 | T3: ="NATIONAL TREASURY: " & C3 -> NATIONAL TREASURY: CONDITIONAL GRANTS TRANSFERRED FROM NATIONAL DEPARTMENTS AND ACTUAL PAYMENTS MADE BY PROVINCES FOR THE FIRST QUARTER ENDED 30 JUNE 2020 | AK3: ="VARIANCE FROM NATIONAL TREASURY: " & C3 -> VARIANCE FROM NATIONAL TREASURY: CONDITIONAL GRANTS TRANSFERRED FROM NATIONAL DEPARTMENTS AND ACTUAL PAYMENTS MADE BY PROVINCES FOR THE FIRST QUARTER ENDED 30 JUNE 2020
C4: =UPPER(Prov) & " PROVINCE" -> ALL PROVINCES PROVINCE | T4: =C4 -> ALL PROVINCES PROVINCE | AK4: =C4 -> ALL PROVINCES PROVINCE
C6: National departments administering conditional grants | D6: =Overview!D6 -> 2022/23 | T6: National departments administering conditional grants | U6: 2019/20 | AK6: National departments administering conditional grants | AL6: =D6 -> 2022/23
D7: Budget | J7: Transfers | M7: Payments to Date | U7: Budget | AA7: Transfers | AD7: Payments to Date | AL7: =D7 -> Budget | AR7: =J7 -> Transfers | AU7: =M7 -> Payments to Date
D8: ="Division of Revenue Act, No. 4 of " & LEFT(Settings!$R$5,4) -> Division of Revenue Act, No. 4 of 2022 | E8: ="Division of Revenue Amendment Act, No. 30 of " & LEFT(Settings!$R$5,4) & " and other Gazettes" -> Division of Revenue Amendment Act, No. 30 of 2022 and other Gazettes | F8: Total National Allocation | G8: Provincial roll-overs approved by National Treasury | H8: Total Available | J8: Provincial Payment Schedule (National Allocation) | K8: Transferred from National to Province | M8: Actual Payments | N8: % Actual Payments | U8: Division of Revenue Act, No. 14 of 2018 | V8: Division of Revenue Amendment Act, No. 14 of 2018 | W8: Total National Allocation | X8: Provincial roll-overs approved by National Treasury | Y8: Total Available | AA8: Provincial Payment Schedule (National Allocation) | AB8: Transferred from National to Province | AD8: Actual Payments | AE8: % Actual Payments | AL8: =D8 -> Division of Revenue Act, No. 4 of 2022 | AM8: =E8 -> Division of Revenue Amendment Act, No. 30 of 2022 and other Gazettes | AN8: Total National Allocation | AO8: Provincial roll-overs approved by National Treasury | AP8: Total Available | AR8: =J8 -> Provincial Payment Schedule (National Allocation) | AS8: Transferred from National to Province | AU8: =M8 -> Actual Payments | AV8: =N8 -> % Actual Payments
D9: R'000 | E9: R'000 | F9: R'000 | G9: R'000 | H9: R'000 | J9: R'000 | K9: R'000 | M9: R'000 | N9: % | U9: R'000 | V9: R'000 | W9: R'000 | X9: R'000 | Y9: R'000 | AA9: R'000 | AB9: R'000 | AD9: R'000 | AE9: % | AL9: R'000 | AM9: R'000 | AN9: R'000 | AO9: R'000 | AP9: R'000 | AR9: R'000 | AS9: R'000 | AU9: R'000 | AV9: %
D10: =#REF!+#REF!+#REF!+#REF!+#REF!+#REF!+#REF!+#REF!+#REF! ->  | E10: =#REF!+#REF!+#REF!+#REF!+#REF!+#REF!+#REF!+#REF!+#REF! ->  | F10: =#REF!+#REF!+#REF!+#REF!+#REF!+#REF!+#REF!+#REF!+#REF! ->  | G10: =#REF!+#REF!+#REF!+#REF!+#REF!+#REF!+#REF!+#REF!+#REF! ->  | H10: =#REF!+#REF!+#REF!+#REF!+#REF!+#REF!+#REF!+#REF!+#REF! ->  | I10: =#REF!+#REF!+#REF!+#REF!+#REF!+#REF!+#REF!+#REF!+#REF! ->  | J10: =#REF!+#REF!+#REF!+#REF!+#REF!+#REF!+#REF!+#REF!+#REF! ->  | K10: =#REF!+#REF!+#REF!+#REF!+#REF!+#REF!+#REF!+#REF!+#REF! ->  | L10: =#REF!+#REF!+#REF!+#REF!+#REF!+#REF!+#REF!+#REF!+#REF! ->  | M10: =#REF!+#REF!+#REF!+#REF!+#REF!+#REF!+#REF!+#REF!+#REF! -> 
C11: Schedule 5, Part A Grants2. | D11: =#REF!+#REF!+#REF!+#REF!+#REF!+#REF!+#REF!+#REF!+#REF! ->  | E11: =#REF!+#REF!+#REF!+#REF!+#REF!+#REF!+#REF!+#REF!+#REF! ->  | F11: =#REF!+#REF!+#REF!+#REF!+#REF!+#REF!+#REF!+#REF!+#REF! ->  | G11: =#REF!+#REF!+#REF!+#REF!+#REF!+#REF!+#REF!+#REF!+#REF! ->  | H11: =#REF!+#REF!+#REF!+#REF!+#REF!+#REF!+#REF!+#REF!+#REF! ->  | I11: =#REF!+#REF!+#REF!+#REF!+#REF!+#REF!+#REF!+#REF!+#REF! ->  | J11: =#REF!+#REF!+#REF!+#REF!+#REF!+#REF!+#REF!+#REF!+#REF! ->  | K11: =#REF!+#REF!+#REF!+#REF!+#REF!+#REF!+#REF!+#REF!+#REF! ->  | L11: =#REF!+#REF!+#REF!+#REF!+#REF!+#REF!+#REF!+#REF!+#REF! ->  | M11: =#REF!+#REF!+#REF!+#REF!+#REF!+#REF!+#REF!+#REF!+#REF! ->  | T11: Schedule 5, Part A Grants2. | AK11: Schedule 5, Part A Grants2.
D12: =#REF!+#REF!+#REF!+#REF!+#REF!+#REF!+#REF!+#REF!+#REF! ->  | E12: =#REF!+#REF!+#REF!+#REF!+#REF!+#REF!+#REF!+#REF!+#REF! ->  | F12: =#REF!+#REF!+#REF!+#REF!+#REF!+#REF!+#REF!+#REF!+#REF! ->  | G12: =#REF!+#REF!+#REF!+#REF!+#REF!+#REF!+#REF!+#REF!+#REF! ->  | H12: =#REF!+#REF!+#REF!+#REF!+#REF!+#REF!+#REF!+#REF!+#REF! ->  | I12: =#REF!+#REF!+#REF!+#REF!+#REF!+#REF!+#REF!+#REF!+#REF! ->  | J12: =#REF!+#REF!+#REF!+#REF!+#REF!+#REF!+#REF!+#REF!+#REF! ->  | K12: =#REF!+#REF!+#REF!+#REF!+#REF!+#REF!+#REF!+#REF!+#REF! ->  | L12: =#REF!+#REF!+#REF!+#REF!+#REF!+#REF!+#REF!+#REF!+#REF! ->  | M12: =#REF!+#REF!+#REF!+#REF!+#REF!+#REF!+#REF!+#REF!+#REF! -> 
C13: Agriculture, Land Reform and Rural Development (Vote 29) | D13: =#REF!+#REF!+#REF!+#REF!+#REF!+#REF!+#REF!+#REF!+#REF! ->  | E13: =#REF!+#REF!+#REF!+#REF!+#REF!+#REF!+#REF!+#REF!+#REF! ->  | F13: =#REF!+#REF!+#REF!+#REF!+#REF!+#REF!+#REF!+#REF!+#REF! ->  | G13: =#REF!+#REF!+#REF!+#REF!+#REF!+#REF!+#REF!+#REF!+#REF! ->  | H13: =#REF!+#REF!+#REF!+#REF!+#REF!+#REF!+#REF!+#REF!+#REF! ->  | I13: =#REF!+#REF!+#REF!+#REF!+#REF!+#REF!+#REF!+#REF!+#REF! ->  | J13: =#REF!+#REF!+#REF!+#REF!+#REF!+#REF!+#REF!+#REF!+#REF! ->  | K13: =#REF!+#REF!+#REF!+#REF!+#REF!+#REF!+#REF!+#REF!+#REF! ->  | L13: =#REF!+#REF!+#REF!+#REF!+#REF!+#REF!+#REF!+#REF!+#REF! ->  | M13: =#REF!+#REF!+#REF!+#REF!+#REF!+#REF!+#REF!+#REF!+#REF! ->  | N13: =IFERROR(M13/D13,0) -> 0 | T13: =C13 -> Agriculture, Land Reform and Rural Development (Vote 29) | U13: 2203918 | V13: 0 | W13: 2203918 | X13: 0 | Y13: 2203918 | AA13: 1050981 | AB13: 1049141 | AD13: 729615 | AE13: 0.3310536054 | AK13: =C13 -> Agriculture, Land Reform and Rural Development (Vote 29) | AL13: =SUM(AL14:AL16) -> 0 | AM13: =SUM(AM14:AM16) -> 0 | AN13: =SUM(AN14:AN16) -> 0 | AO13: =SUM(AO14:AO16) -> 0 | AP13: =SUM(AP14:AP16) -> 0 | AR13: =SUM(AR14:AR16) -> 0 | AS13: =SUM(AS14:AS16) -> 0 | AU13: =SUM(AU14:AU16) -> 0
C14: (a) Comprehensive Agricultural Support Programme Grant | D14: =#REF!+#REF!+#REF!+#REF!+#REF!+#REF!+#REF!+#REF!+#REF! ->  | E14: =#REF!+#REF!+#REF!+#REF!+#REF!+#REF!+#REF!+#REF!+#REF! ->  | F14: =#REF!+#REF!+#REF!+#REF!+#REF!+#REF!+#REF!+#REF!+#REF! ->  | G14: =#REF!+#REF!+#REF!+#REF!+#REF!+#REF!+#REF!+#REF!+#REF! ->  | H14: =#REF!+#REF!+#REF!+#REF!+#REF!+#REF!+#REF!+#REF!+#REF! ->  | I14: =#REF!+#REF!+#REF!+#REF!+#REF!+#REF!+#REF!+#REF!+#REF! ->  | J14: =#REF!+#REF!+#REF!+#REF!+#REF!+#REF!+#REF!+#REF!+#REF! ->  | K14: =#REF!+#REF!+#REF!+#REF!+#REF!+#REF!+#REF!+#REF!+#REF! ->  | L14: =#REF!+#REF!+#REF!+#REF!+#REF!+#REF!+#REF!+#REF!+#REF! ->  | M14: =#REF!+#REF!+#REF!+#REF!+#REF!+#REF!+#REF!+#REF!+#REF! ->  | N14: =IFERROR(M14/D14,0) -> 0 | T14: =C14 -> (a) Comprehensive Agricultural Support Programme Grant | U14: 1538325 | V14: 0 | W14: 1538325 | X14: 0 | Y14: 1538325 | AA14: 733118 | AB14: 733117 | AD14: 472143 | AE14: 0.3069201892 | AK14: =C14 -> (a) Comprehensive Agricultural Support Programme Grant | AL14: =IFERROR(U14-D14,0) -> 0 | AM14: =IFERROR(V14-E14,0) -> 0 | AN14: 0 | AO14: 0 | AP14: 0 | AR14: =IFERROR(AA14-J14,0) -> 0 | AS14: 0 | AU14: =IFERROR(AD14-M14,0) -> 0
C15: (b) Ilima/Letsema Projects Grant | D15: =#REF!+#REF!+#REF!+#REF!+#REF!+#REF!+#REF!+#REF!+#REF! ->  | E15: =#REF!+#REF!+#REF!+#REF!+#REF!+#REF!+#REF!+#REF!+#REF! ->  | F15: =#REF!+#REF!+#REF!+#REF!+#REF!+#REF!+#REF!+#REF!+#REF! ->  | G15: =#REF!+#REF!+#REF!+#REF!+#REF!+#REF!+#REF!+#REF!+#REF! ->  | H15: =#REF!+#REF!+#REF!+#REF!+#REF!+#REF!+#REF!+#REF!+#REF! ->  | I15: =#REF!+#REF!+#REF!+#REF!+#REF!+#REF!+#REF!+#REF!+#REF! ->  | J15: =#REF!+#REF!+#REF!+#REF!+#REF!+#REF!+#REF!+#REF!+#REF! ->  | K15: =#REF!+#REF!+#REF!+#REF!+#REF!+#REF!+#REF!+#REF!+#REF! ->  | L15: =#REF!+#REF!+#REF!+#REF!+#REF!+#REF!+#REF!+#REF!+#REF! ->  | M15: =#REF!+#REF!+#REF!+#REF!+#REF!+#REF!+#REF!+#REF!+#REF! ->  | N15: 0 | T15: =C15 -> (b) Ilima/Letsema Projects Grant | U15: 583359 | V15: 0 | W15: 583359 | X15: 0 | Y15: 583359 | AA15: 280858 | AB15: 280858 | AD15: 214350 | AE15: 0.3674409755 | AK15: =C15 -> (b) Ilima/Letsema Projects Grant | AL15: =IFERROR(U15-D15,0) -> 0 | AM15: =IFERROR(V15-E15,0) -> 0 | AN15: =IFERROR(W15-F15,0) -> 0 | AO15: =IFERROR(X15-G15,0) -> 0 | AP15: =IFERROR(Y15-H15,0) -> 0 | AR15: =IFERROR(AA15-J15,0) -> 0 | AS15: =IFERROR(AB15-K15,0) -> 0 | AU15: =IFERROR(AD15-M15,0) -> 0
C16: (c) Land Care Programme Grant: Poverty Relief and Infrastructure Development | D16: =#REF!+#REF!+#REF!+#REF!+#REF!+#REF!+#REF!+#REF!+#REF! ->  | E16: =#REF!+#REF!+#REF!+#REF!+#REF!+#REF!+#REF!+#REF!+#REF! ->  | F16: =#REF!+#REF!+#REF!+#REF!+#REF!+#REF!+#REF!+#REF!+#REF! ->  | G16: =#REF!+#REF!+#REF!+#REF!+#REF!+#REF!+#REF!+#REF!+#REF! ->  | H16: =#REF!+#REF!+#REF!+#REF!+#REF!+#REF!+#REF!+#REF!+#REF! ->  | I16: =#REF!+#REF!+#REF!+#REF!+#REF!+#REF!+#REF!+#REF!+#REF! ->  | J16: =#REF!+#REF!+#REF!+#REF!+#REF!+#REF!+#REF!+#REF!+#REF! ->  | K16: =#REF!+#REF!+#REF!+#REF!+#REF!+#REF!+#REF!+#REF!+#REF! ->  | L16: =#REF!+#REF!+#REF!+#REF!+#REF!+#REF!+#REF!+#REF!+#REF! ->  | M16: =#REF!+#REF!+#REF!+#REF!+#REF!+#REF!+#REF!+#REF!+#REF! ->  | N16: 0 | T16: (c) Land Care Programme Grant: Poverty Relief and Infrastructure Development | U16: 82234 | V16: 0 | W16: 82234 | X16: 0 | Y16: 82234 | AA16: 37005 | AB16: 35166 | AD16: 43122 | AE16: 0.5243816426 | AK16: (c) Land Care Programme Grant: Poverty Relief and Infrastructure Development | AL16: 0 | AM16: 0 | AN16: 0 | AO16: 0 | AP16: 0 | AR16: 0 | AS16: 0 | AU16: 0
D17: =#REF!+#REF!+#REF!+#REF!+#REF!+#REF!+#REF!+#REF!+#REF! ->  | E17: =#REF!+#REF!+#REF!+#REF!+#REF!+#REF!+#REF!+#REF!+#REF! ->  | F17: =#REF!+#REF!+#REF!+#REF!+#REF!+#REF!+#REF!+#REF!+#REF! ->  | G17: =#REF!+#REF!+#REF!+#REF!+#REF!+#REF!+#REF!+#REF!+#REF! ->  | H17: =#REF!+#REF!+#REF!+#REF!+#REF!+#REF!+#REF!+#REF!+#REF! ->  | I17: =#REF!+#REF!+#REF!+#REF!+#REF!+#REF!+#REF!+#REF!+#REF! ->  | J17: =#REF!+#REF!+#REF!+#REF!+#REF!+#REF!+#REF!+#REF!+#REF! ->  | K17: =#REF!+#REF!+#REF!+#REF!+#REF!+#REF!+#REF!+#REF!+#REF! ->  | L17: =#REF!+#REF!+#REF!+#REF!+#REF!+#REF!+#REF!+#REF!+#REF! ->  | M17: =#REF!+#REF!+#REF!+#REF!+#REF!+#REF!+#REF!+#REF!+#REF! ->  | N17: =IFERROR(M17/F17,0) -> 0 | T17: 0 | U17: 0 | V17: 0 | W17: 0 | X17: 0 | Y17: 0 | AA17: 0 | AB17: 0 | AD17: 0 | AE17: 0 | AK17: 0 | AL17: 0 | AM17: 0 | AN17: 0 | AO17: 0 | AP17: 0 | AR17: 0 | AS17: 0 | AU17: 0
D18: =#REF!+#REF!+#REF!+#REF!+#REF!+#REF!+#REF!+#REF!+#REF! ->  | E18: =#REF!+#REF!+#REF!+#REF!+#REF!+#REF!+#REF!+#REF!+#REF! ->  | F18: =#REF!+#REF!+#REF!+#REF!+#REF!+#REF!+#REF!+#REF!+#REF! ->  | G18: =#REF!+#REF!+#REF!+#REF!+#REF!+#REF!+#REF!+#REF!+#REF! ->  | H18: =#REF!+#REF!+#REF!+#REF!+#REF!+#REF!+#REF!+#REF!+#REF! ->  | I18: =#REF!+#REF!+#REF!+#REF!+#REF!+#REF!+#REF!+#REF!+#REF! ->  | J18: =#REF!+#REF!+#REF!+#REF!+#REF!+#REF!+#REF!+#REF!+#REF! ->  | K18: =#REF!+#REF!+#REF!+#REF!+#REF!+#REF!+#REF!+#REF!+#REF! ->  | L18: =#REF!+#REF!+#REF!+#REF!+#REF!+#REF!+#REF!+#REF!+#REF! ->  | M18: =#REF!+#REF!+#REF!+#REF!+#REF!+#REF!+#REF!+#REF!+#REF! ->  | N18: 0 | T18: 0 | U18: 0 | V18: 0 | W18: 0 | X18: 0 | Y18: 0 | AA18: 0 | AB18: 0 | AD18: 0 | AE18: 0 | AK18: 0 | AL18: 0 | AM18: 0 | AN18: 0 | AO18: 0 | AP18: 0 | AR18: 0 | AS18: 0 | AU18: 0
D19: =#REF!+#REF!+#REF!+#REF!+#REF!+#REF!+#REF!+#REF!+#REF! ->  | E19: =#REF!+#REF!+#REF!+#REF!+#REF!+#REF!+#REF!+#REF!+#REF! ->  | F19: =#REF!+#REF!+#REF!+#REF!+#REF!+#REF!+#REF!+#REF!+#REF! ->  | G19: =#REF!+#REF!+#REF!+#REF!+#REF!+#REF!+#REF!+#REF!+#REF! ->  | H19: =#REF!+#REF!+#REF!+#REF!+#REF!+#REF!+#REF!+#REF!+#REF! ->  | I19: =#REF!+#REF!+#REF!+#REF!+#REF!+#REF!+#REF!+#REF!+#REF! ->  | J19: =#REF!+#REF!+#REF!+#REF!+#REF!+#REF!+#REF!+#REF!+#REF! ->  | K19: =#REF!+#REF!+#REF!+#REF!+#REF!+#REF!+#REF!+#REF!+#REF! ->  | L19: =#REF!+#REF!+#REF!+#REF!+#REF!+#REF!+#REF!+#REF!+#REF! ->  | M19: =#REF!+#REF!+#REF!+#REF!+#REF!+#REF!+#REF!+#REF!+#REF! ->  | AK19: =C19 -> 0 | AL19: =IFERROR(U19-D19,0) -> 0 | AM19: 0 | AN19: 0 | AO19: 0 | AP19: 0 | AR19: 0 | AS19: 0 | AU19: =IFERROR(AD19-M19,0) -> 0
C20: Sports, Arts and Culture (Vote 37) | D20: =#REF!+#REF!+#REF!+#REF!+#REF!+#REF!+#REF!+#REF!+#REF! ->  | E20: =#REF!+#REF!+#REF!+#REF!+#REF!+#REF!+#REF!+#REF!+#REF! ->  | F20: =#REF!+#REF!+#REF!+#REF!+#REF!+#REF!+#REF!+#REF!+#REF! ->  | G20: =#REF!+#REF!+#REF!+#REF!+#REF!+#REF!+#REF!+#REF!+#REF! ->  | H20: =#REF!+#REF!+#REF!+#REF!+#REF!+#REF!+#REF!+#REF!+#REF! ->  | I20: =#REF!+#REF!+#REF!+#REF!+#REF!+#REF!+#REF!+#REF!+#REF! ->  | J20: =#REF!+#REF!+#REF!+#REF!+#REF!+#REF!+#REF!+#REF!+#REF! ->  | K20: =#REF!+#REF!+#REF!+#REF!+#REF!+#REF!+#REF!+#REF!+#REF! ->  | L20: =#REF!+#REF!+#REF!+#REF!+#REF!+#REF!+#REF!+#REF!+#REF! ->  | M20: =#REF!+#REF!+#REF!+#REF!+#REF!+#REF!+#REF!+#REF!+#REF! ->  | N20: =IFERROR(M20/D20,0) -> 0 | T20: =C20 -> Sports, Arts and Culture (Vote 37) | U20: 1501199 | V20: 0 | W20: 1501199 | X20: 0 | Y20: 1501199 | AA20: 802143 | AB20: 802143 | AD20: 651084 | AE20: 0.4337093217 | AK20: Sports, Arts and Culture (Vote 37) | AL20: 0 | AM20: 0 | AN20: 0 | AO20: 0 | AP20: 0 | AR20: 0 | AS20: 0 | AU20: 0
C21: Community Library Services Grant | D21: =#REF!+#REF!+#REF!+#REF!+#REF!+#REF!+#REF!+#REF!+#REF! ->  | E21: =#REF!+#REF!+#REF!+#REF!+#REF!+#REF!+#REF!+#REF!+#REF! ->  | F21: =#REF!+#REF!+#REF!+#REF!+#REF!+#REF!+#REF!+#REF!+#REF! ->  | G21: =#REF!+#REF!+#REF!+#REF!+#REF!+#REF!+#REF!+#REF!+#REF! ->  | H21: =#REF!+#REF!+#REF!+#REF!+#REF!+#REF!+#REF!+#REF!+#REF! ->  | I21: =#REF!+#REF!+#REF!+#REF!+#REF!+#REF!+#REF!+#REF!+#REF! ->  | J21: =#REF!+#REF!+#REF!+#REF!+#REF!+#REF!+#REF!+#REF!+#REF! ->  | K21: =#REF!+#REF!+#REF!+#REF!+#REF!+#REF!+#REF!+#REF!+#REF! ->  | L21: =#REF!+#REF!+#REF!+#REF!+#REF!+#REF!+#REF!+#REF!+#REF! ->  | M21: =#REF!+#REF!+#REF!+#REF!+#REF!+#REF!+#REF!+#REF!+#REF! ->  | N21: 0 | T21: =C21 -> Community Library Services Grant | U21: 1501199 | V21: 0 | W21: 1501199 | X21: 0 | Y21: 1501199 | AA21: 802143 | AB21: 802143 | AD21: 651084 | AE21: 0.4337093217 | AK21: =C21 -> Community Library Services Grant | AL21: =IFERROR(U21-D21,0) -> 0 | AM21: =IFERROR(V21-E21,0) -> 0 | AN21: =IFERROR(W21-F21,0) -> 0 | AO21: =IFERROR(X21-G21,0) -> 0 | AP21: =IFERROR(Y21-H21,0) -> 0 | AR21: =IFERROR(AA21-J21,0) -> 0 | AS21: =IFERROR(AB21-K21,0) -> 0 | AU21: =IFERROR(AD21-M21,0) -> 0
D22: =#REF!+#REF!+#REF!+#REF!+#REF!+#REF!+#REF!+#REF!+#REF! ->  | E22: =#REF!+#REF!+#REF!+#REF!+#REF!+#REF!+#REF!+#REF!+#REF! ->  | F22: =#REF!+#REF!+#REF!+#REF!+#REF!+#REF!+#REF!+#REF!+#REF! ->  | G22: =#REF!+#REF!+#REF!+#REF!+#REF!+#REF!+#REF!+#REF!+#REF! ->  | H22: =#REF!+#REF!+#REF!+#REF!+#REF!+#REF!+#REF!+#REF!+#REF! ->  | I22: =#REF!+#REF!+#REF!+#REF!+#REF!+#REF!+#REF!+#REF!+#REF! ->  | J22: =#REF!+#REF!+#REF!+#REF!+#REF!+#REF!+#REF!+#REF!+#REF! ->  | K22: =#REF!+#REF!+#REF!+#REF!+#REF!+#REF!+#REF!+#REF!+#REF! ->  | L22: =#REF!+#REF!+#REF!+#REF!+#REF!+#REF!+#REF!+#REF!+#REF! ->  | M22: =#REF!+#REF!+#REF!+#REF!+#REF!+#REF!+#REF!+#REF!+#REF! ->  | N22: =IFERROR(M22/F22,0) -> 0 | T22: 0 | U22: 0 | V22: 0 | W22: 0 | X22: 0 | Y22: 0 | AA22: 0 | AB22: 0 | AD22: 0 | AE22: 0 | AK22: =C22 -> 0 | AL22: =IFERROR(U22-D22,0) -> 0 | AM22: 0 | AN22: 0 | AO22: 0 | AP22: 0 | AR22: 0 | AS22: 0 | AU22: =IFERROR(AD22-M22,0) -> 0
D23: =#REF!+#REF!+#REF!+#REF!+#REF!+#REF!+#REF!+#REF!+#REF! ->  | E23: =#REF!+#REF!+#REF!+#REF!+#REF!+#REF!+#REF!+#REF!+#REF! ->  | F23: =#REF!+#REF!+#REF!+#REF!+#REF!+#REF!+#REF!+#REF!+#REF! ->  | G23: =#REF!+#REF!+#REF!+#REF!+#REF!+#REF!+#REF!+#REF!+#REF! ->  | H23: =#REF!+#REF!+#REF!+#REF!+#REF!+#REF!+#REF!+#REF!+#REF! ->  | I23: =#REF!+#REF!+#REF!+#REF!+#REF!+#REF!+#REF!+#REF!+#REF! ->  | J23: =#REF!+#REF!+#REF!+#REF!+#REF!+#REF!+#REF!+#REF!+#REF! ->  | K23: =#REF!+#REF!+#REF!+#REF!+#REF!+#REF!+#REF!+#REF!+#REF! ->  | L23: =#REF!+#REF!+#REF!+#REF!+#REF!+#REF!+#REF!+#REF!+#REF! ->  | M23: =#REF!+#REF!+#REF!+#REF!+#REF!+#REF!+#REF!+#REF!+#REF! ->  | N23: 0 | T23: 0 | U23: 0 | V23: 0 | W23: 0 | X23: 0 | Y23: 0 | AA23: 0 | AB23: 0 | AD23: 0 | AE23: 0 | AK23: 0 | AL23: 0 | AM23: 0 | AN23: 0 | AO23: 0 | AP23: 0 | AR23: 0 | AS23: 0 | AU23: 0
D24: =#REF!+#REF!+#REF!+#REF!+#REF!+#REF!+#REF!+#REF!+#REF! ->  | E24: =#REF!+#REF!+#REF!+#REF!+#REF!+#REF!+#REF!+#REF!+#REF! ->  | F24: =#REF!+#REF!+#REF!+#REF!+#REF!+#REF!+#REF!+#REF!+#REF! ->  | G24: =#REF!+#REF!+#REF!+#REF!+#REF!+#REF!+#REF!+#REF!+#REF! ->  | H24: =#REF!+#REF!+#REF!+#REF!+#REF!+#REF!+#REF!+#REF!+#REF! ->  | I24: =#REF!+#REF!+#REF!+#REF!+#REF!+#REF!+#REF!+#REF!+#REF! ->  | J24: =#REF!+#REF!+#REF!+#REF!+#REF!+#REF!+#REF!+#REF!+#REF! ->  | K24: =#REF!+#REF!+#REF!+#REF!+#REF!+#REF!+#REF!+#REF!+#REF! ->  | L24: =#REF!+#REF!+#REF!+#REF!+#REF!+#REF!+#REF!+#REF!+#REF! ->  | M24: =#REF!+#REF!+#REF!+#REF!+#REF!+#REF!+#REF!+#REF!+#REF! ->  | N24: 0 | T24: 0 | U24: 0 | V24: 0 | W24: 0 | X24: 0 | Y24: 0 | AA24: 0 | AB24: 0 | AD24: 0 | AE24: 0 | AK24: 0 | AL24: 0 | AM24: 0 | AN24: 0 | AO24: 0 | AP24: 0 | AR24: 0 | AS24: 0 | AU24: 0
D25: =#REF!+#REF!+#REF!+#REF!+#REF!+#REF!+#REF!+#REF!+#REF! ->  | E25: =#REF!+#REF!+#REF!+#REF!+#REF!+#REF!+#REF!+#REF!+#REF! ->  | F25: =#REF!+#REF!+#REF!+#REF!+#REF!+#REF!+#REF!+#REF!+#REF! ->  | G25: =#REF!+#REF!+#REF!+#REF!+#REF!+#REF!+#REF!+#REF!+#REF! ->  | H25: =#REF!+#REF!+#REF!+#REF!+#REF!+#REF!+#REF!+#REF!+#REF! ->  | I25: =#REF!+#REF!+#REF!+#REF!+#REF!+#REF!+#REF!+#REF!+#REF! ->  | J25: =#REF!+#REF!+#REF!+#REF!+#REF!+#REF!+#REF!+#REF!+#REF! ->  | K25: =#REF!+#REF!+#REF!+#REF!+#REF!+#REF!+#REF!+#REF!+#REF! ->  | L25: =#REF!+#REF!+#REF!+#REF!+#REF!+#REF!+#REF!+#REF!+#REF! ->  | M25: =#REF!+#REF!+#REF!+#REF!+#REF!+#REF!+#REF!+#REF!+#REF! ->  | N25: 0 | T25: 0 | U25: 0 | V25: 0 | W25: 0 | X25: 0 | Y25: 0 | AA25: 0 | AB25: 0 | AD25: 0 | AE25: 0 | AK25: 0 | AL25: 0 | AM25: 0 | AN25: 0 | AO25: 0 | AP25: 0 | AR25: 0 | AS25: 0 | AU25: 0
D26: =#REF!+#REF!+#REF!+#REF!+#REF!+#REF!+#REF!+#REF!+#REF! ->  | E26: =#REF!+#REF!+#REF!+#REF!+#REF!+#REF!+#REF!+#REF!+#REF! ->  | F26: =#REF!+#REF!+#REF!+#REF!+#REF!+#REF!+#REF!+#REF!+#REF! ->  | G26: =#REF!+#REF!+#REF!+#REF!+#REF!+#REF!+#REF!+#REF!+#REF! ->  | H26: =#REF!+#REF!+#REF!+#REF!+#REF!+#REF!+#REF!+#REF!+#REF! ->  | I26: =#REF!+#REF!+#REF!+#REF!+#REF!+#REF!+#REF!+#REF!+#REF! ->  | J26: =#REF!+#REF!+#REF!+#REF!+#REF!+#REF!+#REF!+#REF!+#REF! ->  | K26: =#REF!+#REF!+#REF!+#REF!+#REF!+#REF!+#REF!+#REF!+#REF! ->  | L26: =#REF!+#REF!+#REF!+#REF!+#REF!+#REF!+#REF!+#REF!+#REF! ->  | M26: =#REF!+#REF!+#REF!+#REF!+#REF!+#REF!+#REF!+#REF!+#REF! ->  | AK26: 0 | AL26: 0 | AM26: 0 | AN26: 0 | AO26: 0 | AP26: 0 | AR26: 0 | AS26: 0 | AU26: 0
C27: Basic Education (Vote 16) | D27: =#REF!+#REF!+#REF!+#REF!+#REF!+#REF!+#REF!+#REF!+#REF! ->  | E27: =#REF!+#REF!+#REF!+#REF!+#REF!+#REF!+#REF!+#REF!+#REF! ->  | F27: =#REF!+#REF!+#REF!+#REF!+#REF!+#REF!+#REF!+#REF!+#REF! ->  | G27: =#REF!+#REF!+#REF!+#REF!+#REF!+#REF!+#REF!+#REF!+#REF! ->  | H27: =#REF!+#REF!+#REF!+#REF!+#REF!+#REF!+#REF!+#REF!+#REF! ->  | I27: =#REF!+#REF!+#REF!+#REF!+#REF!+#REF!+#REF!+#REF!+#REF! ->  | J27: =#REF!+#REF!+#REF!+#REF!+#REF!+#REF!+#REF!+#REF!+#REF! ->  | K27: =#REF!+#REF!+#REF!+#REF!+#REF!+#REF!+#REF!+#REF!+#REF! ->  | L27: =#REF!+#REF!+#REF!+#REF!+#REF!+#REF!+#REF!+#REF!+#REF! ->  | M27: =#REF!+#REF!+#REF!+#REF!+#REF!+#REF!+#REF!+#REF!+#REF! ->  | N27: =IFERROR(M27/D27,0) -> 0 | T27: =C27 -> Basic Education (Vote 16) | U27: 8054753.19 | V27: 0 | W27: 8054753.19 | X27: 0 | Y27: 8054753.19 | AA27: 4780518 | AB27: 4780518 | AD27: 4240268 | AE27: 0.5264305311 | AK27: Basic Education (Vote 16) | AL27: 0 | AM27: 0 | AN27: 0 | AO27: 0 | AP27: 0 | AR27: 0 | AS27: 0 | AU27: 0
C28: (a) HIV and AIDS (Life Skills Education) Grant | D28: =#REF!+#REF!+#REF!+#REF!+#REF!+#REF!+#REF!+#REF!+#REF! ->  | E28: =#REF!+#REF!+#REF!+#REF!+#REF!+#REF!+#REF!+#REF!+#REF! ->  | F28: =#REF!+#REF!+#REF!+#REF!+#REF!+#REF!+#REF!+#REF!+#REF! ->  | G28: =#REF!+#REF!+#REF!+#REF!+#REF!+#REF!+#REF!+#REF!+#REF! ->  | H28: =#REF!+#REF!+#REF!+#REF!+#REF!+#REF!+#REF!+#REF!+#REF! ->  | I28: =#REF!+#REF!+#REF!+#REF!+#REF!+#REF!+#REF!+#REF!+#REF! ->  | J28: =#REF!+#REF!+#REF!+#REF!+#REF!+#REF!+#REF!+#REF!+#REF! ->  | K28: =#REF!+#REF!+#REF!+#REF!+#REF!+#REF!+#REF!+#REF!+#REF! ->  | L28: =#REF!+#REF!+#REF!+#REF!+#REF!+#REF!+#REF!+#REF!+#REF! ->  | M28: =#REF!+#REF!+#REF!+#REF!+#REF!+#REF!+#REF!+#REF!+#REF! ->  | N28: 0 | T28: =C28 -> (a) HIV and AIDS (Life Skills Education) Grant | U28: 256951 | V28: 0 | W28: 256951 | X28: 0 | Y28: 256951 | AA28: 102779 | AB28: 102779 | AD28: 122438 | AE28: 0.4765033022 | AK28: =C28 -> (a) HIV and AIDS (Life Skills Education) Grant | AL28: =IFERROR(U28-D28,0) -> 0 | AM28: =IFERROR(V28-E28,0) -> 0 | AN28: =IFERROR(W28-F28,0) -> 0 | AO28: =IFERROR(X28-G28,0) -> 0 | AP28: =IFERROR(Y28-H28,0) -> 0 | AR28: =IFERROR(AA28-J28,0) -> 0 | AS28: =IFERROR(AB28-K28,0) -> 0 | AU28: =IFERROR(AD28-M28,0) -> 0
C29: (b) Learners with Profound Intellectual Disabilities Grant | D29: =#REF!+#REF!+#REF!+#REF!+#REF!+#REF!+#REF!+#REF!+#REF! ->  | E29: =#REF!+#REF!+#REF!+#REF!+#REF!+#REF!+#REF!+#REF!+#REF! ->  | F29: =#REF!+#REF!+#REF!+#REF!+#REF!+#REF!+#REF!+#REF!+#REF! ->  | G29: =#REF!+#REF!+#REF!+#REF!+#REF!+#REF!+#REF!+#REF!+#REF! ->  | H29: =#REF!+#REF!+#REF!+#REF!+#REF!+#REF!+#REF!+#REF!+#REF! ->  | I29: =#REF!+#REF!+#REF!+#REF!+#REF!+#REF!+#REF!+#REF!+#REF! ->  | J29: =#REF!+#REF!+#REF!+#REF!+#REF!+#REF!+#REF!+#REF!+#REF! ->  | K29: =#REF!+#REF!+#REF!+#REF!+#REF!+#REF!+#REF!+#REF!+#REF! ->  | L29: =#REF!+#REF!+#REF!+#REF!+#REF!+#REF!+#REF!+#REF!+#REF! ->  | M29: =#REF!+#REF!+#REF!+#REF!+#REF!+#REF!+#REF!+#REF!+#REF! ->  | N29: 0 | T29: (b) Learners with Profound Intellectual Disabilities Grant | U29: 220785 | V29: 0 | W29: 220785 | X29: 0 | Y29: 220785 | AA29: 146541 | AB29: 146541 | AD29: 103281 | AE29: 0.4677899314 | AK29: =C29 -> (b) Learners with Profound Intellectual Disabilities Grant | AL29: =IFERROR(U29-D29,0) -> 0 | AM29: 0 | AN29: 0 | AO29: 0 | AP29: 0 | AR29: 0 | AS29: 0 | AU29: =IFERROR(AD29-M29,0) -> 0
C30: (c) Maths, Science and Technology Grant | D30: =#REF!+#REF!+#REF!+#REF!+#REF!+#REF!+#REF!+#REF!+#REF! ->  | E30: =#REF!+#REF!+#REF!+#REF!+#REF!+#REF!+#REF!+#REF!+#REF! ->  | F30: =#REF!+#REF!+#REF!+#REF!+#REF!+#REF!+#REF!+#REF!+#REF! ->  | G30: =#REF!+#REF!+#REF!+#REF!+#REF!+#REF!+#REF!+#REF!+#REF! ->  | H30: =#REF!+#REF!+#REF!+#REF!+#REF!+#REF!+#REF!+#REF!+#REF! ->  | I30: =#REF!+#REF!+#REF!+#REF!+#REF!+#REF!+#REF!+#REF!+#REF! ->  | J30: =#REF!+#REF!+#REF!+#REF!+#REF!+#REF!+#REF!+#REF!+#REF! ->  | K30: =#REF!+#REF!+#REF!+#REF!+#REF!+#REF!+#REF!+#REF!+#REF! ->  | L30: =#REF!+#REF!+#REF!+#REF!+#REF!+#REF!+#REF!+#REF!+#REF! ->  | M30: =#REF!+#REF!+#REF!+#REF!+#REF!+#REF!+#REF!+#REF!+#REF! ->  | N30: 0 | T30: (c) Maths, Science and Technology Grant | U30: 391302 | V30: 0 | W30: 391302 | X30: 0 | Y30: 391302 | AA30: 195651 | AB30: 195651 | AD30: 113639 | AE30: 0.2904125203 | AK30: (c) Maths, Science and Technology Grant | AL30: 0 | AM30: 0 | AN30: 0 | AO30: 0 | AP30: 0 | AR30: 0 | AS30: 0 | AU30: 0
C31: (d) National School Nutrition Programme Grant | D31: =#REF!+#REF!+#REF!+#REF!+#REF!+#REF!+#REF!+#REF!+#REF! ->  | E31: =#REF!+#REF!+#REF!+#REF!+#REF!+#REF!+#REF!+#REF!+#REF! ->  | F31: =#REF!+#REF!+#REF!+#REF!+#REF!+#REF!+#REF!+#REF!+#REF! ->  | G31: =#REF!+#REF!+#REF!+#REF!+#REF!+#REF!+#REF!+#REF!+#REF! ->  | H31: =#REF!+#REF!+#REF!+#REF!+#REF!+#REF!+#REF!+#REF!+#REF! ->  | I31: =#REF!+#REF!+#REF!+#REF!+#REF!+#REF!+#REF!+#REF!+#REF! ->  | J31: =#REF!+#REF!+#REF!+#REF!+#REF!+#REF!+#REF!+#REF!+#REF! ->  | K31: =#REF!+#REF!+#REF!+#REF!+#REF!+#REF!+#REF!+#REF!+#REF! ->  | L31: =#REF!+#REF!+#REF!+#REF!+#REF!+#REF!+#REF!+#REF!+#REF! ->  | M31: =#REF!+#REF!+#REF!+#REF!+#REF!+#REF!+#REF!+#REF!+#REF! ->  | N31: 0 | T31: (d) National School Nutrition Programme Grant | U31: 7185715.19 | V31: 0 | W31: 7185715.19 | X31: 0 | Y31: 7185715.19 | AA31: 4335547 | AB31: 4335547 | AD31: 3900910 | AE31: 0.5428701106 | AK31: (d) National School Nutrition Programme Grant | AL31: 0 | AM31: 0 | AN31: 0 | AO31: 0 | AP31: 0 | AR31: 0 | AS31: 0 | AU31: 0
D32: =#REF!+#REF!+#REF!+#REF!+#REF!+#REF!+#REF!+#REF!+#REF! ->  | E32: =#REF!+#REF!+#REF!+#REF!+#REF!+#REF!+#REF!+#REF!+#REF! ->  | F32: =#REF!+#REF!+#REF!+#REF!+#REF!+#REF!+#REF!+#REF!+#REF! ->  | G32: =#REF!+#REF!+#REF!+#REF!+#REF!+#REF!+#REF!+#REF!+#REF! ->  | H32: =#REF!+#REF!+#REF!+#REF!+#REF!+#REF!+#REF!+#REF!+#REF! ->  | I32: =#REF!+#REF!+#REF!+#REF!+#REF!+#REF!+#REF!+#REF!+#REF! ->  | J32: =#REF!+#REF!+#REF!+#REF!+#REF!+#REF!+#REF!+#REF!+#REF! ->  | K32: =#REF!+#REF!+#REF!+#REF!+#REF!+#REF!+#REF!+#REF!+#REF! ->  | L32: =#REF!+#REF!+#REF!+#REF!+#REF!+#REF!+#REF!+#REF!+#REF! ->  | M32: =#REF!+#REF!+#REF!+#REF!+#REF!+#REF!+#REF!+#REF!+#REF! ->  | N32: =IFERROR(M32/F32,0) -> 0 | T32: 0 | U32: 0 | V32: 0 | W32: 0 | X32: 0 | Y32: 0 | AA32: 0 | AB32: 0 | AD32: 0 | AE32: 0 | AK32: 0 | AL32: 0 | AM32: 0 | AN32: 0 | AO32: 0 | AP32: 0 | AR32: 0 | AS32: 0 | AU32: 0
D33: =#REF!+#REF!+#REF!+#REF!+#REF!+#REF!+#REF!+#REF!+#REF! ->  | E33: =#REF!+#REF!+#REF!+#REF!+#REF!+#REF!+#REF!+#REF!+#REF! ->  | F33: =#REF!+#REF!+#REF!+#REF!+#REF!+#REF!+#REF!+#REF!+#REF! ->  | G33: =#REF!+#REF!+#REF!+#REF!+#REF!+#REF!+#REF!+#REF!+#REF! ->  | H33: =#REF!+#REF!+#REF!+#REF!+#REF!+#REF!+#REF!+#REF!+#REF! ->  | I33: =#REF!+#REF!+#REF!+#REF!+#REF!+#REF!+#REF!+#REF!+#REF! ->  | J33: =#REF!+#REF!+#REF!+#REF!+#REF!+#REF!+#REF!+#REF!+#REF! ->  | K33: =#REF!+#REF!+#REF!+#REF!+#REF!+#REF!+#REF!+#REF!+#REF! ->  | L33: =#REF!+#REF!+#REF!+#REF!+#REF!+#REF!+#REF!+#REF!+#REF! ->  | M33: =#REF!+#REF!+#REF!+#REF!+#REF!+#REF!+#REF!+#REF!+#REF! ->  | AK33: 0 | AL33: =IFERROR(U33-D33,0) -> 0 | AM33: 0 | AN33: 0 | AO33: 0 | AP33: 0 | AR33: =IFERROR(AA33-J33,0) -> 0 | AS33: 0 | AU33: 0
C34: Cooperative Governance and Traditional Affairs (Vote 4) | D34: =#REF!+#REF!+#REF!+#REF!+#REF!+#REF!+#REF!+#REF!+#REF! ->  | E34: =#REF!+#REF!+#REF!+#REF!+#REF!+#REF!+#REF!+#REF!+#REF! ->  | F34: =#REF!+#REF!+#REF!+#REF!+#REF!+#REF!+#REF!+#REF!+#REF! ->  | G34: =#REF!+#REF!+#REF!+#REF!+#REF!+#REF!+#REF!+#REF!+#REF! ->  | H34: =#REF!+#REF!+#REF!+#REF!+#REF!+#REF!+#REF!+#REF!+#REF! ->  | I34: =#REF!+#REF!+#REF!+#REF!+#REF!+#REF!+#REF!+#REF!+#REF! ->  | J34: =#REF!+#REF!+#REF!+#REF!+#REF!+#REF!+#REF!+#REF!+#REF! ->  | K34: =#REF!+#REF!+#REF!+#REF!+#REF!+#REF!+#REF!+#REF!+#REF! ->  | L34: =#REF!+#REF!+#REF!+#REF!+#REF!+#REF!+#REF!+#REF!+#REF! ->  | M34: =#REF!+#REF!+#REF!+#REF!+#REF!+#REF!+#REF!+#REF!+#REF! ->  | N34: =IFERROR(M34/H34,0) -> 0 | T34: =C34 -> Cooperative Governance and Traditional Affairs (Vote 4) | AK34: Cooperative Governance and Traditional Affairs (Vote 4) | AL34: =SUM(AL35:AL37) -> 0 | AM34: =SUM(AM35:AM37) -> 0 | AN34: 0 | AO34: 0 | AP34: 0 | AR34: =SUM(AR35:AR37) -> 0 | AS34: 0 | AU34: =SUM(AU35:AU37) -> 0
C35: Provincial Disaster Recovery Grant | D35: =#REF!+#REF!+#REF!+#REF!+#REF!+#REF!+#REF!+#REF!+#REF! ->  | E35: =#REF!+#REF!+#REF!+#REF!+#REF!+#REF!+#REF!+#REF!+#REF! ->  | F35: =#REF!+#REF!+#REF!+#REF!+#REF!+#REF!+#REF!+#REF!+#REF! ->  | G35: =#REF!+#REF!+#REF!+#REF!+#REF!+#REF!+#REF!+#REF!+#REF! ->  | H35: =#REF!+#REF!+#REF!+#REF!+#REF!+#REF!+#REF!+#REF!+#REF! ->  | I35: =#REF!+#REF!+#REF!+#REF!+#REF!+#REF!+#REF!+#REF!+#REF! ->  | J35: =#REF!+#REF!+#REF!+#REF!+#REF!+#REF!+#REF!+#REF!+#REF! ->  | K35: =#REF!+#REF!+#REF!+#REF!+#REF!+#REF!+#REF!+#REF!+#REF! ->  | L35: =#REF!+#REF!+#REF!+#REF!+#REF!+#REF!+#REF!+#REF!+#REF! ->  | M35: =#REF!+#REF!+#REF!+#REF!+#REF!+#REF!+#REF!+#REF!+#REF! ->  | N35: 0 | T35: =C35 -> Provincial Disaster Recovery Grant | U35: 0 | V35: 0 | W35: 0 | X35: 0 | Y35: 0 | AA35: 0 | AB35: 0 | AD35: 0 | AE35: 0 | AK35: =C35 -> Provincial Disaster Recovery Grant | AL35: =IFERROR(U35-D35,0) -> 0 | AM35: =IFERROR(V35-E35,0) -> 0 | AN35: =IFERROR(W35-F35,0) -> 0 | AO35: =IFERROR(X35-G35,0) -> 0 | AP35: =IFERROR(Y35-H35,0) -> 0 | AR35: =IFERROR(AA35-J35,0) -> 0 | AS35: =IFERROR(AB35-K35,0) -> 0 | AU35: =IFERROR(AD35-M35,0) -> 0
D36: =#REF!+#REF!+#REF!+#REF!+#REF!+#REF!+#REF!+#REF!+#REF! ->  | E36: =#REF!+#REF!+#REF!+#REF!+#REF!+#REF!+#REF!+#REF!+#REF! ->  | F36: =#REF!+#REF!+#REF!+#REF!+#REF!+#REF!+#REF!+#REF!+#REF! ->  | G36: =#REF!+#REF!+#REF!+#REF!+#REF!+#REF!+#REF!+#REF!+#REF! ->  | H36: =#REF!+#REF!+#REF!+#REF!+#REF!+#REF!+#REF!+#REF!+#REF! ->  | I36: =#REF!+#REF!+#REF!+#REF!+#REF!+#REF!+#REF!+#REF!+#REF! ->  | J36: =#REF!+#REF!+#REF!+#REF!+#REF!+#REF!+#REF!+#REF!+#REF! ->  | K36: =#REF!+#REF!+#REF!+#REF!+#REF!+#REF!+#REF!+#REF!+#REF! ->  | L36: =#REF!+#REF!+#REF!+#REF!+#REF!+#REF!+#REF!+#REF!+#REF! ->  | M36: =#REF!+#REF!+#REF!+#REF!+#REF!+#REF!+#REF!+#REF!+#REF! ->  | N36: =IFERROR(M36/F36,0) -> 0 | T36: 0 | U36: 0 | V36: 0 | W36: 0 | X36: 0 | Y36: 0 | AA36: 0 | AB36: 0 | AD36: 0 | AE36: 0 | AK36: =C36 -> 0 | AL36: =IFERROR(U36-D36,0) -> 0 | AM36: 0 | AN36: 0 | AO36: 0 | AP36: 0 | AR36: 0 | AS36: 0 | AU36: =IFERROR(AD36-M36,0) -> 0
D37: =#REF!+#REF!+#REF!+#REF!+#REF!+#REF!+#REF!+#REF!+#REF! ->  | E37: =#REF!+#REF!+#REF!+#REF!+#REF!+#REF!+#REF!+#REF!+#REF! ->  | F37: =#REF!+#REF!+#REF!+#REF!+#REF!+#REF!+#REF!+#REF!+#REF! ->  | G37: =#REF!+#REF!+#REF!+#REF!+#REF!+#REF!+#REF!+#REF!+#REF! ->  | H37: =#REF!+#REF!+#REF!+#REF!+#REF!+#REF!+#REF!+#REF!+#REF! ->  | I37: =#REF!+#REF!+#REF!+#REF!+#REF!+#REF!+#REF!+#REF!+#REF! ->  | J37: =#REF!+#REF!+#REF!+#REF!+#REF!+#REF!+#REF!+#REF!+#REF! ->  | K37: =#REF!+#REF!+#REF!+#REF!+#REF!+#REF!+#REF!+#REF!+#REF! ->  | L37: =#REF!+#REF!+#REF!+#REF!+#REF!+#REF!+#REF!+#REF!+#REF! ->  | M37: =#REF!+#REF!+#REF!+#REF!+#REF!+#REF!+#REF!+#REF!+#REF! ->  | N37: 0 | T37: 0 | U37: 0 | V37: 0 | W37: 0 | X37: 0 | Y37: 0 | AA37: 0 | AB37: 0 | AD37: 0 | AE37: 0 | AK37: 0 | AL37: 0 | AM37: 0 | AN37: 0 | AO37: 0 | AP37: 0 | AR37: 0 | AS37: 0 | AU37: 0
D38: =#REF!+#REF!+#REF!+#REF!+#REF!+#REF!+#REF!+#REF!+#REF! ->  | E38: =#REF!+#REF!+#REF!+#REF!+#REF!+#REF!+#REF!+#REF!+#REF! ->  | F38: =#REF!+#REF!+#REF!+#REF!+#REF!+#REF!+#REF!+#REF!+#REF! ->  | G38: =#REF!+#REF!+#REF!+#REF!+#REF!+#REF!+#REF!+#REF!+#REF! ->  | H38: =#REF!+#REF!+#REF!+#REF!+#REF!+#REF!+#REF!+#REF!+#REF! ->  | I38: =#REF!+#REF!+#REF!+#REF!+#REF!+#REF!+#REF!+#REF!+#REF! ->  | J38: =#REF!+#REF!+#REF!+#REF!+#REF!+#REF!+#REF!+#REF!+#REF! ->  | K38: =#REF!+#REF!+#REF!+#REF!+#REF!+#REF!+#REF!+#REF!+#REF! ->  | L38: =#REF!+#REF!+#REF!+#REF!+#REF!+#REF!+#REF!+#REF!+#REF! ->  | M38: =#REF!+#REF!+#REF!+#REF!+#REF!+#REF!+#REF!+#REF!+#REF! ->  | N38: 0 | T38: 0 | U38: 0 | V38: 0 | W38: 0 | X38: 0 | Y38: 0 | AA38: 0 | AB38: 0 | AD38: 0 | AE38: 0 | AK38: 0 | AL38: 0 | AM38: 0 | AN38: 0 | AO38: 0 | AP38: 0 | AR38: 0 | AS38: 0 | AU38: 0
D39: =#REF!+#REF!+#REF!+#REF!+#REF!+#REF!+#REF!+#REF!+#REF! ->  | E39: =#REF!+#REF!+#REF!+#REF!+#REF!+#REF!+#REF!+#REF!+#REF! ->  | F39: =#REF!+#REF!+#REF!+#REF!+#REF!+#REF!+#REF!+#REF!+#REF! ->  | G39: =#REF!+#REF!+#REF!+#REF!+#REF!+#REF!+#REF!+#REF!+#REF! ->  | H39: =#REF!+#REF!+#REF!+#REF!+#REF!+#REF!+#REF!+#REF!+#REF! ->  | I39: =#REF!+#REF!+#REF!+#REF!+#REF!+#REF!+#REF!+#REF!+#REF! ->  | J39: =#REF!+#REF!+#REF!+#REF!+#REF!+#REF!+#REF!+#REF!+#REF! ->  | K39: =#REF!+#REF!+#REF!+#REF!+#REF!+#REF!+#REF!+#REF!+#REF! ->  | L39: =#REF!+#REF!+#REF!+#REF!+#REF!+#REF!+#REF!+#REF!+#REF! ->  | M39: =#REF!+#REF!+#REF!+#REF!+#REF!+#REF!+#REF!+#REF!+#REF! ->  | N39: 0 | T39: 0 | U39: 0 | V39: 0 | W39: 0 | X39: 0 | Y39: 0 | AA39: 0 | AB39: 0 | AD39: 0 | AE39: 0 | AK39: 0 | AL39: 0 | AM39: 0 | AN39: 0 | AO39: 0 | AP39: 0 | AR39: 0 | AS39: 0 | AU39: 0
D40: =#REF!+#REF!+#REF!+#REF!+#REF!+#REF!+#REF!+#REF!+#REF! ->  | E40: =#REF!+#REF!+#REF!+#REF!+#REF!+#REF!+#REF!+#REF!+#REF! ->  | F40: =#REF!+#REF!+#REF!+#REF!+#REF!+#REF!+#REF!+#REF!+#REF! ->  | G40: =#REF!+#REF!+#REF!+#REF!+#REF!+#REF!+#REF!+#REF!+#REF! ->  | H40: =#REF!+#REF!+#REF!+#REF!+#REF!+#REF!+#REF!+#REF!+#REF! ->  | I40: =#REF!+#REF!+#REF!+#REF!+#REF!+#REF!+#REF!+#REF!+#REF! ->  | J40: =#REF!+#REF!+#REF!+#REF!+#REF!+#REF!+#REF!+#REF!+#REF! ->  | K40: =#REF!+#REF!+#REF!+#REF!+#REF!+#REF!+#REF!+#REF!+#REF! ->  | L40: =#REF!+#REF!+#REF!+#REF!+#REF!+#REF!+#REF!+#REF!+#REF! ->  | M40: =#REF!+#REF!+#REF!+#REF!+#REF!+#REF!+#REF!+#REF!+#REF! ->  | AK40: =C40 -> 0 | AL40: =IFERROR(U40-D40,0) -> 0 | AM40: =IFERROR(V40-E40,0) -> 0 | AN40: 0 | AO40: 0 | AP40: 0 | AR40: =IFERROR(AA40-J40,0) -> 0 | AS40: 0 | AU40: =IFERROR(AD40-M40,0) -> 0
C41: Health (Vote 18) | D41: =#REF!+#REF!+#REF!+#REF!+#REF!+#REF!+#REF!+#REF!+#REF! ->  | E41: =#REF!+#REF!+#REF!+#REF!+#REF!+#REF!+#REF!+#REF!+#REF! ->  | F41: =#REF!+#REF!+#REF!+#REF!+#REF!+#REF!+#REF!+#REF!+#REF! ->  | G41: =#REF!+#REF!+#REF!+#REF!+#REF!+#REF!+#REF!+#REF!+#REF! ->  | H41: =#REF!+#REF!+#REF!+#REF!+#REF!+#REF!+#REF!+#REF!+#REF! ->  | I41: =#REF!+#REF!+#REF!+#REF!+#REF!+#REF!+#REF!+#REF!+#REF! ->  | J41: =#REF!+#REF!+#REF!+#REF!+#REF!+#REF!+#REF!+#REF!+#REF! ->  | K41: =#REF!+#REF!+#REF!+#REF!+#REF!+#REF!+#REF!+#REF!+#REF! ->  | L41: =#REF!+#REF!+#REF!+#REF!+#REF!+#REF!+#REF!+#REF!+#REF! ->  | M41: =#REF!+#REF!+#REF!+#REF!+#REF!+#REF!+#REF!+#REF!+#REF! ->  | N41: =IFERROR(M41/D41,0) -> 0 | T41: =C41 -> Health (Vote 18) | U41: 28862864 | V41: 0 | W41: 28862864 | X41: 0 | Y41: 28862864 | AA41: 14608296 | AB41: 14608269 | AD41: 13130521 | AE41: 0.4549278616 | AK41: Health (Vote 18) | AL41: 0 | AM41: 0 | AN41: 0 | AO41: 0 | AP41: 0 | AR41: 0 | AS41: 0 | AU41: 0
C42: (a) HIV, TB, Malaria and Community Outreach Grant | D42: =#REF!+#REF!+#REF!+#REF!+#REF!+#REF!+#REF!+#REF!+#REF! ->  | E42: =#REF!+#REF!+#REF!+#REF!+#REF!+#REF!+#REF!+#REF!+#REF! ->  | F42: =#REF!+#REF!+#REF!+#REF!+#REF!+#REF!+#REF!+#REF!+#REF! ->  | G42: =#REF!+#REF!+#REF!+#REF!+#REF!+#REF!+#REF!+#REF!+#REF! ->  | H42: =#REF!+#REF!+#REF!+#REF!+#REF!+#REF!+#REF!+#REF!+#REF! ->  | I42: =#REF!+#REF!+#REF!+#REF!+#REF!+#REF!+#REF!+#REF!+#REF! ->  | J42: =#REF!+#REF!+#REF!+#REF!+#REF!+#REF!+#REF!+#REF!+#REF! ->  | K42: =#REF!+#REF!+#REF!+#REF!+#REF!+#REF!+#REF!+#REF!+#REF! ->  | L42: =#REF!+#REF!+#REF!+#REF!+#REF!+#REF!+#REF!+#REF!+#REF! ->  | M42: =#REF!+#REF!+#REF!+#REF!+#REF!+#REF!+#REF!+#REF!+#REF! ->  | N42: 0 | T42: =C42 -> (a) HIV, TB, Malaria and Community Outreach Grant | U42: 22038995 | V42: 0 | W42: 22038995 | X42: 0 | Y42: 22038995 | AA42: 11019474 | AB42: 11019447 | AD42: 9943973 | AE42: 0.4511990225 | AK42: =C42 -> (a) HIV, TB, Malaria and Community Outreach Grant | AL42: =IFERROR(U42-D42,0) -> 0 | AM42: =IFERROR(V42-E42,0) -> 0 | AN42: =IFERROR(W42-F42,0) -> 0 | AO42: =IFERROR(X42-G42,0) -> 0 | AP42: =IFERROR(Y42-H42,0) -> 0 | AR42: 0 | AS42: 0 | AU42: =IFERROR(AD42-M42,0) -> 0
C43: (b) Health Facility Revitalisation Grant | D43: =#REF!+#REF!+#REF!+#REF!+#REF!+#REF!+#REF!+#REF!+#REF! ->  | E43: =#REF!+#REF!+#REF!+#REF!+#REF!+#REF!+#REF!+#REF!+#REF! ->  | F43: =#REF!+#REF!+#REF!+#REF!+#REF!+#REF!+#REF!+#REF!+#REF! ->  | G43: =#REF!+#REF!+#REF!+#REF!+#REF!+#REF!+#REF!+#REF!+#REF! ->  | H43: =#REF!+#REF!+#REF!+#REF!+#REF!+#REF!+#REF!+#REF!+#REF! ->  | I43: =#REF!+#REF!+#REF!+#REF!+#REF!+#REF!+#REF!+#REF!+#REF! ->  | J43: =#REF!+#REF!+#REF!+#REF!+#REF!+#REF!+#REF!+#REF!+#REF! ->  | K43: =#REF!+#REF!+#REF!+#REF!+#REF!+#REF!+#REF!+#REF!+#REF! ->  | L43: =#REF!+#REF!+#REF!+#REF!+#REF!+#REF!+#REF!+#REF!+#REF! ->  | M43: =#REF!+#REF!+#REF!+#REF!+#REF!+#REF!+#REF!+#REF!+#REF! ->  | N43: 0 | T43: (b) Health Facility Revitalisation Grant | U43: 6006973 | V43: 0 | W43: 6006973 | X43: 0 | Y43: 6006973 | AA43: 3180425 | AB43: 3180425 | AD43: 2693839 | AE43: 0.4484519907 | AK43: =C43 -> (b) Health Facility Revitalisation Grant | AL43: =IFERROR(U43-D43,0) -> 0 | AM43: 0 | AN43: 0 | AO43: 0 | AP43: 0 | AR43: 0 | AS43: 0 | AU43: =IFERROR(AD43-M43,0) -> 0
C44: (c) Human Papillomavirus Vaccine Grant | D44: =#REF!+#REF!+#REF!+#REF!+#REF!+#REF!+#REF!+#REF!+#REF! ->  | E44: =#REF!+#REF!+#REF!+#REF!+#REF!+#REF!+#REF!+#REF!+#REF! ->  | F44: =#REF!+#REF!+#REF!+#REF!+#REF!+#REF!+#REF!+#REF!+#REF! ->  | G44: =#REF!+#REF!+#REF!+#REF!+#REF!+#REF!+#REF!+#REF!+#REF! ->  | H44: =#REF!+#REF!+#REF!+#REF!+#REF!+#REF!+#REF!+#REF!+#REF! ->  | I44: =#REF!+#REF!+#REF!+#REF!+#REF!+#REF!+#REF!+#REF!+#REF! ->  | J44: =#REF!+#REF!+#REF!+#REF!+#REF!+#REF!+#REF!+#REF!+#REF! ->  | K44: =#REF!+#REF!+#REF!+#REF!+#REF!+#REF!+#REF!+#REF!+#REF! ->  | L44: =#REF!+#REF!+#REF!+#REF!+#REF!+#REF!+#REF!+#REF!+#REF! ->  | M44: =#REF!+#REF!+#REF!+#REF!+#REF!+#REF!+#REF!+#REF!+#REF! ->  | N44: 0 | T44: (c) Human Papillomavirus Vaccine Grant | U44: 211200 | V44: 0 | W44: 211200 | X44: 0 | Y44: 211200 | AA44: 105570 | AB44: 105570 | AD44: 62287 | AE44: 0.2949195076 | AK44: (c) Human Papillomavirus Vaccine Grant | AL44: 0 | AM44: 0 | AN44: 0 | AO44: 0 | AP44: 0 | AR44: 0 | AS44: 0 | AU44: 0
C45: (d) Statutory Human Resources, Training and Development Grant | D45: =#REF!+#REF!+#REF!+#REF!+#REF!+#REF!+#REF!+#REF!+#REF! ->  | E45: =#REF!+#REF!+#REF!+#REF!+#REF!+#REF!+#REF!+#REF!+#REF! ->  | F45: =#REF!+#REF!+#REF!+#REF!+#REF!+#REF!+#REF!+#REF!+#REF! ->  | G45: =#REF!+#REF!+#REF!+#REF!+#REF!+#REF!+#REF!+#REF!+#REF! ->  | H45: =#REF!+#REF!+#REF!+#REF!+#REF!+#REF!+#REF!+#REF!+#REF! ->  | I45: =#REF!+#REF!+#REF!+#REF!+#REF!+#REF!+#REF!+#REF!+#REF! ->  | J45: =#REF!+#REF!+#REF!+#REF!+#REF!+#REF!+#REF!+#REF!+#REF! ->  | K45: =#REF!+#REF!+#REF!+#REF!+#REF!+#REF!+#REF!+#REF!+#REF! ->  | L45: =#REF!+#REF!+#REF!+#REF!+#REF!+#REF!+#REF!+#REF!+#REF! ->  | M45: =#REF!+#REF!+#REF!+#REF!+#REF!+#REF!+#REF!+#REF!+#REF! ->  | N45: 0 | T45: (d) Statutory Human Resources, Training and Development Grant | U45: 605696 | V45: 0 | W45: 605696 | X45: 0 | Y45: 605696 | AA45: 302827 | AB45: 302827 | AD45: 430422 | AE45: 0.7106238113 | AK45: (d) Statutory Human Resources, Training and Development Grant | AL45: 0 | AM45: 0 | AN45: 0 | AO45: 0 | AP45: 0 | AR45: 0 | AS45: 0 | AU45: 0
C46: (e) National Health Insurance Grant | D46: =#REF!+#REF!+#REF!+#REF!+#REF!+#REF!+#REF!+#REF!+#REF! ->  | E46: =#REF!+#REF!+#REF!+#REF!+#REF!+#REF!+#REF!+#REF!+#REF! ->  | F46: =#REF!+#REF!+#REF!+#REF!+#REF!+#REF!+#REF!+#REF!+#REF! ->  | G46: =#REF!+#REF!+#REF!+#REF!+#REF!+#REF!+#REF!+#REF!+#REF! ->  | H46: =#REF!+#REF!+#REF!+#REF!+#REF!+#REF!+#REF!+#REF!+#REF! ->  | I46: =#REF!+#REF!+#REF!+#REF!+#REF!+#REF!+#REF!+#REF!+#REF! ->  | J46: =#REF!+#REF!+#REF!+#REF!+#REF!+#REF!+#REF!+#REF!+#REF! ->  | K46: =#REF!+#REF!+#REF!+#REF!+#REF!+#REF!+#REF!+#REF!+#REF! ->  | L46: =#REF!+#REF!+#REF!+#REF!+#REF!+#REF!+#REF!+#REF!+#REF! ->  | M46: =#REF!+#REF!+#REF!+#REF!+#REF!+#REF!+#REF!+#REF!+#REF! ->  | N46: 0 | T46: (e) National Health Insurance Grant | U46: 0 | V46: 0 | W46: 0 | X46: 0 | Y46: 0 | AA46: 0 | AB46: 0 | AD46: 0 | AE46: 0 | AK46: (e) National Health Insurance Grant | AL46: 0 | AM46: 0 | AN46: 0 | AO46: 0 | AP46: 0 | AR46: 0 | AS46: 0 | AU46: 0
D47: =#REF!+#REF!+#REF!+#REF!+#REF!+#REF!+#REF!+#REF!+#REF! ->  | E47: =#REF!+#REF!+#REF!+#REF!+#REF!+#REF!+#REF!+#REF!+#REF! ->  | F47: =#REF!+#REF!+#REF!+#REF!+#REF!+#REF!+#REF!+#REF!+#REF! ->  | G47: =#REF!+#REF!+#REF!+#REF!+#REF!+#REF!+#REF!+#REF!+#REF! ->  | H47: =#REF!+#REF!+#REF!+#REF!+#REF!+#REF!+#REF!+#REF!+#REF! ->  | I47: =#REF!+#REF!+#REF!+#REF!+#REF!+#REF!+#REF!+#REF!+#REF! ->  | J47: =#REF!+#REF!+#REF!+#REF!+#REF!+#REF!+#REF!+#REF!+#REF! ->  | K47: =#REF!+#REF!+#REF!+#REF!+#REF!+#REF!+#REF!+#REF!+#REF! ->  | L47: =#REF!+#REF!+#REF!+#REF!+#REF!+#REF!+#REF!+#REF!+#REF! ->  | M47: =#REF!+#REF!+#REF!+#REF!+#REF!+#REF!+#REF!+#REF!+#REF! ->  | AK47: 0 | AL47: 0 | AM47: 0 | AN47: 0 | AO47: 0 | AP47: 0 | AR47: 0 | AS47: 0 | AU47: 0
C48: Human Settlements (Vote 33) | D48: =#REF!+#REF!+#REF!+#REF!+#REF!+#REF!+#REF!+#REF!+#REF! ->  | E48: =#REF!+#REF!+#REF!+#REF!+#REF!+#REF!+#REF!+#REF!+#REF! ->  | F48: =#REF!+#REF!+#REF!+#REF!+#REF!+#REF!+#REF!+#REF!+#REF! ->  | G48: =#REF!+#REF!+#REF!+#REF!+#REF!+#REF!+#REF!+#REF!+#REF! ->  | H48: =#REF!+#REF!+#REF!+#REF!+#REF!+#REF!+#REF!+#REF!+#REF! ->  | I48: =#REF!+#REF!+#REF!+#REF!+#REF!+#REF!+#REF!+#REF!+#REF! ->  | J48: =#REF!+#REF!+#REF!+#REF!+#REF!+#REF!+#REF!+#REF!+#REF! ->  | K48: =#REF!+#REF!+#REF!+#REF!+#REF!+#REF!+#REF!+#REF!+#REF! ->  | L48: =#REF!+#REF!+#REF!+#REF!+#REF!+#REF!+#REF!+#REF!+#REF! ->  | M48: =#REF!+#REF!+#REF!+#REF!+#REF!+#REF!+#REF!+#REF!+#REF! ->  | N48: =IFERROR(M48/D48,0) -> 0 | T48: =C48 -> Human Settlements (Vote 33) | U48: 19327515 | V48: 0 | W48: 19327515 | X48: 0 | Y48: 19327515 | AA48: 9130694 | AB48: 9170843.175 | AD48: 8294072 | AE48: 0.4291328709 | AK48: Human Settlements (Vote 33) | AL48: 0 | AM48: 0 | AN48: 0 | AO48: 0 | AP48: 0 | AR48: 0 | AS48: 0 | AU48: 0
C49: (a) Human Settlements Development Grant | D49: =#REF!+#REF!+#REF!+#REF!+#REF!+#REF!+#REF!+#REF!+#REF! ->  | E49: =#REF!+#REF!+#REF!+#REF!+#REF!+#REF!+#REF!+#REF!+#REF! ->  | F49: =#REF!+#REF!+#REF!+#REF!+#REF!+#REF!+#REF!+#REF!+#REF! ->  | G49: =#REF!+#REF!+#REF!+#REF!+#REF!+#REF!+#REF!+#REF!+#REF! ->  | H49: =#REF!+#REF!+#REF!+#REF!+#REF!+#REF!+#REF!+#REF!+#REF! ->  | I49: =#REF!+#REF!+#REF!+#REF!+#REF!+#REF!+#REF!+#REF!+#REF! ->  | J49: =#REF!+#REF!+#REF!+#REF!+#REF!+#REF!+#REF!+#REF!+#REF! ->  | K49: =#REF!+#REF!+#REF!+#REF!+#REF!+#REF!+#REF!+#REF!+#REF! ->  | L49: =#REF!+#REF!+#REF!+#REF!+#REF!+#REF!+#REF!+#REF!+#REF! ->  | M49: =#REF!+#REF!+#REF!+#REF!+#REF!+#REF!+#REF!+#REF!+#REF! ->  | N49: 0 | T49: =C49 -> (a) Human Settlements Development Grant | U49: 18779815 | V49: 0 | W49: 18779815 | X49: 0 | Y49: 18779815 | AA49: 8931387 | AB49: 8961386.175 | AD49: 8210247 | AE49: 0.4371846581 | AK49: =C49 -> (a) Human Settlements Development Grant | AL49: =IFERROR(U49-D49,0) -> 0 | AM49: =IFERROR(V49-E49,0) -> 0 | AN49: =IFERROR(W49-F49,0) -> 0 | AO49: =IFERROR(X49-G49,0) -> 0 | AP49: =IFERROR(Y49-H49,0) -> 0 | AR49: 0 | AS49: 0 | AU49: =IFERROR(AD49-M49,0) -> 0
C50: (b) Title Deeds Restoriation Grant | D50: =#REF!+#REF!+#REF!+#REF!+#REF!+#REF!+#REF!+#REF!+#REF! ->  | E50: =#REF!+#REF!+#REF!+#REF!+#REF!+#REF!+#REF!+#REF!+#REF! ->  | F50: =#REF!+#REF!+#REF!+#REF!+#REF!+#REF!+#REF!+#REF!+#REF! ->  | G50: =#REF!+#REF!+#REF!+#REF!+#REF!+#REF!+#REF!+#REF!+#REF! ->  | H50: =#REF!+#REF!+#REF!+#REF!+#REF!+#REF!+#REF!+#REF!+#REF! ->  | I50: =#REF!+#REF!+#REF!+#REF!+#REF!+#REF!+#REF!+#REF!+#REF! ->  | J50: =#REF!+#REF!+#REF!+#REF!+#REF!+#REF!+#REF!+#REF!+#REF! ->  | K50: =#REF!+#REF!+#REF!+#REF!+#REF!+#REF!+#REF!+#REF!+#REF! ->  | L50: =#REF!+#REF!+#REF!+#REF!+#REF!+#REF!+#REF!+#REF!+#REF! ->  | M50: =#REF!+#REF!+#REF!+#REF!+#REF!+#REF!+#REF!+#REF!+#REF! ->  | N50: 0 | T50: (b) Title Deeds Restoriation Grant | U50: 547700 | V50: 0 | W50: 547700 | X50: 0 | Y50: 547700 | AA50: 199307 | AB50: 209457 | AD50: 83825 | AE50: 0.1530491145 | AK50: =C50 -> (b) Title Deeds Restoriation Grant | AL50: =IFERROR(U50-D50,0) -> 0 | AM50: 0 | AN50: 0 | AO50: 0 | AP50: 0 | AR50: 0 | AS50: 0 | AU50: =IFERROR(AD50-M50,0) -> 0
D51: =#REF!+#REF!+#REF!+#REF!+#REF!+#REF!+#REF!+#REF!+#REF! ->  | E51: =#REF!+#REF!+#REF!+#REF!+#REF!+#REF!+#REF!+#REF!+#REF! ->  | F51: =#REF!+#REF!+#REF!+#REF!+#REF!+#REF!+#REF!+#REF!+#REF! ->  | G51: =#REF!+#REF!+#REF!+#REF!+#REF!+#REF!+#REF!+#REF!+#REF! ->  | H51: =#REF!+#REF!+#REF!+#REF!+#REF!+#REF!+#REF!+#REF!+#REF! ->  | I51: =#REF!+#REF!+#REF!+#REF!+#REF!+#REF!+#REF!+#REF!+#REF! ->  | J51: =#REF!+#REF!+#REF!+#REF!+#REF!+#REF!+#REF!+#REF!+#REF! ->  | K51: =#REF!+#REF!+#REF!+#REF!+#REF!+#REF!+#REF!+#REF!+#REF! ->  | L51: =#REF!+#REF!+#REF!+#REF!+#REF!+#REF!+#REF!+#REF!+#REF! ->  | M51: =#REF!+#REF!+#REF!+#REF!+#REF!+#REF!+#REF!+#REF!+#REF! ->  | N51: =IFERROR(M51/F51,0) -> 0 | T51: 0 | U51: 0 | V51: 0 | W51: 0 | X51: 0 | Y51: 0 | AA51: 0 | AB51: 0 | AD51: 0 | AE51: 0 | AK51: 0 | AL51: 0 | AM51: 0 | AN51: 0 | AO51: 0 | AP51: 0 | AR51: 0 | AS51: 0 | AU51: 0
D52: =#REF!+#REF!+#REF!+#REF!+#REF!+#REF!+#REF!+#REF!+#REF! ->  | E52: =#REF!+#REF!+#REF!+#REF!+#REF!+#REF!+#REF!+#REF!+#REF! ->  | F52: =#REF!+#REF!+#REF!+#REF!+#REF!+#REF!+#REF!+#REF!+#REF! ->  | G52: =#REF!+#REF!+#REF!+#REF!+#REF!+#REF!+#REF!+#REF!+#REF! ->  | H52: =#REF!+#REF!+#REF!+#REF!+#REF!+#REF!+#REF!+#REF!+#REF! ->  | I52: =#REF!+#REF!+#REF!+#REF!+#REF!+#REF!+#REF!+#REF!+#REF! ->  | J52: =#REF!+#REF!+#REF!+#REF!+#REF!+#REF!+#REF!+#REF!+#REF! ->  | K52: =#REF!+#REF!+#REF!+#REF!+#REF!+#REF!+#REF!+#REF!+#REF! ->  | L52: =#REF!+#REF!+#REF!+#REF!+#REF!+#REF!+#REF!+#REF!+#REF! ->  | M52: =#REF!+#REF!+#REF!+#REF!+#REF!+#REF!+#REF!+#REF!+#REF! ->  | N52: 0 | T52: 0 | U52: 0 | V52: 0 | W52: 0 | X52: 0 | Y52: 0 | AA52: 0 | AB52: 0 | AD52: 0 | AE52: 0 | AK52: 0 | AL52: 0 | AM52: 0 | AN52: 0 | AO52: 0 | AP52: 0 | AR52: 0 | AS52: 0 | AU52: 0
D53: =#REF!+#REF!+#REF!+#REF!+#REF!+#REF!+#REF!+#REF!+#REF! ->  | E53: =#REF!+#REF!+#REF!+#REF!+#REF!+#REF!+#REF!+#REF!+#REF! ->  | F53: =#REF!+#REF!+#REF!+#REF!+#REF!+#REF!+#REF!+#REF!+#REF! ->  | G53: =#REF!+#REF!+#REF!+#REF!+#REF!+#REF!+#REF!+#REF!+#REF! ->  | H53: =#REF!+#REF!+#REF!+#REF!+#REF!+#REF!+#REF!+#REF!+#REF! ->  | I53: =#REF!+#REF!+#REF!+#REF!+#REF!+#REF!+#REF!+#REF!+#REF! ->  | J53: =#REF!+#REF!+#REF!+#REF!+#REF!+#REF!+#REF!+#REF!+#REF! ->  | K53: =#REF!+#REF!+#REF!+#REF!+#REF!+#REF!+#REF!+#REF!+#REF! ->  | L53: =#REF!+#REF!+#REF!+#REF!+#REF!+#REF!+#REF!+#REF!+#REF! ->  | M53: =#REF!+#REF!+#REF!+#REF!+#REF!+#REF!+#REF!+#REF!+#REF! ->  | N53: 0 | T53: 0 | U53: 0 | V53: 0 | W53: 0 | X53: 0 | Y53: 0 | AA53: 0 | AB53: 0 | AD53: 0 | AE53: 0 | AK53: 0 | AL53: 0 | AM53: 0 | AN53: 0 | AO53: 0 | AP53: 0 | AR53: 0 | AS53: 0 | AU53: 0
D54: =#REF!+#REF!+#REF!+#REF!+#REF!+#REF!+#REF!+#REF!+#REF! ->  | E54: =#REF!+#REF!+#REF!+#REF!+#REF!+#REF!+#REF!+#REF!+#REF! ->  | F54: =#REF!+#REF!+#REF!+#REF!+#REF!+#REF!+#REF!+#REF!+#REF! ->  | G54: =#REF!+#REF!+#REF!+#REF!+#REF!+#REF!+#REF!+#REF!+#REF! ->  | H54: =#REF!+#REF!+#REF!+#REF!+#REF!+#REF!+#REF!+#REF!+#REF! ->  | I54: =#REF!+#REF!+#REF!+#REF!+#REF!+#REF!+#REF!+#REF!+#REF! ->  | J54: =#REF!+#REF!+#REF!+#REF!+#REF!+#REF!+#REF!+#REF!+#REF! ->  | K54: =#REF!+#REF!+#REF!+#REF!+#REF!+#REF!+#REF!+#REF!+#REF! ->  | L54: =#REF!+#REF!+#REF!+#REF!+#REF!+#REF!+#REF!+#REF!+#REF! ->  | M54: =#REF!+#REF!+#REF!+#REF!+#REF!+#REF!+#REF!+#REF!+#REF! ->  | AK54: 0 | AL54: 0 | AM54: 0 | AN54: 0 | AO54: 0 | AP54: 0 | AR54: 0 | AS54: 0 | AU54: 0
C55: Public Works and Infrastructure (Vote 13) | D55: =#REF!+#REF!+#REF!+#REF!+#REF!+#REF!+#REF!+#REF!+#REF! ->  | E55: =#REF!+#REF!+#REF!+#REF!+#REF!+#REF!+#REF!+#REF!+#REF! ->  | F55: =#REF!+#REF!+#REF!+#REF!+#REF!+#REF!+#REF!+#REF!+#REF! ->  | G55: =#REF!+#REF!+#REF!+#REF!+#REF!+#REF!+#REF!+#REF!+#REF! ->  | H55: =#REF!+#REF!+#REF!+#REF!+#REF!+#REF!+#REF!+#REF!+#REF! ->  | I55: =#REF!+#REF!+#REF!+#REF!+#REF!+#REF!+#REF!+#REF!+#REF! ->  | J55: =#REF!+#REF!+#REF!+#REF!+#REF!+#REF!+#REF!+#REF!+#REF! ->  | K55: =#REF!+#REF!+#REF!+#REF!+#REF!+#REF!+#REF!+#REF!+#REF! ->  | L55: =#REF!+#REF!+#REF!+#REF!+#REF!+#REF!+#REF!+#REF!+#REF! ->  | M55: =#REF!+#REF!+#REF!+#REF!+#REF!+#REF!+#REF!+#REF!+#REF! ->  | N55: =IFERROR(M55/D55,0) -> 0 | T55: =C55 -> Public Works and Infrastructure (Vote 13) | U55: 868181 | V55: 0 | W55: 868181 | X55: 0 | Y55: 868181 | AA55: 607727 | AB55: 528974 | AD55: 388243.1276 | AE55: 0.4471914585 | AK55: Public Works and Infrastructure (Vote 13) | AL55: 0 | AM55: 0 | AN55: 0 | AO55: 0 | AP55: 0 | AR55: 0 | AS55: 0 | AU55: 0
C56: (a) Expanded Public Works Programme Integrated Grant for Provinces | D56: =#REF!+#REF!+#REF!+#REF!+#REF!+#REF!+#REF!+#REF!+#REF! ->  | E56: =#REF!+#REF!+#REF!+#REF!+#REF!+#REF!+#REF!+#REF!+#REF! ->  | F56: =#REF!+#REF!+#REF!+#REF!+#REF!+#REF!+#REF!+#REF!+#REF! ->  | G56: =#REF!+#REF!+#REF!+#REF!+#REF!+#REF!+#REF!+#REF!+#REF! ->  | H56: =#REF!+#REF!+#REF!+#REF!+#REF!+#REF!+#REF!+#REF!+#REF! ->  | I56: =#REF!+#REF!+#REF!+#REF!+#REF!+#REF!+#REF!+#REF!+#REF! ->  | J56: =#REF!+#REF!+#REF!+#REF!+#REF!+#REF!+#REF!+#REF!+#REF! ->  | K56: =#REF!+#REF!+#REF!+#REF!+#REF!+#REF!+#REF!+#REF!+#REF! ->  | L56: =#REF!+#REF!+#REF!+#REF!+#REF!+#REF!+#REF!+#REF!+#REF! ->  | M56: =#REF!+#REF!+#REF!+#REF!+#REF!+#REF!+#REF!+#REF!+#REF! ->  | N56: 0 | T56: =C56 -> (a) Expanded Public Works Programme Integrated Grant for Provinces | U56: 437388 | V56: 0 | W56: 437388 | X56: 0 | Y56: 437388 | AA56: 306172 | AB56: 231365 | AD56: 177734.1276 | AE56: 0.406353461 | AK56: =C56 -> (a) Expanded Public Works Programme Integrated Grant for Provinces | AL56: =IFERROR(U56-D56,0) -> 0 | AM56: =IFERROR(V56-E56,0) -> 0 | AN56: =IFERROR(W56-F56,0) -> 0 | AO56: =IFERROR(X56-G56,0) -> 0 | AP56: =IFERROR(Y56-H56,0) -> 0 | AR56: 0 | AS56: 0 | AU56: =IFERROR(AD56-M56,0) -> 0
C57: (b) Social Sector Expanded Public Works Programme Incentive Grant for Provinces | D57: =#REF!+#REF!+#REF!+#REF!+#REF!+#REF!+#REF!+#REF!+#REF! ->  | E57: =#REF!+#REF!+#REF!+#REF!+#REF!+#REF!+#REF!+#REF!+#REF! ->  | F57: =#REF!+#REF!+#REF!+#REF!+#REF!+#REF!+#REF!+#REF!+#REF! ->  | G57: =#REF!+#REF!+#REF!+#REF!+#REF!+#REF!+#REF!+#REF!+#REF! ->  | H57: =#REF!+#REF!+#REF!+#REF!+#REF!+#REF!+#REF!+#REF!+#REF! ->  | I57: =#REF!+#REF!+#REF!+#REF!+#REF!+#REF!+#REF!+#REF!+#REF! ->  | J57: =#REF!+#REF!+#REF!+#REF!+#REF!+#REF!+#REF!+#REF!+#REF! ->  | K57: =#REF!+#REF!+#REF!+#REF!+#REF!+#REF!+#REF!+#REF!+#REF! ->  | L57: =#REF!+#REF!+#REF!+#REF!+#REF!+#REF!+#REF!+#REF!+#REF! ->  | M57: =#REF!+#REF!+#REF!+#REF!+#REF!+#REF!+#REF!+#REF!+#REF! ->  | N57: 0 | T57: (b) Social Sector Expanded Public Works Programme Incentive Grant for Provinces | U57: 430793 | V57: 0 | W57: 430793 | X57: 0 | Y57: 430793 | AA57: 301555 | AB57: 297609 | AD57: 210509 | AE57: 0.4886546439 | AK57: =C57 -> (b) Social Sector Expanded Public Works Programme Incentive Grant for Provinces | AL57: =IFERROR(U57-D57,0) -> 0 | AM57: 0 | AN57: 0 | AO57: 0 | AP57: 0 | AR57: 0 | AS57: 0 | AU57: =IFERROR(AD57-M57,0) -> 0
D58: =#REF!+#REF!+#REF!+#REF!+#REF!+#REF!+#REF!+#REF!+#REF! ->  | E58: =#REF!+#REF!+#REF!+#REF!+#REF!+#REF!+#REF!+#REF!+#REF! ->  | F58: =#REF!+#REF!+#REF!+#REF!+#REF!+#REF!+#REF!+#REF!+#REF! ->  | G58: =#REF!+#REF!+#REF!+#REF!+#REF!+#REF!+#REF!+#REF!+#REF! ->  | H58: =#REF!+#REF!+#REF!+#REF!+#REF!+#REF!+#REF!+#REF!+#REF! ->  | I58: =#REF!+#REF!+#REF!+#REF!+#REF!+#REF!+#REF!+#REF!+#REF! ->  | J58: =#REF!+#REF!+#REF!+#REF!+#REF!+#REF!+#REF!+#REF!+#REF! ->  | K58: =#REF!+#REF!+#REF!+#REF!+#REF!+#REF!+#REF!+#REF!+#REF! ->  | L58: =#REF!+#REF!+#REF!+#REF!+#REF!+#REF!+#REF!+#REF!+#REF! ->  | M58: =#REF!+#REF!+#REF!+#REF!+#REF!+#REF!+#REF!+#REF!+#REF! ->  | N58: =IFERROR(M58/F58,0) -> 0 | T58: 0 | U58: 0 | V58: 0 | W58: 0 | X58: 0 | Y58: 0 | AA58: 0 | AB58: 0 | AD58: 0 | AE58: 0 | AK58: 0 | AL58: 0 | AM58: 0 | AN58: 0 | AO58: 0 | AP58: 0 | AR58: 0 | AS58: 0 | AU58: 0
D59: =#REF!+#REF!+#REF!+#REF!+#REF!+#REF!+#REF!+#REF!+#REF! ->  | E59: =#REF!+#REF!+#REF!+#REF!+#REF!+#REF!+#REF!+#REF!+#REF! ->  | F59: =#REF!+#REF!+#REF!+#REF!+#REF!+#REF!+#REF!+#REF!+#REF! ->  | G59: =#REF!+#REF!+#REF!+#REF!+#REF!+#REF!+#REF!+#REF!+#REF! ->  | H59: =#REF!+#REF!+#REF!+#REF!+#REF!+#REF!+#REF!+#REF!+#REF! ->  | I59: =#REF!+#REF!+#REF!+#REF!+#REF!+#REF!+#REF!+#REF!+#REF! ->  | J59: =#REF!+#REF!+#REF!+#REF!+#REF!+#REF!+#REF!+#REF!+#REF! ->  | K59: =#REF!+#REF!+#REF!+#REF!+#REF!+#REF!+#REF!+#REF!+#REF! ->  | L59: =#REF!+#REF!+#REF!+#REF!+#REF!+#REF!+#REF!+#REF!+#REF! ->  | M59: =#REF!+#REF!+#REF!+#REF!+#REF!+#REF!+#REF!+#REF!+#REF! ->  | N59: 0 | T59: 0 | U59: 0 | V59: 0 | W59: 0 | X59: 0 | Y59: 0 | AA59: 0 | AB59: 0 | AD59: 0 | AE59: 0 | AK59: 0 | AL59: 0 | AM59: 0 | AN59: 0 | AO59: 0 | AP59: 0 | AR59: 0 | AS59: 0 | AU59: 0
D60: =#REF!+#REF!+#REF!+#REF!+#REF!+#REF!+#REF!+#REF!+#REF! ->  | E60: =#REF!+#REF!+#REF!+#REF!+#REF!+#REF!+#REF!+#REF!+#REF! ->  | F60: =#REF!+#REF!+#REF!+#REF!+#REF!+#REF!+#REF!+#REF!+#REF! ->  | G60: =#REF!+#REF!+#REF!+#REF!+#REF!+#REF!+#REF!+#REF!+#REF! ->  | H60: =#REF!+#REF!+#REF!+#REF!+#REF!+#REF!+#REF!+#REF!+#REF! ->  | I60: =#REF!+#REF!+#REF!+#REF!+#REF!+#REF!+#REF!+#REF!+#REF! ->  | J60: =#REF!+#REF!+#REF!+#REF!+#REF!+#REF!+#REF!+#REF!+#REF! ->  | K60: =#REF!+#REF!+#REF!+#REF!+#REF!+#REF!+#REF!+#REF!+#REF! ->  | L60: =#REF!+#REF!+#REF!+#REF!+#REF!+#REF!+#REF!+#REF!+#REF! ->  | M60: =#REF!+#REF!+#REF!+#REF!+#REF!+#REF!+#REF!+#REF!+#REF! ->  | N60: 0 | T60: 0 | U60: 0 | V60: 0 | W60: 0 | X60: 0 | Y60: 0 | AA60: 0 | AB60: 0 | AD60: 0 | AE60: 0 | AK60: 0 | AL60: 0 | AM60: 0 | AN60: 0 | AO60: 0 | AP60: 0 | AR60: 0 | AS60: 0 | AU60: 0
D61: =#REF!+#REF!+#REF!+#REF!+#REF!+#REF!+#REF!+#REF!+#REF! ->  | E61: =#REF!+#REF!+#REF!+#REF!+#REF!+#REF!+#REF!+#REF!+#REF! ->  | F61: =#REF!+#REF!+#REF!+#REF!+#REF!+#REF!+#REF!+#REF!+#REF! ->  | G61: =#REF!+#REF!+#REF!+#REF!+#REF!+#REF!+#REF!+#REF!+#REF! ->  | H61: =#REF!+#REF!+#REF!+#REF!+#REF!+#REF!+#REF!+#REF!+#REF! ->  | I61: =#REF!+#REF!+#REF!+#REF!+#REF!+#REF!+#REF!+#REF!+#REF! ->  | J61: =#REF!+#REF!+#REF!+#REF!+#REF!+#REF!+#REF!+#REF!+#REF! ->  | K61: =#REF!+#REF!+#REF!+#REF!+#REF!+#REF!+#REF!+#REF!+#REF! ->  | L61: =#REF!+#REF!+#REF!+#REF!+#REF!+#REF!+#REF!+#REF!+#REF! ->  | M61: =#REF!+#REF!+#REF!+#REF!+#REF!+#REF!+#REF!+#REF!+#REF! ->  | AK61: 0 | AL61: 0 | AM61: 0 | AN61: 0 | AO61: 0 | AP61: 0 | AR61: 0 | AS61: 0 | AU61: 0
C62: Social Development (Vote 19) | D62: =#REF!+#REF!+#REF!+#REF!+#REF!+#REF!+#REF!+#REF!+#REF! ->  | E62: =#REF!+#REF!+#REF!+#REF!+#REF!+#REF!+#REF!+#REF!+#REF! ->  | F62: =#REF!+#REF!+#REF!+#REF!+#REF!+#REF!+#REF!+#REF!+#REF! ->  | G62: =#REF!+#REF!+#REF!+#REF!+#REF!+#REF!+#REF!+#REF!+#REF! ->  | H62: =#REF!+#REF!+#REF!+#REF!+#REF!+#REF!+#REF!+#REF!+#REF! ->  | I62: =#REF!+#REF!+#REF!+#REF!+#REF!+#REF!+#REF!+#REF!+#REF! ->  | J62: =#REF!+#REF!+#REF!+#REF!+#REF!+#REF!+#REF!+#REF!+#REF! ->  | K62: =#REF!+#REF!+#REF!+#REF!+#REF!+#REF!+#REF!+#REF!+#REF! ->  | L62: =#REF!+#REF!+#REF!+#REF!+#REF!+#REF!+#REF!+#REF!+#REF! ->  | M62: =#REF!+#REF!+#REF!+#REF!+#REF!+#REF!+#REF!+#REF!+#REF! ->  | N62: =IFERROR(M62/D62,0) -> 0 | T62: =C62 -> Social Development (Vote 19) | U62: 518228 | V62: 0 | W62: 518228 | X62: 0 | Y62: 518228 | AA62: 259334 | AB62: 259682 | AD62: 212847 | AE62: 0.4107207638 | AK62: Social Development (Vote 19) | AL62: 0 | AM62: 0 | AN62: 0 | AO62: 0 | AP62: 0 | AR62: 0 | AS62: 0 | AU62: 0
C63: (a) Early Childhood Development Grant | D63: =#REF!+#REF!+#REF!+#REF!+#REF!+#REF!+#REF!+#REF!+#REF! ->  | E63: =#REF!+#REF!+#REF!+#REF!+#REF!+#REF!+#REF!+#REF!+#REF! ->  | F63: =#REF!+#REF!+#REF!+#REF!+#REF!+#REF!+#REF!+#REF!+#REF! ->  | G63: =#REF!+#REF!+#REF!+#REF!+#REF!+#REF!+#REF!+#REF!+#REF! ->  | H63: =#REF!+#REF!+#REF!+#REF!+#REF!+#REF!+#REF!+#REF!+#REF! ->  | I63: =#REF!+#REF!+#REF!+#REF!+#REF!+#REF!+#REF!+#REF!+#REF! ->  | J63: =#REF!+#REF!+#REF!+#REF!+#REF!+#REF!+#REF!+#REF!+#REF! ->  | K63: =#REF!+#REF!+#REF!+#REF!+#REF!+#REF!+#REF!+#REF!+#REF! ->  | L63: =#REF!+#REF!+#REF!+#REF!+#REF!+#REF!+#REF!+#REF!+#REF! ->  | M63: =#REF!+#REF!+#REF!+#REF!+#REF!+#REF!+#REF!+#REF!+#REF! ->  | N63: 0 | T63: =C63 -> (a) Early Childhood Development Grant | U63: 518228 | V63: 0 | W63: 518228 | X63: 0 | Y63: 518228 | AA63: 259334 | AB63: 259682 | AD63: 212847 | AE63: 0.4107207638 | AK63: =C63 -> (a) Early Childhood Development Grant | AL63: =IFERROR(U63-D63,0) -> 0 | AM63: =IFERROR(V63-E63,0) -> 0 | AN63: =IFERROR(W63-F63,0) -> 0 | AO63: =IFERROR(X63-G63,0) -> 0 | AP63: =IFERROR(Y63-H63,0) -> 0 | AR63: 0 | AS63: 0 | AU63: =IFERROR(AD63-M63,0) -> 0
C64: (b) Substance Abuse Treatment Grant | D64: =#REF!+#REF!+#REF!+#REF!+#REF!+#REF!+#REF!+#REF!+#REF! ->  | E64: =#REF!+#REF!+#REF!+#REF!+#REF!+#REF!+#REF!+#REF!+#REF! ->  | F64: =#REF!+#REF!+#REF!+#REF!+#REF!+#REF!+#REF!+#REF!+#REF! ->  | G64: =#REF!+#REF!+#REF!+#REF!+#REF!+#REF!+#REF!+#REF!+#REF! ->  | H64: =#REF!+#REF!+#REF!+#REF!+#REF!+#REF!+#REF!+#REF!+#REF! ->  | I64: =#REF!+#REF!+#REF!+#REF!+#REF!+#REF!+#REF!+#REF!+#REF! ->  | J64: =#REF!+#REF!+#REF!+#REF!+#REF!+#REF!+#REF!+#REF!+#REF! ->  | K64: =#REF!+#REF!+#REF!+#REF!+#REF!+#REF!+#REF!+#REF!+#REF! ->  | L64: =#REF!+#REF!+#REF!+#REF!+#REF!+#REF!+#REF!+#REF!+#REF! ->  | M64: =#REF!+#REF!+#REF!+#REF!+#REF!+#REF!+#REF!+#REF!+#REF! ->  | N64: =IFERROR(M64/H64,0) -> 0 | T64: (b) Substance Abuse Treatment Grant | U64: 0 | V64: 0 | W64: 0 | X64: 0 | Y64: 0 | AA64: 0 | AB64: 0 | AD64: 0 | AE64: 0 | AK64: =C64 -> (b) Substance Abuse Treatment Grant | AL64: =IFERROR(U64-D64,0) -> 0 | AM64: 0 | AN64: 0 | AO64: 0 | AP64: 0 | AR64: 0 | AS64: 0 | AU64: =IFERROR(AD64-M64,0) -> 0
D65: =#REF!+#REF!+#REF!+#REF!+#REF!+#REF!+#REF!+#REF!+#REF! ->  | E65: =#REF!+#REF!+#REF!+#REF!+#REF!+#REF!+#REF!+#REF!+#REF! ->  | F65: =#REF!+#REF!+#REF!+#REF!+#REF!+#REF!+#REF!+#REF!+#REF! ->  | G65: =#REF!+#REF!+#REF!+#REF!+#REF!+#REF!+#REF!+#REF!+#REF! ->  | H65: =#REF!+#REF!+#REF!+#REF!+#REF!+#REF!+#REF!+#REF!+#REF! ->  | I65: =#REF!+#REF!+#REF!+#REF!+#REF!+#REF!+#REF!+#REF!+#REF! ->  | J65: =#REF!+#REF!+#REF!+#REF!+#REF!+#REF!+#REF!+#REF!+#REF! ->  | K65: =#REF!+#REF!+#REF!+#REF!+#REF!+#REF!+#REF!+#REF!+#REF! ->  | L65: =#REF!+#REF!+#REF!+#REF!+#REF!+#REF!+#REF!+#REF!+#REF! ->  | M65: =#REF!+#REF!+#REF!+#REF!+#REF!+#REF!+#REF!+#REF!+#REF! ->  | N65: =IFERROR(M65/F65,0) -> 0 | T65: 0 | U65: 0 | V65: 0 | W65: 0 | X65: 0 | Y65: 0 | AA65: 0 | AB65: 0 | AD65: 0 | AE65: 0 | AK65: 0 | AL65: 0 | AM65: 0 | AN65: 0 | AO65: 0 | AP65: 0 | AR65: 0 | AS65: 0 | AU65: 0
D66: =#REF!+#REF!+#REF!+#REF!+#REF!+#REF!+#REF!+#REF!+#REF! ->  | E66: =#REF!+#REF!+#REF!+#REF!+#REF!+#REF!+#REF!+#REF!+#REF! ->  | F66: =#REF!+#REF!+#REF!+#REF!+#REF!+#REF!+#REF!+#REF!+#REF! ->  | G66: =#REF!+#REF!+#REF!+#REF!+#REF!+#REF!+#REF!+#REF!+#REF! ->  | H66: =#REF!+#REF!+#REF!+#REF!+#REF!+#REF!+#REF!+#REF!+#REF! ->  | I66: =#REF!+#REF!+#REF!+#REF!+#REF!+#REF!+#REF!+#REF!+#REF! ->  | J66: =#REF!+#REF!+#REF!+#REF!+#REF!+#REF!+#REF!+#REF!+#REF! ->  | K66: =#REF!+#REF!+#REF!+#REF!+#REF!+#REF!+#REF!+#REF!+#REF! ->  | L66: =#REF!+#REF!+#REF!+#REF!+#REF!+#REF!+#REF!+#REF!+#REF! ->  | M66: =#REF!+#REF!+#REF!+#REF!+#REF!+#REF!+#REF!+#REF!+#REF! ->  | N66: 0 | T66: 0 | U66: 0 | V66: 0 | W66: 0 | X66: 0 | Y66: 0 | AA66: 0 | AB66: 0 | AD66: 0 | AE66: 0 | AK66: 0 | AL66: 0 | AM66: 0 | AN66: 0 | AO66: 0 | AP66: 0 | AR66: 0 | AS66: 0 | AU66: 0
D67: =#REF!+#REF!+#REF!+#REF!+#REF!+#REF!+#REF!+#REF!+#REF! ->  | E67: =#REF!+#REF!+#REF!+#REF!+#REF!+#REF!+#REF!+#REF!+#REF! ->  | F67: =#REF!+#REF!+#REF!+#REF!+#REF!+#REF!+#REF!+#REF!+#REF! ->  | G67: =#REF!+#REF!+#REF!+#REF!+#REF!+#REF!+#REF!+#REF!+#REF! ->  | H67: =#REF!+#REF!+#REF!+#REF!+#REF!+#REF!+#REF!+#REF!+#REF! ->  | I67: =#REF!+#REF!+#REF!+#REF!+#REF!+#REF!+#REF!+#REF!+#REF! ->  | J67: =#REF!+#REF!+#REF!+#REF!+#REF!+#REF!+#REF!+#REF!+#REF! ->  | K67: =#REF!+#REF!+#REF!+#REF!+#REF!+#REF!+#REF!+#REF!+#REF! ->  | L67: =#REF!+#REF!+#REF!+#REF!+#REF!+#REF!+#REF!+#REF!+#REF! ->  | M67: =#REF!+#REF!+#REF!+#REF!+#REF!+#REF!+#REF!+#REF!+#REF! ->  | N67: 0 | T67: 0 | U67: 0 | V67: 0 | W67: 0 | X67: 0 | Y67: 0 | AA67: 0 | AB67: 0 | AD67: 0 | AE67: 0 | AK67: 0 | AL67: 0 | AM67: 0 | AN67: 0 | AO67: 0 | AP67: 0 | AR67: 0 | AS67: 0 | AU67: 0
D68: =#REF!+#REF!+#REF!+#REF!+#REF!+#REF!+#REF!+#REF!+#REF! ->  | E68: =#REF!+#REF!+#REF!+#REF!+#REF!+#REF!+#REF!+#REF!+#REF! ->  | F68: =#REF!+#REF!+#REF!+#REF!+#REF!+#REF!+#REF!+#REF!+#REF! ->  | G68: =#REF!+#REF!+#REF!+#REF!+#REF!+#REF!+#REF!+#REF!+#REF! ->  | H68: =#REF!+#REF!+#REF!+#REF!+#REF!+#REF!+#REF!+#REF!+#REF! ->  | I68: =#REF!+#REF!+#REF!+#REF!+#REF!+#REF!+#REF!+#REF!+#REF! ->  | J68: =#REF!+#REF!+#REF!+#REF!+#REF!+#REF!+#REF!+#REF!+#REF! ->  | K68: =#REF!+#REF!+#REF!+#REF!+#REF!+#REF!+#REF!+#REF!+#REF! ->  | L68: =#REF!+#REF!+#REF!+#REF!+#REF!+#REF!+#REF!+#REF!+#REF! ->  | M68: =#REF!+#REF!+#REF!+#REF!+#REF!+#REF!+#REF!+#REF!+#REF! ->  | AK68: 0 | AL68: 0 | AM68: 0 | AN68: 0 | AO68: 0 | AP68: 0 | AR68: 0 | AS68: 0 | AU68: 0
C69: Sports, Arts and Culture (Vote 37) | D69: =#REF!+#REF!+#REF!+#REF!+#REF!+#REF!+#REF!+#REF!+#REF! ->  | E69: =#REF!+#REF!+#REF!+#REF!+#REF!+#REF!+#REF!+#REF!+#REF! ->  | F69: =#REF!+#REF!+#REF!+#REF!+#REF!+#REF!+#REF!+#REF!+#REF! ->  | G69: =#REF!+#REF!+#REF!+#REF!+#REF!+#REF!+#REF!+#REF!+#REF! ->  | H69: =#REF!+#REF!+#REF!+#REF!+#REF!+#REF!+#REF!+#REF!+#REF! ->  | I69: =#REF!+#REF!+#REF!+#REF!+#REF!+#REF!+#REF!+#REF!+#REF! ->  | J69: =#REF!+#REF!+#REF!+#REF!+#REF!+#REF!+#REF!+#REF!+#REF! ->  | K69: =#REF!+#REF!+#REF!+#REF!+#REF!+#REF!+#REF!+#REF!+#REF! ->  | L69: =#REF!+#REF!+#REF!+#REF!+#REF!+#REF!+#REF!+#REF!+#REF! ->  | M69: =#REF!+#REF!+#REF!+#REF!+#REF!+#REF!+#REF!+#REF!+#REF! ->  | N69: =IFERROR(M69/D69,0) -> 0 | T69: =C69 -> Sports, Arts and Culture (Vote 37) | U69: 620016 | V69: 0 | W69: 620016 | X69: 0 | Y69: 620016 | AA69: 310009 | AB69: 310009 | AD69: 251292 | AE69: 0.4052992181 | AK69: Sports, Arts and Culture (Vote 37) | AL69: 0 | AM69: 0 | AN69: 0 | AO69: 0 | AP69: 0 | AR69: 0 | AS69: 0 | AU69: 0
C70: Mass Participation and Sport Development Grant | D70: =#REF!+#REF!+#REF!+#REF!+#REF!+#REF!+#REF!+#REF!+#REF! ->  | E70: =#REF!+#REF!+#REF!+#REF!+#REF!+#REF!+#REF!+#REF!+#REF! ->  | F70: =#REF!+#REF!+#REF!+#REF!+#REF!+#REF!+#REF!+#REF!+#REF! ->  | G70: =#REF!+#REF!+#REF!+#REF!+#REF!+#REF!+#REF!+#REF!+#REF! ->  | H70: =#REF!+#REF!+#REF!+#REF!+#REF!+#REF!+#REF!+#REF!+#REF! ->  | I70: =#REF!+#REF!+#REF!+#REF!+#REF!+#REF!+#REF!+#REF!+#REF! ->  | J70: =#REF!+#REF!+#REF!+#REF!+#REF!+#REF!+#REF!+#REF!+#REF! ->  | K70: =#REF!+#REF!+#REF!+#REF!+#REF!+#REF!+#REF!+#REF!+#REF! ->  | L70: =#REF!+#REF!+#REF!+#REF!+#REF!+#REF!+#REF!+#REF!+#REF! ->  | M70: =#REF!+#REF!+#REF!+#REF!+#REF!+#REF!+#REF!+#REF!+#REF! ->  | N70: 0 | T70: =C70 -> Mass Participation and Sport Development Grant | U70: 620016 | V70: 0 | W70: 620016 | X70: 0 | Y70: 620016 | AA70: 310009 | AB70: 310009 | AD70: 251292 | AE70: 0.4052992181 | AK70: =C70 -> Mass Participation and Sport Development Grant | AL70: =IFERROR(U70-D70,0) -> 0 | AM70: =IFERROR(V70-E70,0) -> 0 | AN70: =IFERROR(W70-F70,0) -> 0 | AO70: =IFERROR(X70-G70,0) -> 0 | AP70: =IFERROR(Y70-H70,0) -> 0 | AR70: 0 | AS70: 0 | AU70: =IFERROR(AD70-M70,0) -> 0
D71: =#REF!+#REF!+#REF!+#REF!+#REF!+#REF!+#REF!+#REF!+#REF! ->  | E71: =#REF!+#REF!+#REF!+#REF!+#REF!+#REF!+#REF!+#REF!+#REF! ->  | F71: =#REF!+#REF!+#REF!+#REF!+#REF!+#REF!+#REF!+#REF!+#REF! ->  | G71: =#REF!+#REF!+#REF!+#REF!+#REF!+#REF!+#REF!+#REF!+#REF! ->  | H71: =#REF!+#REF!+#REF!+#REF!+#REF!+#REF!+#REF!+#REF!+#REF! ->  | I71: =#REF!+#REF!+#REF!+#REF!+#REF!+#REF!+#REF!+#REF!+#REF! ->  | J71: =#REF!+#REF!+#REF!+#REF!+#REF!+#REF!+#REF!+#REF!+#REF! ->  | K71: =#REF!+#REF!+#REF!+#REF!+#REF!+#REF!+#REF!+#REF!+#REF! ->  | L71: =#REF!+#REF!+#REF!+#REF!+#REF!+#REF!+#REF!+#REF!+#REF! ->  | M71: =#REF!+#REF!+#REF!+#REF!+#REF!+#REF!+#REF!+#REF!+#REF! ->  | N71: =IFERROR(M71/F71,0) -> 0 | T71: 0 | U71: 0 | V71: 0 | W71: 0 | X71: 0 | Y71: 0 | AA71: 0 | AB71: 0 | AD71: 0 | AE71: 0 | AK71: =C71 -> 0 | AL71: =IFERROR(U71-D71,0) -> 0 | AM71: 0 | AN71: 0 | AO71: 0 | AP71: 0 | AR71: 0 | AS71: 0 | AU71: =IFERROR(AD71-M71,0) -> 0
D72: =#REF!+#REF!+#REF!+#REF!+#REF!+#REF!+#REF!+#REF!+#REF! ->  | E72: =#REF!+#REF!+#REF!+#REF!+#REF!+#REF!+#REF!+#REF!+#REF! ->  | F72: =#REF!+#REF!+#REF!+#REF!+#REF!+#REF!+#REF!+#REF!+#REF! ->  | G72: =#REF!+#REF!+#REF!+#REF!+#REF!+#REF!+#REF!+#REF!+#REF! ->  | H72: =#REF!+#REF!+#REF!+#REF!+#REF!+#REF!+#REF!+#REF!+#REF! ->  | I72: =#REF!+#REF!+#REF!+#REF!+#REF!+#REF!+#REF!+#REF!+#REF! ->  | J72: =#REF!+#REF!+#REF!+#REF!+#REF!+#REF!+#REF!+#REF!+#REF! ->  | K72: =#REF!+#REF!+#REF!+#REF!+#REF!+#REF!+#REF!+#REF!+#REF! ->  | L72: =#REF!+#REF!+#REF!+#REF!+#REF!+#REF!+#REF!+#REF!+#REF! ->  | M72: =#REF!+#REF!+#REF!+#REF!+#REF!+#REF!+#REF!+#REF!+#REF! ->  | N72: 0 | T72: 0 | U72: 0 | V72: 0 | W72: 0 | X72: 0 | Y72: 0 | AA72: 0 | AB72: 0 | AD72: 0 | AE72: 0 | AK72: 0 | AL72: 0 | AM72: 0 | AN72: 0 | AO72: 0 | AP72: 0 | AR72: 0 | AS72: 0 | AU72: 0
D73: =#REF!+#REF!+#REF!+#REF!+#REF!+#REF!+#REF!+#REF!+#REF! ->  | E73: =#REF!+#REF!+#REF!+#REF!+#REF!+#REF!+#REF!+#REF!+#REF! ->  | F73: =#REF!+#REF!+#REF!+#REF!+#REF!+#REF!+#REF!+#REF!+#REF! ->  | G73: =#REF!+#REF!+#REF!+#REF!+#REF!+#REF!+#REF!+#REF!+#REF! ->  | H73: =#REF!+#REF!+#REF!+#REF!+#REF!+#REF!+#REF!+#REF!+#REF! ->  | I73: =#REF!+#REF!+#REF!+#REF!+#REF!+#REF!+#REF!+#REF!+#REF! ->  | J73: =#REF!+#REF!+#REF!+#REF!+#REF!+#REF!+#REF!+#REF!+#REF! ->  | K73: =#REF!+#REF!+#REF!+#REF!+#REF!+#REF!+#REF!+#REF!+#REF! ->  | L73: =#REF!+#REF!+#REF!+#REF!+#REF!+#REF!+#REF!+#REF!+#REF! ->  | M73: =#REF!+#REF!+#REF!+#REF!+#REF!+#REF!+#REF!+#REF!+#REF! ->  | N73: 0 | T73: 0 | U73: 0 | V73: 0 | W73: 0 | X73: 0 | Y73: 0 | AA73: 0 | AB73: 0 | AD73: 0 | AE73: 0 | AK73: 0 | AL73: 0 | AM73: 0 | AN73: 0 | AO73: 0 | AP73: 0 | AR73: 0 | AS73: 0 | AU73: 0
D74: =#REF!+#REF!+#REF!+#REF!+#REF!+#REF!+#REF!+#REF!+#REF! ->  | E74: =#REF!+#REF!+#REF!+#REF!+#REF!+#REF!+#REF!+#REF!+#REF! ->  | F74: =#REF!+#REF!+#REF!+#REF!+#REF!+#REF!+#REF!+#REF!+#REF! ->  | G74: =#REF!+#REF!+#REF!+#REF!+#REF!+#REF!+#REF!+#REF!+#REF! ->  | H74: =#REF!+#REF!+#REF!+#REF!+#REF!+#REF!+#REF!+#REF!+#REF! ->  | I74: =#REF!+#REF!+#REF!+#REF!+#REF!+#REF!+#REF!+#REF!+#REF! ->  | J74: =#REF!+#REF!+#REF!+#REF!+#REF!+#REF!+#REF!+#REF!+#REF! ->  | K74: =#REF!+#REF!+#REF!+#REF!+#REF!+#REF!+#REF!+#REF!+#REF! ->  | L74: =#REF!+#REF!+#REF!+#REF!+#REF!+#REF!+#REF!+#REF!+#REF! ->  | M74: =#REF!+#REF!+#REF!+#REF!+#REF!+#REF!+#REF!+#REF!+#REF! ->  | N74: 0 | T74: 0 | U74: 0 | V74: 0 | W74: 0 | X74: 0 | Y74: 0 | AA74: 0 | AB74: 0 | AD74: 0 | AE74: 0 | AK74: 0 | AL74: 0 | AM74: 0 | AN74: 0 | AO74: 0 | AP74: 0 | AR74: 0 | AS74: 0 | AU74: 0
D75: =#REF!+#REF!+#REF!+#REF!+#REF!+#REF!+#REF!+#REF!+#REF! ->  | E75: =#REF!+#REF!+#REF!+#REF!+#REF!+#REF!+#REF!+#REF!+#REF! ->  | F75: =#REF!+#REF!+#REF!+#REF!+#REF!+#REF!+#REF!+#REF!+#REF! ->  | G75: =#REF!+#REF!+#REF!+#REF!+#REF!+#REF!+#REF!+#REF!+#REF! ->  | H75: =#REF!+#REF!+#REF!+#REF!+#REF!+#REF!+#REF!+#REF!+#REF! ->  | I75: =#REF!+#REF!+#REF!+#REF!+#REF!+#REF!+#REF!+#REF!+#REF! ->  | J75: =#REF!+#REF!+#REF!+#REF!+#REF!+#REF!+#REF!+#REF!+#REF! ->  | K75: =#REF!+#REF!+#REF!+#REF!+#REF!+#REF!+#REF!+#REF!+#REF! ->  | L75: =#REF!+#REF!+#REF!+#REF!+#REF!+#REF!+#REF!+#REF!+#REF! ->  | M75: =#REF!+#REF!+#REF!+#REF!+#REF!+#REF!+#REF!+#REF!+#REF! ->  | AK75: 0 | AL75: 0 | AM75: 0 | AN75: 0 | AO75: 0 | AP75: 0 | AR75: 0 | AS75: 0 | AU75: 0
C76: Sub-Total | D76: =#REF!+#REF!+#REF!+#REF!+#REF!+#REF!+#REF!+#REF!+#REF! ->  | E76: =#REF!+#REF!+#REF!+#REF!+#REF!+#REF!+#REF!+#REF!+#REF! ->  | F76: =#REF!+#REF!+#REF!+#REF!+#REF!+#REF!+#REF!+#REF!+#REF! ->  | G76: =#REF!+#REF!+#REF!+#REF!+#REF!+#REF!+#REF!+#REF!+#REF! ->  | H76: =#REF!+#REF!+#REF!+#REF!+#REF!+#REF!+#REF!+#REF!+#REF! ->  | I76: =#REF!+#REF!+#REF!+#REF!+#REF!+#REF!+#REF!+#REF!+#REF! ->  | J76: =#REF!+#REF!+#REF!+#REF!+#REF!+#REF!+#REF!+#REF!+#REF! ->  | K76: =#REF!+#REF!+#REF!+#REF!+#REF!+#REF!+#REF!+#REF!+#REF! ->  | L76: =#REF!+#REF!+#REF!+#REF!+#REF!+#REF!+#REF!+#REF!+#REF! ->  | M76: =#REF!+#REF!+#REF!+#REF!+#REF!+#REF!+#REF!+#REF!+#REF! ->  | N76: =IFERROR(M76/D76,0) -> 0 | T76: Sub-Total | U76: 61956674.19 | V76: 0 | W76: 61956674.19 | X76: 0 | Y76: 61956674.19 | Z76: 0 | AA76: 31549702 | AB76: 31509579.18 | AD76: 27897942.13 | AE76: 0.4502814667 | AK76: Sub-Total | AL76: 0 | AM76: 0 | AN76: 0 | AO76: 0 | AP76: 0 | AR76: 0 | AS76: 0 | AU76: 0
D77: =#REF!+#REF!+#REF!+#REF!+#REF!+#REF!+#REF!+#REF!+#REF! ->  | E77: =#REF!+#REF!+#REF!+#REF!+#REF!+#REF!+#REF!+#REF!+#REF! ->  | F77: =#REF!+#REF!+#REF!+#REF!+#REF!+#REF!+#REF!+#REF!+#REF! ->  | G77: =#REF!+#REF!+#REF!+#REF!+#REF!+#REF!+#REF!+#REF!+#REF! ->  | H77: =#REF!+#REF!+#REF!+#REF!+#REF!+#REF!+#REF!+#REF!+#REF! ->  | I77: =#REF!+#REF!+#REF!+#REF!+#REF!+#REF!+#REF!+#REF!+#REF! ->  | J77: =#REF!+#REF!+#REF!+#REF!+#REF!+#REF!+#REF!+#REF!+#REF! ->  | K77: =#REF!+#REF!+#REF!+#REF!+#REF!+#REF!+#REF!+#REF!+#REF! ->  | L77: =#REF!+#REF!+#REF!+#REF!+#REF!+#REF!+#REF!+#REF!+#REF! ->  | M77: =#REF!+#REF!+#REF!+#REF!+#REF!+#REF!+#REF!+#REF!+#REF! ->  | AL77: 0 | AM77: 0 | AN77: 0 | AO77: 0 | AP77: 0 | AR77: 0 | AS77: 0 | AU77: 0
C78: Schedule 4, Part A Grants1. | D78: =#REF!+#REF!+#REF!+#REF!+#REF!+#REF!+#REF!+#REF!+#REF! ->  | E78: =#REF!+#REF!+#REF!+#REF!+#REF!+#REF!+#REF!+#REF!+#REF! ->  | F78: =#REF!+#REF!+#REF!+#REF!+#REF!+#REF!+#REF!+#REF!+#REF! ->  | G78: =#REF!+#REF!+#REF!+#REF!+#REF!+#REF!+#REF!+#REF!+#REF! ->  | H78: =#REF!+#REF!+#REF!+#REF!+#REF!+#REF!+#REF!+#REF!+#REF! ->  | I78: =#REF!+#REF!+#REF!+#REF!+#REF!+#REF!+#REF!+#REF!+#REF! ->  | J78: =#REF!+#REF!+#REF!+#REF!+#REF!+#REF!+#REF!+#REF!+#REF! ->  | K78: =#REF!+#REF!+#REF!+#REF!+#REF!+#REF!+#REF!+#REF!+#REF! ->  | L78: =#REF!+#REF!+#REF!+#REF!+#REF!+#REF!+#REF!+#REF!+#REF! ->  | M78: =#REF!+#REF!+#REF!+#REF!+#REF!+#REF!+#REF!+#REF!+#REF! ->  | T78: Schedule 4, Part A Grants1. | AK78: Schedule 4, Part A Grants1. | AL78: 0 | AM78: 0 | AN78: 0 | AO78: 0 | AP78: 0 | AR78: 0 | AS78: 0 | AU78: 0
D79: =#REF!+#REF!+#REF!+#REF!+#REF!+#REF!+#REF!+#REF!+#REF! ->  | E79: =#REF!+#REF!+#REF!+#REF!+#REF!+#REF!+#REF!+#REF!+#REF! ->  | F79: =#REF!+#REF!+#REF!+#REF!+#REF!+#REF!+#REF!+#REF!+#REF! ->  | G79: =#REF!+#REF!+#REF!+#REF!+#REF!+#REF!+#REF!+#REF!+#REF! ->  | H79: =#REF!+#REF!+#REF!+#REF!+#REF!+#REF!+#REF!+#REF!+#REF! ->  | I79: =#REF!+#REF!+#REF!+#REF!+#REF!+#REF!+#REF!+#REF!+#REF! ->  | J79: =#REF!+#REF!+#REF!+#REF!+#REF!+#REF!+#REF!+#REF!+#REF! ->  | K79: =#REF!+#REF!+#REF!+#REF!+#REF!+#REF!+#REF!+#REF!+#REF! ->  | L79: =#REF!+#REF!+#REF!+#REF!+#REF!+#REF!+#REF!+#REF!+#REF! ->  | M79: =#REF!+#REF!+#REF!+#REF!+#REF!+#REF!+#REF!+#REF!+#REF! ->  | AK79: =C79 -> 0 | AL79: 0 | AM79: 0 | AN79: 0 | AO79: 0 | AP79: 0 | AR79: 0 | AS79: 0 | AU79: =IFERROR(AD79-M79,0) -> 0
C80: Basic Education (Vote 16) | D80: =#REF!+#REF!+#REF!+#REF!+#REF!+#REF!+#REF!+#REF!+#REF! ->  | E80: =#REF!+#REF!+#REF!+#REF!+#REF!+#REF!+#REF!+#REF!+#REF! ->  | F80: =#REF!+#REF!+#REF!+#REF!+#REF!+#REF!+#REF!+#REF!+#REF! ->  | G80: =#REF!+#REF!+#REF!+#REF!+#REF!+#REF!+#REF!+#REF!+#REF! ->  | H80: =#REF!+#REF!+#REF!+#REF!+#REF!+#REF!+#REF!+#REF!+#REF! ->  | I80: =#REF!+#REF!+#REF!+#REF!+#REF!+#REF!+#REF!+#REF!+#REF! ->  | J80: =#REF!+#REF!+#REF!+#REF!+#REF!+#REF!+#REF!+#REF!+#REF! ->  | K80: =#REF!+#REF!+#REF!+#REF!+#REF!+#REF!+#REF!+#REF!+#REF! ->  | L80: =#REF!+#REF!+#REF!+#REF!+#REF!+#REF!+#REF!+#REF!+#REF! ->  | M80: =SUM(M81) -> 11688936.28 | N80: =IFERROR(M80/H80,0) -> 0 | T80: =C80 -> Basic Education (Vote 16) | U80: 10514478 | V80: 0 | W80: 10514478 | X80: 0 | Y80: 10514478 | AA80: 6571550 | AB80: 6571550 | AK80: Basic Education (Vote 16) | AL80: 0 | AM80: 0 | AN80: 0 | AO80: 0 | AP80: 0 | AR80: 0 | AS80: 0 | AU80: -11688936.28
C81: Education Infrastructure Grant | D81: =#REF!+#REF!+#REF!+#REF!+#REF!+#REF!+#REF!+#REF!+#REF! ->  | E81: =#REF!+#REF!+#REF!+#REF!+#REF!+#REF!+#REF!+#REF!+#REF! ->  | F81: =#REF!+#REF!+#REF!+#REF!+#REF!+#REF!+#REF!+#REF!+#REF! ->  | G81: =#REF!+#REF!+#REF!+#REF!+#REF!+#REF!+#REF!+#REF!+#REF! ->  | H81: =#REF!+#REF!+#REF!+#REF!+#REF!+#REF!+#REF!+#REF!+#REF! ->  | I81: =#REF!+#REF!+#REF!+#REF!+#REF!+#REF!+#REF!+#REF!+#REF! ->  | J81: =#REF!+#REF!+#REF!+#REF!+#REF!+#REF!+#REF!+#REF!+#REF! ->  | K81: =#REF!+#REF!+#REF!+#REF!+#REF!+#REF!+#REF!+#REF!+#REF! ->  | L81: =#REF!+#REF!+#REF!+#REF!+#REF!+#REF!+#REF!+#REF!+#REF! ->  | M81: =SUM('[1]C-Grants'!$Q$365) -> 11688936.28 | N81: 0 | T81: =C81 -> Education Infrastructure Grant | U81: 10514478 | V81: 0 | W81: 10514478 | X81: 0 | Y81: 10514478 | AA81: 6571550 | AB81: 6571550 | AK81: =C81 -> Education Infrastructure Grant | AL81: =IFERROR(U81-D81,0) -> 0 | AM81: =IFERROR(V81-E81,0) -> 0 | AN81: =IFERROR(W81-F81,0) -> 0 | AO81: =IFERROR(X81-G81,0) -> 0 | AP81: =IFERROR(Y81-H81,0) -> 0 | AR81: 0 | AS81: 0 | AU81: =IFERROR(AD81-M81,0) -> -11688936.28
D82: =#REF!+#REF!+#REF!+#REF!+#REF!+#REF!+#REF!+#REF!+#REF! ->  | E82: =#REF!+#REF!+#REF!+#REF!+#REF!+#REF!+#REF!+#REF!+#REF! ->  | F82: =#REF!+#REF!+#REF!+#REF!+#REF!+#REF!+#REF!+#REF!+#REF! ->  | G82: =#REF!+#REF!+#REF!+#REF!+#REF!+#REF!+#REF!+#REF!+#REF! ->  | H82: =#REF!+#REF!+#REF!+#REF!+#REF!+#REF!+#REF!+#REF!+#REF! ->  | I82: =#REF!+#REF!+#REF!+#REF!+#REF!+#REF!+#REF!+#REF!+#REF! ->  | J82: =#REF!+#REF!+#REF!+#REF!+#REF!+#REF!+#REF!+#REF!+#REF! ->  | K82: =#REF!+#REF!+#REF!+#REF!+#REF!+#REF!+#REF!+#REF!+#REF! ->  | L82: =#REF!+#REF!+#REF!+#REF!+#REF!+#REF!+#REF!+#REF!+#REF! ->  | M82: =#REF!+#REF!+#REF!+#REF!+#REF!+#REF!+#REF!+#REF!+#REF! ->  | T82: 0 | U82: 0 | V82: 0 | W82: 0 | X82: 0 | Y82: 0 | AA82: 0 | AB82: 0 | AK82: =C82 -> 0 | AL82: =IFERROR(U82-D82,0) -> 0 | AM82: 0 | AN82: 0 | AO82: 0 | AP82: 0 | AR82: 0 | AS82: 0 | AU82: =IFERROR(AD82-M82,0) -> 0
D83: =#REF!+#REF!+#REF!+#REF!+#REF!+#REF!+#REF!+#REF!+#REF! ->  | E83: =#REF!+#REF!+#REF!+#REF!+#REF!+#REF!+#REF!+#REF!+#REF! ->  | F83: =#REF!+#REF!+#REF!+#REF!+#REF!+#REF!+#REF!+#REF!+#REF! ->  | G83: =#REF!+#REF!+#REF!+#REF!+#REF!+#REF!+#REF!+#REF!+#REF! ->  | H83: =#REF!+#REF!+#REF!+#REF!+#REF!+#REF!+#REF!+#REF!+#REF! ->  | I83: =#REF!+#REF!+#REF!+#REF!+#REF!+#REF!+#REF!+#REF!+#REF! ->  | J83: =#REF!+#REF!+#REF!+#REF!+#REF!+#REF!+#REF!+#REF!+#REF! ->  | K83: =#REF!+#REF!+#REF!+#REF!+#REF!+#REF!+#REF!+#REF!+#REF! ->  | L83: =#REF!+#REF!+#REF!+#REF!+#REF!+#REF!+#REF!+#REF!+#REF! ->  | M83: =#REF!+#REF!+#REF!+#REF!+#REF!+#REF!+#REF!+#REF!+#REF! ->  | T83: 0 | U83: 0 | V83: 0 | W83: 0 | X83: 0 | Y83: 0 | AA83: 0 | AB83: 0 | AK83: 0 | AL83: 0 | AM83: 0 | AN83: 0 | AO83: 0 | AP83: 0 | AR83: 0 | AS83: 0 | AU83: 0
D84: =#REF!+#REF!+#REF!+#REF!+#REF!+#REF!+#REF!+#REF!+#REF! ->  | E84: =#REF!+#REF!+#REF!+#REF!+#REF!+#REF!+#REF!+#REF!+#REF! ->  | F84: =#REF!+#REF!+#REF!+#REF!+#REF!+#REF!+#REF!+#REF!+#REF! ->  | G84: =#REF!+#REF!+#REF!+#REF!+#REF!+#REF!+#REF!+#REF!+#REF! ->  | H84: =#REF!+#REF!+#REF!+#REF!+#REF!+#REF!+#REF!+#REF!+#REF! ->  | I84: =#REF!+#REF!+#REF!+#REF!+#REF!+#REF!+#REF!+#REF!+#REF! ->  | J84: =#REF!+#REF!+#REF!+#REF!+#REF!+#REF!+#REF!+#REF!+#REF! ->  | K84: =#REF!+#REF!+#REF!+#REF!+#REF!+#REF!+#REF!+#REF!+#REF! ->  | L84: =#REF!+#REF!+#REF!+#REF!+#REF!+#REF!+#REF!+#REF!+#REF! ->  | M84: =#REF!+#REF!+#REF!+#REF!+#REF!+#REF!+#REF!+#REF!+#REF! ->  | T84: 0 | U84: 0 | V84: 0 | W84: 0 | X84: 0 | Y84: 0 | AA84: 0 | AB84: 0 | AK84: 0 | AL84: 0 | AM84: 0 | AN84: 0 | AO84: 0 | AP84: 0 | AR84: 0 | AS84: 0 | AU84: 0
D85: =#REF!+#REF!+#REF!+#REF!+#REF!+#REF!+#REF!+#REF!+#REF! ->  | E85: =#REF!+#REF!+#REF!+#REF!+#REF!+#REF!+#REF!+#REF!+#REF! ->  | F85: =#REF!+#REF!+#REF!+#REF!+#REF!+#REF!+#REF!+#REF!+#REF! ->  | G85: =#REF!+#REF!+#REF!+#REF!+#REF!+#REF!+#REF!+#REF!+#REF! ->  | H85: =#REF!+#REF!+#REF!+#REF!+#REF!+#REF!+#REF!+#REF!+#REF! ->  | I85: =#REF!+#REF!+#REF!+#REF!+#REF!+#REF!+#REF!+#REF!+#REF! ->  | J85: =#REF!+#REF!+#REF!+#REF!+#REF!+#REF!+#REF!+#REF!+#REF! ->  | K85: =#REF!+#REF!+#REF!+#REF!+#REF!+#REF!+#REF!+#REF!+#REF! ->  | L85: =#REF!+#REF!+#REF!+#REF!+#REF!+#REF!+#REF!+#REF!+#REF! ->  | M85: =#REF!+#REF!+#REF!+#REF!+#REF!+#REF!+#REF!+#REF!+#REF! ->  | T85: 0 | U85: 0 | V85: 0 | W85: 0 | X85: 0 | Y85: 0 | AA85: 0 | AB85: 0 | AK85: 0 | AL85: 0 | AM85: 0 | AN85: 0 | AO85: 0 | AP85: 0 | AR85: 0 | AS85: 0 | AU85: 0
D86: =#REF!+#REF!+#REF!+#REF!+#REF!+#REF!+#REF!+#REF!+#REF! ->  | E86: =#REF!+#REF!+#REF!+#REF!+#REF!+#REF!+#REF!+#REF!+#REF! ->  | F86: =#REF!+#REF!+#REF!+#REF!+#REF!+#REF!+#REF!+#REF!+#REF! ->  | G86: =#REF!+#REF!+#REF!+#REF!+#REF!+#REF!+#REF!+#REF!+#REF! ->  | H86: =#REF!+#REF!+#REF!+#REF!+#REF!+#REF!+#REF!+#REF!+#REF! ->  | I86: =#REF!+#REF!+#REF!+#REF!+#REF!+#REF!+#REF!+#REF!+#REF! ->  | J86: =#REF!+#REF!+#REF!+#REF!+#REF!+#REF!+#REF!+#REF!+#REF! ->  | K86: =#REF!+#REF!+#REF!+#REF!+#REF!+#REF!+#REF!+#REF!+#REF! ->  | L86: =#REF!+#REF!+#REF!+#REF!+#REF!+#REF!+#REF!+#REF!+#REF! ->  | M86: =#REF!+#REF!+#REF!+#REF!+#REF!+#REF!+#REF!+#REF!+#REF! ->  | AK86: 0 | AL86: 0 | AM86: 0 | AN86: 0 | AO86: 0 | AP86: 0 | AR86: 0 | AS86: 0 | AU86: 0
C87: Health (Vote 18) | D87: =#REF!+#REF!+#REF!+#REF!+#REF!+#REF!+#REF!+#REF!+#REF! ->  | E87: =#REF!+#REF!+#REF!+#REF!+#REF!+#REF!+#REF!+#REF!+#REF! ->  | F87: =#REF!+#REF!+#REF!+#REF!+#REF!+#REF!+#REF!+#REF!+#REF! ->  | G87: =#REF!+#REF!+#REF!+#REF!+#REF!+#REF!+#REF!+#REF!+#REF! ->  | H87: =#REF!+#REF!+#REF!+#REF!+#REF!+#REF!+#REF!+#REF!+#REF! ->  | I87: =#REF!+#REF!+#REF!+#REF!+#REF!+#REF!+#REF!+#REF!+#REF! ->  | J87: =#REF!+#REF!+#REF!+#REF!+#REF!+#REF!+#REF!+#REF!+#REF! ->  | K87: =#REF!+#REF!+#REF!+#REF!+#REF!+#REF!+#REF!+#REF!+#REF! ->  | L87: =#REF!+#REF!+#REF!+#REF!+#REF!+#REF!+#REF!+#REF!+#REF! ->  | M87: =SUM(M88:M89) -> 13557895 | N87: =IFERROR(M87/H87,0) -> 0 | T87: =C87 -> Health (Vote 18) | U87: 16125956 | V87: 0 | W87: 16125956 | X87: 0 | Y87: 16125956 | AA87: 8262934 | AB87: 8262934 | AK87: Health (Vote 18) | AL87: 0 | AM87: 0 | AN87: 0 | AO87: 0 | AP87: 0 | AR87: 0 | AS87: 0 | AU87: -13557895
C88: (a) Health Professions Training and Development Grant | D88: =#REF!+#REF!+#REF!+#REF!+#REF!+#REF!+#REF!+#REF!+#REF! ->  | E88: =#REF!+#REF!+#REF!+#REF!+#REF!+#REF!+#REF!+#REF!+#REF! ->  | F88: =#REF!+#REF!+#REF!+#REF!+#REF!+#REF!+#REF!+#REF!+#REF! ->  | G88: =#REF!+#REF!+#REF!+#REF!+#REF!+#REF!+#REF!+#REF!+#REF! ->  | H88: =#REF!+#REF!+#REF!+#REF!+#REF!+#REF!+#REF!+#REF!+#REF! ->  | I88: =#REF!+#REF!+#REF!+#REF!+#REF!+#REF!+#REF!+#REF!+#REF! ->  | J88: =#REF!+#REF!+#REF!+#REF!+#REF!+#REF!+#REF!+#REF!+#REF! ->  | K88: =#REF!+#REF!+#REF!+#REF!+#REF!+#REF!+#REF!+#REF!+#REF! ->  | L88: =#REF!+#REF!+#REF!+#REF!+#REF!+#REF!+#REF!+#REF!+#REF! ->  | M88: =SUM('[1]C-Grants'!$Q$715) -> 743035 | N88: 0 | T88: =C88 -> (a) Health Professions Training and Development Grant | U88: 2940428 | V88: 0 | W88: 2940428 | X88: 0 | Y88: 2940428 | AA88: 1470194 | AB88: 1470194 | AK88: =C88 -> (a) Health Professions Training and Development Grant | AL88: =IFERROR(U88-D88,0) -> 0 | AM88: =IFERROR(V88-E88,0) -> 0 | AN88: =IFERROR(W88-F88,0) -> 0 | AO88: =IFERROR(X88-G88,0) -> 0 | AP88: =IFERROR(Y88-H88,0) -> 0 | AR88: 0 | AS88: 0 | AU88: =IFERROR(AD88-M88,0) -> -743035
C89: (b) National Tertiary Services Grant | D89: =#REF!+#REF!+#REF!+#REF!+#REF!+#REF!+#REF!+#REF!+#REF! ->  | E89: =#REF!+#REF!+#REF!+#REF!+#REF!+#REF!+#REF!+#REF!+#REF! ->  | F89: =#REF!+#REF!+#REF!+#REF!+#REF!+#REF!+#REF!+#REF!+#REF! ->  | G89: =#REF!+#REF!+#REF!+#REF!+#REF!+#REF!+#REF!+#REF!+#REF! ->  | H89: =#REF!+#REF!+#REF!+#REF!+#REF!+#REF!+#REF!+#REF!+#REF! ->  | I89: =#REF!+#REF!+#REF!+#REF!+#REF!+#REF!+#REF!+#REF!+#REF! ->  | J89: =#REF!+#REF!+#REF!+#REF!+#REF!+#REF!+#REF!+#REF!+#REF! ->  | K89: =#REF!+#REF!+#REF!+#REF!+#REF!+#REF!+#REF!+#REF!+#REF! ->  | L89: =#REF!+#REF!+#REF!+#REF!+#REF!+#REF!+#REF!+#REF!+#REF! ->  | M89: =SUM('[1]C-Grants'!$Q$915) -> 12814860 | N89: 0 | T89: (b) National Tertiary Services Grant | U89: 13185528 | V89: 0 | W89: 13185528 | X89: 0 | Y89: 13185528 | AA89: 6792740 | AB89: 6792740 | AK89: =C89 -> (b) National Tertiary Services Grant | AL89: =IFERROR(U89-D89,0) -> 0 | AM89: 0 | AN89: 0 | AO89: 0 | AP89: 0 | AR89: 0 | AS89: 0 | AU89: =IFERROR(AD89-M89,0) -> -12814860
D90: =#REF!+#REF!+#REF!+#REF!+#REF!+#REF!+#REF!+#REF!+#REF! ->  | E90: =#REF!+#REF!+#REF!+#REF!+#REF!+#REF!+#REF!+#REF!+#REF! ->  | F90: =#REF!+#REF!+#REF!+#REF!+#REF!+#REF!+#REF!+#REF!+#REF! ->  | G90: =#REF!+#REF!+#REF!+#REF!+#REF!+#REF!+#REF!+#REF!+#REF! ->  | H90: =#REF!+#REF!+#REF!+#REF!+#REF!+#REF!+#REF!+#REF!+#REF! ->  | I90: =#REF!+#REF!+#REF!+#REF!+#REF!+#REF!+#REF!+#REF!+#REF! ->  | J90: =#REF!+#REF!+#REF!+#REF!+#REF!+#REF!+#REF!+#REF!+#REF! ->  | K90: =#REF!+#REF!+#REF!+#REF!+#REF!+#REF!+#REF!+#REF!+#REF! ->  | L90: =#REF!+#REF!+#REF!+#REF!+#REF!+#REF!+#REF!+#REF!+#REF! ->  | M90: =#REF!+#REF!+#REF!+#REF!+#REF!+#REF!+#REF!+#REF!+#REF! ->  | T90: 0 | U90: 0 | V90: 0 | W90: 0 | X90: 0 | Y90: 0 | AA90: 0 | AB90: 0 | AK90: 0 | AL90: 0 | AM90: 0 | AN90: 0 | AO90: 0 | AP90: 0 | AR90: 0 | AS90: 0 | AU90: 0
D91: =#REF!+#REF!+#REF!+#REF!+#REF!+#REF!+#REF!+#REF!+#REF! ->  | E91: =#REF!+#REF!+#REF!+#REF!+#REF!+#REF!+#REF!+#REF!+#REF! ->  | F91: =#REF!+#REF!+#REF!+#REF!+#REF!+#REF!+#REF!+#REF!+#REF! ->  | G91: =#REF!+#REF!+#REF!+#REF!+#REF!+#REF!+#REF!+#REF!+#REF! ->  | H91: =#REF!+#REF!+#REF!+#REF!+#REF!+#REF!+#REF!+#REF!+#REF! ->  | I91: =#REF!+#REF!+#REF!+#REF!+#REF!+#REF!+#REF!+#REF!+#REF! ->  | J91: =#REF!+#REF!+#REF!+#REF!+#REF!+#REF!+#REF!+#REF!+#REF! ->  | K91: =#REF!+#REF!+#REF!+#REF!+#REF!+#REF!+#REF!+#REF!+#REF! ->  | L91: =#REF!+#REF!+#REF!+#REF!+#REF!+#REF!+#REF!+#REF!+#REF! ->  | M91: =#REF!+#REF!+#REF!+#REF!+#REF!+#REF!+#REF!+#REF!+#REF! ->  | T91: 0 | U91: 0 | V91: 0 | W91: 0 | X91: 0 | Y91: 0 | AA91: 0 | AB91: 0 | AK91: 0 | AL91: 0 | AM91: 0 | AN91: 0 | AO91: 0 | AP91: 0 | AR91: 0 | AS91: 0 | AU91: 0
D92: =#REF!+#REF!+#REF!+#REF!+#REF!+#REF!+#REF!+#REF!+#REF! ->  | E92: =#REF!+#REF!+#REF!+#REF!+#REF!+#REF!+#REF!+#REF!+#REF! ->  | F92: =#REF!+#REF!+#REF!+#REF!+#REF!+#REF!+#REF!+#REF!+#REF! ->  | G92: =#REF!+#REF!+#REF!+#REF!+#REF!+#REF!+#REF!+#REF!+#REF! ->  | H92: =#REF!+#REF!+#REF!+#REF!+#REF!+#REF!+#REF!+#REF!+#REF! ->  | I92: =#REF!+#REF!+#REF!+#REF!+#REF!+#REF!+#REF!+#REF!+#REF! ->  | J92: =#REF!+#REF!+#REF!+#REF!+#REF!+#REF!+#REF!+#REF!+#REF! ->  | K92: =#REF!+#REF!+#REF!+#REF!+#REF!+#REF!+#REF!+#REF!+#REF! ->  | L92: =#REF!+#REF!+#REF!+#REF!+#REF!+#REF!+#REF!+#REF!+#REF! ->  | M92: =#REF!+#REF!+#REF!+#REF!+#REF!+#REF!+#REF!+#REF!+#REF! ->  | T92: 0 | U92: 0 | V92: 0 | W92: 0 | X92: 0 | Y92: 0 | AA92: 0 | AB92: 0 | AK92: 0 | AL92: 0 | AM92: 0 | AN92: 0 | AO92: 0 | AP92: 0 | AR92: 0 | AS92: 0 | AU92: 0
D93: =#REF!+#REF!+#REF!+#REF!+#REF!+#REF!+#REF!+#REF!+#REF! ->  | E93: =#REF!+#REF!+#REF!+#REF!+#REF!+#REF!+#REF!+#REF!+#REF! ->  | F93: =#REF!+#REF!+#REF!+#REF!+#REF!+#REF!+#REF!+#REF!+#REF! ->  | G93: =#REF!+#REF!+#REF!+#REF!+#REF!+#REF!+#REF!+#REF!+#REF! ->  | H93: =#REF!+#REF!+#REF!+#REF!+#REF!+#REF!+#REF!+#REF!+#REF! ->  | I93: =#REF!+#REF!+#REF!+#REF!+#REF!+#REF!+#REF!+#REF!+#REF! ->  | J93: =#REF!+#REF!+#REF!+#REF!+#REF!+#REF!+#REF!+#REF!+#REF! ->  | K93: =#REF!+#REF!+#REF!+#REF!+#REF!+#REF!+#REF!+#REF!+#REF! ->  | L93: =#REF!+#REF!+#REF!+#REF!+#REF!+#REF!+#REF!+#REF!+#REF! ->  | M93: =#REF!+#REF!+#REF!+#REF!+#REF!+#REF!+#REF!+#REF!+#REF! ->  | AK93: 0 | AL93: =IFERROR(U93-D93,0) -> 0 | AM93: 0 | AN93: 0 | AO93: 0 | AP93: 0 | AR93: 0 | AS93: 0 | AU93: 0
D94: =#REF!+#REF!+#REF!+#REF!+#REF!+#REF!+#REF!+#REF!+#REF! ->  | E94: =#REF!+#REF!+#REF!+#REF!+#REF!+#REF!+#REF!+#REF!+#REF! ->  | F94: =#REF!+#REF!+#REF!+#REF!+#REF!+#REF!+#REF!+#REF!+#REF! ->  | G94: =#REF!+#REF!+#REF!+#REF!+#REF!+#REF!+#REF!+#REF!+#REF! ->  | H94: =#REF!+#REF!+#REF!+#REF!+#REF!+#REF!+#REF!+#REF!+#REF! ->  | I94: =#REF!+#REF!+#REF!+#REF!+#REF!+#REF!+#REF!+#REF!+#REF! ->  | J94: =#REF!+#REF!+#REF!+#REF!+#REF!+#REF!+#REF!+#REF!+#REF! ->  | K94: =#REF!+#REF!+#REF!+#REF!+#REF!+#REF!+#REF!+#REF!+#REF! ->  | L94: =#REF!+#REF!+#REF!+#REF!+#REF!+#REF!+#REF!+#REF!+#REF! ->  | M94: =#REF!+#REF!+#REF!+#REF!+#REF!+#REF!+#REF!+#REF!+#REF! ->  | T94: =C94 -> 0 | V94: 0 | AK94: 0 | AL94: 0 | AM94: 0 | AN94: 0 | AO94: 0 | AP94: 0 | AR94: 0 | AS94: 0 | AU94: 0
D95: =#REF!+#REF!+#REF!+#REF!+#REF!+#REF!+#REF!+#REF!+#REF! ->  | E95: =#REF!+#REF!+#REF!+#REF!+#REF!+#REF!+#REF!+#REF!+#REF! ->  | F95: =#REF!+#REF!+#REF!+#REF!+#REF!+#REF!+#REF!+#REF!+#REF! ->  | G95: =#REF!+#REF!+#REF!+#REF!+#REF!+#REF!+#REF!+#REF!+#REF! ->  | H95: =#REF!+#REF!+#REF!+#REF!+#REF!+#REF!+#REF!+#REF!+#REF! ->  | I95: =#REF!+#REF!+#REF!+#REF!+#REF!+#REF!+#REF!+#REF!+#REF! ->  | J95: =#REF!+#REF!+#REF!+#REF!+#REF!+#REF!+#REF!+#REF!+#REF! ->  | K95: =#REF!+#REF!+#REF!+#REF!+#REF!+#REF!+#REF!+#REF!+#REF! ->  | L95: =#REF!+#REF!+#REF!+#REF!+#REF!+#REF!+#REF!+#REF!+#REF! ->  | M95: =#REF!+#REF!+#REF!+#REF!+#REF!+#REF!+#REF!+#REF!+#REF! ->  | T95: =C95 -> 0 | U95: 0 | V95: 0 | W95: 0 | X95: 0 | Y95: 0 | AA95: 0 | AB95: 0 | AK95: =C95 -> 0 | AL95: =IFERROR(U95-D95,0) -> 0 | AM95: 0 | AN95: 0 | AO95: 0 | AP95: 0 | AR95: 0 | AS95: 0 | AU95: =IFERROR(AD95-M95,0) -> 0
D96: =#REF!+#REF!+#REF!+#REF!+#REF!+#REF!+#REF!+#REF!+#REF! ->  | E96: =#REF!+#REF!+#REF!+#REF!+#REF!+#REF!+#REF!+#REF!+#REF! ->  | F96: =#REF!+#REF!+#REF!+#REF!+#REF!+#REF!+#REF!+#REF!+#REF! ->  | G96: =#REF!+#REF!+#REF!+#REF!+#REF!+#REF!+#REF!+#REF!+#REF! ->  | H96: =#REF!+#REF!+#REF!+#REF!+#REF!+#REF!+#REF!+#REF!+#REF! ->  | I96: =#REF!+#REF!+#REF!+#REF!+#REF!+#REF!+#REF!+#REF!+#REF! ->  | J96: =#REF!+#REF!+#REF!+#REF!+#REF!+#REF!+#REF!+#REF!+#REF! ->  | K96: =#REF!+#REF!+#REF!+#REF!+#REF!+#REF!+#REF!+#REF!+#REF! ->  | L96: =#REF!+#REF!+#REF!+#REF!+#REF!+#REF!+#REF!+#REF!+#REF! ->  | M96: =#REF!+#REF!+#REF!+#REF!+#REF!+#REF!+#REF!+#REF!+#REF! ->  | T96: 0 | U96: 0 | V96: 0 | W96: 0 | X96: 0 | Y96: 0 | AA96: 0 | AB96: 0 | AK96: =C96 -> 0 | AL96: =IFERROR(U96-D96,0) -> 0 | AM96: 0 | AN96: 0 | AO96: 0 | AP96: 0 | AR96: 0 | AS96: 0 | AU96: =IFERROR(AD96-M96,0) -> 0
D97: =#REF!+#REF!+#REF!+#REF!+#REF!+#REF!+#REF!+#REF!+#REF! ->  | E97: =#REF!+#REF!+#REF!+#REF!+#REF!+#REF!+#REF!+#REF!+#REF! ->  | F97: =#REF!+#REF!+#REF!+#REF!+#REF!+#REF!+#REF!+#REF!+#REF! ->  | G97: =#REF!+#REF!+#REF!+#REF!+#REF!+#REF!+#REF!+#REF!+#REF! ->  | H97: =#REF!+#REF!+#REF!+#REF!+#REF!+#REF!+#REF!+#REF!+#REF! ->  | I97: =#REF!+#REF!+#REF!+#REF!+#REF!+#REF!+#REF!+#REF!+#REF! ->  | J97: =#REF!+#REF!+#REF!+#REF!+#REF!+#REF!+#REF!+#REF!+#REF! ->  | K97: =#REF!+#REF!+#REF!+#REF!+#REF!+#REF!+#REF!+#REF!+#REF! ->  | L97: =#REF!+#REF!+#REF!+#REF!+#REF!+#REF!+#REF!+#REF!+#REF! ->  | M97: =#REF!+#REF!+#REF!+#REF!+#REF!+#REF!+#REF!+#REF!+#REF! ->  | T97: 0 | U97: 0 | V97: 0 | W97: 0 | X97: 0 | Y97: 0 | AA97: 0 | AB97: 0 | AK97: 0 | AL97: 0 | AM97: 0 | AN97: 0 | AO97: 0 | AP97: 0 | AR97: 0 | AS97: 0 | AU97: 0
D98: =#REF!+#REF!+#REF!+#REF!+#REF!+#REF!+#REF!+#REF!+#REF! ->  | E98: =#REF!+#REF!+#REF!+#REF!+#REF!+#REF!+#REF!+#REF!+#REF! ->  | F98: =#REF!+#REF!+#REF!+#REF!+#REF!+#REF!+#REF!+#REF!+#REF! ->  | G98: =#REF!+#REF!+#REF!+#REF!+#REF!+#REF!+#REF!+#REF!+#REF! ->  | H98: =#REF!+#REF!+#REF!+#REF!+#REF!+#REF!+#REF!+#REF!+#REF! ->  | I98: =#REF!+#REF!+#REF!+#REF!+#REF!+#REF!+#REF!+#REF!+#REF! ->  | J98: =#REF!+#REF!+#REF!+#REF!+#REF!+#REF!+#REF!+#REF!+#REF! ->  | K98: =#REF!+#REF!+#REF!+#REF!+#REF!+#REF!+#REF!+#REF!+#REF! ->  | L98: =#REF!+#REF!+#REF!+#REF!+#REF!+#REF!+#REF!+#REF!+#REF! ->  | M98: =#REF!+#REF!+#REF!+#REF!+#REF!+#REF!+#REF!+#REF!+#REF! ->  | T98: 0 | U98: 0 | V98: 0 | W98: 0 | X98: 0 | Y98: 0 | AA98: 0 | AB98: 0 | AK98: 0 | AL98: 0 | AM98: 0 | AN98: 0 | AO98: 0 | AP98: 0 | AR98: =IFERROR(AA98-J98,0) -> 0 | AS98: =IFERROR(AB98-K98,0) -> 0 | AU98: 0
D99: =#REF!+#REF!+#REF!+#REF!+#REF!+#REF!+#REF!+#REF!+#REF! ->  | E99: =#REF!+#REF!+#REF!+#REF!+#REF!+#REF!+#REF!+#REF!+#REF! ->  | F99: =#REF!+#REF!+#REF!+#REF!+#REF!+#REF!+#REF!+#REF!+#REF! ->  | G99: =#REF!+#REF!+#REF!+#REF!+#REF!+#REF!+#REF!+#REF!+#REF! ->  | H99: =#REF!+#REF!+#REF!+#REF!+#REF!+#REF!+#REF!+#REF!+#REF! ->  | I99: =#REF!+#REF!+#REF!+#REF!+#REF!+#REF!+#REF!+#REF!+#REF! ->  | J99: =#REF!+#REF!+#REF!+#REF!+#REF!+#REF!+#REF!+#REF!+#REF! ->  | K99: =#REF!+#REF!+#REF!+#REF!+#REF!+#REF!+#REF!+#REF!+#REF! ->  | L99: =#REF!+#REF!+#REF!+#REF!+#REF!+#REF!+#REF!+#REF!+#REF! ->  | M99: =#REF!+#REF!+#REF!+#REF!+#REF!+#REF!+#REF!+#REF!+#REF! ->  | T99: 0 | U99: 0 | V99: 0 | W99: 0 | X99: 0 | Y99: 0 | AA99: 0 | AB99: 0 | AK99: 0 | AL99: 0 | AM99: 0 | AN99: 0 | AO99: 0 | AP99: 0 | AR99: 0 | AS99: 0 | AU99: 0
D100: =#REF!+#REF!+#REF!+#REF!+#REF!+#REF!+#REF!+#REF!+#REF! ->  | E100: =#REF!+#REF!+#REF!+#REF!+#REF!+#REF!+#REF!+#REF!+#REF! ->  | F100: =#REF!+#REF!+#REF!+#REF!+#REF!+#REF!+#REF!+#REF!+#REF! ->  | G100: =#REF!+#REF!+#REF!+#REF!+#REF!+#REF!+#REF!+#REF!+#REF! ->  | H100: =#REF!+#REF!+#REF!+#REF!+#REF!+#REF!+#REF!+#REF!+#REF! ->  | I100: =#REF!+#REF!+#REF!+#REF!+#REF!+#REF!+#REF!+#REF!+#REF! ->  | J100: =#REF!+#REF!+#REF!+#REF!+#REF!+#REF!+#REF!+#REF!+#REF! ->  | K100: =#REF!+#REF!+#REF!+#REF!+#REF!+#REF!+#REF!+#REF!+#REF! ->  | L100: =#REF!+#REF!+#REF!+#REF!+#REF!+#REF!+#REF!+#REF!+#REF! ->  | M100: =#REF!+#REF!+#REF!+#REF!+#REF!+#REF!+#REF!+#REF!+#REF! ->  | AK100: 0 | AL100: 0 | AM100: 0 | AN100: 0 | AO100: 0 | AP100: 0 | AR100: =IFERROR(AA100-J100,0) -> 0 | AS100: 0 | AU100: 0
C101: Transport (Vote 40) | D101: =#REF!+#REF!+#REF!+#REF!+#REF!+#REF!+#REF!+#REF!+#REF! ->  | E101: =#REF!+#REF!+#REF!+#REF!+#REF!+#REF!+#REF!+#REF!+#REF! ->  | F101: =#REF!+#REF!+#REF!+#REF!+#REF!+#REF!+#REF!+#REF!+#REF! ->  | G101: =#REF!+#REF!+#REF!+#REF!+#REF!+#REF!+#REF!+#REF!+#REF! ->  | H101: =#REF!+#REF!+#REF!+#REF!+#REF!+#REF!+#REF!+#REF!+#REF! ->  | I101: =#REF!+#REF!+#REF!+#REF!+#REF!+#REF!+#REF!+#REF!+#REF! ->  | J101: =#REF!+#REF!+#REF!+#REF!+#REF!+#REF!+#REF!+#REF!+#REF! ->  | K101: =#REF!+#REF!+#REF!+#REF!+#REF!+#REF!+#REF!+#REF!+#REF! ->  | L101: =#REF!+#REF!+#REF!+#REF!+#REF!+#REF!+#REF!+#REF!+#REF! ->  | M101: =SUM(M102:M103) -> 14885692 | T101: =C101 -> Transport (Vote 40) | U101: 17707420 | V101: 0 | W101: 17707420 | X101: 0 | Y101: 17707420 | AA101: 9167804 | AB101: 8942514 | AK101: Transport (Vote 40) | AL101: 0 | AM101: 0 | AN101: 0 | AO101: 0 | AP101: 0 | AR101: 0 | AS101: 0 | AU101: -14885692
C102: (a) Provincial Roads Maintenance Grant | D102: =#REF!+#REF!+#REF!+#REF!+#REF!+#REF!+#REF!+#REF!+#REF! ->  | E102: =#REF!+#REF!+#REF!+#REF!+#REF!+#REF!+#REF!+#REF!+#REF! ->  | F102: =#REF!+#REF!+#REF!+#REF!+#REF!+#REF!+#REF!+#REF!+#REF! ->  | G102: =#REF!+#REF!+#REF!+#REF!+#REF!+#REF!+#REF!+#REF!+#REF! ->  | H102: =#REF!+#REF!+#REF!+#REF!+#REF!+#REF!+#REF!+#REF!+#REF! ->  | I102: =#REF!+#REF!+#REF!+#REF!+#REF!+#REF!+#REF!+#REF!+#REF! ->  | J102: =#REF!+#REF!+#REF!+#REF!+#REF!+#REF!+#REF!+#REF!+#REF! ->  | K102: =#REF!+#REF!+#REF!+#REF!+#REF!+#REF!+#REF!+#REF!+#REF! ->  | L102: =#REF!+#REF!+#REF!+#REF!+#REF!+#REF!+#REF!+#REF!+#REF! ->  | M102: =SUM('[1]C-Grants'!$Q$1365) -> 7932758 | T102: =C102 -> (a) Provincial Roads Maintenance Grant | U102: 11381665 | V102: 0 | W102: 11381665 | X102: 0 | Y102: 11381665 | AA102: 6803168 | AB102: 6367422 | AK102: =C102 -> (a) Provincial Roads Maintenance Grant | AL102: =IFERROR(U102-D102,0) -> 0 | AM102: 0 | AN102: 0 | AO102: 0 | AP102: 0 | AR102: 0 | AS102: 0 | AU102: =IFERROR(AD102-M102,0) -> -7932758
C103: (b) Public Transport Operations Grant | D103: =#REF!+#REF!+#REF!+#REF!+#REF!+#REF!+#REF!+#REF!+#REF! ->  | E103: =#REF!+#REF!+#REF!+#REF!+#REF!+#REF!+#REF!+#REF!+#REF! ->  | F103: =#REF!+#REF!+#REF!+#REF!+#REF!+#REF!+#REF!+#REF!+#REF! ->  | G103: =#REF!+#REF!+#REF!+#REF!+#REF!+#REF!+#REF!+#REF!+#REF! ->  | H103: =#REF!+#REF!+#REF!+#REF!+#REF!+#REF!+#REF!+#REF!+#REF! ->  | I103: =#REF!+#REF!+#REF!+#REF!+#REF!+#REF!+#REF!+#REF!+#REF! ->  | J103: =#REF!+#REF!+#REF!+#REF!+#REF!+#REF!+#REF!+#REF!+#REF! ->  | K103: =#REF!+#REF!+#REF!+#REF!+#REF!+#REF!+#REF!+#REF!+#REF! ->  | L103: =#REF!+#REF!+#REF!+#REF!+#REF!+#REF!+#REF!+#REF!+#REF! ->  | M103: =SUM('[1]C-Grants'!$Q$1415) -> 6952934 | T103: (b) Public Transport Operations Grant | U103: 6325755 | V103: 0 | W103: 6325755 | X103: 0 | Y103: 6325755 | AA103: 2364636 | AB103: 2575092 | AK103: =C103 -> (b) Public Transport Operations Grant | AL103: =IFERROR(U103-D103,0) -> 0 | AM103: 0 | AN103: 0 | AO103: 0 | AP103: 0 | AR103: 0 | AS103: 0 | AU103: =IFERROR(AD103-M103,0) -> -6952934
D104: =#REF!+#REF!+#REF!+#REF!+#REF!+#REF!+#REF!+#REF!+#REF! ->  | E104: =#REF!+#REF!+#REF!+#REF!+#REF!+#REF!+#REF!+#REF!+#REF! ->  | F104: =#REF!+#REF!+#REF!+#REF!+#REF!+#REF!+#REF!+#REF!+#REF! ->  | G104: =#REF!+#REF!+#REF!+#REF!+#REF!+#REF!+#REF!+#REF!+#REF! ->  | H104: =#REF!+#REF!+#REF!+#REF!+#REF!+#REF!+#REF!+#REF!+#REF! ->  | I104: =#REF!+#REF!+#REF!+#REF!+#REF!+#REF!+#REF!+#REF!+#REF! ->  | J104: =#REF!+#REF!+#REF!+#REF!+#REF!+#REF!+#REF!+#REF!+#REF! ->  | K104: =#REF!+#REF!+#REF!+#REF!+#REF!+#REF!+#REF!+#REF!+#REF! ->  | L104: =#REF!+#REF!+#REF!+#REF!+#REF!+#REF!+#REF!+#REF!+#REF! ->  | M104: =#REF!+#REF!+#REF!+#REF!+#REF!+#REF!+#REF!+#REF!+#REF! ->  | T104: 0 | U104: 0 | V104: 0 | W104: 0 | X104: 0 | Y104: 0 | AA104: 0 | AB104: 0 | AK104: 0 | AL104: 0 | AM104: 0 | AN104: 0 | AO104: 0 | AP104: 0 | AR104: 0 | AS104: 0 | AU104: 0
D105: =#REF!+#REF!+#REF!+#REF!+#REF!+#REF!+#REF!+#REF!+#REF! ->  | E105: =#REF!+#REF!+#REF!+#REF!+#REF!+#REF!+#REF!+#REF!+#REF! ->  | F105: =#REF!+#REF!+#REF!+#REF!+#REF!+#REF!+#REF!+#REF!+#REF! ->  | G105: =#REF!+#REF!+#REF!+#REF!+#REF!+#REF!+#REF!+#REF!+#REF! ->  | H105: =#REF!+#REF!+#REF!+#REF!+#REF!+#REF!+#REF!+#REF!+#REF! ->  | I105: =#REF!+#REF!+#REF!+#REF!+#REF!+#REF!+#REF!+#REF!+#REF! ->  | J105: =#REF!+#REF!+#REF!+#REF!+#REF!+#REF!+#REF!+#REF!+#REF! ->  | K105: =#REF!+#REF!+#REF!+#REF!+#REF!+#REF!+#REF!+#REF!+#REF! ->  | L105: =#REF!+#REF!+#REF!+#REF!+#REF!+#REF!+#REF!+#REF!+#REF! ->  | M105: =#REF!+#REF!+#REF!+#REF!+#REF!+#REF!+#REF!+#REF!+#REF! ->  | T105: 0 | U105: 0 | V105: 0 | W105: 0 | X105: 0 | Y105: 0 | AA105: 0 | AB105: 0 | AK105: 0 | AL105: 0 | AM105: 0 | AN105: 0 | AO105: 0 | AP105: 0 | AR105: 0 | AS105: 0 | AU105: 0
D106: =#REF!+#REF!+#REF!+#REF!+#REF!+#REF!+#REF!+#REF!+#REF! ->  | E106: =#REF!+#REF!+#REF!+#REF!+#REF!+#REF!+#REF!+#REF!+#REF! ->  | F106: =#REF!+#REF!+#REF!+#REF!+#REF!+#REF!+#REF!+#REF!+#REF! ->  | G106: =#REF!+#REF!+#REF!+#REF!+#REF!+#REF!+#REF!+#REF!+#REF! ->  | H106: =#REF!+#REF!+#REF!+#REF!+#REF!+#REF!+#REF!+#REF!+#REF! ->  | I106: =#REF!+#REF!+#REF!+#REF!+#REF!+#REF!+#REF!+#REF!+#REF! ->  | J106: =#REF!+#REF!+#REF!+#REF!+#REF!+#REF!+#REF!+#REF!+#REF! ->  | K106: =#REF!+#REF!+#REF!+#REF!+#REF!+#REF!+#REF!+#REF!+#REF! ->  | L106: =#REF!+#REF!+#REF!+#REF!+#REF!+#REF!+#REF!+#REF!+#REF! ->  | M106: =#REF!+#REF!+#REF!+#REF!+#REF!+#REF!+#REF!+#REF!+#REF! ->  | T106: 0 | U106: 0 | V106: 0 | W106: 0 | X106: 0 | Y106: 0 | AA106: 0 | AB106: 0 | AK106: 0 | AL106: 0 | AM106: 0 | AN106: 0 | AO106: 0 | AP106: 0 | AR106: 0 | AS106: 0 | AU106: 0
D107: =#REF!+#REF!+#REF!+#REF!+#REF!+#REF!+#REF!+#REF!+#REF! ->  | E107: =#REF!+#REF!+#REF!+#REF!+#REF!+#REF!+#REF!+#REF!+#REF! ->  | F107: =#REF!+#REF!+#REF!+#REF!+#REF!+#REF!+#REF!+#REF!+#REF! ->  | G107: =#REF!+#REF!+#REF!+#REF!+#REF!+#REF!+#REF!+#REF!+#REF! ->  | H107: =#REF!+#REF!+#REF!+#REF!+#REF!+#REF!+#REF!+#REF!+#REF! ->  | I107: =#REF!+#REF!+#REF!+#REF!+#REF!+#REF!+#REF!+#REF!+#REF! ->  | J107: =#REF!+#REF!+#REF!+#REF!+#REF!+#REF!+#REF!+#REF!+#REF! ->  | K107: =#REF!+#REF!+#REF!+#REF!+#REF!+#REF!+#REF!+#REF!+#REF! ->  | L107: =#REF!+#REF!+#REF!+#REF!+#REF!+#REF!+#REF!+#REF!+#REF! ->  | M107: =#REF!+#REF!+#REF!+#REF!+#REF!+#REF!+#REF!+#REF!+#REF! ->  | AK107: 0 | AL107: 0 | AM107: 0 | AN107: 0 | AO107: 0 | AP107: 0 | AR107: 0 | AS107: 0 | AU107: 0
C108: Sub-Total | D108: =#REF!+#REF!+#REF!+#REF!+#REF!+#REF!+#REF!+#REF!+#REF! ->  | E108: =#REF!+#REF!+#REF!+#REF!+#REF!+#REF!+#REF!+#REF!+#REF! ->  | F108: =#REF!+#REF!+#REF!+#REF!+#REF!+#REF!+#REF!+#REF!+#REF! ->  | G108: =#REF!+#REF!+#REF!+#REF!+#REF!+#REF!+#REF!+#REF!+#REF! ->  | H108: =#REF!+#REF!+#REF!+#REF!+#REF!+#REF!+#REF!+#REF!+#REF! ->  | I108: =#REF!+#REF!+#REF!+#REF!+#REF!+#REF!+#REF!+#REF!+#REF! ->  | J108: =#REF!+#REF!+#REF!+#REF!+#REF!+#REF!+#REF!+#REF!+#REF! ->  | K108: =#REF!+#REF!+#REF!+#REF!+#REF!+#REF!+#REF!+#REF!+#REF! ->  | L108: =#REF!+#REF!+#REF!+#REF!+#REF!+#REF!+#REF!+#REF!+#REF! ->  | M108: =SUM(M80+M87+M101) -> 40132523.28 | N108: =IFERROR(M108/H108,0) -> 0 | T108: Sub-Total | U108: 44347854 | V108: 0 | W108: 44347854 | X108: 0 | Y108: 44347854 | AA108: 24002288 | AB108: 23776998 | AK108: Sub-Total | AL108: 0 | AM108: 0 | AN108: 0 | AO108: 0 | AP108: 0 | AR108: 0 | AS108: 0 | AU108: -40132523.28
D109: =#REF!+#REF!+#REF!+#REF!+#REF!+#REF!+#REF!+#REF!+#REF! ->  | E109: =#REF!+#REF!+#REF!+#REF!+#REF!+#REF!+#REF!+#REF!+#REF! ->  | F109: =#REF!+#REF!+#REF!+#REF!+#REF!+#REF!+#REF!+#REF!+#REF! ->  | G109: =#REF!+#REF!+#REF!+#REF!+#REF!+#REF!+#REF!+#REF!+#REF! ->  | H109: =#REF!+#REF!+#REF!+#REF!+#REF!+#REF!+#REF!+#REF!+#REF! ->  | I109: =#REF!+#REF!+#REF!+#REF!+#REF!+#REF!+#REF!+#REF!+#REF! ->  | J109: =#REF!+#REF!+#REF!+#REF!+#REF!+#REF!+#REF!+#REF!+#REF! ->  | K109: =#REF!+#REF!+#REF!+#REF!+#REF!+#REF!+#REF!+#REF!+#REF! ->  | L109: =#REF!+#REF!+#REF!+#REF!+#REF!+#REF!+#REF!+#REF!+#REF! ->  | M109: =#REF!+#REF!+#REF!+#REF!+#REF!+#REF!+#REF!+#REF!+#REF! ->  | AL109: 0 | AM109: 0 | AN109: 0 | AO109: 0 | AP109: 0 | AR109: 0 | AS109: 0 | AU109: 0
C110: Schedule 7, Part A Grants3. | D110: =#REF!+#REF!+#REF!+#REF!+#REF!+#REF!+#REF!+#REF!+#REF! ->  | E110: =#REF!+#REF!+#REF!+#REF!+#REF!+#REF!+#REF!+#REF!+#REF! ->  | F110: =#REF!+#REF!+#REF!+#REF!+#REF!+#REF!+#REF!+#REF!+#REF! ->  | G110: =#REF!+#REF!+#REF!+#REF!+#REF!+#REF!+#REF!+#REF!+#REF! ->  | H110: =#REF!+#REF!+#REF!+#REF!+#REF!+#REF!+#REF!+#REF!+#REF! ->  | I110: =#REF!+#REF!+#REF!+#REF!+#REF!+#REF!+#REF!+#REF!+#REF! ->  | J110: =#REF!+#REF!+#REF!+#REF!+#REF!+#REF!+#REF!+#REF!+#REF! ->  | K110: =#REF!+#REF!+#REF!+#REF!+#REF!+#REF!+#REF!+#REF!+#REF! ->  | L110: =#REF!+#REF!+#REF!+#REF!+#REF!+#REF!+#REF!+#REF!+#REF! ->  | M110: =#REF!+#REF!+#REF!+#REF!+#REF!+#REF!+#REF!+#REF!+#REF! ->  | T110: Schedule 7, Part A Grants3. | AK110: Schedule 7, Part A Grants3. | AL110: 0 | AM110: 0 | AN110: 0 | AO110: 0 | AP110: 0 | AR110: 0 | AS110: 0 | AU110: 0
D111: =#REF!+#REF!+#REF!+#REF!+#REF!+#REF!+#REF!+#REF!+#REF! ->  | E111: =#REF!+#REF!+#REF!+#REF!+#REF!+#REF!+#REF!+#REF!+#REF! ->  | F111: =#REF!+#REF!+#REF!+#REF!+#REF!+#REF!+#REF!+#REF!+#REF! ->  | G111: =#REF!+#REF!+#REF!+#REF!+#REF!+#REF!+#REF!+#REF!+#REF! ->  | H111: =#REF!+#REF!+#REF!+#REF!+#REF!+#REF!+#REF!+#REF!+#REF! ->  | I111: =#REF!+#REF!+#REF!+#REF!+#REF!+#REF!+#REF!+#REF!+#REF! ->  | J111: =#REF!+#REF!+#REF!+#REF!+#REF!+#REF!+#REF!+#REF!+#REF! ->  | K111: =#REF!+#REF!+#REF!+#REF!+#REF!+#REF!+#REF!+#REF!+#REF! ->  | L111: =#REF!+#REF!+#REF!+#REF!+#REF!+#REF!+#REF!+#REF!+#REF! ->  | M111: =#REF!+#REF!+#REF!+#REF!+#REF!+#REF!+#REF!+#REF!+#REF! ->  | AK111: 0 | AL111: 0 | AM111: 0 | AN111: 0 | AO111: 0 | AP111: 0 | AR111: 0 | AS111: 0 | AU111: 0
C112: Cooperative Governance (Vote 3) | D112: =#REF!+#REF!+#REF!+#REF!+#REF!+#REF!+#REF!+#REF!+#REF! ->  | E112: =#REF!+#REF!+#REF!+#REF!+#REF!+#REF!+#REF!+#REF!+#REF! ->  | F112: =#REF!+#REF!+#REF!+#REF!+#REF!+#REF!+#REF!+#REF!+#REF! ->  | G112: =#REF!+#REF!+#REF!+#REF!+#REF!+#REF!+#REF!+#REF!+#REF! ->  | H112: =#REF!+#REF!+#REF!+#REF!+#REF!+#REF!+#REF!+#REF!+#REF! ->  | I112: =#REF!+#REF!+#REF!+#REF!+#REF!+#REF!+#REF!+#REF!+#REF! ->  | J112: =#REF!+#REF!+#REF!+#REF!+#REF!+#REF!+#REF!+#REF!+#REF! ->  | K112: =#REF!+#REF!+#REF!+#REF!+#REF!+#REF!+#REF!+#REF!+#REF! ->  | L112: =#REF!+#REF!+#REF!+#REF!+#REF!+#REF!+#REF!+#REF!+#REF! ->  | M112: =SUM(M113) ->  | N112: =IFERROR(M112/H112,0) -> 0 | T112: =C112 -> Cooperative Governance (Vote 3) | U112: 0 | V112: 0 | W112: 0 | X112: 0 | Y112: 0 | AB112: 0 | AK112: Cooperative Governance (Vote 3) | AL112: 0 | AM112: 0 | AN112: 0 | AO112: 0 | AP112: 0 | AR112: 0 | AS112: 0 | AU112: 0
C113: Provincial Disaster Relief Grant | D113: =#REF!+#REF!+#REF!+#REF!+#REF!+#REF!+#REF!+#REF!+#REF! ->  | E113: =#REF!+#REF!+#REF!+#REF!+#REF!+#REF!+#REF!+#REF!+#REF! ->  | F113: =#REF!+#REF!+#REF!+#REF!+#REF!+#REF!+#REF!+#REF!+#REF! ->  | G113: =#REF!+#REF!+#REF!+#REF!+#REF!+#REF!+#REF!+#REF!+#REF! ->  | H113: =#REF!+#REF!+#REF!+#REF!+#REF!+#REF!+#REF!+#REF!+#REF! ->  | I113: =#REF!+#REF!+#REF!+#REF!+#REF!+#REF!+#REF!+#REF!+#REF! ->  | J113: =#REF!+#REF!+#REF!+#REF!+#REF!+#REF!+#REF!+#REF!+#REF! ->  | K113: =#REF!+#REF!+#REF!+#REF!+#REF!+#REF!+#REF!+#REF!+#REF! ->  | L113: =#REF!+#REF!+#REF!+#REF!+#REF!+#REF!+#REF!+#REF!+#REF! ->  | M113: =SUM('[1]C-Grants'!$Q$315)-M35 ->  | N113: 0 | T113: =C113 -> Provincial Disaster Relief Grant | U113: 0 | V113: 0 | W113: 0 | X113: 0 | Y113: 0 | AB113: 0 | AK113: Provincial Disaster Relief Grant | AL113: 0 | AM113: =IFERROR(V113-E113,0) -> 0 | AN113: =IFERROR(W113-F113,0) -> 0 | AO113: =IFERROR(X113-G113,0) -> 0 | AP113: =IFERROR(Y113-H113,0) -> 0 | AR113: =IFERROR(AA113-J113,0) -> 0 | AS113: =IFERROR(AB113-K113,0) -> 0 | AU113: 0
D114: =#REF!+#REF!+#REF!+#REF!+#REF!+#REF!+#REF!+#REF!+#REF! ->  | E114: =#REF!+#REF!+#REF!+#REF!+#REF!+#REF!+#REF!+#REF!+#REF! ->  | F114: =#REF!+#REF!+#REF!+#REF!+#REF!+#REF!+#REF!+#REF!+#REF! ->  | G114: =#REF!+#REF!+#REF!+#REF!+#REF!+#REF!+#REF!+#REF!+#REF! ->  | H114: =#REF!+#REF!+#REF!+#REF!+#REF!+#REF!+#REF!+#REF!+#REF! ->  | I114: =#REF!+#REF!+#REF!+#REF!+#REF!+#REF!+#REF!+#REF!+#REF! ->  | J114: =#REF!+#REF!+#REF!+#REF!+#REF!+#REF!+#REF!+#REF!+#REF! ->  | K114: =#REF!+#REF!+#REF!+#REF!+#REF!+#REF!+#REF!+#REF!+#REF! ->  | L114: =#REF!+#REF!+#REF!+#REF!+#REF!+#REF!+#REF!+#REF!+#REF! ->  | M114: =#REF!+#REF!+#REF!+#REF!+#REF!+#REF!+#REF!+#REF!+#REF! ->  | T114: 0 | U114: 0 | V114: 0 | W114: 0 | X114: 0 | Y114: 0 | AB114: 0 | AK114: 0 | AL114: 0 | AM114: 0 | AN114: 0 | AO114: 0 | AP114: 0 | AR114: 0 | AS114: 0 | AU114: 0
D115: =#REF!+#REF!+#REF!+#REF!+#REF!+#REF!+#REF!+#REF!+#REF! ->  | E115: =#REF!+#REF!+#REF!+#REF!+#REF!+#REF!+#REF!+#REF!+#REF! ->  | F115: =#REF!+#REF!+#REF!+#REF!+#REF!+#REF!+#REF!+#REF!+#REF! ->  | G115: =#REF!+#REF!+#REF!+#REF!+#REF!+#REF!+#REF!+#REF!+#REF! ->  | H115: =#REF!+#REF!+#REF!+#REF!+#REF!+#REF!+#REF!+#REF!+#REF! ->  | I115: =#REF!+#REF!+#REF!+#REF!+#REF!+#REF!+#REF!+#REF!+#REF! ->  | J115: =#REF!+#REF!+#REF!+#REF!+#REF!+#REF!+#REF!+#REF!+#REF! ->  | K115: =#REF!+#REF!+#REF!+#REF!+#REF!+#REF!+#REF!+#REF!+#REF! ->  | L115: =#REF!+#REF!+#REF!+#REF!+#REF!+#REF!+#REF!+#REF!+#REF! ->  | M115: =#REF!+#REF!+#REF!+#REF!+#REF!+#REF!+#REF!+#REF!+#REF! ->  | T115: 0 | U115: 0 | V115: 0 | W115: 0 | X115: 0 | Y115: 0 | AB115: 0 | AK115: 0 | AL115: 0 | AM115: 0 | AN115: 0 | AO115: 0 | AP115: 0 | AR115: 0 | AS115: 0 | AU115: 0
D116: =#REF!+#REF!+#REF!+#REF!+#REF!+#REF!+#REF!+#REF!+#REF! ->  | E116: =#REF!+#REF!+#REF!+#REF!+#REF!+#REF!+#REF!+#REF!+#REF! ->  | F116: =#REF!+#REF!+#REF!+#REF!+#REF!+#REF!+#REF!+#REF!+#REF! ->  | G116: =#REF!+#REF!+#REF!+#REF!+#REF!+#REF!+#REF!+#REF!+#REF! ->  | H116: =#REF!+#REF!+#REF!+#REF!+#REF!+#REF!+#REF!+#REF!+#REF! ->  | I116: =#REF!+#REF!+#REF!+#REF!+#REF!+#REF!+#REF!+#REF!+#REF! ->  | J116: =#REF!+#REF!+#REF!+#REF!+#REF!+#REF!+#REF!+#REF!+#REF! ->  | K116: =#REF!+#REF!+#REF!+#REF!+#REF!+#REF!+#REF!+#REF!+#REF! ->  | L116: =#REF!+#REF!+#REF!+#REF!+#REF!+#REF!+#REF!+#REF!+#REF! ->  | M116: =#REF!+#REF!+#REF!+#REF!+#REF!+#REF!+#REF!+#REF!+#REF! ->  | AK116: 0 | AL116: 0 | AM116: 0 | AN116: 0 | AO116: 0 | AP116: 0 | AR116: 0 | AS116: 0 | AU116: 0
C117: Human Settlements (Vote 33) | D117: =#REF!+#REF!+#REF!+#REF!+#REF!+#REF!+#REF!+#REF!+#REF! ->  | E117: =#REF!+#REF!+#REF!+#REF!+#REF!+#REF!+#REF!+#REF!+#REF! ->  | F117: =#REF!+#REF!+#REF!+#REF!+#REF!+#REF!+#REF!+#REF!+#REF! ->  | G117: =#REF!+#REF!+#REF!+#REF!+#REF!+#REF!+#REF!+#REF!+#REF! ->  | H117: =#REF!+#REF!+#REF!+#REF!+#REF!+#REF!+#REF!+#REF!+#REF! ->  | I117: =#REF!+#REF!+#REF!+#REF!+#REF!+#REF!+#REF!+#REF!+#REF! ->  | J117: =#REF!+#REF!+#REF!+#REF!+#REF!+#REF!+#REF!+#REF!+#REF! ->  | K117: =#REF!+#REF!+#REF!+#REF!+#REF!+#REF!+#REF!+#REF!+#REF! ->  | L117: =#REF!+#REF!+#REF!+#REF!+#REF!+#REF!+#REF!+#REF!+#REF! ->  | M117: =SUM(M118) -> 357122 | N117: =IFERROR(M117/H117,0) -> 0 | T117: =C117 -> Human Settlements (Vote 33) | U117: 0 | V117: 0 | W117: 0 | X117: 0 | Y117: 0 | AB117: 154658.157 | AK117: Human Settlements (Vote 33) | AL117: 0 | AM117: 0 | AN117: 0 | AO117: 0 | AP117: 0 | AR117: 0 | AS117: 0 | AU117: -357122
C118: Provincial Emergency Housing Grant | D118: =#REF!+#REF!+#REF!+#REF!+#REF!+#REF!+#REF!+#REF!+#REF! ->  | E118: =#REF!+#REF!+#REF!+#REF!+#REF!+#REF!+#REF!+#REF!+#REF! ->  | F118: =#REF!+#REF!+#REF!+#REF!+#REF!+#REF!+#REF!+#REF!+#REF! ->  | G118: =#REF!+#REF!+#REF!+#REF!+#REF!+#REF!+#REF!+#REF!+#REF! ->  | H118: =#REF!+#REF!+#REF!+#REF!+#REF!+#REF!+#REF!+#REF!+#REF! ->  | I118: =#REF!+#REF!+#REF!+#REF!+#REF!+#REF!+#REF!+#REF!+#REF! ->  | J118: =#REF!+#REF!+#REF!+#REF!+#REF!+#REF!+#REF!+#REF!+#REF! ->  | K118: =#REF!+#REF!+#REF!+#REF!+#REF!+#REF!+#REF!+#REF!+#REF! ->  | L118: =#REF!+#REF!+#REF!+#REF!+#REF!+#REF!+#REF!+#REF!+#REF! ->  | M118: =SUM('[1]C-Grants'!$Q$1065) -> 357122 | N118: 0 | T118: =C118 -> Provincial Emergency Housing Grant | U118: 0 | V118: 0 | W118: 0 | X118: 0 | Y118: 0 | AB118: 154658.157 | AK118: Provincial Emergency Housing Grant | AL118: 0 | AM118: =IFERROR(V118-E118,0) -> 0 | AN118: =IFERROR(W118-F118,0) -> 0 | AO118: =IFERROR(X118-G118,0) -> 0 | AP118: =IFERROR(Y118-H118,0) -> 0 | AR118: =IFERROR(AA118-J118,0) -> 0 | AS118: =IFERROR(AB118-K118,0) -> 0 | AU118: -357122
D119: =#REF!+#REF!+#REF!+#REF!+#REF!+#REF!+#REF!+#REF!+#REF! ->  | E119: =#REF!+#REF!+#REF!+#REF!+#REF!+#REF!+#REF!+#REF!+#REF! ->  | F119: =#REF!+#REF!+#REF!+#REF!+#REF!+#REF!+#REF!+#REF!+#REF! ->  | G119: =#REF!+#REF!+#REF!+#REF!+#REF!+#REF!+#REF!+#REF!+#REF! ->  | H119: =#REF!+#REF!+#REF!+#REF!+#REF!+#REF!+#REF!+#REF!+#REF! ->  | I119: =#REF!+#REF!+#REF!+#REF!+#REF!+#REF!+#REF!+#REF!+#REF! ->  | J119: =#REF!+#REF!+#REF!+#REF!+#REF!+#REF!+#REF!+#REF!+#REF! ->  | K119: =#REF!+#REF!+#REF!+#REF!+#REF!+#REF!+#REF!+#REF!+#REF! ->  | L119: =#REF!+#REF!+#REF!+#REF!+#REF!+#REF!+#REF!+#REF!+#REF! ->  | M119: =#REF!+#REF!+#REF!+#REF!+#REF!+#REF!+#REF!+#REF!+#REF! ->  | T119: 0 | U119: 0 | V119: 0 | W119: 0 | X119: 0 | Y119: 0 | AB119: 0 | AK119: 0 | AL119: 0 | AM119: 0 | AN119: 0 | AO119: 0 | AP119: 0 | AR119: 0 | AS119: 0 | AU119: 0
D120: =#REF!+#REF!+#REF!+#REF!+#REF!+#REF!+#REF!+#REF!+#REF! ->  | E120: =#REF!+#REF!+#REF!+#REF!+#REF!+#REF!+#REF!+#REF!+#REF! ->  | F120: =#REF!+#REF!+#REF!+#REF!+#REF!+#REF!+#REF!+#REF!+#REF! ->  | G120: =#REF!+#REF!+#REF!+#REF!+#REF!+#REF!+#REF!+#REF!+#REF! ->  | H120: =#REF!+#REF!+#REF!+#REF!+#REF!+#REF!+#REF!+#REF!+#REF! ->  | I120: =#REF!+#REF!+#REF!+#REF!+#REF!+#REF!+#REF!+#REF!+#REF! ->  | J120: =#REF!+#REF!+#REF!+#REF!+#REF!+#REF!+#REF!+#REF!+#REF! ->  | K120: =#REF!+#REF!+#REF!+#REF!+#REF!+#REF!+#REF!+#REF!+#REF! ->  | L120: =#REF!+#REF!+#REF!+#REF!+#REF!+#REF!+#REF!+#REF!+#REF! ->  | M120: =#REF!+#REF!+#REF!+#REF!+#REF!+#REF!+#REF!+#REF!+#REF! ->  | T120: 0 | U120: 0 | V120: 0 | W120: 0 | X120: 0 | Y120: 0 | AB120: 0 | AK120: 0 | AL120: 0 | AM120: 0 | AN120: 0 | AO120: 0 | AP120: 0 | AR120: 0 | AS120: 0 | AU120: 0
D121: =#REF!+#REF!+#REF!+#REF!+#REF!+#REF!+#REF!+#REF!+#REF! ->  | E121: =#REF!+#REF!+#REF!+#REF!+#REF!+#REF!+#REF!+#REF!+#REF! ->  | F121: =#REF!+#REF!+#REF!+#REF!+#REF!+#REF!+#REF!+#REF!+#REF! ->  | G121: =#REF!+#REF!+#REF!+#REF!+#REF!+#REF!+#REF!+#REF!+#REF! ->  | H121: =#REF!+#REF!+#REF!+#REF!+#REF!+#REF!+#REF!+#REF!+#REF! ->  | I121: =#REF!+#REF!+#REF!+#REF!+#REF!+#REF!+#REF!+#REF!+#REF! ->  | J121: =#REF!+#REF!+#REF!+#REF!+#REF!+#REF!+#REF!+#REF!+#REF! ->  | K121: =#REF!+#REF!+#REF!+#REF!+#REF!+#REF!+#REF!+#REF!+#REF! ->  | L121: =#REF!+#REF!+#REF!+#REF!+#REF!+#REF!+#REF!+#REF!+#REF! ->  | M121: =#REF!+#REF!+#REF!+#REF!+#REF!+#REF!+#REF!+#REF!+#REF! ->  | AK121: 0 | AL121: 0 | AM121: 0 | AN121: 0 | AO121: 0 | AP121: 0 | AR121: 0 | AS121: 0 | AU121: 0
C122: Sub-Total | D122: =#REF!+#REF!+#REF!+#REF!+#REF!+#REF!+#REF!+#REF!+#REF! ->  | E122: =#REF!+#REF!+#REF!+#REF!+#REF!+#REF!+#REF!+#REF!+#REF! ->  | F122: =#REF!+#REF!+#REF!+#REF!+#REF!+#REF!+#REF!+#REF!+#REF! ->  | G122: =#REF!+#REF!+#REF!+#REF!+#REF!+#REF!+#REF!+#REF!+#REF! ->  | H122: =#REF!+#REF!+#REF!+#REF!+#REF!+#REF!+#REF!+#REF!+#REF! ->  | I122: =#REF!+#REF!+#REF!+#REF!+#REF!+#REF!+#REF!+#REF!+#REF! ->  | J122: =#REF!+#REF!+#REF!+#REF!+#REF!+#REF!+#REF!+#REF!+#REF! ->  | K122: =#REF!+#REF!+#REF!+#REF!+#REF!+#REF!+#REF!+#REF!+#REF! ->  | L122: =#REF!+#REF!+#REF!+#REF!+#REF!+#REF!+#REF!+#REF!+#REF! ->  | M122: =SUM(M112+M117) ->  | N122: =IFERROR(M122/H122,0) -> 0 | T122: Sub-Total | U122: 0 | V122: 0 | W122: 0 | X122: 0 | Y122: 0 | AB122: 154658.157 | AK122: Sub-Total | AL122: 0 | AM122: 0 | AN122: 0 | AO122: 0 | AP122: 0 | AR122: 0 | AS122: 0 | AU122: 0
D123: =#REF!+#REF!+#REF!+#REF!+#REF!+#REF!+#REF!+#REF!+#REF! ->  | E123: =#REF!+#REF!+#REF!+#REF!+#REF!+#REF!+#REF!+#REF!+#REF! ->  | F123: =#REF!+#REF!+#REF!+#REF!+#REF!+#REF!+#REF!+#REF!+#REF! ->  | G123: =#REF!+#REF!+#REF!+#REF!+#REF!+#REF!+#REF!+#REF!+#REF! ->  | H123: =#REF!+#REF!+#REF!+#REF!+#REF!+#REF!+#REF!+#REF!+#REF! ->  | I123: =#REF!+#REF!+#REF!+#REF!+#REF!+#REF!+#REF!+#REF!+#REF! ->  | J123: =#REF!+#REF!+#REF!+#REF!+#REF!+#REF!+#REF!+#REF!+#REF! ->  | K123: =#REF!+#REF!+#REF!+#REF!+#REF!+#REF!+#REF!+#REF!+#REF! ->  | L123: =#REF!+#REF!+#REF!+#REF!+#REF!+#REF!+#REF!+#REF!+#REF! ->  | M123: =#REF!+#REF!+#REF!+#REF!+#REF!+#REF!+#REF!+#REF!+#REF! ->  | AL123: 0 | AM123: 0 | AN123: 0 | AO123: 0 | AP123: 0 | AR123: 0 | AS123: 0 | AU123: 0
C124: Total | D124: =#REF!+#REF!+#REF!+#REF!+#REF!+#REF!+#REF!+#REF!+#REF! ->  | E124: =#REF!+#REF!+#REF!+#REF!+#REF!+#REF!+#REF!+#REF!+#REF! ->  | F124: =#REF!+#REF!+#REF!+#REF!+#REF!+#REF!+#REF!+#REF!+#REF! ->  | G124: =#REF!+#REF!+#REF!+#REF!+#REF!+#REF!+#REF!+#REF!+#REF! ->  | H124: =#REF!+#REF!+#REF!+#REF!+#REF!+#REF!+#REF!+#REF!+#REF! ->  | I124: =#REF!+#REF!+#REF!+#REF!+#REF!+#REF!+#REF!+#REF!+#REF! ->  | J124: =#REF!+#REF!+#REF!+#REF!+#REF!+#REF!+#REF!+#REF!+#REF! ->  | K124: =#REF!+#REF!+#REF!+#REF!+#REF!+#REF!+#REF!+#REF!+#REF! ->  | L124: =#REF!+#REF!+#REF!+#REF!+#REF!+#REF!+#REF!+#REF!+#REF! ->  | M124: =SUM(M76+M108+M122) ->  | N124: =IFERROR(M124/H124,0) -> 0 | T124: Total | U124: 106304528.2 | V124: 0 | W124: 106304528.2 | X124: 0 | Y124: 106304528.2 | AA124: 55551990 | AB124: 55441235.33 | AK124: Total | AL124: 0 | AM124: 0 | AN124: 0 | AO124: 0 | AP124: 0 | AR124: 0 | AS124: 0 | AU124: 0
D125: =#REF!+#REF!+#REF!+#REF!+#REF!+#REF!+#REF!+#REF!+#REF! ->  | E125: =#REF!+#REF!+#REF!+#REF!+#REF!+#REF!+#REF!+#REF!+#REF! ->  | F125: =#REF!+#REF!+#REF!+#REF!+#REF!+#REF!+#REF!+#REF!+#REF! ->  | G125: =#REF!+#REF!+#REF!+#REF!+#REF!+#REF!+#REF!+#REF!+#REF! ->  | H125: =#REF!+#REF!+#REF!+#REF!+#REF!+#REF!+#REF!+#REF!+#REF! ->  | I125: =#REF!+#REF!+#REF!+#REF!+#REF!+#REF!+#REF!+#REF!+#REF! ->  | J125: =#REF!+#REF!+#REF!+#REF!+#REF!+#REF!+#REF!+#REF!+#REF! ->  | K125: =#REF!+#REF!+#REF!+#REF!+#REF!+#REF!+#REF!+#REF!+#REF! ->  | L125: =#REF!+#REF!+#REF!+#REF!+#REF!+#REF!+#REF!+#REF!+#REF! ->  | M125: =#REF!+#REF!+#REF!+#REF!+#REF!+#REF!+#REF!+#REF!+#REF! -> 
B126: 1. | C126: Schedule 4, Part A grants specifying allocations to provinces to supplement the funding of programmes or functions funded from provincial budgets.
B127: 2. | C127: Schedule 5, Part A grants specifying specific-purpose allocations to provinces.
B128: 3. | C128: Schedule 7, Part A grants specifying unallocated provisions for provinces for disaster response.
D130: =SUM('[1]C-Grants'!$F$45-D124) ->  | G130: =SUM('[1]C-Grants'!$F$56-G124) ->  | H130: =SUM('[1]C-Grants'!$F$57-H124) ->  | K130: =SUM('[1]C-Grants'!$Q$62-K124) ->  | M130: =SUM('[1]C-Grants'!$Q$65-M124) -> 

Sheet Infrastructure1 (hidden)
C3: ="PROVINCIAL INFRASTRUCTURE BUDGETS AND ACTUAL PAYMENTS BY PROVINCES FOR THE " & QUARTER -> PROVINCIAL INFRASTRUCTURE BUDGETS AND ACTUAL PAYMENTS BY PROVINCES FOR THE FIRST QUARTER ENDED 30 JUNE 2020 | T3: ="NATIONAL TREASURY: " & C3 -> NATIONAL TREASURY: PROVINCIAL INFRASTRUCTURE BUDGETS AND ACTUAL PAYMENTS BY PROVINCES FOR THE FIRST QUARTER ENDED 30 JUNE 2020 | AK3: ="VARIANCE FROM NATIONAL TREASURY: " & C3 -> VARIANCE FROM NATIONAL TREASURY: PROVINCIAL INFRASTRUCTURE BUDGETS AND ACTUAL PAYMENTS BY PROVINCES FOR THE FIRST QUARTER ENDED 30 JUNE 2020
C4: =UPPER(Prov) & " PROVINCE" -> ALL PROVINCES PROVINCE | T4: =C4 -> ALL PROVINCES PROVINCE | AK4: =C4 -> ALL PROVINCES PROVINCE
C6: Details | D6: =Overview!D6 -> 2022/23 | T6: Details | U6: 2019/20 | AK6: Details | AL6: 2019/20
D7: Budget | H7: Payments by Quarter | M7: Payments to Date | U7: Budget | Y7: Payments by Quarter | AD7: Payments to Date | AL7: Budget | AP7: Payments by Quarter | AU7: Payments to Date
D8: Main Budget1. | E8: Adjustments | F8: Adjusted Budget2. | H8: First Quarter | I8: Second Quarter | J8: Third Quarter | K8: Fourth Quarter | M8: Actual Payments | N8: % Actual Payments | U8: Main Budget1. | V8: Adjustments | W8: Adjusted Budget2. | Y8: First Quarter | Z8: Second Quarter | AA8: Third Quarter | AB8: Fourth Quarter | AD8: Actual Payments | AE8: % Actual Payments | AL8: Main Budget1. | AM8: Adjustments | AN8: Adjusted Budget2. | AP8: First Quarter | AQ8: Second Quarter | AR8: Third Quarter | AS8: Fourth Quarter | AU8: Actual Payments | AV8: % Actual Payments
A9: Filter | C9: Financial information | D9: R'000 | E9: R'000 | F9: R'000 | H9: R'000 | I9: R'000 | J9: R'000 | K9: R'000 | M9: R'000 | N9: % | T9: Financial information | U9: R'000 | V9: R'000 | W9: R'000 | Y9: R'000 | Z9: R'000 | AA9: R'000 | AB9: R'000 | AD9: R'000 | AE9: % | AK9: Financial information | AL9: R'000 | AM9: R'000 | AN9: R'000 | AP9: R'000 | AQ9: R'000 | AR9: R'000 | AS9: R'000 | AU9: R'000 | AV9: %
A10: 1
A11: 1 | C11: Infrastructure by provincial departments | T11: Infrastructure by provincial departments | AK11: Infrastructure by provincial departments
A12: =IF(LEN(C12)>3,1,0) -> 1 | C12: Eastern Cape | D12: =SUMIF($C$36:$C$198,$C12,$D$36:$D$198) -> 8551374 | E12: =F12-D12 -> 0 | F12: =SUMIF($C$36:$C$198,$C12,$F$36:$F$198) -> 8551374 | H12: =SUMIF($C$36:$C$198,$C12,$H$36:$H$198) -> 1531075.6 | I12: =IF(General!$BE$1<2,"",SUMIF($C$36:$C$198,$C12,$I$36:$I$198)) ->  | J12: =IF(General!$BE$1<3,"",SUMIF($C$36:$C$198,$C12,$J$36:$J$198)) ->  | K12: =IF(General!$BE$1<4,"",SUMIF($C$36:$C$198,$C12,$K$36:$K$198)) ->  | M12: =SUMIF($C$36:$C$198,$C12,$M$36:$M$198) -> 1531075.6 | N12: =IFERROR(M12/F12,0) -> 0.1790443968 | T12: =C12 -> Eastern Cape | U12: 8291802 | V12: 0 | W12: 8291802 | Y12: 1875573 | Z12: 1727861.467 | AD12: 3603434.467 | AE12: 0.4345779683 | AK12: =C12 -> Eastern Cape | AL12: =IFERROR(U12-D12,0) -> -259572 | AM12: =IFERROR(V12-E12,0) -> 0 | AN12: -259572 | AP12: =IFERROR(Y12-H12,0) -> 344497.4 | AQ12: 0 | AR12: 0 | AS12: 0 | AU12: =IFERROR(AD12-M12,0) -> 2072358.867
A13: =IF(LEN(C13)>3,1,0) -> 1 | C13: Free State | D13: =SUMIF($C$36:$C$198,$C13,$D$36:$D$198) -> 4495946 | E13: =F13-D13 -> -1466 | F13: =SUMIF($C$36:$C$198,$C13,$F$36:$F$198) -> 4494480 | H13: =SUMIF($C$36:$C$198,$C13,$H$36:$H$198) -> 621264 | I13: =IF(General!$BE$1<2,"",SUMIF($C$36:$C$198,$C13,$I$36:$I$198)) ->  | J13: =IF(General!$BE$1<3,"",SUMIF($C$36:$C$198,$C13,$J$36:$J$198)) ->  | K13: =IF(General!$BE$1<4,"",SUMIF($C$36:$C$198,$C13,$K$36:$K$198)) ->  | M13: =SUMIF($C$36:$C$198,$C13,$M$36:$M$198) -> 621264 | N13: =IFERROR(M13/F13,0) -> 0.1382282266 | T13: =C13 -> Free State | U13: 4534996 | V13: -8530 | W13: 4526466 | Y13: 466003 | Z13: 803988 | AD13: 1269991 | AE13: 0.2800423639 | AK13: =C13 -> Free State | AL13: =IFERROR(U13-D13,0) -> 39050 | AM13: =IFERROR(V13-E13,0) -> -7064 | AN13: =IFERROR(W13-F13,0) -> 31986 | AP13: =IFERROR(Y13-H13,0) -> -155261 | AQ13: =IFERROR(Z13-I13,0) -> 0 | AR13: =IFERROR(AA13-J13,0) -> 0 | AS13: =IFERROR(AB13-K13,0) -> 0 | AU13: =IFERROR(AD13-M13,0) -> 648727
A14: 1 | C14: Gauteng | D14: 11366108 | E14: 1 | F14: 11366109 | H14: 1950985 | I14: =IF(General!$BE$1<2,"",SUMIF($C$36:$C$198,$C14,$I$36:$I$198)) ->  | J14: =IF(General!$BE$1<3,"",SUMIF($C$36:$C$198,$C14,$J$36:$J$198)) ->  | K14: =IF(General!$BE$1<4,"",SUMIF($C$36:$C$198,$C14,$K$36:$K$198)) ->  | M14: 1950985 | N14: 0.1716493305 | T14: Gauteng | U14: 11354991 | V14: 0 | W14: 11354991 | Y14: 1788450 | Z14: 2501116 | AD14: 4289566 | AE14: 0.3777692118 | AK14: Gauteng | AL14: -11117 | AM14: -1 | AN14: -11118 | AP14: -162535 | AQ14: 0 | AR14: 0 | AS14: 0 | AU14: 2338581
A15: 1 | C15: KwaZulu-Natal | D15: 16449691 | E15: 275865 | F15: 16725556 | H15: 3832887 | I15: =IF(General!$BE$1<2,"",SUMIF($C$36:$C$198,$C15,$I$36:$I$198)) ->  | J15: =IF(General!$BE$1<3,"",SUMIF($C$36:$C$198,$C15,$J$36:$J$198)) ->  | K15: =IF(General!$BE$1<4,"",SUMIF($C$36:$C$198,$C15,$K$36:$K$198)) ->  | M15: 3832887 | N15: 0.2291635028 | T15: KwaZulu-Natal | U15: 13669864 | V15: 45027 | W15: 13714891 | Y15: 2412364 | Z15: 2878336 | AD15: 5290700 | AE15: 0.3870338432 | AK15: KwaZulu-Natal | AL15: -2779827 | AM15: -230838 | AN15: -3010665 | AP15: -1420523 | AQ15: 0 | AR15: 0 | AS15: 0 | AU15: 1457813
A16: 1 | C16: Limpopo | D16: 6976562 | E16: 0 | F16: 6976562 | H16: 1239835 | I16: =IF(General!$BE$1<2,"",SUMIF($C$36:$C$198,$C16,$I$36:$I$198)) ->  | J16: =IF(General!$BE$1<3,"",SUMIF($C$36:$C$198,$C16,$J$36:$J$198)) ->  | K16: =IF(General!$BE$1<4,"",SUMIF($C$36:$C$198,$C16,$K$36:$K$198)) ->  | M16: 1239835 | N16: 0.177714324 | T16: Limpopo | U16: 5224301 | V16: 0 | W16: 5224301 | Y16: 875715.4716 | Z16: 1377982 | AD16: 2253697.472 | AE16: 0.4313873706 | AK16: Limpopo | AL16: -1752261 | AM16: 0 | AN16: -1752261 | AP16: -364119.5284 | AQ16: 0 | AR16: 0 | AS16: 0 | AU16: 1013862.472
A17: 1 | C17: Mpumalanga | D17: 5484181 | E17: 0 | F17: 5484181 | H17: 970366 | I17: =IF(General!$BE$1<2,"",SUMIF($C$36:$C$198,$C17,$I$36:$I$198)) ->  | J17: =IF(General!$BE$1<3,"",SUMIF($C$36:$C$198,$C17,$J$36:$J$198)) ->  | K17: =IF(General!$BE$1<4,"",SUMIF($C$36:$C$198,$C17,$K$36:$K$198)) ->  | M17: 970366 | N17: 0.1769390908 | T17: Mpumalanga | U17: 5537591 | V17: 0 | W17: 5537591 | Y17: 1024990 | Z17: 1377382 | AD17: 2402372 | AE17: 0.4338298007 | AK17: Mpumalanga | AL17: 53410 | AM17: 0 | AN17: 53410 | AP17: 54624 | AQ17: 0 | AR17: 0 | AS17: 0 | AU17: 1432006
A18: 1 | C18: Northern Cape | D18: 2870963 | E18: 0 | F18: 2870963 | H18: 579869 | I18: =IF(General!$BE$1<2,"",SUMIF($C$36:$C$198,$C18,$I$36:$I$198)) ->  | J18: =IF(General!$BE$1<3,"",SUMIF($C$36:$C$198,$C18,$J$36:$J$198)) ->  | K18: =IF(General!$BE$1<4,"",SUMIF($C$36:$C$198,$C18,$K$36:$K$198)) ->  | M18: 579869 | N18: 0.2019771763 | T18: Northern Cape | U18: 2911931 | V18: 0 | W18: 2911931 | Y18: 538632 | Z18: 591990 | AD18: 1130622 | AE18: 0.3882722496 | AK18: Northern Cape | AL18: 40968 | AM18: 0 | AN18: 40968 | AP18: -41237 | AQ18: 0 | AR18: 0 | AS18: 0 | AU18: 550753
A19: 1 | C19: North West | D19: 5304399 | E19: 53160 | F19: 5357559 | H19: 683346 | I19: =IF(General!$BE$1<2,"",SUMIF($C$36:$C$198,$C19,$I$36:$I$198)) ->  | J19: =IF(General!$BE$1<3,"",SUMIF($C$36:$C$198,$C19,$J$36:$J$198)) ->  | K19: =IF(General!$BE$1<4,"",SUMIF($C$36:$C$198,$C19,$K$36:$K$198)) ->  | M19: 683346 | N19: 0.1275480121 | T19: North West | U19: 5503390 | V19: -37418 | W19: 5465972 | Y19: 720761.71 | Z19: 1038090.886 | AD19: 1758852.596 | AE19: 0.3195943947 | AK19: North West | AL19: 198991 | AM19: -90578 | AN19: 108413 | AP19: 37415.70996 | AQ19: 0 | AR19: 0 | AS19: 0 | AU19: 1075506.596
A20: 1 | C20: Western Cape | D20: 9075660 | E20: 189060 | F20: 9264720 | H20: 1582864 | I20: =IF(General!$BE$1<2,"",SUMIF($C$36:$C$198,$C20,$I$36:$I$198)) ->  | J20: =IF(General!$BE$1<3,"",SUMIF($C$36:$C$198,$C20,$J$36:$J$198)) ->  | K20: =IF(General!$BE$1<4,"",SUMIF($C$36:$C$198,$C20,$K$36:$K$198)) ->  | M20: 1582864 | N20: 0.1708485524 | T20: Western Cape | U20: 9413177 | V20: 108947 | W20: 9522124 | Y20: 1896932 | Z20: 2266967 | AD20: 4163899 | AE20: 0.4423478917 | AK20: Western Cape | AL20: 337517 | AM20: -80113 | AN20: 257404 | AP20: 314068 | AQ20: 0 | AR20: 0 | AS20: 0 | AU20: 2581035
A21: 0 | D21: 0 | E21: 0 | F21: 0 | H21: 0 | I21: =IF(General!$BE$1<2,"",SUMIF($C$36:$C$198,$C21,$I$36:$I$198)) ->  | J21: =IF(General!$BE$1<3,"",SUMIF($C$36:$C$198,$C21,$J$36:$J$198)) ->  | K21: =IF(General!$BE$1<4,"",SUMIF($C$36:$C$198,$C21,$K$36:$K$198)) ->  | M21: 0 | N21: 0 | T21: 0 | U21: 0 | V21: 0 | W21: 0 | Y21: 0 | Z21: 0 | AD21: 0 | AE21: 0 | AK21: 0 | AL21: 0 | AM21: 0 | AN21: 0 | AP21: 0 | AQ21: 0 | AR21: 0 | AS21: 0 | AU21: 0
A22: 0 | D22: 0 | E22: 0 | F22: 0 | H22: 0 | I22: =IF(General!$BE$1<2,"",SUMIF($C$36:$C$198,$C22,$I$36:$I$198)) ->  | J22: =IF(General!$BE$1<3,"",SUMIF($C$36:$C$198,$C22,$J$36:$J$198)) ->  | K22: =IF(General!$BE$1<4,"",SUMIF($C$36:$C$198,$C22,$K$36:$K$198)) ->  | M22: 0 | N22: 0 | T22: 0 | U22: 0 | V22: 0 | W22: 0 | Y22: 0 | Z22: 0 | AD22: 0 | AE22: 0 | AK22: 0 | AL22: 0 | AM22: 0 | AN22: 0 | AP22: 0 | AQ22: 0 | AR22: 0 | AS22: 0 | AU22: 0
A23: 0 | D23: 0 | E23: 0 | F23: 0 | H23: 0 | I23: =IF(General!$BE$1<2,"",SUMIF($C$36:$C$198,$C23,$I$36:$I$198)) ->  | J23: =IF(General!$BE$1<3,"",SUMIF($C$36:$C$198,$C23,$J$36:$J$198)) ->  | K23: =IF(General!$BE$1<4,"",SUMIF($C$36:$C$198,$C23,$K$36:$K$198)) ->  | M23: 0 | N23: 0 | T23: 0 | U23: 0 | V23: 0 | W23: 0 | Y23: 0 | Z23: 0 | AD23: 0 | AE23: 0 | AK23: 0 | AL23: 0 | AM23: 0 | AN23: 0 | AP23: 0 | AQ23: 0 | AR23: 0 | AS23: 0 | AU23: 0
A24: 0 | D24: 0 | E24: 0 | F24: 0 | H24: 0 | I24: =IF(General!$BE$1<2,"",SUMIF($C$36:$C$198,$C24,$I$36:$I$198)) ->  | J24: =IF(General!$BE$1<3,"",SUMIF($C$36:$C$198,$C24,$J$36:$J$198)) ->  | K24: =IF(General!$BE$1<4,"",SUMIF($C$36:$C$198,$C24,$K$36:$K$198)) ->  | M24: 0 | N24: 0 | T24: 0 | U24: 0 | V24: 0 | W24: 0 | Y24: 0 | Z24: 0 | AD24: 0 | AE24: 0 | AK24: 0 | AL24: 0 | AM24: 0 | AN24: 0 | AP24: 0 | AQ24: 0 | AR24: 0 | AS24: 0 | AU24: 0
A25: 0 | D25: 0 | E25: 0 | F25: 0 | H25: 0 | I25: =IF(General!$BE$1<2,"",SUMIF($C$36:$C$198,$C25,$I$36:$I$198)) ->  | J25: =IF(General!$BE$1<3,"",SUMIF($C$36:$C$198,$C25,$J$36:$J$198)) ->  | K25: =IF(General!$BE$1<4,"",SUMIF($C$36:$C$198,$C25,$K$36:$K$198)) ->  | M25: 0 | N25: 0 | T25: 0 | U25: 0 | V25: 0 | W25: 0 | Y25: 0 | Z25: 0 | AD25: 0 | AE25: 0 | AK25: 0 | AL25: 0 | AM25: 0 | AN25: 0 | AP25: 0 | AQ25: 0 | AR25: 0 | AS25: 0 | AU25: 0
A26: 0 | D26: 0 | E26: 0 | F26: 0 | H26: 0 | I26: =IF(General!$BE$1<2,"",SUMIF($C$36:$C$198,$C26,$I$36:$I$198)) ->  | J26: =IF(General!$BE$1<3,"",SUMIF($C$36:$C$198,$C26,$J$36:$J$198)) ->  | K26: =IF(General!$BE$1<4,"",SUMIF($C$36:$C$198,$C26,$K$36:$K$198)) ->  | M26: 0 | N26: =IFERROR(M26/F26,0) -> 0 | T26: 0 | U26: 0 | V26: 0 | W26: 0 | Y26: 0 | Z26: 0 | AD26: 0 | AE26: 0 | AK26: 0 | AL26: 0 | AM26: 0 | AN26: 0 | AP26: 0 | AQ26: 0 | AR26: 0 | AS26: 0 | AU26: 0
A27: 0 | D27: 0 | E27: 0 | F27: 0 | H27: 0 | I27: =IF(General!$BE$1<2,"",SUMIF($C$36:$C$198,$C27,$I$36:$I$198)) ->  | J27: =IF(General!$BE$1<3,"",SUMIF($C$36:$C$198,$C27,$J$36:$J$198)) ->  | K27: =IF(General!$BE$1<4,"",SUMIF($C$36:$C$198,$C27,$K$36:$K$198)) ->  | M27: 0 | N27: 0 | T27: 0 | U27: 0 | V27: 0 | W27: 0 | Y27: 0 | Z27: 0 | AD27: 0 | AE27: 0 | AK27: 0 | AL27: 0 | AM27: 0 | AN27: 0 | AP27: 0 | AQ27: 0 | AR27: 0 | AS27: 0 | AU27: 0
A28: 0 | D28: 0 | E28: 0 | F28: 0 | H28: 0 | I28: =IF(General!$BE$1<2,"",SUMIF($C$36:$C$198,$C28,$I$36:$I$198)) ->  | J28: =IF(General!$BE$1<3,"",SUMIF($C$36:$C$198,$C28,$J$36:$J$198)) ->  | K28: =IF(General!$BE$1<4,"",SUMIF($C$36:$C$198,$C28,$K$36:$K$198)) ->  | M28: 0 | N28: 0 | T28: 0 | U28: 0 | V28: 0 | W28: 0 | Y28: 0 | Z28: 0 | AD28: 0 | AE28: 0 | AK28: 0 | AL28: 0 | AM28: 0 | AN28: 0 | AP28: 0 | AQ28: 0 | AR28: 0 | AS28: 0 | AU28: 0
A29: 0 | D29: 0 | E29: 0 | F29: 0 | H29: 0 | I29: =IF(General!$BE$1<2,"",SUMIF($C$36:$C$198,$C29,$I$36:$I$198)) ->  | J29: =IF(General!$BE$1<3,"",SUMIF($C$36:$C$198,$C29,$J$36:$J$198)) ->  | K29: =IF(General!$BE$1<4,"",SUMIF($C$36:$C$198,$C29,$K$36:$K$198)) ->  | M29: 0 | N29: 0 | T29: 0 | U29: 0 | V29: 0 | W29: 0 | Y29: 0 | Z29: 0 | AD29: 0 | AE29: 0 | AK29: 0 | AL29: 0 | AM29: 0 | AN29: 0 | AP29: 0 | AQ29: 0 | AR29: 0 | AS29: 0 | AU29: 0
A30: 0 | D30: 0 | E30: 0 | F30: 0 | H30: 0 | I30: =IF(General!$BE$1<2,"",SUMIF($C$36:$C$198,$C30,$I$36:$I$198)) ->  | J30: =IF(General!$BE$1<3,"",SUMIF($C$36:$C$198,$C30,$J$36:$J$198)) ->  | K30: =IF(General!$BE$1<4,"",SUMIF($C$36:$C$198,$C30,$K$36:$K$198)) ->  | M30: 0 | N30: 0 | T30: 0 | U30: 0 | V30: 0 | W30: 0 | Y30: 0 | Z30: 0 | AD30: 0 | AE30: 0 | AK30: 0 | AL30: 0 | AM30: 0 | AN30: 0 | AP30: 0 | AQ30: 0 | AR30: 0 | AS30: 0 | AU30: 0
A31: 0 | D31: 0 | E31: 0 | F31: 0 | H31: 0 | I31: =IF(General!$BE$1<2,"",SUMIF($C$36:$C$198,$C31,$I$36:$I$198)) ->  | J31: =IF(General!$BE$1<3,"",SUMIF($C$36:$C$198,$C31,$J$36:$J$198)) ->  | K31: =IF(General!$BE$1<4,"",SUMIF($C$36:$C$198,$C31,$K$36:$K$198)) ->  | M31: 0 | N31: 0 | T31: 0 | U31: 0 | V31: 0 | W31: 0 | Y31: 0 | Z31: 0 | AD31: 0 | AE31: 0 | AK31: 0 | AL31: 0 | AM31: 0 | AN31: 0 | AP31: 0 | AQ31: 0 | AR31: 0 | AS31: 0 | AU31: 0
A32: 1
A33: 1 | C33: Total infrastructure | D33: =SUM(D12:D31) -> 70574884 | E33: =SUM(E12:E31) -> 516620 | F33: =SUM(F12:F31) -> 71091504 | H33: =SUM(H12:H31) -> 12992491.6 | I33: =IF(General!$BE$1>1,SUM(I12:I31),"") ->  | J33: =IF(General!$BE$1>2,SUM(J12:J31),"") ->  | K33: =IF(General!$BE$1=4,SUM(K12:K31),"") ->  | M33: =SUM(M12:M31) -> 12992491.6 | N33: =IFERROR(M33/F33,0) -> 0.1827573039 | T33: Total infrastructure | U33: 66442043 | V33: 108026 | W33: 66550069 | Y33: 11599421.18 | Z33: 14563713.35 | AD33: 26163134.53 | AE33: 0.3937737817 | AK33: Total infrastructure | AL33: =SUM(AL12:AL31) -> -4132841 | AM33: =SUM(AM12:AM31) -> -408594 | AN33: =SUM(AN12:AN31) -> -4541435 | AP33: =SUM(AP12:AP31) -> -1393070.418 | AQ33: =SUM(AQ12:AQ31) -> 0 | AR33: 0 | AS33: 0 | AU33: =SUM(AU12:AU31) -> 13170642.93
A34: 1
A35: 1 | C35: Infrastructure by category | T35: Infrastructure by category | AK35: Infrastructure by category
A36: 1 | C36: Existing infrastructure assets | D36: =D37+D60+D83 -> 39430306 | E36: =E37+E60+E83 -> 442296 | F36: =F37+F60+F83 -> 39872602 | G36: =SUM(G37:G83) -> 0 | H36: =H37+H60+H83 -> 6460538.6 | I36: =IF(General!$BE$1<2,"",I37+I60+I83) ->  | J36: =IF(General!$BE$1<3,"",J37+J60+J83) ->  | K36: =IF(General!$BE$1<4,"",K37+K60+K83) ->  | M36: =M37+M60+M83 -> 6460538.6 | N36: =IFERROR(M36/F36,0) -> 0.1620295209 | T36: =C36 -> Existing infrastructure assets | U36: 36549551 | V36: 42310 | W36: 36591861 | X36: 0 | Y36: 6154154.453 | Z36: 7746509.467 | AD36: 13900663.92 | AE36: 0.3803237944 | AK36: Existing infrastructure assets | AL36: =AL37+AL60+AL83 -> -2880755 | AM36: =AM37+AM60+AM83 -> -399986 | AN36: =AN37+AN60+AN83 -> -3280741 | AO36: =SUM(AO37:AO83) -> 0 | AP36: =AP37+AP60+AP83 -> -306384.1474 | AQ36: =AQ37+AQ60+AQ83 -> 4053079.138 | AR36: 0 | AS36: 0 | AU36: =AU37+AU60+AU83 -> 7440125.319
A37: 1 | C37: Maintenance and repairs | D37: =SUM(D38:D59) -> 16981955 | E37: =F37-D37 -> 27921 | F37: =SUM(F38:F59) -> 17009876 | H37: =SUM(H38:H59) -> 3066010.3 | I37: =IF(General!$BE$1<2,"",SUM(I38:I59)) ->  | J37: =IF(General!$BE$1<3,"",SUM(J38:J59)) ->  | K37: =IF(General!$BE$1<4,"",SUM(K38:K59)) ->  | M37: =SUM(M38:M59) -> 3066010.3 | N37: 0.1802488331 | T37: Maintenance and repairs | U37: 15408972 | V37: 30947 | W37: 15439919 | Y37: 2745851.157 | Z37: 3693430.329 | AD37: 6439281.486 | AE37: 0.4178916988 | AK37: Maintenance and repairs | AL37: =IFERROR(U37-D37,0) -> -1572983 | AM37: =IFERROR(V37-E37,0) -> 3026 | AN37: =IFERROR(W37-F37,0) -> -1569957 | AP37: =IFERROR(Y37-H37,0) -> -320159.1425 | AQ37: =IFERROR(Z37-I37,0) -> 0 | AR37: =IFERROR(AA37-J37,0) -> 0 | AS37: =IFERROR(AB37-K37,0) -> 0 | AU37: =IFERROR(AD37-M37,0) -> 3373271.186
A38: 1 | C38: of which: | T38: of which: | AK38: of which:
A39: 1 | C39: =C$12 -> Eastern Cape | D39: =EC_3!D$37 -> 2085324 | E39: 0 | F39: =EC_3!F$37 -> 2085324 | H39: =EC_3!H$37 -> 221758.3 | I39: =EC_3!I$37 -> 0 | J39: =EC_3!J$37 -> 0 | K39: =EC_3!K$37 -> 0 | M39: =SUM(H39:K39) -> 221758.3 | N39: =IFERROR(M39/F39,0) -> 0.1063423717 | T39: Eastern Cape | U39: 2024072 | V39: 0 | W39: 2024072 | Y39: 416492 | Z39: 396450.3286 | AD39: 812942.3286 | AE39: 0.4016370606 | AK39: =AK$12 -> Eastern Cape | AL39: =IFERROR(U39-D39,0) -> -61252 | AM39: =IFERROR(V39-E39,0) -> 0 | AN39: =IFERROR(W39-F39,0) -> -61252 | AP39: =IFERROR(Y39-H39,0) -> 194733.7 | AQ39: =IFERROR(Z39-I39,0) -> 396450.3286 | AR39: =IFERROR(AA39-J39,0) -> 0 | AS39: =IFERROR(AB39-K39,0) -> 0 | AU39: =IFERROR(AD39-M39,0) -> 591184.0286
A40: 1 | C40: =C$13 -> Free State | D40: =FS_3!D$37 -> 1374213 | E40: -1466 | F40: =FS_3!F$37 -> 1372747 | H40: =FS_3!H$37 -> 222579 | I40: =FS_3!I$37 -> 0 | J40: =FS_3!J$37 -> 0 | K40: =FS_3!K$37 -> 0 | M40: =SUM(H40:K40) -> 222579 | N40: 0.1621413123 | T40: Free State | U40: 1280655 | V40: 3813 | W40: 1284468 | Y40: 118033 | Z40: 211068 | AD40: 329101 | AE40: 0.2569786555 | AK40: =AK$13 -> Free State | AL40: -93558 | AM40: 5279 | AN40: -88279 | AP40: -104546 | AQ40: 211068 | AR40: 0 | AS40: 0 | AU40: 106522
A41: 1 | C41: =C$14 -> Gauteng | D41: =GT_3!D$37 -> 2932077 | E41: -21163 | F41: =GT_3!F$37 -> 2910914 | H41: =GT_3!H$37 -> 601096 | I41: =GT_3!I$37 -> 0 | J41: =GT_3!J$37 -> 0 | K41: =GT_3!K$37 -> 0 | M41: 601096 | N41: 0.2064973407 | T41: Gauteng | U41: 2515403 | V41: 0 | W41: 2515403 | Y41: 456695 | Z41: 794056 | AD41: 1250751 | AE41: 0.4972368245 | AK41: =AK$14 -> Gauteng | AL41: -416674 | AM41: 21163 | AN41: -395511 | AP41: -144401 | AQ41: 794056 | AR41: 0 | AS41: 0 | AU41: 649655
A42: 1 | C42: =C$15 -> KwaZulu-Natal | D42: =KZN_3!D$37 -> 3556342 | E42: 0 | F42: =KZN_3!F$37 -> 3556342 | H42: =KZN_3!H$37 -> 707838 | I42: =KZN_3!I$37 -> 0 | J42: =KZN_3!J$37 -> 0 | K42: =KZN_3!K$37 -> 0 | M42: 707838 | N42: 0.1990354134 | T42: KwaZulu-Natal | U42: 3558254 | V42: 21050 | W42: 3579304 | Y42: 549453 | Z42: 625141 | AD42: 1174594 | AE42: 0.3301040342 | AK42: =AK$15 -> KwaZulu-Natal | AL42: 1912 | AM42: 21050 | AN42: 22962 | AP42: -158385 | AQ42: 625141 | AR42: 0 | AS42: 0 | AU42: 466756
A43: 1 | C43: =C$16 -> Limpopo | D43: =LIM_3!D$37 -> 1326338 | E43: 0 | F43: =LIM_3!F$37 -> 1326338 | H43: =LIM_3!H$37 -> 198009 | I43: =LIM_3!I$37 -> 0 | J43: =LIM_3!J$37 -> 0 | K43: =LIM_3!K$37 -> 0 | M43: 198009 | N43: 0.14929 | T43: Limpopo | U43: 966213 | V43: 0 | W43: 966213 | Y43: 130678.5568 | Z43: 205236 | AD43: 335914.5568 | AE43: 0.3476609783 | AK43: =AK$16 -> Limpopo | AL43: -360125 | AM43: 0 | AN43: -360125 | AP43: -67330.44319 | AQ43: 205236 | AR43: 0 | AS43: 0 | AU43: 137905.5568
A44: 1 | C44: =C$17 -> Mpumalanga | D44: =MPU_3!D$37 -> 1089268 | E44: 0 | F44: =MPU_3!F$37 -> 1089268 | H44: =MPU_3!H$37 -> 126858 | I44: =MPU_3!I$37 -> 0 | J44: =MPU_3!J$37 -> 0 | K44: =MPU_3!K$37 -> 0 | M44: 126858 | N44: 0.1164616972 | T44: Mpumalanga | U44: 1026620 | V44: 0 | W44: 1026620 | Y44: 200842 | Z44: 474978 | AD44: 675820 | AE44: 0.6582961563 | AK44: =AK$17 -> Mpumalanga | AL44: -62648 | AM44: 0 | AN44: -62648 | AP44: 73984 | AQ44: 474978 | AR44: 0 | AS44: 0 | AU44: 548962
A45: 1 | C45: =C$18 -> Northern Cape | D45: =NC_3!D$37 -> 1371498 | E45: 0 | F45: =NC_3!F$37 -> 1371498 | H45: =NC_3!H$37 -> 382013 | I45: =NC_3!I$37 -> 0 | J45: =NC_3!J$37 -> 0 | K45: =NC_3!K$37 -> 0 | M45: 382013 | N45: 0.2785370449 | T45: Northern Cape | U45: 1312640 | V45: 0 | W45: 1312640 | Y45: 305289 | Z45: 338545 | AD45: 643834 | AE45: 0.4904878718 | AK45: =AK$18 -> Northern Cape | AL45: -58858 | AM45: 0 | AN45: -58858 | AP45: -76724 | AQ45: 338545 | AR45: 0 | AS45: 0 | AU45: 261821
A46: 1 | C46: =C$19 -> North West | D46: =NW_3!D$37 -> 838017 | E46: 0 | F46: =NW_3!F$37 -> 838017 | H46: =NW_3!H$37 -> 138337 | I46: =NW_3!I$37 -> 0 | J46: =NW_3!J$37 -> 0 | K46: =NW_3!K$37 -> 0 | M46: 138337 | N46: 0.1650766035 | T46: North West | U46: 611990 | V46: 363 | W46: 612353 | Y46: 132530.6007 | Z46: 184877 | AD46: 317407.6007 | AE46: 0.518648345 | AK46: =AK$19 -> North West | AL46: -226027 | AM46: 363 | AN46: -225664 | AP46: -5806.39932 | AQ46: 184877 | AR46: 0 | AS46: 0 | AU46: 179070.6007
A47: 1 | C47: =C$20 -> Western Cape | D47: =WC_3!D$37 -> 2408878 | E47: 50550 | F47: =WC_3!F$37 -> 2459428 | H47: =WC_3!H$37 -> 467522 | I47: =WC_3!I$37 -> 0 | J47: =WC_3!J$37 -> 0 | K47: =WC_3!K$37 -> 0 | M47: 467522 | N47: 0.1900937942 | T47: Western Cape | U47: 2113125 | V47: 5721 | W47: 2118846 | Y47: 435838 | Z47: 463079 | AD47: 898917 | AE47: 0.4253969831 | AK47: =AK$20 -> Western Cape | AL47: -295753 | AM47: -44829 | AN47: -340582 | AP47: -31684 | AQ47: 463079 | AR47: 0 | AS47: 0 | AU47: 431395
A48: 0 | C48: =C$21 -> 0 | E48: 0 | M48: 0 | N48: 0 | T48: 0 | V48: 0 | AD48: 0 | AE48: 0 | AK48: =AK$21 -> 0 | AL48: 0 | AM48: 0 | AN48: 0 | AP48: 0 | AQ48: 0 | AR48: 0 | AS48: 0 | AU48: 0
A49: 0 | C49: =C$22 -> 0 | E49: 0 | M49: 0 | N49: 0 | T49: 0 | V49: 0 | AD49: 0 | AE49: 0 | AK49: =AK$22 -> 0 | AL49: 0 | AM49: 0 | AN49: 0 | AP49: 0 | AQ49: 0 | AR49: 0 | AS49: 0 | AU49: 0
A50: 0 | C50: =C$23 -> 0 | E50: 0 | M50: 0 | N50: 0 | T50: 0 | V50: 0 | AD50: 0 | AE50: 0 | AK50: =AK$23 -> 0 | AL50: 0 | AM50: 0 | AN50: 0 | AP50: 0 | AQ50: 0 | AR50: 0 | AS50: 0 | AU50: 0
A51: 0 | C51: =C$24 -> 0 | E51: 0 | M51: 0 | N51: 0 | T51: 0 | V51: 0 | AD51: 0 | AE51: 0 | AK51: =AK$24 -> 0 | AL51: 0 | AM51: 0 | AN51: 0 | AP51: 0 | AQ51: 0 | AR51: 0 | AS51: 0 | AU51: 0
A52: 0 | C52: =C$25 -> 0 | E52: 0 | M52: 0 | N52: 0 | T52: 0 | V52: 0 | AD52: 0 | AE52: 0 | AK52: =AK$25 -> 0 | AL52: 0 | AM52: 0 | AN52: 0 | AP52: 0 | AQ52: 0 | AR52: 0 | AS52: 0 | AU52: 0
A53: 0 | C53: =C$26 -> 0 | E53: 0 | M53: 0 | N53: 0 | T53: 0 | V53: 0 | AD53: 0 | AE53: 0 | AK53: =AK$26 -> 0 | AL53: 0 | AM53: 0 | AN53: 0 | AP53: 0 | AQ53: 0 | AR53: 0 | AS53: 0 | AU53: 0
A54: 0 | C54: =C$27 -> 0 | E54: 0 | M54: 0 | N54: 0 | T54: 0 | V54: 0 | AD54: 0 | AE54: 0 | AK54: =AK$27 -> 0 | AL54: 0 | AM54: 0 | AN54: 0 | AP54: 0 | AQ54: 0 | AR54: 0 | AS54: 0 | AU54: 0
A55: 0 | C55: =C$28 -> 0 | E55: 0 | M55: 0 | N55: 0 | T55: 0 | V55: 0 | AD55: 0 | AE55: 0 | AK55: =AK$28 -> 0 | AL55: 0 | AM55: 0 | AN55: 0 | AP55: 0 | AQ55: 0 | AR55: 0 | AS55: 0 | AU55: 0
A56: 0 | C56: =C$29 -> 0 | E56: 0 | M56: 0 | N56: 0 | T56: 0 | V56: 0 | AD56: 0 | AE56: 0 | AK56: =AK$29 -> 0 | AL56: 0 | AM56: 0 | AN56: 0 | AP56: 0 | AQ56: 0 | AR56: 0 | AS56: 0 | AU56: 0
A57: 0 | C57: =C$30 -> 0 | E57: 0 | M57: 0 | N57: 0 | T57: 0 | V57: 0 | AD57: 0 | AE57: 0 | AK57: =AK$30 -> 0 | AL57: 0 | AM57: 0 | AN57: 0 | AP57: 0 | AQ57: 0 | AR57: 0 | AS57: 0 | AU57: 0
A58: 0 | C58: =C$31 -> 0 | E58: 0 | M58: 0 | N58: 0 | T58: 0 | V58: 0 | AD58: 0 | AE58: 0 | AK58: =AK$31 -> 0 | AL58: 0 | AM58: 0 | AN58: 0 | AP58: 0 | AQ58: 0 | AR58: 0 | AS58: 0 | AU58: 0
A59: 0 | E59: 0 | N59: 0 | T59: 0 | V59: 0 | AE59: 0 | AK59: =AK$32 -> 0 | AL59: 0 | AM59: 0 | AN59: 0 | AP59: 0 | AQ59: 0 | AR59: 0 | AS59: 0 | AU59: 0
A60: 1 | C60: Upgrades and additions | D60: =SUM(D61:D82) -> 13330429 | E60: 163925 | F60: =SUM(F61:F82) -> 13494354 | H60: =SUM(H61:H82) -> 1914624.3 | I60: 0 | J60: 0 | K60: 0 | M60: =SUM(M61:M82) -> 1914624.3 | N60: 0.141883361 | T60: Upgrades and additions | U60: 11343107 | V60: 33378 | W60: 11376485 | Y60: 1806439.295 | Z60: 2226059.138 | AA60: 0 | AB60: 0 | AD60: 4032498.433 | AE60: 0.3555021066 | AK60: Upgrades and additions | AL60: -1987322 | AM60: -130547 | AN60: -2117869 | AP60: -108185.0049 | AQ60: 2226059.138 | AR60: 0 | AS60: 0 | AU60: 2117874.133
A61: 1 | C61: of which: | T61: of which: | AK61: of which:
A62: =A39 -> 1 | C62: =C$12 -> Eastern Cape | D62: =EC_3!D$60 -> 1985420 | E62: 0 | F62: =EC_3!F$60 -> 1985420 | H62: =EC_3!H$60 -> 348330.3 | I62: =EC_3!I$60 -> 0 | J62: =EC_3!J$60 -> 0 | K62: =EC_3!K$60 -> 0 | M62: =SUM(H62:K62) -> 348330.3 | N62: =IFERROR(M62/F62,0) -> 0.1754441378 | T62: Eastern Cape | U62: 2015333 | V62: 0 | W62: 2015333 | Y62: 484057 | Z62: 307407.1382 | AD62: 791464.1382 | AE62: 0.3927212715 | AK62: =AK$12 -> Eastern Cape | AL62: =IFERROR(U62-D62,0) -> 29913 | AM62: =IFERROR(V62-E62,0) -> 0 | AN62: =IFERROR(W62-F62,0) -> 29913 | AP62: =IFERROR(Y62-H62,0) -> 135726.7 | AQ62: =IFERROR(Z62-I62,0) -> 307407.1382 | AR62: =IFERROR(AA62-J62,0) -> 0 | AS62: =IFERROR(AB62-K62,0) -> 0 | AU62: =IFERROR(AD62-M62,0) -> 443133.8382
A63: =A40 -> 1 | C63: =C$13 -> Free State | D63: =FS_3!D$60 -> 846692 | E63: 0 | F63: =FS_3!F$60 -> 846692 | H63: =FS_3!H$60 -> 112759 | I63: =FS_3!I$60 -> 0 | J63: =FS_3!J$60 -> 0 | K63: =FS_3!K$60 -> 0 | M63: =SUM(H63:K63) -> 112759 | N63: 0.1331759365 | T63: Free State | U63: 926170 | V63: -3300 | W63: 922870 | Y63: 125142 | Z63: 184538 | AD63: 309680 | AE63: 0.3343662611 | AK63: =AK$13 -> Free State | AL63: 79478 | AM63: -3300 | AN63: 76178 | AP63: 12383 | AQ63: 184538 | AR63: 0 | AS63: 0 | AU63: 196921
A64: 1 | C64: =C$14 -> Gauteng | D64: =GT_3!D$60 -> 2166158 | E64: 0 | F64: =GT_3!F$60 -> 2166158 | H64: =GT_3!H$60 -> 133933 | I64: =GT_3!I$60 -> 0 | J64: =GT_3!J$60 -> 0 | K64: =GT_3!K$60 -> 0 | M64: 133933 | N64: 0.06182974649 | T64: Gauteng | U64: 882866 | V64: 0 | W64: 882866 | Y64: 152101 | Z64: 256629 | AD64: 408730 | AE64: 0.4629581386 | AK64: =AK$14 -> Gauteng | AL64: -1283292 | AM64: 0 | AN64: -1283292 | AP64: 18168 | AQ64: 256629 | AR64: 0 | AS64: 0 | AU64: 274797
A65: 1 | C65: =C$15 -> KwaZulu-Natal | D65: =KZN_3!D$60 -> 3474375 | E65: 25415 | F65: =KZN_3!F$60 -> 3499790 | H65: =KZN_3!H$60 -> 709833 | I65: =KZN_3!I$60 -> 0 | J65: =KZN_3!J$60 -> 0 | K65: =KZN_3!K$60 -> 0 | M65: 709833 | N65: 0.2028215979 | T65: KwaZulu-Natal | U65: 3131043 | V65: 36678 | W65: 3167721 | Y65: 377220 | Z65: 761758 | AD65: 1138978 | AE65: 0.3637695171 | AK65: =AK$15 -> KwaZulu-Natal | AL65: -343332 | AM65: 11263 | AN65: -332069 | AP65: -332613 | AQ65: 761758 | AR65: 0 | AS65: 0 | AU65: 429145
A66: 1 | C66: =C$16 -> Limpopo | D66: =LIM_3!D$60 -> 1089294 | E66: 0 | F66: =LIM_3!F$60 -> 1089294 | H66: =LIM_3!H$60 -> 129596 | I66: =LIM_3!I$60 -> 0 | J66: =LIM_3!J$60 -> 0 | K66: =LIM_3!K$60 -> 0 | M66: 129596 | N66: 0.1189724721 | T66: Limpopo | U66: 844403 | V66: 0 | W66: 844403 | Y66: 70633.29513 | Z66: 127779 | AD66: 198412.2951 | AE66: 0.2349734607 | AK66: =AK$16 -> Limpopo | AL66: -244891 | AM66: 0 | AN66: -244891 | AP66: -58962.70487 | AQ66: 127779 | AR66: 0 | AS66: 0 | AU66: 68816.29513
A67: 1 | C67: =C$17 -> Mpumalanga | D67: =MPU_3!D$60 -> 1338680 | E67: 0 | F67: =MPU_3!F$60 -> 1338680 | H67: =MPU_3!H$60 -> 246618 | I67: =MPU_3!I$60 -> 0 | J67: =MPU_3!J$60 -> 0 | K67: =MPU_3!K$60 -> 0 | M67: 246618 | N67: 0.1842247587 | T67: Mpumalanga | U67: 1241250 | V67: 0 | W67: 1241250 | Y67: 265145 | Z67: 216967 | AD67: 482112 | AE67: 0.3884084592 | AK67: =AK$17 -> Mpumalanga | AL67: -97430 | AM67: 0 | AN67: -97430 | AP67: 18527 | AQ67: 216967 | AR67: 0 | AS67: 0 | AU67: 235494
A68: 1 | C68: =C$18 -> Northern Cape | D68: =NC_3!D$60 -> 404374 | E68: 0 | F68: =NC_3!F$60 -> 404374 | H68: =NC_3!H$60 -> 63814 | I68: =NC_3!I$60 -> 0 | J68: =NC_3!J$60 -> 0 | K68: =NC_3!K$60 -> 0 | M68: 63814 | N68: 0.1578093547 | T68: Northern Cape | U68: 309040 | V68: 0 | W68: 309040 | Y68: 62407 | Z68: 61080 | AD68: 123487 | AE68: 0.3995825783 | AK68: =AK$18 -> Northern Cape | AL68: -95334 | AM68: 0 | AN68: -95334 | AP68: -1407 | AQ68: 61080 | AR68: 0 | AS68: 0 | AU68: 59673
A69: 1 | C69: =C$19 -> North West | D69: =NW_3!D$60 -> 1013815 | E69: 0 | F69: =NW_3!F$60 -> 1013815 | H69: =NW_3!H$60 -> 113414 | I69: =NW_3!I$60 -> 0 | J69: =NW_3!J$60 -> 0 | K69: =NW_3!K$60 -> 0 | M69: 113414 | N69: 0.1118685362 | T69: North West | U69: 1088451 | V69: 0 | W69: 1088451 | Y69: 105843 | Z69: 187141 | AD69: 292984 | AE69: 0.2691751857 | AK69: =AK$19 -> North West | AL69: 74636 | AM69: 0 | AN69: 74636 | AP69: -7571 | AQ69: 187141 | AR69: 0 | AS69: 0 | AU69: 179570
A70: 1 | C70: =C$20 -> Western Cape | D70: =WC_3!D$60 -> 1011621 | E70: 138510 | F70: =WC_3!F$60 -> 1150131 | H70: =WC_3!H$60 -> 56327 | I70: =WC_3!I$60 -> 0 | J70: =WC_3!J$60 -> 0 | K70: =WC_3!K$60 -> 0 | M70: 56327 | N70: 0.04897442117 | T70: Western Cape | U70: 904551 | V70: 0 | W70: 904551 | Y70: 163891 | Z70: 122760 | AD70: 286651 | AE70: 0.3168986602 | AK70: =AK$20 -> Western Cape | AL70: -107070 | AM70: -138510 | AN70: -245580 | AP70: 107564 | AQ70: 122760 | AR70: 0 | AS70: 0 | AU70: 230324
A71: 0 | C71: =C$21 -> 0 | E71: 0 | M71: 0 | N71: 0 | T71: 0 | V71: 0 | AD71: 0 | AE71: 0 | AK71: =AK$21 -> 0 | AL71: 0 | AM71: 0 | AN71: 0 | AP71: 0 | AQ71: 0 | AR71: 0 | AS71: 0 | AU71: 0
A72: 0 | C72: =C$22 -> 0 | E72: 0 | M72: 0 | N72: 0 | T72: 0 | V72: 0 | AD72: 0 | AE72: 0 | AK72: =AK$22 -> 0 | AL72: 0 | AM72: 0 | AN72: 0 | AP72: 0 | AQ72: 0 | AR72: 0 | AS72: 0 | AU72: 0
A73: 0 | C73: =C$23 -> 0 | E73: 0 | M73: 0 | N73: 0 | T73: 0 | V73: 0 | AD73: 0 | AE73: 0 | AK73: =AK$23 -> 0 | AL73: 0 | AM73: 0 | AN73: 0 | AP73: 0 | AQ73: 0 | AR73: 0 | AS73: 0 | AU73: 0
A74: 0 | C74: =C$24 -> 0 | E74: 0 | M74: 0 | N74: 0 | T74: 0 | V74: 0 | AD74: 0 | AE74: 0 | AK74: =AK$24 -> 0 | AL74: 0 | AM74: 0 | AN74: 0 | AP74: 0 | AQ74: 0 | AR74: 0 | AS74: 0 | AU74: 0
A75: 0 | C75: =C$25 -> 0 | E75: 0 | M75: 0 | N75: 0 | T75: 0 | V75: 0 | AD75: 0 | AE75: 0 | AK75: =AK$25 -> 0 | AL75: 0 | AM75: 0 | AN75: 0 | AP75: 0 | AQ75: 0 | AR75: 0 | AS75: 0 | AU75: 0
A76: 0 | C76: =C$26 -> 0 | E76: 0 | M76: 0 | N76: 0 | T76: 0 | V76: 0 | AD76: 0 | AE76: 0 | AK76: =AK$26 -> 0 | AL76: 0 | AM76: 0 | AN76: 0 | AP76: 0 | AQ76: 0 | AR76: 0 | AS76: 0 | AU76: 0
A77: 0 | C77: =C$27 -> 0 | E77: 0 | M77: 0 | N77: 0 | T77: 0 | V77: 0 | AD77: 0 | AE77: 0 | AK77: =AK$27 -> 0 | AL77: 0 | AM77: 0 | AN77: 0 | AP77: 0 | AQ77: 0 | AR77: 0 | AS77: 0 | AU77: 0
A78: 0 | C78: =C$28 -> 0 | E78: 0 | M78: 0 | N78: 0 | T78: 0 | V78: 0 | AD78: 0 | AE78: 0 | AK78: =AK$28 -> 0 | AL78: 0 | AM78: 0 | AN78: 0 | AP78: 0 | AQ78: 0 | AR78: 0 | AS78: 0 | AU78: 0
A79: 0 | C79: =C$29 -> 0 | E79: 0 | M79: 0 | N79: 0 | T79: 0 | V79: 0 | AD79: 0 | AE79: 0 | AK79: =AK$29 -> 0 | AL79: 0 | AM79: 0 | AN79: 0 | AP79: 0 | AQ79: 0 | AR79: 0 | AS79: 0 | AU79: 0
A80: 0 | C80: =C$30 -> 0 | E80: 0 | M80: 0 | N80: 0 | T80: 0 | V80: 0 | AD80: 0 | AE80: 0 | AK80: =AK$30 -> 0 | AL80: 0 | AM80: 0 | AN80: 0 | AP80: 0 | AQ80: 0 | AR80: 0 | AS80: 0 | AU80: 0
A81: 0 | C81: =C$31 -> 0 | E81: 0 | M81: 0 | N81: 0 | T81: 0 | V81: 0 | AD81: 0 | AE81: 0 | AK81: =AK$31 -> 0 | AL81: 0 | AM81: 0 | AN81: 0 | AP81: 0 | AQ81: 0 | AR81: 0 | AS81: 0 | AU81: 0
A82: 0 | N82: 0 | T82: 0 | AE82: 0 | AK82: =AK$32 -> 0 | AL82: 0 | AM82: 0 | AN82: 0 | AP82: 0 | AQ82: 0 | AR82: 0 | AS82: 0 | AU82: 0
A83: =IF(LEN(C83)>3,1,0) -> 1 | C83: Refurbishment and rehabilitation | D83: =SUM(D84:D105) -> 9117922 | E83: 250450 | F83: =SUM(F84:F105) -> 9368372 | H83: =SUM(H84:H105) -> 1479904 | I83: 0 | J83: 0 | K83: 0 | M83: =SUM(M84:M105) -> 1479904 | N83: 0.157968108 | T83: Refurbishment and rehabilitation | U83: 9797472 | V83: -22015 | W83: 9775457 | Y83: 1601864 | Z83: 1827020 | AA83: 0 | AB83: 0 | AD83: 3428884 | AE83: 0.3499764021 | AK83: Refurbishment and rehabilitation | AL83: 679550 | AM83: -272465 | AN83: 407085 | AP83: 121960 | AQ83: 1827020 | AR83: 0 | AS83: 0 | AU83: 1948980
A84: 1 | C84: of which: | T84: of which: | AK84: of which:
A85: =A62 -> 1 | C85: =C$12 -> Eastern Cape | D85: =EC_3!D$83 -> 508493 | E85: 0 | F85: =EC_3!F$83 -> 508493 | H85: =EC_3!H$83 -> 78734 | I85: =EC_3!I$83 -> 0 | J85: =EC_3!J$83 -> 0 | K85: =EC_3!K$83 -> 0 | M85: =SUM(H85:K85) -> 78734 | N85: =IFERROR(M85/F85,0) -> 0.154837923 | T85: Eastern Cape | U85: 597457 | V85: 0 | W85: 597457 | Y85: 198686 | Z85: 147585 | AD85: 346271 | AE85: 0.5795747644 | AK85: =AK$12 -> Eastern Cape | AL85: =IFERROR(U85-D85,0) -> 88964 | AM85: =IFERROR(V85-E85,0) -> 0 | AN85: =IFERROR(W85-F85,0) -> 88964 | AP85: =IFERROR(Y85-H85,0) -> 119952 | AQ85: =IFERROR(Z85-I85,0) -> 147585 | AR85: =IFERROR(AA85-J85,0) -> 0 | AS85: =IFERROR(AB85-K85,0) -> 0 | AU85: =IFERROR(AD85-M85,0) -> 267537
A86: =A63 -> 1 | C86: =C$13 -> Free State | D86: =FS_3!D$83 -> 610301 | E86: 0 | F86: =FS_3!F$83 -> 610301 | H86: =FS_3!H$83 -> 108496 | I86: =FS_3!I$83 -> 0 | J86: =FS_3!J$83 -> 0 | K86: =FS_3!K$83 -> 0 | M86: =SUM(H86:K86) -> 108496 | N86: 0.1777745735 | T86: Free State | U86: 453705 | V86: 6000 | W86: 459705 | Y86: 43000 | Z86: 86263 | AD86: 129263 | AE86: 0.2849053901 | AK86: =AK$13 -> Free State | AL86: -156596 | AM86: 6000 | AN86: -150596 | AP86: -65496 | AQ86: 86263 | AR86: 0 | AS86: 0 | AU86: 20767
A87: 1 | C87: =C$14 -> Gauteng | D87: =GT_3!D$83 -> 1128451 | E87: 0 | F87: =GT_3!F$83 -> 1128451 | H87: =GT_3!H$83 -> 215262 | I87: =GT_3!I$83 -> 0 | J87: =GT_3!J$83 -> 0 | K87: =GT_3!K$83 -> 0 | M87: 215262 | N87: 0.1907588367 | T87: Gauteng | U87: 1585797 | V87: 0 | W87: 1585797 | Y87: 104460 | Z87: 251507 | AD87: 355967 | AE87: 0.2244719847 | AK87: =AK$14 -> Gauteng | AL87: 457346 | AM87: 0 | AN87: 457346 | AP87: -110802 | AQ87: 251507 | AR87: 0 | AS87: 0 | AU87: 140705
A88: 1 | C88: =C$15 -> KwaZulu-Natal | D88: =KZN_3!D$83 -> 2484131 | E88: 250450 | F88: =KZN_3!F$83 -> 2734581 | H88: =KZN_3!H$83 -> 533589 | I88: =KZN_3!I$83 -> 0 | J88: =KZN_3!J$83 -> 0 | K88: =KZN_3!K$83 -> 0 | M88: 533589 | N88: 0.1951264197 | T88: KwaZulu-Natal | U88: 2327414 | V88: 313 | W88: 2327727 | Y88: 520474 | Z88: 347968 | AD88: 868442 | AE88: 0.3731360214 | AK88: =AK$15 -> KwaZulu-Natal | AL88: -156717 | AM88: -250137 | AN88: -406854 | AP88: -13115 | AQ88: 347968 | AR88: 0 | AS88: 0 | AU88: 334853
A89: 1 | C89: =C$16 -> Limpopo | D89: =LIM_3!D$83 -> 373512 | E89: 0 | F89: =LIM_3!F$83 -> 373512 | H89: =LIM_3!H$83 -> 20276 | I89: =LIM_3!I$83 -> 0 | J89: =LIM_3!J$83 -> 0 | K89: =LIM_3!K$83 -> 0 | M89: 20276 | N89: 0.05428473516 | T89: Limpopo | U89: 169913 | V89: 0 | W89: 169913 | Y89: 21659 | Z89: 17829 | AD89: 39488 | AE89: 0.2324012877 | AK89: =AK$16 -> Limpopo | AL89: -203599 | AM89: 0 | AN89: -203599 | AP89: 1383 | AQ89: 17829 | AR89: 0 | AS89: 0 | AU89: 19212
A90: 1 | C90: =C$17 -> Mpumalanga | D90: =MPU_3!D$83 -> 670894 | E90: 0 | F90: =MPU_3!F$83 -> 670894 | H90: =MPU_3!H$83 -> 121457 | I90: =MPU_3!I$83 -> 0 | J90: =MPU_3!J$83 -> 0 | K90: =MPU_3!K$83 -> 0 | M90: 121457 | N90: 0.181037541 | T90: Mpumalanga | U90: 1024466 | V90: 0 | W90: 1024466 | Y90: 174805 | Z90: 205295 | AD90: 380100 | AE90: 0.371022562 | AK90: =AK$17 -> Mpumalanga | AL90: 353572 | AM90: 0 | AN90: 353572 | AP90: 53348 | AQ90: 205295 | AR90: 0 | AS90: 0 | AU90: 258643
A91: 1 | C91: =C$18 -> Northern Cape | D91: =NC_3!D$83 -> 129123 | E91: 0 | F91: =NC_3!F$83 -> 129123 | H91: =NC_3!H$83 -> 10761 | I91: =NC_3!I$83 -> 0 | J91: =NC_3!J$83 -> 0 | K91: =NC_3!K$83 -> 0 | M91: 10761 | N91: 0.08333914175 | T91: Northern Cape | U91: 178056 | V91: 0 | W91: 178056 | Y91: 3414 | Z91: 36334 | AD91: 39748 | AE91: 0.2232331401 | AK91: =AK$18 -> Northern Cape | AL91: 48933 | AM91: 0 | AN91: 48933 | AP91: -7347 | AQ91: 36334 | AR91: 0 | AS91: 0 | AU91: 28987
A92: 1 | C92: =C$19 -> North West | D92: =NW_3!D$83 -> 733061 | E92: 0 | F92: =NW_3!F$83 -> 733061 | H92: =NW_3!H$83 -> 46611 | I92: =NW_3!I$83 -> 0 | J92: =NW_3!J$83 -> 0 | K92: =NW_3!K$83 -> 0 | M92: 46611 | N92: 0.06358406736 | T92: North West | U92: 819176 | V92: -47781 | W92: 771395 | Y92: 61933 | Z92: 93881 | AD92: 155814 | AE92: 0.1902082092 | AK92: =AK$19 -> North West | AL92: 86115 | AM92: -47781 | AN92: 38334 | AP92: 15322 | AQ92: 93881 | AR92: 0 | AS92: 0 | AU92: 109203
A93: 1 | C93: =C$20 -> Western Cape | D93: =WC_3!D$83 -> 2479956 | E93: 0 | F93: =WC_3!F$83 -> 2479956 | H93: =WC_3!H$83 -> 344718 | I93: =WC_3!I$83 -> 0 | J93: =WC_3!J$83 -> 0 | K93: =WC_3!K$83 -> 0 | M93: 344718 | N93: 0.1390016597 | T93: Western Cape | U93: 2641488 | V93: 19453 | W93: 2660941 | Y93: 473433 | Z93: 640358 | AD93: 1113791 | AE93: 0.4216528714 | AK93: =AK$20 -> Western Cape | AL93: 161532 | AM93: 19453 | AN93: 180985 | AP93: 128715 | AQ93: 640358 | AR93: 0 | AS93: 0 | AU93: 769073
A94: 0 | C94: =C$21 -> 0 | E94: 0 | M94: 0 | N94: 0 | T94: 0 | V94: 0 | AD94: 0 | AE94: 0 | AK94: =AK$21 -> 0 | AL94: 0 | AM94: 0 | AN94: 0 | AP94: 0 | AQ94: 0 | AR94: 0 | AS94: 0 | AU94: 0
A95: 0 | C95: =C$22 -> 0 | E95: 0 | M95: 0 | N95: 0 | T95: 0 | V95: 0 | AD95: 0 | AE95: 0 | AK95: =AK$22 -> 0 | AL95: 0 | AM95: 0 | AN95: 0 | AP95: 0 | AQ95: 0 | AR95: 0 | AS95: 0 | AU95: 0
A96: 0 | C96: =C$23 -> 0 | E96: 0 | M96: 0 | N96: 0 | T96: 0 | V96: 0 | AD96: 0 | AE96: 0 | AK96: =AK$23 -> 0 | AL96: 0 | AM96: 0 | AN96: 0 | AP96: 0 | AQ96: 0 | AR96: 0 | AS96: 0 | AU96: 0
A97: 0 | C97: =C$24 -> 0 | E97: 0 | M97: 0 | N97: 0 | T97: 0 | V97: 0 | AD97: 0 | AE97: 0 | AK97: =AK$24 -> 0 | AL97: 0 | AM97: 0 | AN97: 0 | AP97: 0 | AQ97: 0 | AR97: 0 | AS97: 0 | AU97: 0
A98: 0 | C98: =C$25 -> 0 | E98: 0 | M98: 0 | N98: 0 | T98: 0 | V98: 0 | AD98: 0 | AE98: 0 | AK98: =AK$25 -> 0 | AL98: 0 | AM98: 0 | AN98: 0 | AP98: 0 | AQ98: 0 | AR98: 0 | AS98: 0 | AU98: 0
A99: 0 | C99: =C$26 -> 0 | E99: 0 | M99: 0 | N99: 0 | T99: 0 | V99: 0 | AD99: 0 | AE99: 0 | AK99: =AK$26 -> 0 | AL99: 0 | AM99: 0 | AN99: 0 | AP99: 0 | AQ99: 0 | AR99: 0 | AS99: 0 | AU99: 0
A100: 0 | C100: =C$27 -> 0 | E100: 0 | M100: 0 | N100: 0 | T100: =C100 -> 0 | V100: 0 | AD100: 0 | AE100: 0 | AK100: =AK$27 -> 0 | AL100: 0 | AM100: 0 | AN100: 0 | AP100: 0 | AQ100: 0 | AR100: 0 | AS100: 0 | AU100: 0
A101: 0 | C101: =C$28 -> 0 | E101: =F101-D101 -> 0 | M101: 0 | N101: 0 | T101: 0 | V101: 0 | AD101: 0 | AE101: 0 | AK101: =AK$28 -> 0 | AL101: 0 | AM101: 0 | AN101: 0 | AP101: 0 | AQ101: 0 | AR101: 0 | AS101: 0 | AU101: 0
A102: 0 | C102: =C$29 -> 0 | E102: 0 | M102: 0 | N102: 0 | T102: 0 | V102: 0 | AD102: 0 | AE102: 0 | AK102: =AK$29 -> 0 | AL102: 0 | AM102: 0 | AN102: 0 | AP102: 0 | AQ102: 0 | AR102: 0 | AS102: 0 | AU102: 0
A103: 0 | C103: =C$30 -> 0 | E103: 0 | M103: 0 | N103: 0 | T103: 0 | V103: 0 | AD103: 0 | AE103: 0 | AK103: =AK$30 -> 0 | AL103: 0 | AM103: 0 | AN103: 0 | AP103: 0 | AQ103: 0 | AR103: 0 | AS103: 0 | AU103: 0
A104: 0 | C104: =C$31 -> 0 | E104: 0 | M104: 0 | N104: 0 | T104: 0 | V104: 0 | AD104: 0 | AE104: 0 | AK104: =AK$31 -> 0 | AL104: 0 | AM104: 0 | AN104: 0 | AP104: 0 | AQ104: 0 | AR104: 0 | AS104: 0 | AU104: 0
A105: 0 | E105: 0 | N105: 0 | T105: 0 | V105: 0 | AK105: =AK$32 -> 0 | AL105: 0 | AM105: 0 | AN105: 0 | AP105: 0 | AQ105: 0 | AR105: 0 | AS105: 0 | AU105: 0
A106: 1 | C106: New infrastructure assets | D106: =SUM(D108:D127) -> 11909517 | E106: 1 | F106: =SUM(F108:F127) -> 11909518 | H106: =SUM(H108:H127) -> 2074682 | I106: 0 | J106: 0 | K106: 0 | M106: =SUM(M108:M127) -> 2074682 | N106: 0.1742036915 | T106: New infrastructure assets | U106: 13102255 | V106: -152632 | W106: 12949623 | Y106: 2214592.811 | Z106: 2744796 | AA106: 0 | AB106: 0 | AD106: 4959388.811 | AE106: 0.3785141421 | AK106: New infrastructure assets | AL106: 1192738 | AM106: -152633 | AN106: 1040105 | AP106: 139910.8106 | AQ106: 2744796 | AR106: 0 | AS106: 0 | AU106: 2884706.811
A107: 1 | C107: of which: | T107: of which: | AK107: of which:
A108: =A85 -> 1 | C108: =C$12 -> Eastern Cape | D108: =EC_3!D$106 -> 676368 | E108: 0 | F108: =EC_3!F$106 -> 676368 | H108: =EC_3!H$106 -> 134330 | I108: =EC_3!I$106 -> 0 | J108: =EC_3!J$106 -> 0 | K108: =EC_3!K$106 -> 0 | M108: =SUM(H108:K108) -> 134330 | N108: =IFERROR(M108/F108,0) -> 0.1986049015 | T108: Eastern Cape | U108: 937241 | V108: 0 | W108: 937241 | Y108: 207939 | Z108: 255165 | AD108: 463104 | AE108: 0.4941141073 | AK108: =AK$12 -> Eastern Cape | AL108: =IFERROR(U108-D108,0) -> 260873 | AM108: =IFERROR(V108-E108,0) -> 0 | AN108: =IFERROR(W108-F108,0) -> 260873 | AP108: =IFERROR(Y108-H108,0) -> 73609 | AQ108: =IFERROR(Z108-I108,0) -> 255165 | AR108: =IFERROR(AA108-J108,0) -> 0 | AS108: =IFERROR(AB108-K108,0) -> 0 | AU108: =IFERROR(AD108-M108,0) -> 328774
A109: =A86 -> 1 | C109: =C$13 -> Free State | D109: =FS_3!D$106 -> 308973 | E109: 0 | F109: =FS_3!F$106 -> 308973 | H109: =FS_3!H$106 -> 57456 | I109: =FS_3!I$106 -> 0 | J109: =FS_3!J$106 -> 0 | K109: =FS_3!K$106 -> 0 | M109: =SUM(H109:K109) -> 57456 | N109: 0.1859579963 | T109: Free State | U109: 461232 | V109: -15043 | W109: 446189 | Y109: 45741 | Z109: 78235 | AD109: 123976 | AE109: 0.2687931453 | AK109: =AK$13 -> Free State | AL109: 152259 | AM109: -15043 | AN109: 137216 | AP109: -11715 | AQ109: 78235 | AR109: 0 | AS109: 0 | AU109: 66520
A110: 1 | C110: =C$14 -> Gauteng | D110: =GT_3!D$106 -> 4758701 | E110: 1 | F110: =GT_3!F$106 -> 4758702 | H110: =GT_3!H$106 -> 972654 | I110: =GT_3!I$106 -> 0 | J110: =GT_3!J$106 -> 0 | K110: =GT_3!K$106 -> 0 | M110: 972654 | N110: 0.2043948119 | T110: Gauteng | U110: 5769839 | V110: 0 | W110: 5769839 | Y110: 1018440 | Z110: 1135957 | AD110: 2154397 | AE110: 0.3733894481 | AK110: =AK$14 -> Gauteng | AL110: 1011138 | AM110: -1 | AN110: 1011137 | AP110: 45786 | AQ110: 1135957 | AR110: 0 | AS110: 0 | AU110: 1181743
A111: 1 | C111: =C$15 -> KwaZulu-Natal | D111: =KZN_3!D$106 -> 1166599 | E111: 0 | F111: =KZN_3!F$106 -> 1166599 | H111: =KZN_3!H$106 -> 249558 | I111: =KZN_3!I$106 -> 0 | J111: =KZN_3!J$106 -> 0 | K111: =KZN_3!K$106 -> 0 | M111: 249558 | N111: 0.2139192645 | T111: KwaZulu-Natal | U111: 1339392 | V111: -147589 | W111: 1191803 | Y111: 225439 | Z111: 370088 | AD111: 595527 | AE111: 0.4446248746 | AK111: =AK$15 -> KwaZulu-Natal | AL111: 172793 | AM111: -147589 | AN111: 25204 | AP111: -24119 | AQ111: 370088 | AR111: 0 | AS111: 0 | AU111: 345969
A112: 1 | C112: =C$16 -> Limpopo | D112: =LIM_3!D$106 -> 665418 | E112: 0 | F112: =LIM_3!F$106 -> 665418 | H112: =LIM_3!H$106 -> 106658 | I112: =LIM_3!I$106 -> 0 | J112: =LIM_3!J$106 -> 0 | K112: =LIM_3!K$106 -> 0 | M112: 106658 | N112: 0.160287218 | T112: Limpopo | U112: 307720 | V112: 0 | W112: 307720 | Y112: 69908.85885 | Z112: 94258 | AD112: 164166.8589 | AE112: 0.5334942768 | AK112: =AK$16 -> Limpopo | AL112: -357698 | AM112: 0 | AN112: -357698 | AP112: -36749.14115 | AQ112: 94258 | AR112: 0 | AS112: 0 | AU112: 57508.85885
A113: 1 | C113: =C$17 -> Mpumalanga | D113: =MPU_3!D$106 -> 2059783 | E113: 0 | F113: =MPU_3!F$106 -> 2059783 | H113: =MPU_3!H$106 -> 373581 | I113: =MPU_3!I$106 -> 0 | J113: =MPU_3!J$106 -> 0 | K113: =MPU_3!K$106 -> 0 | M113: 373581 | N113: 0.1813691054 | T113: Mpumalanga | U113: 1973499 | V113: 0 | W113: 1973499 | Y113: 250958 | Z113: 359620 | AD113: 610578 | AE113: 0.309388553 | AK113: =AK$17 -> Mpumalanga | AL113: -86284 | AM113: 0 | AN113: -86284 | AP113: -122623 | AQ113: 359620 | AR113: 0 | AS113: 0 | AU113: 236997
A114: 1 | C114: =C$18 -> Northern Cape | D114: =NC_3!D$106 -> 817813 | E114: 0 | F114: =NC_3!F$106 -> 817813 | H114: =NC_3!H$106 -> 64687 | I114: =NC_3!I$106 -> 0 | J114: =NC_3!J$106 -> 0 | K114: =NC_3!K$106 -> 0 | M114: 64687 | N114: 0.0790975443 | T114: Northern Cape | U114: 510834 | V114: 0 | W114: 510834 | Y114: 130723 | Z114: 118653 | AD114: 249376 | AE114: 0.4881742406 | AK114: =AK$18 -> Northern Cape | AL114: -306979 | AM114: 0 | AN114: -306979 | AP114: 66036 | AQ114: 118653 | AR114: 0 | AS114: 0 | AU114: 184689
A115: 1 | C115: =C$19 -> North West | D115: =NW_3!D$106 -> 873565 | E115: 0 | F115: =NW_3!F$106 -> 873565 | H115: =NW_3!H$106 -> 62138 | I115: =NW_3!I$106 -> 0 | J115: =NW_3!J$106 -> 0 | K115: =NW_3!K$106 -> 0 | M115: 62138 | N115: 0.07113151282 | T115: North West | U115: 866689 | V115: 10000 | W115: 876689 | Y115: 73286.95174 | Z115: 110168 | AD115: 183454.9517 | AE115: 0.2116733358 | AK115: =AK$19 -> North West | AL115: -6876 | AM115: 10000 | AN115: 3124 | AP115: 11148.95174 | AQ115: 110168 | AR115: 0 | AS115: 0 | AU115: 121316.9517
A116: 1 | C116: =C$20 -> Western Cape | D116: =WC_3!D$106 -> 582297 | E116: 0 | F116: =WC_3!F$106 -> 582297 | H116: =WC_3!H$106 -> 53620 | I116: =WC_3!I$106 -> 0 | J116: =WC_3!J$106 -> 0 | K116: =WC_3!K$106 -> 0 | M116: 53620 | N116: 0.09208359308 | T116: Western Cape | U116: 935809 | V116: 0 | W116: 935809 | Y116: 192157 | Z116: 222652 | AD116: 414809 | AE116: 0.4432624606 | AK116: =AK$20 -> Western Cape | AL116: 353512 | AM116: 0 | AN116: 353512 | AP116: 138537 | AQ116: 222652 | AR116: 0 | AS116: 0 | AU116: 361189
A117: 0 | C117: =C$21 -> 0 | E117: 0 | M117: 0 | N117: 0 | T117: 0 | V117: 0 | AD117: 0 | AE117: 0 | AK117: =AK$21 -> 0 | AL117: 0 | AM117: 0 | AN117: 0 | AP117: 0 | AQ117: 0 | AR117: 0 | AS117: 0 | AU117: 0
A118: 0 | C118: =C$22 -> 0 | E118: 0 | M118: 0 | N118: 0 | T118: 0 | V118: 0 | AD118: 0 | AE118: 0 | AK118: =AK$22 -> 0 | AL118: 0 | AM118: 0 | AN118: 0 | AP118: 0 | AQ118: 0 | AR118: 0 | AS118: 0 | AU118: 0
A119: 0 | C119: =C$23 -> 0 | E119: 0 | M119: 0 | N119: 0 | T119: 0 | V119: 0 | AD119: 0 | AE119: 0 | AK119: =AK$23 -> 0 | AL119: 0 | AM119: 0 | AN119: 0 | AP119: 0 | AQ119: 0 | AR119: 0 | AS119: 0 | AU119: 0
A120: 0 | C120: =C$24 -> 0 | E120: 0 | M120: 0 | N120: 0 | T120: 0 | V120: 0 | AD120: 0 | AE120: 0 | AK120: =AK$24 -> 0 | AL120: 0 | AM120: 0 | AN120: 0 | AP120: 0 | AQ120: 0 | AR120: 0 | AS120: 0 | AU120: 0
A121: 0 | C121: =C$25 -> 0 | E121: 0 | M121: 0 | N121: 0 | T121: 0 | V121: 0 | AD121: 0 | AE121: 0 | AK121: =AK$25 -> 0 | AL121: 0 | AM121: 0 | AN121: 0 | AP121: 0 | AQ121: 0 | AR121: 0 | AS121: 0 | AU121: 0
A122: 0 | C122: =C$26 -> 0 | E122: 0 | M122: 0 | N122: 0 | T122: 0 | V122: 0 | AD122: 0 | AE122: 0 | AK122: =AK$26 -> 0 | AL122: 0 | AM122: 0 | AN122: 0 | AP122: 0 | AQ122: 0 | AR122: 0 | AS122: 0 | AU122: 0
A123: 0 | C123: =C$27 -> 0 | E123: 0 | M123: 0 | N123: 0 | T123: 0 | V123: 0 | AD123: 0 | AE123: 0 | AK123: =AK$27 -> 0 | AL123: 0 | AM123: 0 | AN123: 0 | AP123: 0 | AQ123: 0 | AR123: 0 | AS123: 0 | AU123: 0
A124: 0 | C124: =C$28 -> 0 | E124: 0 | M124: 0 | N124: 0 | T124: 0 | V124: 0 | AD124: 0 | AE124: 0 | AK124: =AK$28 -> 0 | AL124: 0 | AM124: 0 | AN124: 0 | AP124: 0 | AQ124: 0 | AR124: 0 | AS124: 0 | AU124: 0
A125: 0 | C125: =C$29 -> 0 | E125: 0 | M125: 0 | N125: 0 | T125: 0 | V125: 0 | AD125: 0 | AE125: 0 | AK125: =AK$29 -> 0 | AL125: 0 | AM125: 0 | AN125: 0 | AP125: 0 | AQ125: 0 | AR125: 0 | AS125: 0 | AU125: 0
A126: 0 | C126: =C$30 -> 0 | E126: 0 | M126: 0 | N126: 0 | T126: 0 | V126: 0 | AD126: 0 | AE126: 0 | AK126: =AK$30 -> 0 | AL126: 0 | AM126: 0 | AN126: 0 | AP126: 0 | AQ126: 0 | AR126: 0 | AS126: 0 | AU126: 0
A127: 0 | C127: =C$31 -> 0 | E127: 0 | M127: 0 | N127: 0 | T127: 0 | V127: 0 | AD127: 0 | AE127: 0 | AK127: =AK$31 -> 0 | AL127: 0 | AM127: 0 | AN127: 0 | AP127: 0 | AQ127: 0 | AR127: 0 | AS127: 0 | AU127: 0
A128: 0 | E128: 0 | N128: 0 | T128: 0 | V128: 0 | AK128: =AK$32 -> 0 | AL128: 0 | AM128: 0 | AN128: 0 | AP128: 0 | AQ128: 0 | AR128: 0 | AS128: 0 | AU128: 0
A129: 1 | C129: Infrastructure Transfers | D129: =SUM(D131:D150) -> 12735795 | E129: 53160 | F129: =SUM(F131:F150) -> 12788955 | H129: =SUM(H131:H150) -> 2837592 | I129: 0 | J129: 0 | K129: 0 | M129: =SUM(M131:M150) -> 2837592 | N129: 0.2218783317 | T129: Infrastructure Transfers | U129: 11593805 | V129: 214735 | W129: 11808540 | Y129: 2272018.701 | Z129: 2888530.886 | AA129: 0 | AB129: 0 | AD129: 5160549.587 | AE129: 0.4451126776 | AK129: Infrastructure Transfers | AL129: -1141990 | AM129: 161575 | AN129: -980415 | AP129: -565573.299 | AQ129: 2888530.886 | AR129: 0 | AS129: 0 | AU129: 2322957.587
A130: 1 | C130: of which: | T130: of which: | AK130: of which:
A131: =A108 -> 1 | C131: =C$12 -> Eastern Cape | D131: =EC_3!D$129 -> 2569436 | E131: 0 | F131: =EC_3!F$129 -> 2569436 | H131: =EC_3!H$129 -> 602581 | I131: =EC_3!I$129 -> 0 | J131: =EC_3!J$129 -> 0 | K131: =EC_3!K$129 -> 0 | M131: =SUM(H131:K131) -> 602581 | N131: =IFERROR(M131/F131,0) -> 0.2345187816 | T131: Eastern Cape | U131: 2222268 | V131: 0 | W131: 2222268 | Y131: 512856 | Z131: 547172 | AD131: 1060028 | AE131: 0.4770027737 | AK131: =AK$12 -> Eastern Cape | AL131: =IFERROR(U131-D131,0) -> -347168 | AM131: =IFERROR(V131-E131,0) -> 0 | AN131: =IFERROR(W131-F131,0) -> -347168 | AP131: =IFERROR(Y131-H131,0) -> -89725 | AQ131: =IFERROR(Z131-I131,0) -> 547172 | AR131: =IFERROR(AA131-J131,0) -> 0 | AS131: =IFERROR(AB131-K131,0) -> 0 | AU131: =IFERROR(AD131-M131,0) -> 457447
A132: =A109 -> 1 | C132: =C$13 -> Free State | D132: =FS_3!D$129 -> 1010407 | E132: 0 | F132: =FS_3!F$129 -> 1010407 | H132: =FS_3!H$129 -> 85343 | I132: =FS_3!I$129 -> 0 | J132: =FS_3!J$129 -> 0 | K132: =FS_3!K$129 -> 0 | M132: =SUM(H132:K132) -> 85343 | N132: 0.08446398333 | T132: Free State | U132: 1193853 | V132: -3613 | W132: 1190240 | Y132: 115859 | Z132: 231919 | AD132: 347778 | AE132: 0.2913072212 | AK132: =AK$13 -> Free State | AL132: 183446 | AM132: -3613 | AN132: 179833 | AP132: 30516 | AQ132: 231919 | AR132: 0 | AS132: 0 | AU132: 262435
A133: 1 | C133: =C$14 -> Gauteng | D133: =GT_3!D$129 -> 0 | E133: 0 | F133: =GT_3!F$129 -> 0 | H133: =GT_3!H$129 -> 0 | I133: =GT_3!I$129 -> 0 | J133: =GT_3!J$129 -> 0 | K133: =GT_3!K$129 -> 0 | M133: 0 | N133: 0 | T133: Gauteng | U133: 0 | V133: 0 | W133: 0 | Y133: 0 | Z133: 0 | AD133: 0 | AE133: 0 | AK133: =AK$14 -> Gauteng | AL133: 0 | AM133: 0 | AN133: 0 | AP133: 0 | AQ133: 0 | AR133: 0 | AS133: 0 | AU133: 0
A134: 1 | C134: =C$15 -> KwaZulu-Natal | D134: =KZN_3!D$129 -> 3174504 | E134: 0 | F134: =KZN_3!F$129 -> 3174504 | H134: =KZN_3!H$129 -> 882712 | I134: =KZN_3!I$129 -> 0 | J134: =KZN_3!J$129 -> 0 | K134: =KZN_3!K$129 -> 0 | M134: 882712 | N134: 0.2780629667 | T134: KwaZulu-Natal | U134: 681804 | V134: 134575 | W134: 816379 | Y134: 188492 | Z134: 131581 | AD134: 320073 | AE134: 0.4694501646 | AK134: =AK$15 -> KwaZulu-Natal | AL134: -2492700 | AM134: 134575 | AN134: -2358125 | AP134: -694220 | AQ134: 131581 | AR134: 0 | AS134: 0 | AU134: -562639
A135: 1 | C135: =C$16 -> Limpopo | D135: =LIM_3!D$129 -> 2252606 | E135: 0 | F135: =LIM_3!F$129 -> 2252606 | H135: =LIM_3!H$129 -> 393564 | I135: =LIM_3!I$129 -> 0 | J135: =LIM_3!J$129 -> 0 | K135: =LIM_3!K$129 -> 0 | M135: 393564 | N135: 0.1747149746 | T135: Limpopo | U135: 2847858 | V135: 0 | W135: 2847858 | Y135: 564452 | Z135: 908391 | AD135: 1472843 | AE135: 0.5171757159 | AK135: =AK$16 -> Limpopo | AL135: 595252 | AM135: 0 | AN135: 595252 | AP135: 170888 | AQ135: 908391 | AR135: 0 | AS135: 0 | AU135: 1079279
A136: 1 | C136: =C$17 -> Mpumalanga | D136: =MPU_3!D$129 -> 282 | E136: 0 | F136: =MPU_3!F$129 -> 282 | H136: =MPU_3!H$129 -> 4889 | I136: =MPU_3!I$129 -> 0 | J136: =MPU_3!J$129 -> 0 | K136: =MPU_3!K$129 -> 0 | M136: 4889 | N136: 17.33687943 | T136: Mpumalanga | U136: 0 | V136: 0 | W136: 0 | Y136: 1811 | Z136: 100 | AD136: 1911 | AE136: 0 | AK136: =AK$17 -> Mpumalanga | AL136: -282 | AM136: 0 | AN136: -282 | AP136: -3078 | AQ136: 100 | AR136: 0 | AS136: 0 | AU136: -2978
A137: 1 | C137: =C$18 -> Northern Cape | D137: =NC_3!D$129 -> 8500 | E137: 0 | F137: =NC_3!F$129 -> 8500 | H137: =NC_3!H$129 -> 0 | I137: =NC_3!I$129 -> 0 | J137: =NC_3!J$129 -> 0 | K137: =NC_3!K$129 -> 0 | M137: 0 | N137: 0 | T137: Northern Cape | U137: 487930 | V137: 0 | W137: 487930 | Y137: 0 | Z137: 0 | AD137: 0 | AE137: 0 | AK137: =AK$18 -> Northern Cape | AL137: 479430 | AM137: 0 | AN137: 479430 | AP137: 0 | AQ137: 0 | AR137: 0 | AS137: 0 | AU137: 0
A138: 1 | C138: =C$19 -> North West | D138: =NW_3!D$129 -> 1661705 | E138: 53160 | F138: =NW_3!F$129 -> 1714865 | H138: =NW_3!H$129 -> 308376 | I138: =NW_3!I$129 -> 0 | J138: =NW_3!J$129 -> 0 | K138: =NW_3!K$129 -> 0 | M138: 308376 | N138: 0.1798252341 | T138: North West | U138: 2018536 | V138: 0 | W138: 2018536 | Y138: 338560.701 | Z138: 450341.8858 | AD138: 788902.5868 | AE138: 0.3908290894 | AK138: =AK$19 -> North West | AL138: 356831 | AM138: -53160 | AN138: 303671 | AP138: 30184.70103 | AQ138: 450341.8858 | AR138: 0 | AS138: 0 | AU138: 480526.5868
A139: 1 | C139: =C$20 -> Western Cape | D139: =WC_3!D$129 -> 2058355 | E139: 0 | F139: =WC_3!F$129 -> 2058355 | H139: =WC_3!H$129 -> 560127 | I139: =WC_3!I$129 -> 0 | J139: =WC_3!J$129 -> 0 | K139: =WC_3!K$129 -> 0 | M139: 560127 | N139: 0.2721236133 | T139: Western Cape | U139: 2141556 | V139: 83773 | W139: 2225329 | Y139: 549988 | Z139: 619026 | AD139: 1169014 | AE139: 0.5458713197 | AK139: =AK$20 -> Western Cape | AL139: 83201 | AM139: 83773 | AN139: 166974 | AP139: -10139 | AQ139: 619026 | AR139: 0 | AS139: 0 | AU139: 608887
A140: 0 | C140: =C$21 -> 0 | E140: 0 | M140: 0 | N140: 0 | T140: 0 | V140: 0 | AD140: 0 | AE140: 0 | AK140: =AK$21 -> 0 | AL140: 0 | AM140: 0 | AN140: 0 | AP140: 0 | AQ140: 0 | AR140: 0 | AS140: 0 | AU140: 0
A141: 0 | C141: =C$22 -> 0 | E141: 0 | M141: 0 | N141: 0 | T141: 0 | V141: 0 | AD141: 0 | AE141: 0 | AK141: =AK$22 -> 0 | AL141: 0 | AM141: 0 | AN141: 0 | AP141: 0 | AQ141: 0 | AR141: 0 | AS141: 0 | AU141: 0
A142: 0 | C142: =C$23 -> 0 | E142: 0 | M142: 0 | N142: 0 | T142: 0 | V142: 0 | AD142: 0 | AE142: 0 | AK142: =AK$23 -> 0 | AL142: 0 | AM142: 0 | AN142: 0 | AP142: 0 | AQ142: 0 | AR142: 0 | AS142: 0 | AU142: 0
A143: 0 | C143: =C$24 -> 0 | E143: 0 | M143: 0 | N143: 0 | T143: 0 | V143: 0 | AD143: 0 | AE143: 0 | AK143: =AK$24 -> 0 | AL143: 0 | AM143: 0 | AN143: 0 | AP143: 0 | AQ143: 0 | AR143: 0 | AS143: 0 | AU143: 0
A144: 0 | C144: =C$25 -> 0 | E144: 0 | M144: 0 | N144: 0 | T144: 0 | V144: 0 | AD144: 0 | AE144: 0 | AK144: =AK$25 -> 0 | AL144: 0 | AM144: 0 | AN144: 0 | AP144: 0 | AQ144: 0 | AR144: 0 | AS144: 0 | AU144: 0
A145: 0 | C145: =C$26 -> 0 | E145: 0 | M145: 0 | N145: 0 | T145: 0 | V145: 0 | AD145: 0 | AE145: 0 | AK145: =AK$26 -> 0 | AL145: 0 | AM145: 0 | AN145: 0 | AP145: 0 | AQ145: 0 | AR145: 0 | AS145: 0 | AU145: 0
A146: 0 | C146: =C$27 -> 0 | E146: 0 | M146: 0 | N146: 0 | T146: 0 | V146: 0 | AD146: 0 | AE146: 0 | AK146: =AK$27 -> 0 | AL146: 0 | AM146: 0 | AN146: 0 | AP146: 0 | AQ146: 0 | AR146: 0 | AS146: 0 | AU146: 0
A147: 0 | C147: =C$28 -> 0 | E147: 0 | M147: 0 | N147: 0 | T147: 0 | V147: 0 | AD147: 0 | AE147: 0 | AK147: =AK$28 -> 0 | AL147: 0 | AM147: 0 | AN147: 0 | AP147: 0 | AQ147: 0 | AR147: 0 | AS147: 0 | AU147: 0
A148: 0 | C148: =C$29 -> 0 | E148: 0 | M148: 0 | N148: 0 | T148: 0 | V148: 0 | AD148: 0 | AE148: 0 | AK148: =AK$29 -> 0 | AL148: 0 | AM148: 0 | AN148: 0 | AP148: 0 | AQ148: 0 | AR148: 0 | AS148: 0 | AU148: 0
A149: 0 | C149: =C$30 -> 0 | E149: 0 | M149: 0 | N149: 0 | T149: 0 | V149: 0 | AD149: 0 | AE149: 0 | AK149: =AK$30 -> 0 | AL149: 0 | AM149: 0 | AN149: 0 | AP149: 0 | AQ149: 0 | AR149: 0 | AS149: 0 | AU149: 0
A150: 0 | C150: =C$31 -> 0 | E150: 0 | M150: 0 | N150: 0 | T150: 0 | V150: 0 | AD150: 0 | AE150: 0 | AK150: =AK$31 -> 0 | AL150: 0 | AM150: 0 | AN150: 0 | AP150: 0 | AQ150: 0 | AR150: 0 | AS150: 0 | AU150: 0
A151: 0 | E151: 0 | N151: 0 | T151: 0 | V151: 0 | AK151: =AK$32 -> 0 | AL151: 0 | AM151: 0 | AN151: 0 | AP151: 0 | AQ151: 0 | AR151: 0 | AS151: 0 | AU151: 0
A152: =IF(LEN(C152)>3,1,0) -> 1 | C152: Infrastructure: Leases | D152: =SUM(D154:D173) -> 616902 | E152: 0 | F152: =SUM(F154:F173) -> 616902 | H152: =SUM(H154:H173) -> 205508 | I152: 0 | J152: 0 | K152: 0 | M152: =SUM(M154:M173) -> 205508 | N152: 0.333129087 | T152: Infrastructure: Leases | U152: 312725 | V152: 0 | W152: 312725 | Y152: 84215 | Z152: 103865 | AA152: 0 | AB152: 0 | AD152: 188080 | AE152: 0.6014229755 | AK152: Infrastructure: Leases | AL152: -304177 | AM152: 0 | AN152: -304177 | AP152: -121293 | AQ152: 103865 | AR152: 0 | AS152: 0 | AU152: -17428
A153: 1 | C153: of which: | T153: of which: | AK153: of which:
A154: =A131 -> 1 | C154: =C$12 -> Eastern Cape | D154: =EC_3!D$152 -> 0 | E154: 0 | F154: =EC_3!F$152 -> 0 | H154: =EC_3!H$152 -> 0 | I154: =EC_3!I$152 -> 0 | J154: =EC_3!J$152 -> 0 | K154: =EC_3!K$152 -> 0 | M154: =SUM(H154:K154) -> 0 | N154: =IFERROR(M154/F154,0) -> 0 | T154: Eastern Cape | U154: 0 | V154: 0 | W154: 0 | Y154: 0 | Z154: 0 | AD154: 0 | AE154: 0 | AK154: =AK$12 -> Eastern Cape | AL154: =IFERROR(U154-D154,0) -> 0 | AM154: =IFERROR(V154-E154,0) -> 0 | AN154: =IFERROR(W154-F154,0) -> 0 | AP154: =IFERROR(Y154-H154,0) -> 0 | AQ154: =IFERROR(Z154-I154,0) -> 0 | AR154: =IFERROR(AA154-J154,0) -> 0 | AS154: =IFERROR(AB154-K154,0) -> 0 | AU154: =IFERROR(AD154-M154,0) -> 0
A155: =A132 -> 1 | C155: =C$13 -> Free State | D155: =FS_3!D$152 -> 0 | E155: 0 | F155: =FS_3!F$152 -> 0 | H155: =FS_3!H$152 -> 0 | I155: =FS_3!I$152 -> 0 | J155: =FS_3!J$152 -> 0 | K155: =FS_3!K$152 -> 0 | M155: =SUM(H155:K155) -> 0 | N155: 0 | T155: Free State | U155: 0 | V155: 0 | W155: 0 | Y155: 0 | Z155: 0 | AD155: 0 | AE155: 0 | AK155: =AK$13 -> Free State | AL155: 0 | AM155: 0 | AN155: 0 | AP155: 0 | AQ155: 0 | AR155: 0 | AS155: 0 | AU155: 0
A156: 1 | C156: =C$14 -> Gauteng | D156: =GT_3!D$152 -> 0 | E156: 0 | F156: =GT_3!F$152 -> 0 | H156: =GT_3!H$152 -> 0 | I156: =GT_3!I$152 -> 0 | J156: =GT_3!J$152 -> 0 | K156: =GT_3!K$152 -> 0 | M156: 0 | N156: 0 | T156: Gauteng | U156: 0 | V156: 0 | W156: 0 | Y156: 0 | Z156: 0 | AD156: 0 | AE156: 0 | AK156: =AK$14 -> Gauteng | AL156: 0 | AM156: 0 | AN156: 0 | AP156: 0 | AQ156: 0 | AR156: 0 | AS156: 0 | AU156: 0
A157: 1 | C157: =C$15 -> KwaZulu-Natal | D157: =KZN_3!D$152 -> 391125 | E157: 0 | F157: =KZN_3!F$152 -> 391125 | H157: =KZN_3!H$152 -> 130443 | I157: =KZN_3!I$152 -> 0 | J157: =KZN_3!J$152 -> 0 | K157: =KZN_3!K$152 -> 0 | M157: 130443 | N157: 0.3335071908 | T157: KwaZulu-Natal | U157: 162939 | V157: 0 | W157: 162939 | Y157: 29469 | Z157: 67290 | AD157: 96759 | AE157: 0.5938357299 | AK157: =AK$15 -> KwaZulu-Natal | AL157: -228186 | AM157: 0 | AN157: -228186 | AP157: -100974 | AQ157: 67290 | AR157: 0 | AS157: 0 | AU157: -33684
A158: 1 | C158: =C$16 -> Limpopo | D158: =LIM_3!D$152 -> 44743 | E158: 0 | F158: =LIM_3!F$152 -> 44743 | H158: =LIM_3!H$152 -> 11550 | I158: =LIM_3!I$152 -> 0 | J158: =LIM_3!J$152 -> 0 | K158: =LIM_3!K$152 -> 0 | M158: 11550 | N158: 0.2581409382 | T158: Limpopo | U158: 0 | V158: 0 | W158: 0 | Y158: 0 | Z158: 0 | AD158: 0 | AE158: 0 | AK158: =AK$16 -> Limpopo | AL158: -44743 | AM158: 0 | AN158: -44743 | AP158: -11550 | AQ158: 0 | AR158: 0 | AS158: 0 | AU158: -11550
A159: 1 | C159: =C$17 -> Mpumalanga | D159: =MPU_3!D$152 -> 167710 | E159: 0 | F159: =MPU_3!F$152 -> 167710 | H159: =MPU_3!H$152 -> 59047 | I159: =MPU_3!I$152 -> 0 | J159: =MPU_3!J$152 -> 0 | K159: =MPU_3!K$152 -> 0 | M159: 59047 | N159: 0.3520779918 | T159: Mpumalanga | U159: 146591 | V159: 0 | W159: 146591 | Y159: 54402 | Z159: 35771 | AD159: 90173 | AE159: 0.6151332619 | AK159: =AK$17 -> Mpumalanga | AL159: -21119 | AM159: 0 | AN159: -21119 | AP159: -4645 | AQ159: 35771 | AR159: 0 | AS159: 0 | AU159: 31126
A160: 1 | C160: =C$18 -> Northern Cape | D160: =NC_3!D$152 -> 13324 | E160: 0 | F160: =NC_3!F$152 -> 13324 | H160: =NC_3!H$152 -> 4468 | I160: =NC_3!I$152 -> 0 | J160: =NC_3!J$152 -> 0 | K160: =NC_3!K$152 -> 0 | M160: 4468 | N160: 0.3353347343 | T160: Northern Cape | U160: 3195 | V160: 0 | W160: 3195 | Y160: 344 | Z160: 804 | AD160: 1148 | AE160: 0.3593114241 | AK160: =AK$18 -> Northern Cape | AL160: -10129 | AM160: 0 | AN160: -10129 | AP160: -4124 | AQ160: 804 | AR160: 0 | AS160: 0 | AU160: -3320
A161: 1 | C161: =C$19 -> North West | D161: =NW_3!D$152 -> 0 | E161: 0 | F161: =NW_3!F$152 -> 0 | H161: =NW_3!H$152 -> 0 | I161: =NW_3!I$152 -> 0 | J161: =NW_3!J$152 -> 0 | K161: =NW_3!K$152 -> 0 | M161: 0 | N161: 0 | T161: North West | U161: 0 | V161: 0 | W161: 0 | Y161: 0 | Z161: 0 | AD161: 0 | AE161: 0 | AK161: =AK$19 -> North West | AL161: 0 | AM161: 0 | AN161: 0 | AP161: 0 | AQ161: 0 | AR161: 0 | AS161: 0 | AU161: 0
A162: 1 | C162: =C$20 -> Western Cape | D162: =WC_3!D$152 -> 0 | E162: 0 | F162: =WC_3!F$152 -> 0 | H162: =WC_3!H$152 -> 0 | I162: =WC_3!I$152 -> 0 | J162: =WC_3!J$152 -> 0 | K162: =WC_3!K$152 -> 0 | M162: 0 | N162: 0 | T162: Western Cape | U162: 0 | V162: 0 | W162: 0 | Y162: 0 | Z162: 0 | AD162: 0 | AE162: 0 | AK162: =AK$20 -> Western Cape | AL162: 0 | AM162: 0 | AN162: 0 | AP162: 0 | AQ162: 0 | AR162: 0 | AS162: 0 | AU162: 0
A163: 0 | C163: =C$21 -> 0 | E163: 0 | M163: 0 | N163: 0 | T163: 0 | V163: 0 | AD163: 0 | AE163: 0 | AK163: =AK$21 -> 0 | AL163: 0 | AM163: 0 | AN163: 0 | AP163: 0 | AQ163: 0 | AR163: 0 | AS163: 0 | AU163: 0
A164: 0 | C164: =C$22 -> 0 | E164: 0 | M164: 0 | N164: 0 | T164: =C164 -> 0 | V164: 0 | AD164: 0 | AE164: 0 | AK164: =AK$22 -> 0 | AL164: 0 | AM164: 0 | AN164: 0 | AP164: 0 | AQ164: 0 | AR164: 0 | AS164: 0 | AU164: 0
A165: 0 | C165: =C$23 -> 0 | E165: =F165-D165 -> 0 | M165: 0 | N165: 0 | T165: 0 | V165: 0 | AD165: 0 | AE165: 0 | AK165: =AK$23 -> 0 | AL165: 0 | AM165: 0 | AN165: 0 | AP165: 0 | AQ165: 0 | AR165: 0 | AS165: 0 | AU165: 0
A166: 0 | C166: =C$24 -> 0 | E166: 0 | M166: 0 | N166: 0 | T166: 0 | V166: 0 | AD166: 0 | AE166: 0 | AK166: =AK$24 -> 0 | AL166: 0 | AM166: 0 | AN166: 0 | AP166: 0 | AQ166: 0 | AR166: 0 | AS166: 0 | AU166: 0
A167: 0 | C167: =C$25 -> 0 | E167: 0 | M167: 0 | N167: 0 | T167: 0 | V167: 0 | AD167: 0 | AE167: 0 | AK167: =AK$25 -> 0 | AL167: 0 | AM167: 0 | AN167: 0 | AP167: 0 | AQ167: 0 | AR167: 0 | AS167: 0 | AU167: 0
A168: 0 | C168: =C$26 -> 0 | E168: 0 | M168: 0 | N168: 0 | T168: 0 | V168: 0 | AD168: 0 | AE168: 0 | AK168: =AK$26 -> 0 | AL168: 0 | AM168: 0 | AN168: 0 | AP168: 0 | AQ168: 0 | AR168: 0 | AS168: 0 | AU168: 0
A169: 0 | C169: =C$27 -> 0 | E169: 0 | M169: 0 | N169: 0 | T169: 0 | V169: 0 | AD169: 0 | AE169: 0 | AK169: =AK$27 -> 0 | AL169: 0 | AM169: 0 | AN169: 0 | AP169: 0 | AQ169: 0 | AR169: 0 | AS169: 0 | AU169: 0
A170: 0 | C170: =C$28 -> 0 | E170: 0 | M170: 0 | N170: 0 | T170: 0 | V170: 0 | AD170: 0 | AE170: 0 | AK170: =AK$28 -> 0 | AL170: 0 | AM170: 0 | AN170: 0 | AP170: 0 | AQ170: 0 | AR170: 0 | AS170: 0 | AU170: 0
A171: 0 | C171: =C$29 -> 0 | E171: 0 | M171: 0 | N171: 0 | T171: 0 | V171: 0 | AD171: 0 | AE171: 0 | AK171: =AK$29 -> 0 | AL171: 0 | AM171: 0 | AN171: 0 | AP171: 0 | AQ171: 0 | AR171: 0 | AS171: 0 | AU171: 0
A172: 0 | C172: =C$30 -> 0 | E172: 0 | M172: 0 | N172: 0 | T172: 0 | V172: 0 | AD172: 0 | AE172: 0 | AK172: =AK$30 -> 0 | AL172: 0 | AM172: 0 | AN172: 0 | AP172: 0 | AQ172: 0 | AR172: 0 | AS172: 0 | AU172: 0
A173: 0 | C173: =C$31 -> 0 | E173: 0 | M173: 0 | N173: 0 | T173: 0 | V173: 0 | AD173: 0 | AE173: 0 | AK173: =AK$31 -> 0 | AL173: 0 | AM173: 0 | AN173: 0 | AP173: 0 | AQ173: 0 | AR173: 0 | AS173: 0 | AU173: 0
A174: 0 | E174: 0 | N174: 0 | T174: 0 | V174: 0 | AK174: =AK$32 -> 0 | AL174: 0 | AM174: 0 | AN174: 0 | AP174: 0 | AQ174: 0 | AR174: 0 | AS174: 0 | AU174: 0
A175: 1 | C175: Non Infrastructure | D175: =SUM(D177:D196) -> 5882364 | E175: 21163 | F175: =SUM(F177:F196) -> 5903527 | H175: =SUM(H177:H196) -> 1414171 | I175: 0 | J175: 0 | K175: 0 | M175: =SUM(M177:M196) -> 1414171 | N175: 0.2395467997 | T175: Non Infrastructure | U175: 4883707 | V175: 3613 | W175: 4887320 | Y175: 874440.2173 | Z175: 1080012 | AA175: 0 | AB175: 0 | AD175: 1954452.217 | AE175: 0.4001985003 | AK175: Non Infrastructure | AL175: -998657 | AM175: -17550 | AN175: -1016207 | AP175: -539730.7827 | AQ175: 1080012 | AR175: 0 | AS175: 0 | AU175: 540281.2173
A176: 1 | C176: of which: | T176: of which: | AK176: of which:
A177: =A154 -> 1 | C177: =C$12 -> Eastern Cape | D177: =EC_3!D$175 -> 726333 | E177: 0 | F177: =EC_3!F$175 -> 726333 | H177: =EC_3!H$175 -> 145342 | I177: =EC_3!I$175 -> 0 | J177: =EC_3!J$175 -> 0 | K177: =EC_3!K$175 -> 0 | M177: =SUM(H177:K177) -> 145342 | N177: =IFERROR(M177/F177,0) -> 0.2001038091 | T177: Eastern Cape | U177: 495431 | V177: 0 | W177: 495431 | Y177: 55543 | Z177: 74082 | AD177: 129625 | AE177: 0.2616408743 | AK177: =AK$12 -> Eastern Cape | AL177: =IFERROR(U177-D177,0) -> -230902 | AM177: =IFERROR(V177-E177,0) -> 0 | AN177: =IFERROR(W177-F177,0) -> -230902 | AP177: =IFERROR(Y177-H177,0) -> -89799 | AQ177: =IFERROR(Z177-I177,0) -> 74082 | AR177: =IFERROR(AA177-J177,0) -> 0 | AS177: =IFERROR(AB177-K177,0) -> 0 | AU177: =IFERROR(AD177-M177,0) -> -15717
A178: =A155 -> 1 | C178: =C$13 -> Free State | D178: =FS_3!D$175 -> 345360 | E178: 0 | F178: =FS_3!F$175 -> 345360 | H178: =FS_3!H$175 -> 34631 | I178: =FS_3!I$175 -> 0 | J178: =FS_3!J$175 -> 0 | K178: =FS_3!K$175 -> 0 | M178: =SUM(H178:K178) -> 34631 | N178: 0.1002750753 | T178: Free State | U178: 219381 | V178: 3613 | W178: 222994 | Y178: 18228 | Z178: 11965 | AD178: 30193 | AE178: 0.1376281446 | AK178: =AK$13 -> Free State | AL178: -125979 | AM178: 3613 | AN178: -122366 | AP178: -16403 | AQ178: 11965 | AR178: 0 | AS178: 0 | AU178: -4438
A179: 1 | C179: =C$14 -> Gauteng | D179: =GT_3!D$175 -> 380721 | E179: 21163 | F179: =GT_3!F$175 -> 401884 | H179: =GT_3!H$175 -> 28040 | I179: =GT_3!I$175 -> 0 | J179: =GT_3!J$175 -> 0 | K179: =GT_3!K$175 -> 0 | M179: 28040 | N179: 0.06977137682 | T179: Gauteng | U179: 601086 | V179: 0 | W179: 601086 | Y179: 56754 | Z179: 62967 | AD179: 119721 | AE179: 0.1991744942 | AK179: =AK$14 -> Gauteng | AL179: 220365 | AM179: -21163 | AN179: 199202 | AP179: 28714 | AQ179: 62967 | AR179: 0 | AS179: 0 | AU179: 91681
A180: 1 | C180: =C$15 -> KwaZulu-Natal | D180: =KZN_3!D$175 -> 2202615 | E180: 0 | F180: =KZN_3!F$175 -> 2202615 | H180: =KZN_3!H$175 -> 618914 | I180: =KZN_3!I$175 -> 0 | J180: =KZN_3!J$175 -> 0 | K180: =KZN_3!K$175 -> 0 | M180: 618914 | N180: 0.2809905499 | T180: KwaZulu-Natal | U180: 2469018 | V180: 0 | W180: 2469018 | Y180: 521817 | Z180: 574510 | AD180: 1096327 | AE180: 0.4440336198 | AK180: =AK$15 -> KwaZulu-Natal | AL180: 266403 | AM180: 0 | AN180: 266403 | AP180: -97097 | AQ180: 574510 | AR180: 0 | AS180: 0 | AU180: 477413
A181: 1 | C181: =C$16 -> Limpopo | D181: =LIM_3!D$175 -> 1224651 | E181: 0 | F181: =LIM_3!F$175 -> 1224651 | H181: =LIM_3!H$175 -> 380182 | I181: =LIM_3!I$175 -> 0 | J181: =LIM_3!J$175 -> 0 | K181: =LIM_3!K$175 -> 0 | M181: 380182 | N181: 0.3104410971 | T181: Limpopo | U181: 88194 | V181: 0 | W181: 88194 | Y181: 18383.76081 | Z181: 24489 | AD181: 42872.76081 | AE181: 0.4861187928 | AK181: =AK$16 -> Limpopo | AL181: -1136457 | AM181: 0 | AN181: -1136457 | AP181: -361798.2392 | AQ181: 24489 | AR181: 0 | AS181: 0 | AU181: -337309.2392
A182: 1 | C182: =C$17 -> Mpumalanga | D182: =MPU_3!D$175 -> 157564 | E182: 0 | F182: =MPU_3!F$175 -> 157564 | H182: =MPU_3!H$175 -> 37916 | I182: =MPU_3!I$175 -> 0 | J182: =MPU_3!J$175 -> 0 | K182: =MPU_3!K$175 -> 0 | M182: 37916 | N182: 0.2406387246 | T182: Mpumalanga | U182: 125165 | V182: 0 | W182: 125165 | Y182: 77027 | Z182: 84651 | AD182: 161678 | AE182: 1.291718931 | AK182: =AK$17 -> Mpumalanga | AL182: -32399 | AM182: 0 | AN182: -32399 | AP182: 39111 | AQ182: 84651 | AR182: 0 | AS182: 0 | AU182: 123762
A183: 1 | C183: =C$18 -> Northern Cape | D183: =NC_3!D$175 -> 126331 | E183: 0 | F183: =NC_3!F$175 -> 126331 | H183: =NC_3!H$175 -> 54126 | I183: =NC_3!I$175 -> 0 | J183: =NC_3!J$175 -> 0 | K183: =NC_3!K$175 -> 0 | M183: 54126 | N183: 0.428445908 | T183: Northern Cape | U183: 110236 | V183: 0 | W183: 110236 | Y183: 36455 | Z183: 36574 | AD183: 73029 | AE183: 0.6624786821 | AK183: =AK$18 -> Northern Cape | AL183: -16095 | AM183: 0 | AN183: -16095 | AP183: -17671 | AQ183: 36574 | AR183: 0 | AS183: 0 | AU183: 18903
A184: 1 | C184: =C$19 -> North West | D184: =NW_3!D$175 -> 184236 | E184: 0 | F184: =NW_3!F$175 -> 184236 | H184: =NW_3!H$175 -> 14470 | I184: =NW_3!I$175 -> 0 | J184: =NW_3!J$175 -> 0 | K184: =NW_3!K$175 -> 0 | M184: 14470 | N184: 0.07854056753 | T184: North West | U184: 98548 | V184: 0 | W184: 98548 | Y184: 8607.45651 | Z184: 11682 | AD184: 20289.45651 | AE184: 0.2058840008 | AK184: =AK$19 -> North West | AL184: -85688 | AM184: 0 | AN184: -85688 | AP184: -5862.54349 | AQ184: 11682 | AR184: 0 | AS184: 0 | AU184: 5819.45651
A185: 1 | C185: =C$20 -> Western Cape | D185: =WC_3!D$175 -> 534553 | E185: 0 | F185: =WC_3!F$175 -> 534553 | H185: =WC_3!H$175 -> 100550 | I185: =WC_3!I$175 -> 0 | J185: =WC_3!J$175 -> 0 | K185: =WC_3!K$175 -> 0 | M185: 100550 | N185: 0.1881010863 | T185: Western Cape | U185: 676648 | V185: 0 | W185: 676648 | Y185: 81625 | Z185: 199092 | AD185: 280717 | AE185: 0.4148641539 | AK185: =AK$20 -> Western Cape | AL185: 142095 | AM185: 0 | AN185: 142095 | AP185: -18925 | AQ185: 199092 | AR185: 0 | AS185: 0 | AU185: 180167
A186: 0 | C186: =C$21 -> 0 | E186: 0 | M186: 0 | N186: 0 | T186: 0 | V186: 0 | AD186: 0 | AE186: 0 | AK186: =AK$21 -> 0 | AL186: 0 | AM186: 0 | AN186: 0 | AP186: 0 | AQ186: 0 | AR186: 0 | AS186: 0 | AU186: 0
A187: 0 | C187: =C$22 -> 0 | E187: 0 | M187: 0 | N187: 0 | T187: 0 | V187: 0 | AD187: 0 | AE187: 0 | AK187: =AK$22 -> 0 | AL187: 0 | AM187: 0 | AN187: 0 | AP187: 0 | AQ187: 0 | AR187: 0 | AS187: 0 | AU187: 0
A188: 0 | C188: =C$23 -> 0 | E188: 0 | M188: 0 | N188: 0 | T188: 0 | V188: 0 | AD188: 0 | AE188: 0 | AK188: =AK$23 -> 0 | AL188: 0 | AM188: 0 | AN188: 0 | AP188: 0 | AQ188: 0 | AR188: 0 | AS188: 0 | AU188: 0
A189: 0 | C189: =C$24 -> 0 | E189: 0 | M189: 0 | N189: 0 | T189: 0 | V189: 0 | AD189: 0 | AE189: 0 | AK189: =AK$24 -> 0 | AL189: 0 | AM189: 0 | AN189: 0 | AP189: 0 | AQ189: 0 | AR189: 0 | AS189: 0 | AU189: 0
A190: 0 | C190: =C$25 -> 0 | E190: 0 | M190: 0 | N190: 0 | T190: 0 | V190: 0 | AD190: 0 | AE190: 0 | AK190: =AK$25 -> 0 | AL190: 0 | AM190: 0 | AN190: 0 | AP190: 0 | AQ190: 0 | AR190: 0 | AS190: 0 | AU190: 0
A191: 0 | C191: =C$26 -> 0 | E191: 0 | M191: 0 | N191: 0 | T191: 0 | V191: 0 | AD191: 0 | AE191: 0 | AK191: =AK$26 -> 0 | AL191: 0 | AM191: 0 | AN191: 0 | AP191: 0 | AQ191: 0 | AR191: 0 | AS191: 0 | AU191: 0
A192: 0 | C192: =C$27 -> 0 | E192: 0 | M192: 0 | N192: 0 | T192: 0 | V192: 0 | AD192: 0 | AE192: 0 | AK192: =AK$27 -> 0 | AL192: 0 | AM192: 0 | AN192: 0 | AP192: 0 | AQ192: 0 | AR192: 0 | AS192: 0 | AU192: 0
A193: 0 | C193: =C$28 -> 0 | E193: 0 | M193: 0 | N193: 0 | T193: 0 | V193: 0 | AD193: 0 | AE193: 0 | AK193: =AK$28 -> 0 | AL193: 0 | AM193: 0 | AN193: 0 | AP193: 0 | AQ193: 0 | AR193: 0 | AS193: 0 | AU193: 0
A194: 0 | C194: =C$29 -> 0 | E194: 0 | M194: 0 | N194: 0 | T194: 0 | V194: 0 | AD194: 0 | AE194: 0 | AK194: =AK$29 -> 0 | AL194: 0 | AM194: 0 | AN194: 0 | AP194: 0 | AQ194: 0 | AR194: 0 | AS194: 0 | AU194: 0
A195: 0 | C195: =C$30 -> 0 | E195: 0 | M195: 0 | N195: 0 | T195: 0 | V195: 0 | AD195: 0 | AE195: 0 | AK195: =AK$30 -> 0 | AL195: 0 | AM195: 0 | AN195: 0 | AP195: 0 | AQ195: 0 | AR195: 0 | AS195: 0 | AU195: 0
A196: 0 | C196: =C$31 -> 0 | E196: 0 | M196: 0 | N196: 0 | T196: 0 | V196: 0 | AD196: 0 | AE196: 0 | AK196: =AK$31 -> 0 | AL196: 0 | AM196: 0 | AN196: 0 | AP196: 0 | AQ196: 0 | AR196: 0 | AS196: 0 | AU196: 0
A197: 0 | E197: 0 | N197: 0 | T197: 0 | V197: 0 | AK197: =AK$32 -> 0 | AL197: 0 | AM197: 0 | AN197: 0 | AP197: 0 | AQ197: 0 | AR197: 0 | AS197: 0 | AU197: 0
A198: 1 | C198: Infrastructure: Payments for financial assets | D198: =EC_3!D198+FS_3!D198+GT_3!D198+KZN_3!D198+LIM_3!D198+MPU_3!D198+NC_3!D198+NW_3!D198+WC_3!D198 -> 0 | E198: 0 | F198: =EC_3!F198+FS_3!F198+GT_3!F198+KZN_3!F198+LIM_3!F198+MPU_3!F198+NC_3!F198+NW_3!F198+WC_3!F198 -> 0 | H198: =EC_3!H198+FS_3!H198+GT_3!H198+KZN_3!H198+LIM_3!H198+MPU_3!H198+NC_3!H198+NW_3!H198+WC_3!H198 -> 0 | I198: =EC_3!I198+FS_3!I198+GT_3!I198+KZN_3!I198+LIM_3!I198+MPU_3!I198+NC_3!I198+NW_3!I198+WC_3!I198 -> 0 | J198: =EC_3!J198+FS_3!J198+GT_3!J198+KZN_3!J198+LIM_3!J198+MPU_3!J198+NC_3!J198+NW_3!J198+WC_3!J198 -> 0 | K198: =EC_3!K198+FS_3!K198+GT_3!K198+KZN_3!K198+LIM_3!K198+MPU_3!K198+NC_3!K198+NW_3!K198+WC_3!K198 -> 0 | M198: =SUM(H198:K198) -> 0 | N198: 0 | T198: Infrastructure: Payments for financial assets | U198: 0 | V198: 0 | W198: 0 | Y198: 0 | Z198: 0 | AA198: 0 | AB198: 0 | AD198: 0 | AE198: 0 | AK198: Infrastructure: Payments for financial assets | AL198: 0 | AM198: 0 | AN198: 0 | AP198: 0 | AQ198: 0 | AR198: 0 | AS198: 0 | AU198: 0
A199: 1
A200: 1 | C200: Total infrastructure | D200: =D36+D106+D129+D152+D175+D198 -> 70574884 | E200: =E36+E106+E129+E152+E175+E198 -> 516620 | F200: 71091504 | H200: =H36+H106+H129+H152+H175+H198 -> 12992491.6 | I200: =IF(General!$BE$1>1,I36+I106+I129+I152+I175+I198,"") ->  | J200: =IF(General!$BE$1>2,J36+J106+J129+J152+J175+J198,"") ->  | K200: =IF(General!$BE$1=4,K36+K106+K129+K152+K175+K198,"") ->  | M200: =M36+M106+M129+M152+M175+M198 -> 12992491.6 | N200: =IFERROR(M200/F200,0) -> 0.1827573039 | T200: Total infrastructure | U200: 66442043 | V200: 108026 | W200: 66550069 | Y200: 11599421.18 | Z200: 14563713.35 | AD200: 26163134.53 | AE200: 0.3937737817 | AK200: Total infrastructure | AL200: =AL36+AL106+AL129+AL198+AL152+AL175 -> -4132841 | AM200: =AM36+AM106+AM129+AM198+AM152+AM175 -> -408594 | AN200: =AN36+AN106+AN129+AN198+AN152+AN175 -> -4541435 | AP200: =AP36+AP106+AP129+AP198+AP152+AP175 -> -1393070.418 | AQ200: =AQ36+AQ106+AQ129+AQ198+AQ152+AQ175 -> 10870283.02 | AR200: 0 | AS200: 0 | AU200: =AU36+AU106+AU129+AU198+AU152+AU175 -> 13170642.93
A201: 1
A202: 1 | C202: =Overview!C68 -> Information submitted by provinces | T202: Information submitted by: Mr Daluhlanga Majeke Head Official: Provincial Treasury Eastern Cape Tel No: (040) 609-5612
A203: 1
... 8 more rows

Sheet Infrastructure2 (hidden)
C3: ="PROVINCIAL INFRASTRUCTURE PROJECT STATUS REPORT BY PROVINCES FOR THE " & QUARTER -> PROVINCIAL INFRASTRUCTURE PROJECT STATUS REPORT BY PROVINCES FOR THE FIRST QUARTER ENDED 30 JUNE 2020 | Q3: ="NATIONAL TREASURY: " & C3 -> NATIONAL TREASURY: PROVINCIAL INFRASTRUCTURE PROJECT STATUS REPORT BY PROVINCES FOR THE FIRST QUARTER ENDED 30 JUNE 2020 | AE3: ="VARIANCE FROM NATIONAL TREASURY: " & C3 -> VARIANCE FROM NATIONAL TREASURY: PROVINCIAL INFRASTRUCTURE PROJECT STATUS REPORT BY PROVINCES FOR THE FIRST QUARTER ENDED 30 JUNE 2020
C4: =UPPER(Prov) & " PROVINCE" -> ALL PROVINCES PROVINCE | Q4: =C4 -> ALL PROVINCES PROVINCE | AE4: =C4 -> ALL PROVINCES PROVINCE
C6: Details | E6: =Overview!D6 -> 2022/23 | Q6: Details | AE6: Details
E7: Project Status Report by Quarter | J7: Project Status to Date | S7: Project Status Report by Quarter | X7: Project Status to Date | AG7: Project Status Report by Quarter | AL7: Project Status to Date
E8: First Quarter | F8: Second Quarter | G8: Third Quarter | H8: Fourth Quarter | J8: Project Progress | K8: Project Progress as a % of total number of projects | S8: First Quarter | T8: Second Quarter | U8: Third Quarter | V8: Fourth Quarter | X8: Project Progress | Y8: Project Progress as a % of total number of projects | AG8: First Quarter | AH8: Second Quarter | AI8: Third Quarter | AJ8: Fourth Quarter | AL8: Project Progress | AM8: Project Progress as a % of total number of projects
A9: Filter | C9: Non-Finacial Information1. | K9: % | Q9: Non-Finacial Information1. | Y9: % | AE9: Non-Finacial Information1. | AM9: %
A10: 1
A11: 1 | C11: Projects by Project Status | Q11: Projects by provincial departments | AE11: =C11 -> Projects by Project Status
A12: =IF(LEN(C12)>3,1,0) -> 1 | C12: Planning | E12: =IF(General!$BE$1<1,"",INDEX($E$35:$E$287,MATCH($C12,$C$35:$C$287,0),1)) -> 4439 | F12: =IF(General!$BE$1<2,"",INDEX($F$35:$F$287,MATCH($C12,$C$35:$C$287,0),1)) ->  | G12: =IF(General!$BE$1<3,"",INDEX($G$35:$G$287,MATCH($C12,$C$35:$C$287,0),1)) ->  | H12: =IF(General!$BE$1<4,"",INDEX($H$35:$H$287,MATCH($C12,$C$35:$C$287,0),1)) ->  | J12: =IFERROR(SUMIF($C$36:$C$287,$C12,$J$36:$J$287),0) -> 4439 | K12: =IFERROR(J12/$J$33,0) -> 0.3404663292 | Q12: =C12 -> Planning | S12: 3451 | T12: 3132 | X12: 3132 | Y12: 0.2895442359 | AE12: =C12 -> Planning | AG12: =IFERROR(S12-E12,0) -> -988 | AH12: =IFERROR(T12-F12,0) -> 0 | AI12: =IFERROR(U12-G12,0) -> 0 | AJ12: =IFERROR(V12-H12,0) -> 0 | AL12: =IFERROR(X12-J12,0) -> -1307
A13: =IF(LEN(C13)>3,1,0) -> 1 | C13: =C59 -> Tender | E13: =IF(General!$BE$1<1,"",INDEX($E$35:$E$287,MATCH($C13,$C$35:$C$287,0),1)) -> 1402 | F13: =IF(General!$BE$1<2,"",INDEX($F$35:$F$287,MATCH($C13,$C$35:$C$287,0),1)) ->  | G13: =IF(General!$BE$1<3,"",INDEX($G$35:$G$287,MATCH($C13,$C$35:$C$287,0),1)) ->  | H13: =IF(General!$BE$1<4,"",INDEX($H$35:$H$287,MATCH($C13,$C$35:$C$287,0),1)) ->  | J13: =IFERROR(SUMIF($C$36:$C$287,$C13,$J$36:$J$287),0) -> 1402 | K13: =IFERROR(J13/$J$33,0) -> 0.10753183 | Q13: Tender | S13: 1272 | T13: 1436 | X13: 1436 | Y13: 0.1327539983 | AE13: Tender | AG13: -130 | AH13: 0 | AI13: 0 | AJ13: 0 | AL13: 34
A14: 1 | C14: Site Handed Over to Contractor | E14: =IF(General!$BE$1<1,"",INDEX($E$35:$E$287,MATCH($C14,$C$35:$C$287,0),1)) -> 233 | F14: =IF(General!$BE$1<2,"",INDEX($F$35:$F$287,MATCH($C14,$C$35:$C$287,0),1)) ->  | G14: =IF(General!$BE$1<3,"",INDEX($G$35:$G$287,MATCH($C14,$C$35:$C$287,0),1)) ->  | H14: =IF(General!$BE$1<4,"",INDEX($H$35:$H$287,MATCH($C14,$C$35:$C$287,0),1)) ->  | J14: 233 | K14: 0.01787083909 | Q14: Site Handed Over to Contractor | S14: 157 | T14: 167 | X14: 167 | Y14: 0.01543866137 | AE14: Site Handed Over to Contractor | AG14: -76 | AH14: 0 | AI14: 0 | AJ14: 0 | AL14: -66
A15: 1 | C15: Construction | E15: =IF(General!$BE$1<1,"",INDEX($E$35:$E$287,MATCH($C15,$C$35:$C$287,0),1)) -> 4349 | F15: =IF(General!$BE$1<2,"",INDEX($F$35:$F$287,MATCH($C15,$C$35:$C$287,0),1)) ->  | G15: =IF(General!$BE$1<3,"",INDEX($G$35:$G$287,MATCH($C15,$C$35:$C$287,0),1)) ->  | H15: =IF(General!$BE$1<4,"",INDEX($H$35:$H$287,MATCH($C15,$C$35:$C$287,0),1)) ->  | J15: 4349 | K15: 0.33356343 | Q15: Construction | S15: 3608 | T15: 3902 | X15: 3902 | Y15: 0.3607284829 | AE15: Construction | AG15: -741 | AH15: 0 | AI15: 0 | AJ15: 0 | AL15: -447
A16: 1 | C16: Practical Completion (100%) | E16: =IF(General!$BE$1<1,"",INDEX($E$35:$E$287,MATCH($C16,$C$35:$C$287,0),1)) -> 1479 | F16: =IF(General!$BE$1<2,"",INDEX($F$35:$F$287,MATCH($C16,$C$35:$C$287,0),1)) ->  | G16: =IF(General!$BE$1<3,"",INDEX($G$35:$G$287,MATCH($C16,$C$35:$C$287,0),1)) ->  | H16: =IF(General!$BE$1<4,"",INDEX($H$35:$H$287,MATCH($C16,$C$35:$C$287,0),1)) ->  | J16: 1479 | K16: 0.1134376438 | Q16: Practical Completion (100%) | S16: 1031 | T16: 1148 | X16: 1148 | Y16: 0.106129241 | AE16: Practical Completion (100%) | AG16: -448 | AH16: 0 | AI16: 0 | AJ16: 0 | AL16: -331
A17: 1 | C17: Final Completion | E17: =IF(General!$BE$1<1,"",INDEX($E$35:$E$287,MATCH($C17,$C$35:$C$287,0),1)) -> 218 | F17: =IF(General!$BE$1<2,"",INDEX($F$35:$F$287,MATCH($C17,$C$35:$C$287,0),1)) ->  | G17: =IF(General!$BE$1<3,"",INDEX($G$35:$G$287,MATCH($C17,$C$35:$C$287,0),1)) ->  | H17: =IF(General!$BE$1<4,"",INDEX($H$35:$H$287,MATCH($C17,$C$35:$C$287,0),1)) ->  | J17: 218 | K17: 0.01672035588 | Q17: Final Completion | S17: 102 | T17: 144 | X17: 144 | Y17: 0.01331237866 | AE17: Final Completion | AG17: -116 | AH17: 0 | AI17: 0 | AJ17: 0 | AL17: -74
A18: 1 | C18: On Hold | E18: =IF(General!$BE$1<1,"",INDEX($E$35:$E$287,MATCH($C18,$C$35:$C$287,0),1)) -> 80 | F18: =IF(General!$BE$1<2,"",INDEX($F$35:$F$287,MATCH($C18,$C$35:$C$287,0),1)) ->  | G18: =IF(General!$BE$1<3,"",INDEX($G$35:$G$287,MATCH($C18,$C$35:$C$287,0),1)) ->  | H18: =IF(General!$BE$1<4,"",INDEX($H$35:$H$287,MATCH($C18,$C$35:$C$287,0),1)) ->  | J18: 80 | K18: 0.006135910416 | Q18: On Hold | S18: 35 | T18: 45 | X18: 45 | Y18: 0.004160118332 | AE18: On Hold | AG18: -45 | AH18: 0 | AI18: 0 | AJ18: 0 | AL18: -35
A19: 1 | C19: Terminated | E19: =IF(General!$BE$1<1,"",INDEX($E$35:$E$287,MATCH($C19,$C$35:$C$287,0),1)) -> 6 | F19: =IF(General!$BE$1<2,"",INDEX($F$35:$F$287,MATCH($C19,$C$35:$C$287,0),1)) ->  | G19: =IF(General!$BE$1<3,"",INDEX($G$35:$G$287,MATCH($C19,$C$35:$C$287,0),1)) ->  | H19: =IF(General!$BE$1<4,"",INDEX($H$35:$H$287,MATCH($C19,$C$35:$C$287,0),1)) ->  | J19: 6 | K19: 0.0004601932812 | Q19: Terminated | S19: 2 | T19: 6 | X19: 6 | Y19: 0.0005546824443 | AE19: Terminated | AG19: -4 | AH19: 0 | AI19: 0 | AJ19: 0 | AL19: 0
A20: 1 | C20: Other - Compensation of employees | E20: =IF(General!$BE$1<1,"",INDEX($E$35:$E$287,MATCH($C20,$C$35:$C$287,0),1)) -> 37 | F20: =IF(General!$BE$1<2,"",INDEX($F$35:$F$287,MATCH($C20,$C$35:$C$287,0),1)) ->  | G20: =IF(General!$BE$1<3,"",INDEX($G$35:$G$287,MATCH($C20,$C$35:$C$287,0),1)) ->  | H20: =IF(General!$BE$1<4,"",INDEX($H$35:$H$287,MATCH($C20,$C$35:$C$287,0),1)) ->  | J20: 37 | K20: 0.002837858567 | Q20: Other - Compensation of employees | S20: 45 | T20: 45 | X20: 45 | Y20: 0.004160118332 | AE20: Other - Compensation of employees | AG20: 8 | AH20: 0 | AI20: 0 | AJ20: 0 | AL20: 8
A21: 1 | C21: Other - Packaged Ongoing Project | E21: =IF(General!$BE$1<1,"",INDEX($E$35:$E$287,MATCH($C21,$C$35:$C$287,0),1)) -> 795 | F21: =IF(General!$BE$1<2,"",INDEX($F$35:$F$287,MATCH($C21,$C$35:$C$287,0),1)) ->  | G21: =IF(General!$BE$1<3,"",INDEX($G$35:$G$287,MATCH($C21,$C$35:$C$287,0),1)) ->  | H21: =IF(General!$BE$1<4,"",INDEX($H$35:$H$287,MATCH($C21,$C$35:$C$287,0),1)) ->  | J21: 795 | K21: 0.06097560976 | Q21: Other - Packaged Ongoing Project | S21: 782 | T21: 792 | X21: 792 | Y21: 0.07321808265 | AE21: Other - Packaged Ongoing Project | AG21: -13 | AH21: 0 | AI21: 0 | AJ21: 0 | AL21: -3
A22: 1 | C22: Project Status Not Captured | E22: =IF(General!$BE$1<1,"",INDEX($E$35:$E$287,MATCH($C22,$C$35:$C$287,0),1)) -> 0 | F22: =IF(General!$BE$1<2,"",INDEX($F$35:$F$287,MATCH($C22,$C$35:$C$287,0),1)) ->  | G22: =IF(General!$BE$1<3,"",INDEX($G$35:$G$287,MATCH($C22,$C$35:$C$287,0),1)) ->  | H22: =IF(General!$BE$1<4,"",INDEX($H$35:$H$287,MATCH($C22,$C$35:$C$287,0),1)) ->  | J22: 0 | K22: 0 | Q22: Project Status Not Captured | S22: 0 | T22: 0 | X22: 0 | Y22: 0 | AE22: Project Status Not Captured | AG22: 0 | AH22: 0 | AI22: 0 | AJ22: 0 | AL22: 0
A23: 0 | E23: =IF(General!$BE$1<1,"",INDEX($E$35:$E$287,MATCH($C23,$C$35:$C$287,0),1)) -> 0 | F23: =IF(General!$BE$1<2,"",INDEX($F$35:$F$287,MATCH($C23,$C$35:$C$287,0),1)) ->  | G23: =IF(General!$BE$1<3,"",INDEX($G$35:$G$287,MATCH($C23,$C$35:$C$287,0),1)) ->  | H23: =IF(General!$BE$1<4,"",INDEX($H$35:$H$287,MATCH($C23,$C$35:$C$287,0),1)) ->  | J23: 0 | K23: 0 | Q23: 0 | S23: 0 | T23: 0 | X23: 0 | Y23: 0 | AE23: 0 | AG23: 0 | AH23: 0 | AI23: 0 | AJ23: 0 | AL23: 0
A24: 0 | E24: =IF(General!$BE$1<1,"",INDEX($E$35:$E$287,MATCH($C24,$C$35:$C$287,0),1)) -> 0 | F24: =IF(General!$BE$1<2,"",INDEX($F$35:$F$287,MATCH($C24,$C$35:$C$287,0),1)) ->  | G24: =IF(General!$BE$1<3,"",INDEX($G$35:$G$287,MATCH($C24,$C$35:$C$287,0),1)) ->  | H24: =IF(General!$BE$1<4,"",INDEX($H$35:$H$287,MATCH($C24,$C$35:$C$287,0),1)) ->  | J24: 0 | K24: 0 | Q24: 0 | S24: 0 | T24: 0 | X24: 0 | Y24: 0 | AE24: 0 | AG24: 0 | AH24: 0 | AI24: 0 | AJ24: 0 | AL24: 0
A25: 0 | E25: =IF(General!$BE$1<1,"",INDEX($E$35:$E$287,MATCH($C25,$C$35:$C$287,0),1)) -> 0 | F25: =IF(General!$BE$1<2,"",INDEX($F$35:$F$287,MATCH($C25,$C$35:$C$287,0),1)) ->  | G25: =IF(General!$BE$1<3,"",INDEX($G$35:$G$287,MATCH($C25,$C$35:$C$287,0),1)) ->  | H25: =IF(General!$BE$1<4,"",INDEX($H$35:$H$287,MATCH($C25,$C$35:$C$287,0),1)) ->  | J25: 0 | K25: 0 | Q25: 0 | S25: 0 | T25: 0 | X25: 0 | Y25: 0 | AE25: 0 | AG25: 0 | AH25: 0 | AI25: 0 | AJ25: 0 | AL25: 0
A26: 0 | E26: =IF(General!$BE$1<1,"",INDEX($E$35:$E$287,MATCH($C26,$C$35:$C$287,0),1)) -> 0 | F26: =IF(General!$BE$1<2,"",INDEX($F$35:$F$287,MATCH($C26,$C$35:$C$287,0),1)) ->  | G26: =IF(General!$BE$1<3,"",INDEX($G$35:$G$287,MATCH($C26,$C$35:$C$287,0),1)) ->  | H26: =IF(General!$BE$1<4,"",INDEX($H$35:$H$287,MATCH($C26,$C$35:$C$287,0),1)) ->  | J26: 0 | K26: 0 | Q26: 0 | S26: 0 | T26: 0 | X26: 0 | Y26: 0 | AE26: 0 | AG26: 0 | AH26: 0 | AI26: 0 | AJ26: 0 | AL26: 0
A27: 0 | E27: =IF(General!$BE$1<1,"",INDEX($E$35:$E$287,MATCH($C27,$C$35:$C$287,0),1)) -> 0 | F27: =IF(General!$BE$1<2,"",INDEX($F$35:$F$287,MATCH($C27,$C$35:$C$287,0),1)) ->  | G27: =IF(General!$BE$1<3,"",INDEX($G$35:$G$287,MATCH($C27,$C$35:$C$287,0),1)) ->  | H27: =IF(General!$BE$1<4,"",INDEX($H$35:$H$287,MATCH($C27,$C$35:$C$287,0),1)) ->  | J27: 0 | K27: 0 | Q27: 0 | S27: 0 | T27: 0 | X27: 0 | Y27: 0 | AE27: 0 | AG27: 0 | AH27: 0 | AI27: 0 | AJ27: 0 | AL27: 0
A28: 0 | E28: =IF(General!$BE$1<1,"",INDEX($E$35:$E$287,MATCH($C28,$C$35:$C$287,0),1)) -> 0 | F28: =IF(General!$BE$1<2,"",INDEX($F$35:$F$287,MATCH($C28,$C$35:$C$287,0),1)) ->  | G28: =IF(General!$BE$1<3,"",INDEX($G$35:$G$287,MATCH($C28,$C$35:$C$287,0),1)) ->  | H28: =IF(General!$BE$1<4,"",INDEX($H$35:$H$287,MATCH($C28,$C$35:$C$287,0),1)) ->  | J28: 0 | K28: 0 | Q28: 0 | S28: 0 | T28: 0 | X28: 0 | Y28: 0 | AE28: 0 | AG28: 0 | AH28: 0 | AI28: 0 | AJ28: 0 | AL28: 0
A29: 0 | E29: =IF(General!$BE$1<1,"",INDEX($E$35:$E$287,MATCH($C29,$C$35:$C$287,0),1)) -> 0 | F29: =IF(General!$BE$1<2,"",INDEX($F$35:$F$287,MATCH($C29,$C$35:$C$287,0),1)) ->  | G29: =IF(General!$BE$1<3,"",INDEX($G$35:$G$287,MATCH($C29,$C$35:$C$287,0),1)) ->  | H29: =IF(General!$BE$1<4,"",INDEX($H$35:$H$287,MATCH($C29,$C$35:$C$287,0),1)) ->  | J29: 0 | K29: 0 | Q29: 0 | S29: 0 | T29: 0 | X29: 0 | Y29: 0 | AE29: 0 | AG29: 0 | AH29: 0 | AI29: 0 | AJ29: 0 | AL29: 0
A30: 0 | E30: =IF(General!$BE$1<1,"",INDEX($E$35:$E$287,MATCH($C30,$C$35:$C$287,0),1)) -> 0 | F30: =IF(General!$BE$1<2,"",INDEX($F$35:$F$287,MATCH($C30,$C$35:$C$287,0),1)) ->  | G30: =IF(General!$BE$1<3,"",INDEX($G$35:$G$287,MATCH($C30,$C$35:$C$287,0),1)) ->  | H30: =IF(General!$BE$1<4,"",INDEX($H$35:$H$287,MATCH($C30,$C$35:$C$287,0),1)) ->  | J30: 0 | K30: 0 | Q30: 0 | S30: 0 | T30: 0 | X30: 0 | Y30: 0 | AE30: 0 | AG30: 0 | AH30: 0 | AI30: 0 | AJ30: 0 | AL30: 0
A31: 0 | E31: =IF(General!$BE$1<1,"",INDEX($E$35:$E$287,MATCH($C31,$C$35:$C$287,0),1)) -> 0 | F31: =IF(General!$BE$1<2,"",INDEX($F$35:$F$287,MATCH($C31,$C$35:$C$287,0),1)) ->  | G31: =IF(General!$BE$1<3,"",INDEX($G$35:$G$287,MATCH($C31,$C$35:$C$287,0),1)) ->  | H31: =IF(General!$BE$1<4,"",INDEX($H$35:$H$287,MATCH($C31,$C$35:$C$287,0),1)) ->  | J31: 0 | K31: 0 | Q31: 0 | S31: 0 | T31: 0 | X31: 0 | Y31: 0 | AE31: 0 | AG31: 0 | AH31: 0 | AI31: 0 | AJ31: 0 | AL31: 0
A32: 1
A33: 1 | C33: Total infrastructure | E33: =SUM(E12:E31) -> 13038 | F33: =IF(General!$BE$1>1,SUM(F12:F31),"") ->  | G33: =IF(General!$BE$1>2,SUM(G12:G31),"") ->  | H33: =IF(General!$BE$1=4,SUM(H12:H31),"") ->  | J33: =SUM(J12:J31) -> 13038 | K33: =IFERROR(J33/$J$33,0) -> 1 | Q33: Total infrastructure | S33: 10485 | T33: 10817 | X33: 10817 | Y33: 1 | AE33: Total infrastructure | AG33: =SUM(AG12:AG31) -> -2553 | AH33: =SUM(AH12:AH31) -> 0 | AI33: 0 | AJ33: 0 | AL33: =SUM(AL12:AL31) -> -2221
A34: 1
A35: 1 | C35: Projects by Project Status | Q35: Projects by Project Status | AE35: Projects by Project Status
A36: 1 | C36: Planning | E36: =EC_4!E36+FS_4!E36+GT_4!E36+KZN_4!E36+LIM_4!E36+MPU_4!E36+NC_4!E36+NW_4!E36+WC_4!E36 -> 4439 | F36: =EC_4!F36+FS_4!F36+GT_4!F36+KZN_4!F36+LIM_4!F36+MPU_4!F36+NC_4!F36+NW_4!F36+WC_4!F36 -> 0 | G36: =EC_4!G36+FS_4!G36+GT_4!G36+KZN_4!G36+LIM_4!G36+MPU_4!G36+NC_4!G36+NW_4!G36+WC_4!G36 -> 0 | H36: =EC_4!H36+FS_4!H36+GT_4!H36+KZN_4!H36+LIM_4!H36+MPU_4!H36+NC_4!H36+NW_4!H36+WC_4!H36 -> 0 | J36: =OFFSET($D36,0,Settings!$T$6) -> 4439 | K36: =IFERROR(J36/$J$33,0) -> 0.3404663292 | Q36: =C36 -> Planning | S36: 3451 | T36: 3132 | U36: 0 | V36: 0 | X36: 3132 | Y36: 0.2895442359 | AE36: =C36 -> Planning | AF36: =SUM(AF37:AF82) -> 0 | AG36: =IFERROR(S36-E36,0) -> -988 | AH36: =IFERROR(T36-F36,0) -> 3132 | AI36: =IFERROR(U36-G36,0) -> 0 | AJ36: =IFERROR(V36-H36,0) -> 0 | AL36: =IFERROR(X36-J36,0) -> -1307
A37: 1 | C37: of which: | Q37: of which: | AE37: of which:
A38: 1 | C38: Eastern Cape | E38: =EC_4!E$36 -> 437 | F38: =EC_4!F$36 -> 0 | G38: =EC_4!G$36 -> 0 | H38: =EC_4!H$36 -> 0 | J38: =OFFSET($D38,0,Settings!$T$6) -> 437 | K38: =IFERROR(J38/$J$33,0) -> 0.03351741065 | Q38: Eastern Cape | S38: 440 | T38: 435 | U38: 0 | V38: 0 | X38: 435 | Y38: 0.04021447721 | AE38: Eastern Cape | AG38: =IFERROR(S38-E38,0) -> 3 | AH38: =IFERROR(T38-F38,0) -> 435 | AI38: =IFERROR(U38-G38,0) -> 0 | AJ38: =IFERROR(V38-H38,0) -> 0 | AL38: =IFERROR(X38-J38,0) -> -2
A39: 1 | C39: Free State | E39: =FS_4!E$36 -> 216 | F39: =FS_4!F$36 -> 0 | G39: =FS_4!G$36 -> 0 | H39: =FS_4!H$36 -> 0 | J39: =OFFSET($D39,0,Settings!$T$6) -> 216 | K39: 0.01656695812 | Q39: Free State | S39: 162 | T39: 129 | U39: 0 | V39: 0 | X39: 129 | Y39: 0.01192567255 | AE39: Free State | AG39: -54 | AH39: 129 | AI39: 0 | AJ39: 0 | AL39: -87
A40: 1 | C40: Gauteng | E40: =GT_4!E$36 -> 577 | F40: =GT_4!F$36 -> 0 | G40: =GT_4!G$36 -> 0 | H40: =GT_4!H$36 -> 0 | J40: =OFFSET($D40,0,Settings!$T$6) -> 577 | K40: 0.04425525387 | Q40: Gauteng | S40: 436 | T40: 438 | U40: 0 | V40: 0 | X40: 438 | Y40: 0.04049181843 | AE40: Gauteng | AG40: -141 | AH40: 438 | AI40: 0 | AJ40: 0 | AL40: -139
A41: 1 | C41: KwaZulu-Natal | E41: =KZN_4!E$36 -> 1414 | F41: =KZN_4!F$36 -> 0 | G41: =KZN_4!G$36 -> 0 | H41: =KZN_4!H$36 -> 0 | J41: =OFFSET($D41,0,Settings!$T$6) -> 1414 | K41: 0.1084522166 | Q41: KwaZulu-Natal | S41: 1121 | T41: 975 | U41: 0 | V41: 0 | X41: 975 | Y41: 0.0901358972 | AE41: KwaZulu-Natal | AG41: -293 | AH41: 975 | AI41: 0 | AJ41: 0 | AL41: -439
A42: 1 | C42: Limpopo | E42: =LIM_4!E$36 -> 449 | F42: =LIM_4!F$36 -> 0 | G42: =LIM_4!G$36 -> 0 | H42: =LIM_4!H$36 -> 0 | J42: =OFFSET($D42,0,Settings!$T$6) -> 449 | K42: 0.03443779721 | Q42: Limpopo | S42: 391 | T42: 380 | U42: 0 | V42: 0 | X42: 380 | Y42: 0.03512988814 | AE42: Limpopo | AG42: -58 | AH42: 380 | AI42: 0 | AJ42: 0 | AL42: -69
A43: 1 | C43: Mpumalanga | E43: =MPU_4!E$36 -> 590 | F43: =MPU_4!F$36 -> 0 | G43: =MPU_4!G$36 -> 0 | H43: =MPU_4!H$36 -> 0 | J43: =OFFSET($D43,0,Settings!$T$6) -> 590 | K43: 0.04525233932 | Q43: Mpumalanga | S43: 335 | T43: 244 | U43: 0 | V43: 0 | X43: 244 | Y43: 0.02255708607 | AE43: Mpumalanga | AG43: -255 | AH43: 244 | AI43: 0 | AJ43: 0 | AL43: -346
A44: 1 | C44: Northern Cape | E44: =NC_4!E$36 -> 137 | F44: =NC_4!F$36 -> 0 | G44: =NC_4!G$36 -> 0 | H44: =NC_4!H$36 -> 0 | J44: =OFFSET($D44,0,Settings!$T$6) -> 137 | K44: 0.01050774659 | Q44: Northern Cape | S44: 94 | T44: 81 | U44: 0 | V44: 0 | X44: 81 | Y44: 0.007488212998 | AE44: Northern Cape | AG44: -43 | AH44: 81 | AI44: 0 | AJ44: 0 | AL44: -56
A45: 1 | C45: North West | E45: =NW_4!E$36 -> 408 | F45: =NW_4!F$36 -> 0 | G45: =NW_4!G$36 -> 0 | H45: =NW_4!H$36 -> 0 | J45: =OFFSET($D45,0,Settings!$T$6) -> 408 | K45: 0.03129314312 | Q45: North West | S45: 298 | T45: 284 | U45: 0 | V45: 0 | X45: 284 | Y45: 0.02625496903 | AE45: North West | AG45: -110 | AH45: 284 | AI45: 0 | AJ45: 0 | AL45: -124
A46: 1 | C46: Western Cape | E46: =WC_4!E$36 -> 211 | F46: =WC_4!F$36 -> 0 | G46: =WC_4!G$36 -> 0 | H46: =WC_4!H$36 -> 0 | J46: =OFFSET($D46,0,Settings!$T$6) -> 211 | K46: 0.01618346372 | Q46: Western Cape | S46: 174 | T46: 166 | U46: 0 | V46: 0 | X46: 166 | Y46: 0.01534621429 | AE46: Western Cape | AG46: -37 | AH46: 166 | AI46: 0 | AJ46: 0 | AL46: -45
A47: 0 | J47: =OFFSET($D47,0,Settings!$T$6) -> 0 | K47: 0 | Q47: 0 | X47: 0 | Y47: 0 | AE47: 0 | AG47: 0 | AH47: 0 | AI47: 0 | AJ47: 0 | AL47: 0
A48: 0 | J48: =OFFSET($D48,0,Settings!$T$6) -> 0 | K48: 0 | Q48: 0 | X48: 0 | Y48: 0 | AE48: 0 | AG48: 0 | AH48: 0 | AI48: 0 | AJ48: 0 | AL48: 0
A49: 0 | J49: =OFFSET($D49,0,Settings!$T$6) -> 0 | K49: 0 | Q49: 0 | X49: 0 | Y49: 0 | AE49: 0 | AG49: 0 | AH49: 0 | AI49: 0 | AJ49: 0 | AL49: 0
A50: 0 | J50: =OFFSET($D50,0,Settings!$T$6) -> 0 | K50: 0 | Q50: 0 | X50: 0 | Y50: 0 | AE50: 0 | AG50: 0 | AH50: 0 | AI50: 0 | AJ50: 0 | AL50: 0
A51: 0 | J51: =OFFSET($D51,0,Settings!$T$6) -> 0 | K51: 0 | Q51: 0 | X51: 0 | Y51: 0 | AE51: 0 | AG51: 0 | AH51: 0 | AI51: 0 | AJ51: 0 | AL51: 0
A52: 0 | J52: =OFFSET($D52,0,Settings!$T$6) -> 0 | K52: 0 | Q52: 0 | X52: 0 | Y52: 0 | AE52: 0 | AG52: 0 | AH52: 0 | AI52: 0 | AJ52: 0 | AL52: 0
A53: 0 | J53: =OFFSET($D53,0,Settings!$T$6) -> 0 | K53: 0 | Q53: 0 | X53: 0 | Y53: 0 | AE53: 0 | AG53: 0 | AH53: 0 | AI53: 0 | AJ53: 0 | AL53: 0
A54: 0 | J54: =OFFSET($D54,0,Settings!$T$6) -> 0 | K54: 0 | Q54: 0 | X54: 0 | Y54: 0 | AE54: 0 | AG54: 0 | AH54: 0 | AI54: 0 | AJ54: 0 | AL54: 0
A55: 0 | J55: =OFFSET($D55,0,Settings!$T$6) -> 0 | K55: 0 | Q55: 0 | X55: 0 | Y55: 0 | AE55: 0 | AG55: 0 | AH55: 0 | AI55: 0 | AJ55: 0 | AL55: 0
A56: 0 | J56: =OFFSET($D56,0,Settings!$T$6) -> 0 | K56: 0 | Q56: 0 | X56: 0 | Y56: 0 | AE56: 0 | AG56: 0 | AH56: 0 | AI56: 0 | AJ56: 0 | AL56: 0
A57: 0 | J57: =OFFSET($D57,0,Settings!$T$6) -> 0 | K57: 0 | Q57: 0 | X57: 0 | Y57: 0 | AE57: 0 | AG57: 0 | AH57: 0 | AI57: 0 | AJ57: 0 | AL57: 0
A58: 0 | C58: =C$32 -> 0 | J58: =OFFSET($D58,0,Settings!$T$6) -> 0 | K58: 0 | Q58: 0 | X58: 0 | Y58: 0 | AE58: 0 | AG58: 0 | AH58: 0 | AI58: 0 | AJ58: 0 | AL58: 0
A59: 1 | C59: Tender | E59: =EC_4!E59+FS_4!E59+GT_4!E59+KZN_4!E59+LIM_4!E59+MPU_4!E59+NC_4!E59+NW_4!E59+WC_4!E59 -> 1402 | F59: =EC_4!F59+FS_4!F59+GT_4!F59+KZN_4!F59+LIM_4!F59+MPU_4!F59+NC_4!F59+NW_4!F59+WC_4!F59 -> 0 | G59: =EC_4!G59+FS_4!G59+GT_4!G59+KZN_4!G59+LIM_4!G59+MPU_4!G59+NC_4!G59+NW_4!G59+WC_4!G59 -> 0 | H59: =EC_4!H59+FS_4!H59+GT_4!H59+KZN_4!H59+LIM_4!H59+MPU_4!H59+NC_4!H59+NW_4!H59+WC_4!H59 -> 0 | J59: =OFFSET($D59,0,Settings!$T$6) -> 1402 | K59: 0.10753183 | Q59: Tender | S59: 1272 | T59: 1436 | U59: 0 | V59: 0 | X59: 1436 | Y59: 0.1327539983 | AE59: Tender | AG59: -130 | AH59: 1436 | AI59: 0 | AJ59: 0 | AL59: 34
A60: 1 | C60: of which: | Q60: of which: | AE60: of which:
A61: =A38 -> 1 | C61: =C38 -> Eastern Cape | E61: =EC_4!E$59 -> 184 | F61: =EC_4!F$59 -> 0 | G61: =EC_4!G$59 -> 0 | H61: =EC_4!H$59 -> 0 | J61: =OFFSET($D61,0,Settings!$T$6) -> 184 | K61: =IFERROR(J61/$J$33,0) -> 0.01411259396 | Q61: Eastern Cape | S61: 184 | T61: 178 | U61: 0 | V61: 0 | X61: 178 | Y61: 0.01645557918 | AE61: Eastern Cape | AG61: =IFERROR(S61-E61,0) -> 0 | AH61: =IFERROR(T61-F61,0) -> 178 | AI61: =IFERROR(U61-G61,0) -> 0 | AJ61: =IFERROR(V61-H61,0) -> 0 | AL61: =IFERROR(X61-J61,0) -> -6
A62: =A39 -> 1 | C62: =C39 -> Free State | E62: =FS_4!E$59 -> 27 | F62: =FS_4!F$59 -> 0 | G62: =FS_4!G$59 -> 0 | H62: =FS_4!H$59 -> 0 | J62: =OFFSET($D62,0,Settings!$T$6) -> 27 | K62: 0.002070869765 | Q62: Free State | S62: 22 | T62: 55 | U62: 0 | V62: 0 | X62: 55 | Y62: 0.005084589073 | AE62: Free State | AG62: -5 | AH62: 55 | AI62: 0 | AJ62: 0 | AL62: 28
A63: 1 | C63: Gauteng | E63: =GT_4!E$59 -> 61 | F63: =GT_4!F$59 -> 0 | G63: =GT_4!G$59 -> 0 | H63: =GT_4!H$59 -> 0 | J63: =OFFSET($D63,0,Settings!$T$6) -> 61 | K63: 0.004678631692 | Q63: Gauteng | S63: 73 | T63: 69 | U63: 0 | V63: 0 | X63: 69 | Y63: 0.006378848109 | AE63: Gauteng | AG63: 12 | AH63: 69 | AI63: 0 | AJ63: 0 | AL63: 8
A64: 1 | C64: KwaZulu-Natal | E64: =KZN_4!E$59 -> 870 | F64: =KZN_4!F$59 -> 0 | G64: =KZN_4!G$59 -> 0 | H64: =KZN_4!H$59 -> 0 | J64: =OFFSET($D64,0,Settings!$T$6) -> 870 | K64: 0.06672802577 | Q64: KwaZulu-Natal | S64: 600 | T64: 763 | U64: 0 | V64: 0 | X64: 763 | Y64: 0.0705371175 | AE64: KwaZulu-Natal | AG64: -270 | AH64: 763 | AI64: 0 | AJ64: 0 | AL64: -107
A65: 1 | C65: Limpopo | E65: =LIM_4!E$59 -> 147 | F65: =LIM_4!F$59 -> 0 | G65: =LIM_4!G$59 -> 0 | H65: =LIM_4!H$59 -> 0 | J65: =OFFSET($D65,0,Settings!$T$6) -> 147 | K65: 0.01127473539 | Q65: Limpopo | S65: 205 | T65: 181 | U65: 0 | V65: 0 | X65: 181 | Y65: 0.0167329204 | AE65: Limpopo | AG65: 58 | AH65: 181 | AI65: 0 | AJ65: 0 | AL65: 34
A66: 1 | C66: Mpumalanga | E66: =MPU_4!E$59 -> 43 | F66: =MPU_4!F$59 -> 0 | G66: =MPU_4!G$59 -> 0 | H66: =MPU_4!H$59 -> 0 | J66: =OFFSET($D66,0,Settings!$T$6) -> 43 | K66: 0.003298051848 | Q66: Mpumalanga | S66: 75 | T66: 99 | U66: 0 | V66: 0 | X66: 99 | Y66: 0.009152260331 | AE66: Mpumalanga | AG66: 32 | AH66: 99 | AI66: 0 | AJ66: 0 | AL66: 56
A67: 1 | C67: Northern Cape | E67: =NC_4!E$59 -> 16 | F67: =NC_4!F$59 -> 0 | G67: =NC_4!G$59 -> 0 | H67: =NC_4!H$59 -> 0 | J67: =OFFSET($D67,0,Settings!$T$6) -> 16 | K67: 0.001227182083 | Q67: Northern Cape | S67: 55 | T67: 28 | U67: 0 | V67: 0 | X67: 28 | Y67: 0.002588518073 | AE67: Northern Cape | AG67: 39 | AH67: 28 | AI67: 0 | AJ67: 0 | AL67: 12
A68: 1 | C68: North West | E68: =NW_4!E$59 -> 35 | F68: =NW_4!F$59 -> 0 | G68: =NW_4!G$59 -> 0 | H68: =NW_4!H$59 -> 0 | J68: =OFFSET($D68,0,Settings!$T$6) -> 35 | K68: 0.002684460807 | Q68: North West | S68: 32 | T68: 36 | U68: 0 | V68: 0 | X68: 36 | Y68: 0.003328094666 | AE68: North West | AG68: -3 | AH68: 36 | AI68: 0 | AJ68: 0 | AL68: 1
A69: 1 | C69: Western Cape | E69: =WC_4!E$59 -> 19 | F69: =WC_4!F$59 -> 0 | G69: =WC_4!G$59 -> 0 | H69: =WC_4!H$59 -> 0 | J69: =OFFSET($D69,0,Settings!$T$6) -> 19 | K69: 0.001457278724 | Q69: Western Cape | S69: 26 | T69: 27 | U69: 0 | V69: 0 | X69: 27 | Y69: 0.002496070999 | AE69: Western Cape | AG69: 7 | AH69: 27 | AI69: 0 | AJ69: 0 | AL69: 8
A70: 0 | C70: 0 | J70: =OFFSET($D70,0,Settings!$T$6) -> 0 | K70: 0 | Q70: 0 | X70: 0 | Y70: 0 | AE70: 0 | AG70: 0 | AH70: 0 | AI70: 0 | AJ70: 0 | AL70: 0
A71: 0 | C71: 0 | J71: =OFFSET($D71,0,Settings!$T$6) -> 0 | K71: 0 | Q71: 0 | X71: 0 | Y71: 0 | AE71: 0 | AG71: 0 | AH71: 0 | AI71: 0 | AJ71: 0 | AL71: 0
A72: 0 | C72: 0 | J72: =OFFSET($D72,0,Settings!$T$6) -> 0 | K72: 0 | Q72: 0 | X72: 0 | Y72: 0 | AE72: 0 | AG72: 0 | AH72: 0 | AI72: 0 | AJ72: 0 | AL72: 0
A73: 0 | C73: 0 | J73: =OFFSET($D73,0,Settings!$T$6) -> 0 | K73: 0 | Q73: 0 | X73: 0 | Y73: 0 | AE73: 0 | AG73: 0 | AH73: 0 | AI73: 0 | AJ73: 0 | AL73: 0
A74: 0 | C74: 0 | J74: =OFFSET($D74,0,Settings!$T$6) -> 0 | K74: 0 | Q74: 0 | X74: 0 | Y74: 0 | AE74: 0 | AG74: 0 | AH74: 0 | AI74: 0 | AJ74: 0 | AL74: 0
A75: 0 | C75: 0 | J75: =OFFSET($D75,0,Settings!$T$6) -> 0 | K75: 0 | Q75: 0 | X75: 0 | Y75: 0 | AE75: 0 | AG75: 0 | AH75: 0 | AI75: 0 | AJ75: 0 | AL75: 0
A76: 0 | C76: 0 | J76: =OFFSET($D76,0,Settings!$T$6) -> 0 | K76: 0 | Q76: 0 | X76: 0 | Y76: 0 | AE76: 0 | AG76: 0 | AH76: 0 | AI76: 0 | AJ76: 0 | AL76: 0
A77: 0 | C77: 0 | J77: =OFFSET($D77,0,Settings!$T$6) -> 0 | K77: 0 | Q77: 0 | X77: 0 | Y77: 0 | AE77: 0 | AG77: 0 | AH77: 0 | AI77: 0 | AJ77: 0 | AL77: 0
A78: 0 | C78: 0 | J78: =OFFSET($D78,0,Settings!$T$6) -> 0 | K78: 0 | Q78: 0 | X78: 0 | Y78: 0 | AE78: 0 | AG78: 0 | AH78: 0 | AI78: 0 | AJ78: 0 | AL78: 0
A79: 0 | C79: 0 | J79: =OFFSET($D79,0,Settings!$T$6) -> 0 | K79: 0 | Q79: 0 | X79: 0 | Y79: 0 | AE79: 0 | AG79: 0 | AH79: 0 | AI79: 0 | AJ79: 0 | AL79: 0
A80: 0 | C80: 0 | J80: =OFFSET($D80,0,Settings!$T$6) -> 0 | K80: 0 | Q80: 0 | X80: 0 | Y80: 0 | AE80: 0 | AG80: 0 | AH80: 0 | AI80: 0 | AJ80: 0 | AL80: 0
A81: 0 | C81: 0 | J81: =OFFSET($D81,0,Settings!$T$6) -> 0 | K81: 0 | Q81: 0 | X81: 0 | Y81: 0 | AE81: 0 | AG81: 0 | AH81: 0 | AI81: 0 | AJ81: 0 | AL81: 0
A82: 1 | C82: Site Handed Over to Contractor | E82: =EC_4!E82+FS_4!E82+GT_4!E82+KZN_4!E82+LIM_4!E82+MPU_4!E82+NC_4!E82+NW_4!E82+WC_4!E82 -> 233 | F82: =EC_4!F82+FS_4!F82+GT_4!F82+KZN_4!F82+LIM_4!F82+MPU_4!F82+NC_4!F82+NW_4!F82+WC_4!F82 -> 0 | G82: =EC_4!G82+FS_4!G82+GT_4!G82+KZN_4!G82+LIM_4!G82+MPU_4!G82+NC_4!G82+NW_4!G82+WC_4!G82 -> 0 | H82: =EC_4!H82+FS_4!H82+GT_4!H82+KZN_4!H82+LIM_4!H82+MPU_4!H82+NC_4!H82+NW_4!H82+WC_4!H82 -> 0 | J82: =OFFSET($D82,0,Settings!$T$6) -> 233 | K82: 0.01787083909 | Q82: Site Handed Over to Contractor | S82: 157 | T82: 167 | U82: 0 | V82: 0 | X82: 167 | Y82: 0.01543866137 | AE82: Site Handed Over to Contractor | AG82: -76 | AH82: 167 | AI82: 0 | AJ82: 0 | AL82: -66
A83: 1 | C83: of which: | Q83: of which: | AE83: of which:
A84: =A61 -> 1 | C84: =C61 -> Eastern Cape | E84: =EC_4!E$82 -> 80 | F84: =EC_4!F$82 -> 0 | G84: =EC_4!G$82 -> 0 | H84: =EC_4!H$82 -> 0 | J84: =OFFSET($D84,0,Settings!$T$6) -> 80 | K84: =IFERROR(J84/$J$33,0) -> 0.006135910416 | Q84: Eastern Cape | S84: 43 | T84: 40 | U84: 0 | V84: 0 | X84: 40 | Y84: 0.003697882962 | AE84: Eastern Cape | AG84: =IFERROR(S84-E84,0) -> -37 | AH84: =IFERROR(T84-F84,0) -> 40 | AI84: =IFERROR(U84-G84,0) -> 0 | AJ84: =IFERROR(V84-H84,0) -> 0 | AL84: =IFERROR(X84-J84,0) -> -40
A85: =A62 -> 1 | C85: =C62 -> Free State | E85: =FS_4!E$82 -> 9 | F85: =FS_4!F$82 -> 0 | G85: =FS_4!G$82 -> 0 | H85: =FS_4!H$82 -> 0 | J85: =OFFSET($D85,0,Settings!$T$6) -> 9 | K85: 0.0006902899218 | Q85: Free State | S85: 5 | T85: 5 | U85: 0 | V85: 0 | X85: 5 | Y85: 0.0004622353703 | AE85: Free State | AG85: -4 | AH85: 5 | AI85: 0 | AJ85: 0 | AL85: -4
A86: 1 | C86: Gauteng | E86: =GT_4!E$82 -> 7 | F86: =GT_4!F$82 -> 0 | G86: =GT_4!G$82 -> 0 | H86: =GT_4!H$82 -> 0 | J86: =OFFSET($D86,0,Settings!$T$6) -> 7 | K86: 0.0005368921614 | Q86: Gauteng | S86: 9 | T86: 9 | U86: 0 | V86: 0 | X86: 9 | Y86: 0.0008320236665 | AE86: Gauteng | AG86: 2 | AH86: 9 | AI86: 0 | AJ86: 0 | AL86: 2
A87: 1 | C87: KwaZulu-Natal | E87: =KZN_4!E$82 -> 16 | F87: =KZN_4!F$82 -> 0 | G87: =KZN_4!G$82 -> 0 | H87: =KZN_4!H$82 -> 0 | J87: =OFFSET($D87,0,Settings!$T$6) -> 16 | K87: 0.001227182083 | Q87: KwaZulu-Natal | S87: 17 | T87: 19 | U87: 0 | V87: 0 | X87: 19 | Y87: 0.001756494407 | AE87: KwaZulu-Natal | AG87: 1 | AH87: 19 | AI87: 0 | AJ87: 0 | AL87: 3
A88: 1 | C88: Limpopo | E88: =LIM_4!E$82 -> 68 | F88: =LIM_4!F$82 -> 0 | G88: =LIM_4!G$82 -> 0 | H88: =LIM_4!H$82 -> 0 | J88: =OFFSET($D88,0,Settings!$T$6) -> 68 | K88: 0.005215523853 | Q88: Limpopo | S88: 32 | T88: 36 | U88: 0 | V88: 0 | X88: 36 | Y88: 0.003328094666 | AE88: Limpopo | AG88: -36 | AH88: 36 | AI88: 0 | AJ88: 0 | AL88: -32
A89: 1 | C89: Mpumalanga | E89: =MPU_4!E$82 -> 12 | F89: =MPU_4!F$82 -> 0 | G89: =MPU_4!G$82 -> 0 | H89: =MPU_4!H$82 -> 0 | J89: =OFFSET($D89,0,Settings!$T$6) -> 12 | K89: 0.0009203865624 | Q89: Mpumalanga | S89: 7 | T89: 9 | U89: 0 | V89: 0 | X89: 9 | Y89: 0.0008320236665 | AE89: Mpumalanga | AG89: -5 | AH89: 9 | AI89: 0 | AJ89: 0 | AL89: -3
A90: 1 | C90: Northern Cape | E90: =NC_4!E$82 -> 22 | F90: =NC_4!F$82 -> 0 | G90: =NC_4!G$82 -> 0 | H90: =NC_4!H$82 -> 0 | J90: =OFFSET($D90,0,Settings!$T$6) -> 22 | K90: 0.001687375364 | Q90: Northern Cape | S90: 23 | T90: 22 | U90: 0 | V90: 0 | X90: 22 | Y90: 0.002033835629 | AE90: Northern Cape | AG90: 1 | AH90: 22 | AI90: 0 | AJ90: 0 | AL90: 0
A91: 1 | C91: North West | E91: =NW_4!E$82 -> 16 | F91: =NW_4!F$82 -> 0 | G91: =NW_4!G$82 -> 0 | H91: =NW_4!H$82 -> 0 | J91: =OFFSET($D91,0,Settings!$T$6) -> 16 | K91: 0.001227182083 | Q91: North West | S91: 17 | T91: 25 | U91: 0 | V91: 0 | X91: 25 | Y91: 0.002311176851 | AE91: North West | AG91: 1 | AH91: 25 | AI91: 0 | AJ91: 0 | AL91: 9
A92: 1 | C92: Western Cape | E92: =WC_4!E$82 -> 3 | F92: =WC_4!F$82 -> 0 | G92: =WC_4!G$82 -> 0 | H92: =WC_4!H$82 -> 0 | J92: =OFFSET($D92,0,Settings!$T$6) -> 3 | K92: 0.0002300966406 | Q92: Western Cape | S92: 4 | T92: 2 | U92: 0 | V92: 0 | X92: 2 | Y92: 0.0001848941481 | AE92: Western Cape | AG92: 1 | AH92: 2 | AI92: 0 | AJ92: 0 | AL92: -1
A93: 0 | C93: 0 | J93: =OFFSET($D93,0,Settings!$T$6) -> 0 | K93: 0 | Q93: 0 | X93: 0 | Y93: 0 | AE93: 0 | AG93: 0 | AH93: 0 | AI93: 0 | AJ93: 0 | AL93: 0
A94: 0 | C94: 0 | J94: =OFFSET($D94,0,Settings!$T$6) -> 0 | K94: 0 | Q94: 0 | X94: 0 | Y94: 0 | AE94: 0 | AG94: 0 | AH94: 0 | AI94: 0 | AJ94: 0 | AL94: 0
A95: 0 | C95: 0 | J95: =OFFSET($D95,0,Settings!$T$6) -> 0 | K95: 0 | Q95: 0 | X95: 0 | Y95: 0 | AE95: 0 | AG95: 0 | AH95: 0 | AI95: 0 | AJ95: 0 | AL95: 0
A96: 0 | C96: 0 | J96: =OFFSET($D96,0,Settings!$T$6) -> 0 | K96: 0 | Q96: 0 | X96: 0 | Y96: 0 | AE96: 0 | AG96: 0 | AH96: 0 | AI96: 0 | AJ96: 0 | AL96: 0
A97: 0 | C97: 0 | J97: =OFFSET($D97,0,Settings!$T$6) -> 0 | K97: 0 | Q97: 0 | X97: 0 | Y97: 0 | AE97: 0 | AG97: 0 | AH97: 0 | AI97: 0 | AJ97: 0 | AL97: 0
A98: 0 | C98: 0 | J98: =OFFSET($D98,0,Settings!$T$6) -> 0 | K98: 0 | Q98: 0 | X98: 0 | Y98: 0 | AE98: 0 | AG98: 0 | AH98: 0 | AI98: 0 | AJ98: 0 | AL98: 0
A99: 0 | C99: 0 | J99: =OFFSET($D99,0,Settings!$T$6) -> 0 | K99: 0 | Q99: 0 | X99: 0 | Y99: 0 | AE99: 0 | AG99: 0 | AH99: 0 | AI99: 0 | AJ99: 0 | AL99: 0
A100: 0 | C100: 0 | J100: =OFFSET($D100,0,Settings!$T$6) -> 0 | K100: 0 | Q100: =C100 -> 0 | X100: 0 | Y100: 0 | AE100: =C100 -> 0 | AG100: 0 | AH100: 0 | AI100: 0 | AJ100: 0 | AL100: 0
A101: 0 | C101: 0 | J101: =OFFSET($D101,0,Settings!$T$6) -> 0 | K101: 0 | Q101: 0 | X101: 0 | Y101: 0 | AE101: 0 | AG101: 0 | AH101: 0 | AI101: 0 | AJ101: 0 | AL101: 0
A102: 0 | C102: 0 | J102: =OFFSET($D102,0,Settings!$T$6) -> 0 | K102: 0 | Q102: 0 | X102: 0 | Y102: 0 | AE102: 0 | AG102: 0 | AH102: 0 | AI102: 0 | AJ102: 0 | AL102: 0
A103: 0 | C103: 0 | J103: =OFFSET($D103,0,Settings!$T$6) -> 0 | K103: 0 | Q103: 0 | X103: 0 | Y103: 0 | AE103: 0 | AG103: 0 | AH103: 0 | AI103: 0 | AJ103: 0 | AL103: 0
A104: 0 | C104: 0 | J104: =OFFSET($D104,0,Settings!$T$6) -> 0 | K104: 0 | Q104: 0 | X104: 0 | Y104: 0 | AE104: 0 | AG104: 0 | AH104: 0 | AI104: 0 | AJ104: 0 | AL104: 0
A105: 1 | C105: Construction | E105: =EC_4!E105+FS_4!E105+GT_4!E105+KZN_4!E105+LIM_4!E105+MPU_4!E105+NC_4!E105+NW_4!E105+WC_4!E105 -> 4349 | F105: =EC_4!F105+FS_4!F105+GT_4!F105+KZN_4!F105+LIM_4!F105+MPU_4!F105+NC_4!F105+NW_4!F105+WC_4!F105 -> 0 | G105: =EC_4!G105+FS_4!G105+GT_4!G105+KZN_4!G105+LIM_4!G105+MPU_4!G105+NC_4!G105+NW_4!G105+WC_4!G105 -> 0 | H105: =EC_4!H105+FS_4!H105+GT_4!H105+KZN_4!H105+LIM_4!H105+MPU_4!H105+NC_4!H105+NW_4!H105+WC_4!H105 -> 0 | J105: =OFFSET($D105,0,Settings!$T$6) -> 4349 | K105: 0.33356343 | Q105: Construction | S105: 3608 | T105: 3902 | U105: 0 | V105: 0 | X105: 3902 | Y105: 0.3607284829 | AE105: Construction | AG105: -741 | AH105: 3902 | AI105: 0 | AJ105: 0 | AL105: -447
A106: 1 | C106: of which: | Q106: of which: | AE106: of which:
A107: =A84 -> 1 | C107: =C84 -> Eastern Cape | E107: =EC_4!E$105 -> 590 | F107: =EC_4!F$105 -> 0 | G107: =EC_4!G$105 -> 0 | H107: =EC_4!H$105 -> 0 | J107: =OFFSET($D107,0,Settings!$T$6) -> 590 | K107: =IFERROR(J107/$J$33,0) -> 0.04525233932 | Q107: Eastern Cape | S107: 1224 | T107: 1230 | U107: 0 | V107: 0 | X107: 1230 | Y107: 0.1137099011 | AE107: Eastern Cape | AG107: =IFERROR(S107-E107,0) -> 634 | AH107: =IFERROR(T107-F107,0) -> 1230 | AI107: =IFERROR(U107-G107,0) -> 0 | AJ107: =IFERROR(V107-H107,0) -> 0 | AL107: =IFERROR(X107-J107,0) -> 640
A108: =A85 -> 1 | C108: =C85 -> Free State | E108: =FS_4!E$105 -> 104 | F108: =FS_4!F$105 -> 0 | G108: =FS_4!G$105 -> 0 | H108: =FS_4!H$105 -> 0 | J108: =OFFSET($D108,0,Settings!$T$6) -> 104 | K108: 0.00797668354 | Q108: Free State | S108: 99 | T108: 108 | U108: 0 | V108: 0 | X108: 108 | Y108: 0.009984283997 | AE108: Free State | AG108: -5 | AH108: 108 | AI108: 0 | AJ108: 0 | AL108: 4
A109: 1 | C109: Gauteng | E109: =GT_4!E$105 -> 284 | F109: =GT_4!F$105 -> 0 | G109: =GT_4!G$105 -> 0 | H109: =GT_4!H$105 -> 0 | J109: =OFFSET($D109,0,Settings!$T$6) -> 284 | K109: 0.02178248198 | Q109: Gauteng | S109: 329 | T109: 321 | U109: 0 | V109: 0 | X109: 321 | Y109: 0.02967551077 | AE109: Gauteng | AG109: 45 | AH109: 321 | AI109: 0 | AJ109: 0 | AL109: 37
A110: 1 | C110: KwaZulu-Natal | E110: =KZN_4!E$105 -> 1029 | F110: =KZN_4!F$105 -> 0 | G110: =KZN_4!G$105 -> 0 | H110: =KZN_4!H$105 -> 0 | J110: =OFFSET($D110,0,Settings!$T$6) -> 1029 | K110: 0.07892314772 | Q110: KwaZulu-Natal | S110: 855 | T110: 1037 | U110: 0 | V110: 0 | X110: 1037 | Y110: 0.09586761579 | AE110: KwaZulu-Natal | AG110: -174 | AH110: 1037 | AI110: 0 | AJ110: 0 | AL110: 8
A111: 1 | C111: Limpopo | E111: =LIM_4!E$105 -> 1717 | F111: =LIM_4!F$105 -> 0 | G111: =LIM_4!G$105 -> 0 | H111: =LIM_4!H$105 -> 0 | J111: =OFFSET($D111,0,Settings!$T$6) -> 1717 | K111: 0.1316919773 | Q111: Limpopo | S111: 373 | T111: 387 | U111: 0 | V111: 0 | X111: 387 | Y111: 0.03577701766 | AE111: Limpopo | AG111: -1344 | AH111: 387 | AI111: 0 | AJ111: 0 | AL111: -1330
A112: 1 | C112: Mpumalanga | E112: =MPU_4!E$105 -> 244 | F112: =MPU_4!F$105 -> 0 | G112: =MPU_4!G$105 -> 0 | H112: =MPU_4!H$105 -> 0 | J112: =OFFSET($D112,0,Settings!$T$6) -> 244 | K112: 0.01871452677 | Q112: Mpumalanga | S112: 263 | T112: 317 | U112: 0 | V112: 0 | X112: 317 | Y112: 0.02930572247 | AE112: Mpumalanga | AG112: 19 | AH112: 317 | AI112: 0 | AJ112: 0 | AL112: 73
A113: 1 | C113: Northern Cape | E113: =NC_4!E$105 -> 115 | F113: =NC_4!F$105 -> 0 | G113: =NC_4!G$105 -> 0 | H113: =NC_4!H$105 -> 0 | J113: =OFFSET($D113,0,Settings!$T$6) -> 115 | K113: 0.008820371223 | Q113: Northern Cape | S113: 156 | T113: 192 | U113: 0 | V113: 0 | X113: 192 | Y113: 0.01774983822 | AE113: Northern Cape | AG113: 41 | AH113: 192 | AI113: 0 | AJ113: 0 | AL113: 77
A114: 1 | C114: North West | E114: =NW_4!E$105 -> 171 | F114: =NW_4!F$105 -> 0 | G114: =NW_4!G$105 -> 0 | H114: =NW_4!H$105 -> 0 | J114: =OFFSET($D114,0,Settings!$T$6) -> 171 | K114: 0.01311550851 | Q114: North West | S114: 140 | T114: 138 | U114: 0 | V114: 0 | X114: 138 | Y114: 0.01275769622 | AE114: North West | AG114: -31 | AH114: 138 | AI114: 0 | AJ114: 0 | AL114: -33
A115: 1 | C115: Western Cape | E115: =WC_4!E$105 -> 95 | F115: =WC_4!F$105 -> 0 | G115: =WC_4!G$105 -> 0 | H115: =WC_4!H$105 -> 0 | J115: =OFFSET($D115,0,Settings!$T$6) -> 95 | K115: 0.007286393619 | Q115: Western Cape | S115: 169 | T115: 172 | U115: 0 | V115: 0 | X115: 172 | Y115: 0.01590089674 | AE115: Western Cape | AG115: 74 | AH115: 172 | AI115: 0 | AJ115: 0 | AL115: 77
A116: 0 | C116: 0 | J116: =OFFSET($D116,0,Settings!$T$6) -> 0 | K116: 0 | Q116: 0 | X116: 0 | Y116: 0 | AE116: 0 | AG116: 0 | AH116: 0 | AI116: 0 | AJ116: 0 | AL116: 0
A117: 0 | C117: 0 | J117: =OFFSET($D117,0,Settings!$T$6) -> 0 | K117: 0 | Q117: 0 | X117: 0 | Y117: 0 | AE117: 0 | AG117: 0 | AH117: 0 | AI117: 0 | AJ117: 0 | AL117: 0
A118: 0 | C118: 0 | J118: =OFFSET($D118,0,Settings!$T$6) -> 0 | K118: 0 | Q118: 0 | X118: 0 | Y118: 0 | AE118: 0 | AG118: 0 | AH118: 0 | AI118: 0 | AJ118: 0 | AL118: 0
A119: 0 | C119: 0 | J119: =OFFSET($D119,0,Settings!$T$6) -> 0 | K119: 0 | Q119: 0 | X119: 0 | Y119: 0 | AE119: 0 | AG119: 0 | AH119: 0 | AI119: 0 | AJ119: 0 | AL119: 0
A120: 0 | C120: 0 | J120: =OFFSET($D120,0,Settings!$T$6) -> 0 | K120: 0 | Q120: 0 | X120: 0 | Y120: 0 | AE120: 0 | AG120: 0 | AH120: 0 | AI120: 0 | AJ120: 0 | AL120: 0
A121: 0 | C121: 0 | J121: =OFFSET($D121,0,Settings!$T$6) -> 0 | K121: 0 | Q121: 0 | X121: 0 | Y121: 0 | AE121: 0 | AG121: 0 | AH121: 0 | AI121: 0 | AJ121: 0 | AL121: 0
A122: 0 | C122: 0 | J122: =OFFSET($D122,0,Settings!$T$6) -> 0 | K122: 0 | Q122: 0 | X122: 0 | Y122: 0 | AE122: 0 | AG122: 0 | AH122: 0 | AI122: 0 | AJ122: 0 | AL122: 0
A123: 0 | C123: 0 | J123: =OFFSET($D123,0,Settings!$T$6) -> 0 | K123: 0 | Q123: 0 | X123: 0 | Y123: 0 | AE123: 0 | AG123: 0 | AH123: 0 | AI123: 0 | AJ123: 0 | AL123: 0
A124: 0 | C124: 0 | J124: =OFFSET($D124,0,Settings!$T$6) -> 0 | K124: 0 | Q124: 0 | X124: 0 | Y124: 0 | AE124: 0 | AG124: 0 | AH124: 0 | AI124: 0 | AJ124: 0 | AL124: 0
A125: 0 | C125: 0 | J125: =OFFSET($D125,0,Settings!$T$6) -> 0 | K125: 0 | Q125: 0 | X125: 0 | Y125: 0 | AE125: 0 | AG125: 0 | AH125: 0 | AI125: 0 | AJ125: 0 | AL125: 0
A126: 0 | C126: 0 | J126: =OFFSET($D126,0,Settings!$T$6) -> 0 | K126: 0 | Q126: 0 | X126: 0 | Y126: 0 | AE126: 0 | AG126: 0 | AH126: 0 | AI126: 0 | AJ126: 0 | AL126: 0
A127: 0 | C127: 0 | J127: =OFFSET($D127,0,Settings!$T$6) -> 0 | K127: 0 | Q127: 0 | X127: 0 | Y127: 0 | AE127: 0 | AG127: 0 | AH127: 0 | AI127: 0 | AJ127: 0 | AL127: 0
A128: 1 | C128: Practical Completion (100%) | E128: =EC_4!E128+FS_4!E128+GT_4!E128+KZN_4!E128+LIM_4!E128+MPU_4!E128+NC_4!E128+NW_4!E128+WC_4!E128 -> 1479 | F128: =EC_4!F128+FS_4!F128+GT_4!F128+KZN_4!F128+LIM_4!F128+MPU_4!F128+NC_4!F128+NW_4!F128+WC_4!F128 -> 0 | G128: =EC_4!G128+FS_4!G128+GT_4!G128+KZN_4!G128+LIM_4!G128+MPU_4!G128+NC_4!G128+NW_4!G128+WC_4!G128 -> 0 | H128: =EC_4!H128+FS_4!H128+GT_4!H128+KZN_4!H128+LIM_4!H128+MPU_4!H128+NC_4!H128+NW_4!H128+WC_4!H128 -> 0 | J128: =OFFSET($D128,0,Settings!$T$6) -> 1479 | K128: 0.1134376438 | Q128: Practical Completion (100%) | S128: 1031 | T128: 1148 | U128: 0 | V128: 0 | X128: 1148 | Y128: 0.106129241 | AE128: Practical Completion (100%) | AG128: -448 | AH128: 1148 | AI128: 0 | AJ128: 0 | AL128: -331
A129: 1 | C129: of which: | Q129: of which: | AE129: of which:
A130: =A107 -> 1 | C130: =C107 -> Eastern Cape | E130: =EC_4!E$128 -> 647 | F130: =EC_4!F$128 -> 0 | G130: =EC_4!G$128 -> 0 | H130: =EC_4!H$128 -> 0 | J130: =OFFSET($D130,0,Settings!$T$6) -> 647 | K130: =IFERROR(J130/$J$33,0) -> 0.04962417549 | Q130: Eastern Cape | S130: 234 | T130: 248 | U130: 0 | V130: 0 | X130: 248 | Y130: 0.02292687436 | AE130: Eastern Cape | AG130: =IFERROR(S130-E130,0) -> -413 | AH130: =IFERROR(T130-F130,0) -> 248 | AI130: =IFERROR(U130-G130,0) -> 0 | AJ130: =IFERROR(V130-H130,0) -> 0 | AL130: =IFERROR(X130-J130,0) -> -399
A131: =A108 -> 1 | C131: =C108 -> Free State | E131: =FS_4!E$128 -> 5 | F131: =FS_4!F$128 -> 0 | G131: =FS_4!G$128 -> 0 | H131: =FS_4!H$128 -> 0 | J131: =OFFSET($D131,0,Settings!$T$6) -> 5 | K131: 0.000383494401 | Q131: Free State | S131: 4 | T131: 7 | U131: 0 | V131: 0 | X131: 7 | Y131: 0.0006471295184 | AE131: Free State | AG131: -1 | AH131: 7 | AI131: 0 | AJ131: 0 | AL131: 2
A132: 1 | C132: Gauteng | E132: =GT_4!E$128 -> 54 | F132: =GT_4!F$128 -> 0 | G132: =GT_4!G$128 -> 0 | H132: =GT_4!H$128 -> 0 | J132: =OFFSET($D132,0,Settings!$T$6) -> 54 | K132: 0.004141739531 | Q132: Gauteng | S132: 38 | T132: 37 | U132: 0 | V132: 0 | X132: 37 | Y132: 0.00342054174 | AE132: Gauteng | AG132: -16 | AH132: 37 | AI132: 0 | AJ132: 0 | AL132: -17
A133: 1 | C133: KwaZulu-Natal | E133: =KZN_4!E$128 -> 306 | F133: =KZN_4!F$128 -> 0 | G133: =KZN_4!G$128 -> 0 | H133: =KZN_4!H$128 -> 0 | J133: =OFFSET($D133,0,Settings!$T$6) -> 306 | K133: 0.02346985734 | Q133: KwaZulu-Natal | S133: 438 | T133: 476 | U133: 0 | V133: 0 | X133: 476 | Y133: 0.04400480725 | AE133: KwaZulu-Natal | AG133: 132 | AH133: 476 | AI133: 0 | AJ133: 0 | AL133: 170
A134: 1 | C134: Limpopo | E134: =LIM_4!E$128 -> 342 | F134: =LIM_4!F$128 -> 0 | G134: =LIM_4!G$128 -> 0 | H134: =LIM_4!H$128 -> 0 | J134: =OFFSET($D134,0,Settings!$T$6) -> 342 | K134: 0.02623101703 | Q134: Limpopo | S134: 111 | T134: 124 | U134: 0 | V134: 0 | X134: 124 | Y134: 0.01146343718 | AE134: Limpopo | AG134: -231 | AH134: 124 | AI134: 0 | AJ134: 0 | AL134: -218
A135: 1 | C135: Mpumalanga | E135: =MPU_4!E$128 -> 32 | F135: =MPU_4!F$128 -> 0 | G135: =MPU_4!G$128 -> 0 | H135: =MPU_4!H$128 -> 0 | J135: =OFFSET($D135,0,Settings!$T$6) -> 32 | K135: 0.002454364166 | Q135: Mpumalanga | S135: 85 | T135: 119 | U135: 0 | V135: 0 | X135: 119 | Y135: 0.01100120181 | AE135: Mpumalanga | AG135: 53 | AH135: 119 | AI135: 0 | AJ135: 0 | AL135: 87
A136: 1 | C136: Northern Cape | E136: =NC_4!E$128 -> 32 | F136: =NC_4!F$128 -> 0 | G136: =NC_4!G$128 -> 0 | H136: =NC_4!H$128 -> 0 | J136: =OFFSET($D136,0,Settings!$T$6) -> 32 | K136: 0.002454364166 | Q136: Northern Cape | S136: 22 | T136: 23 | U136: 0 | V136: 0 | X136: 23 | Y136: 0.002126282703 | AE136: Northern Cape | AG136: -10 | AH136: 23 | AI136: 0 | AJ136: 0 | AL136: -9
A137: 1 | C137: North West | E137: =NW_4!E$128 -> 45 | F137: =NW_4!F$128 -> 0 | G137: =NW_4!G$128 -> 0 | H137: =NW_4!H$128 -> 0 | J137: =OFFSET($D137,0,Settings!$T$6) -> 45 | K137: 0.003451449609 | Q137: North West | S137: 86 | T137: 91 | U137: 0 | V137: 0 | X137: 91 | Y137: 0.008412683739 | AE137: North West | AG137: 41 | AH137: 91 | AI137: 0 | AJ137: 0 | AL137: 46
A138: 1 | C138: Western Cape | E138: =WC_4!E$128 -> 16 | F138: =WC_4!F$128 -> 0 | G138: =WC_4!G$128 -> 0 | H138: =WC_4!H$128 -> 0 | J138: =OFFSET($D138,0,Settings!$T$6) -> 16 | K138: 0.001227182083 | Q138: Western Cape | S138: 13 | T138: 23 | U138: 0 | V138: 0 | X138: 23 | Y138: 0.002126282703 | AE138: Western Cape | AG138: -3 | AH138: 23 | AI138: 0 | AJ138: 0 | AL138: 7
A139: 0 | C139: 0 | J139: =OFFSET($D139,0,Settings!$T$6) -> 0 | K139: 0 | Q139: 0 | X139: 0 | Y139: 0 | AE139: 0 | AG139: 0 | AH139: 0 | AI139: 0 | AJ139: 0 | AL139: 0
A140: 0 | C140: 0 | J140: =OFFSET($D140,0,Settings!$T$6) -> 0 | K140: 0 | Q140: 0 | X140: 0 | Y140: 0 | AE140: 0 | AG140: 0 | AH140: 0 | AI140: 0 | AJ140: 0 | AL140: 0
A141: 0 | C141: 0 | J141: =OFFSET($D141,0,Settings!$T$6) -> 0 | K141: 0 | Q141: 0 | X141: 0 | Y141: 0 | AE141: 0 | AG141: 0 | AH141: 0 | AI141: 0 | AJ141: 0 | AL141: 0
A142: 0 | C142: 0 | J142: =OFFSET($D142,0,Settings!$T$6) -> 0 | K142: 0 | Q142: 0 | X142: 0 | Y142: 0 | AE142: 0 | AG142: 0 | AH142: 0 | AI142: 0 | AJ142: 0 | AL142: 0
A143: 0 | C143: 0 | J143: =OFFSET($D143,0,Settings!$T$6) -> 0 | K143: 0 | Q143: 0 | X143: 0 | Y143: 0 | AE143: 0 | AG143: 0 | AH143: 0 | AI143: 0 | AJ143: 0 | AL143: 0
A144: 0 | C144: 0 | J144: =OFFSET($D144,0,Settings!$T$6) -> 0 | K144: 0 | Q144: 0 | X144: 0 | Y144: 0 | AE144: 0 | AG144: 0 | AH144: 0 | AI144: 0 | AJ144: 0 | AL144: 0
A145: 0 | C145: 0 | J145: =OFFSET($D145,0,Settings!$T$6) -> 0 | K145: 0 | Q145: 0 | X145: 0 | Y145: 0 | AE145: 0 | AG145: 0 | AH145: 0 | AI145: 0 | AJ145: 0 | AL145: 0
A146: 0 | C146: 0 | J146: =OFFSET($D146,0,Settings!$T$6) -> 0 | K146: 0 | Q146: 0 | X146: 0 | Y146: 0 | AE146: 0 | AG146: 0 | AH146: 0 | AI146: 0 | AJ146: 0 | AL146: 0
A147: 0 | C147: 0 | J147: =OFFSET($D147,0,Settings!$T$6) -> 0 | K147: 0 | Q147: 0 | X147: 0 | Y147: 0 | AE147: 0 | AG147: 0 | AH147: 0 | AI147: 0 | AJ147: 0 | AL147: 0
A148: 0 | C148: 0 | J148: =OFFSET($D148,0,Settings!$T$6) -> 0 | K148: 0 | Q148: 0 | X148: 0 | Y148: 0 | AE148: 0 | AG148: 0 | AH148: 0 | AI148: 0 | AJ148: 0 | AL148: 0
A149: 0 | C149: 0 | J149: =OFFSET($D149,0,Settings!$T$6) -> 0 | K149: 0 | Q149: 0 | X149: 0 | Y149: 0 | AE149: 0 | AG149: 0 | AH149: 0 | AI149: 0 | AJ149: 0 | AL149: 0
A150: 0 | C150: 0 | J150: =OFFSET($D150,0,Settings!$T$6) -> 0 | K150: 0 | Q150: 0 | X150: 0 | Y150: 0 | AE150: 0 | AG150: 0 | AH150: 0 | AI150: 0 | AJ150: 0 | AL150: 0
A151: 1 | C151: Final Completion | E151: =EC_4!E151+FS_4!E151+GT_4!E151+KZN_4!E151+LIM_4!E151+MPU_4!E151+NC_4!E151+NW_4!E151+WC_4!E151 -> 218 | F151: =EC_4!F151+FS_4!F151+GT_4!F151+KZN_4!F151+LIM_4!F151+MPU_4!F151+NC_4!F151+NW_4!F151+WC_4!F151 -> 0 | G151: =EC_4!G151+FS_4!G151+GT_4!G151+KZN_4!G151+LIM_4!G151+MPU_4!G151+NC_4!G151+NW_4!G151+WC_4!G151 -> 0 | H151: =EC_4!H151+FS_4!H151+GT_4!H151+KZN_4!H151+LIM_4!H151+MPU_4!H151+NC_4!H151+NW_4!H151+WC_4!H151 -> 0 | J151: =OFFSET($D151,0,Settings!$T$6) -> 218 | K151: 0.01672035588 | Q151: Final Completion | S151: 102 | T151: 144 | U151: 0 | V151: 0 | X151: 144 | Y151: 0.01331237866 | AE151: Final Completion | AG151: -116 | AH151: 144 | AI151: 0 | AJ151: 0 | AL151: -74
A152: 1 | C152: of which: | Q152: of which: | AE152: of which:
A153: =A130 -> 1 | C153: =C130 -> Eastern Cape | E153: =EC_4!E$151 -> 18 | F153: =EC_4!F$151 -> 0 | G153: =EC_4!G$151 -> 0 | H153: =EC_4!H$151 -> 0 | J153: =OFFSET($D153,0,Settings!$T$6) -> 18 | K153: =IFERROR(J153/$J$33,0) -> 0.001380579844 | Q153: Eastern Cape | S153: 13 | T153: 12 | U153: 0 | V153: 0 | X153: 12 | Y153: 0.001109364889 | AE153: Eastern Cape | AG153: =IFERROR(S153-E153,0) -> -5 | AH153: =IFERROR(T153-F153,0) -> 12 | AI153: =IFERROR(U153-G153,0) -> 0 | AJ153: =IFERROR(V153-H153,0) -> 0 | AL153: =IFERROR(X153-J153,0) -> -6
A154: =A131 -> 1 | C154: =C131 -> Free State | E154: =FS_4!E$151 -> 1 | F154: =FS_4!F$151 -> 0 | G154: =FS_4!G$151 -> 0 | H154: =FS_4!H$151 -> 0 | J154: =OFFSET($D154,0,Settings!$T$6) -> 1 | K154: 7.66988802e-05 | Q154: Free State | S154: 1 | T154: 2 | U154: 0 | V154: 0 | X154: 2 | Y154: 0.0001848941481 | AE154: Free State | AG154: 0 | AH154: 2 | AI154: 0 | AJ154: 0 | AL154: 1
A155: 1 | C155: Gauteng | E155: =GT_4!E$151 -> 8 | F155: =GT_4!F$151 -> 0 | G155: =GT_4!G$151 -> 0 | H155: =GT_4!H$151 -> 0 | J155: =OFFSET($D155,0,Settings!$T$6) -> 8 | K155: 0.0006135910416 | Q155: Gauteng | S155: 8 | T155: 16 | U155: 0 | V155: 0 | X155: 16 | Y155: 0.001479153185 | AE155: Gauteng | AG155: 0 | AH155: 16 | AI155: 0 | AJ155: 0 | AL155: 8
A156: 1 | C156: KwaZulu-Natal | E156: =KZN_4!E$151 -> 35 | F156: =KZN_4!F$151 -> 0 | G156: =KZN_4!G$151 -> 0 | H156: =KZN_4!H$151 -> 0 | J156: =OFFSET($D156,0,Settings!$T$6) -> 35 | K156: 0.002684460807 | Q156: KwaZulu-Natal | S156: 29 | T156: 47 | U156: 0 | V156: 0 | X156: 47 | Y156: 0.00434501248 | AE156: KwaZulu-Natal | AG156: -6 | AH156: 47 | AI156: 0 | AJ156: 0 | AL156: 12
A157: 1 | C157: Limpopo | E157: =LIM_4!E$151 -> 90 | F157: =LIM_4!F$151 -> 0 | G157: =LIM_4!G$151 -> 0 | H157: =LIM_4!H$151 -> 0 | J157: =OFFSET($D157,0,Settings!$T$6) -> 90 | K157: 0.006902899218 | Q157: Limpopo | S157: 20 | T157: 21 | U157: 0 | V157: 0 | X157: 21 | Y157: 0.001941388555 | AE157: Limpopo | AG157: -70 | AH157: 21 | AI157: 0 | AJ157: 0 | AL157: -69
A158: 1 | C158: Mpumalanga | E158: =MPU_4!E$151 -> 8 | F158: =MPU_4!F$151 -> 0 | G158: =MPU_4!G$151 -> 0 | H158: =MPU_4!H$151 -> 0 | J158: =OFFSET($D158,0,Settings!$T$6) -> 8 | K158: 0.0006135910416 | Q158: Mpumalanga | S158: 3 | T158: 7 | U158: 0 | V158: 0 | X158: 7 | Y158: 0.0006471295184 | AE158: Mpumalanga | AG158: -5 | AH158: 7 | AI158: 0 | AJ158: 0 | AL158: -1
A159: 1 | C159: Northern Cape | E159: =NC_4!E$151 -> 1 | F159: =NC_4!F$151 -> 0 | G159: =NC_4!G$151 -> 0 | H159: =NC_4!H$151 -> 0 | J159: =OFFSET($D159,0,Settings!$T$6) -> 1 | K159: 7.66988802e-05 | Q159: Northern Cape | S159: 8 | T159: 17 | U159: 0 | V159: 0 | X159: 17 | Y159: 0.001571600259 | AE159: Northern Cape | AG159: 7 | AH159: 17 | AI159: 0 | AJ159: 0 | AL159: 16
A160: 1 | C160: North West | E160: =NW_4!E$151 -> 5 | F160: =NW_4!F$151 -> 0 | G160: =NW_4!G$151 -> 0 | H160: =NW_4!H$151 -> 0 | J160: =OFFSET($D160,0,Settings!$T$6) -> 5 | K160: 0.000383494401 | Q160: North West | S160: 7 | T160: 8 | U160: 0 | V160: 0 | X160: 8 | Y160: 0.0007395765924 | AE160: North West | AG160: 2 | AH160: 8 | AI160: 0 | AJ160: 0 | AL160: 3
A161: 1 | C161: Western Cape | E161: =WC_4!E$151 -> 52 | F161: =WC_4!F$151 -> 0 | G161: =WC_4!G$151 -> 0 | H161: =WC_4!H$151 -> 0 | J161: =OFFSET($D161,0,Settings!$T$6) -> 52 | K161: 0.00398834177 | Q161: Western Cape | S161: 13 | T161: 14 | U161: 0 | V161: 0 | X161: 14 | Y161: 0.001294259037 | AE161: Western Cape | AG161: -39 | AH161: 14 | AI161: 0 | AJ161: 0 | AL161: -38
A162: 0 | C162: 0 | J162: =OFFSET($D162,0,Settings!$T$6) -> 0 | K162: 0 | Q162: 0 | X162: 0 | Y162: 0 | AE162: 0 | AG162: 0 | AH162: 0 | AI162: 0 | AJ162: 0 | AL162: 0
A163: 0 | C163: 0 | J163: =OFFSET($D163,0,Settings!$T$6) -> 0 | K163: 0 | Q163: 0 | X163: 0 | Y163: 0 | AE163: 0 | AG163: 0 | AH163: 0 | AI163: 0 | AJ163: 0 | AL163: 0
A164: 0 | C164: 0 | J164: =OFFSET($D164,0,Settings!$T$6) -> 0 | K164: 0 | Q164: =C164 -> 0 | X164: 0 | Y164: 0 | AE164: =C164 -> 0 | AG164: 0 | AH164: 0 | AI164: 0 | AJ164: 0 | AL164: 0
A165: 0 | C165: 0 | J165: =OFFSET($D165,0,Settings!$T$6) -> 0 | K165: 0 | Q165: 0 | X165: 0 | Y165: 0 | AE165: 0 | AG165: 0 | AH165: 0 | AI165: 0 | AJ165: 0 | AL165: 0
A166: 0 | C166: 0 | J166: =OFFSET($D166,0,Settings!$T$6) -> 0 | K166: 0 | Q166: 0 | X166: 0 | Y166: 0 | AE166: 0 | AG166: 0 | AH166: 0 | AI166: 0 | AJ166: 0 | AL166: 0
A167: 0 | C167: 0 | J167: =OFFSET($D167,0,Settings!$T$6) -> 0 | K167: 0 | Q167: 0 | X167: 0 | Y167: 0 | AE167: 0 | AG167: 0 | AH167: 0 | AI167: 0 | AJ167: 0 | AL167: 0
A168: 0 | C168: 0 | J168: =OFFSET($D168,0,Settings!$T$6) -> 0 | K168: 0 | Q168: 0 | X168: 0 | Y168: 0 | AE168: 0 | AG168: 0 | AH168: 0 | AI168: 0 | AJ168: 0 | AL168: 0
A169: 0 | C169: 0 | J169: =OFFSET($D169,0,Settings!$T$6) -> 0 | K169: 0 | Q169: 0 | X169: 0 | Y169: 0 | AE169: 0 | AG169: 0 | AH169: 0 | AI169: 0 | AJ169: 0 | AL169: 0
A170: 0 | C170: 0 | J170: =OFFSET($D170,0,Settings!$T$6) -> 0 | K170: 0 | Q170: 0 | X170: 0 | Y170: 0 | AE170: 0 | AG170: 0 | AH170: 0 | AI170: 0 | AJ170: 0 | AL170: 0
A171: 0 | C171: 0 | J171: =OFFSET($D171,0,Settings!$T$6) -> 0 | K171: 0 | Q171: 0 | X171: 0 | Y171: 0 | AE171: 0 | AG171: 0 | AH171: 0 | AI171: 0 | AJ171: 0 | AL171: 0
A172: 0 | C172: 0 | J172: =OFFSET($D172,0,Settings!$T$6) -> 0 | K172: 0 | Q172: 0 | X172: 0 | Y172: 0 | AE172: 0 | AG172: 0 | AH172: 0 | AI172: 0 | AJ172: 0 | AL172: 0
A173: 0 | C173: 0 | J173: =OFFSET($D173,0,Settings!$T$6) -> 0 | K173: 0 | Q173: 0 | X173: 0 | Y173: 0 | AE173: 0 | AG173: 0 | AH173: 0 | AI173: 0 | AJ173: 0 | AL173: 0
A174: 1 | C174: On Hold | E174: =EC_4!E174+FS_4!E174+GT_4!E174+KZN_4!E174+LIM_4!E174+MPU_4!E174+NC_4!E174+NW_4!E174+WC_4!E174 -> 80 | F174: =EC_4!F174+FS_4!F174+GT_4!F174+KZN_4!F174+LIM_4!F174+MPU_4!F174+NC_4!F174+NW_4!F174+WC_4!F174 -> 0 | G174: =EC_4!G174+FS_4!G174+GT_4!G174+KZN_4!G174+LIM_4!G174+MPU_4!G174+NC_4!G174+NW_4!G174+WC_4!G174 -> 0 | H174: =EC_4!H174+FS_4!H174+GT_4!H174+KZN_4!H174+LIM_4!H174+MPU_4!H174+NC_4!H174+NW_4!H174+WC_4!H174 -> 0 | J174: =OFFSET($D174,0,Settings!$T$6) -> 80 | K174: 0.006135910416 | Q174: On Hold | S174: 35 | T174: 45 | U174: 0 | V174: 0 | X174: 45 | Y174: 0.004160118332 | AE174: On Hold | AG174: -45 | AH174: 45 | AI174: 0 | AJ174: 0 | AL174: -35
A175: 1 | C175: of which: | Q175: of which: | AE175: of which:
A176: =A153 -> 1 | C176: =C153 -> Eastern Cape | E176: =EC_4!E$174 -> 12 | F176: =EC_4!F$174 -> 0 | G176: =EC_4!G$174 -> 0 | H176: =EC_4!H$174 -> 0 | J176: =OFFSET($D176,0,Settings!$T$6) -> 12 | K176: =IFERROR(J176/$J$33,0) -> 0.0009203865624 | Q176: Eastern Cape | S176: 11 | T176: 13 | U176: 0 | V176: 0 | X176: 13 | Y176: 0.001201811963 | AE176: Eastern Cape | AG176: =IFERROR(S176-E176,0) -> -1 | AH176: =IFERROR(T176-F176,0) -> 13 | AI176: =IFERROR(U176-G176,0) -> 0 | AJ176: =IFERROR(V176-H176,0) -> 0 | AL176: =IFERROR(X176-J176,0) -> 1
A177: =A154 -> 1 | C177: =C154 -> Free State | E177: =FS_4!E$174 -> 12 | F177: =FS_4!F$174 -> 0 | G177: =FS_4!G$174 -> 0 | H177: =FS_4!H$174 -> 0 | J177: =OFFSET($D177,0,Settings!$T$6) -> 12 | K177: 0.0009203865624 | Q177: Free State | S177: 4 | T177: 3 | U177: 0 | V177: 0 | X177: 3 | Y177: 0.0002773412222 | AE177: Free State | AG177: -8 | AH177: 3 | AI177: 0 | AJ177: 0 | AL177: -9
A178: 1 | C178: Gauteng | E178: =GT_4!E$174 -> 6 | F178: =GT_4!F$174 -> 0 | G178: =GT_4!G$174 -> 0 | H178: =GT_4!H$174 -> 0 | J178: =OFFSET($D178,0,Settings!$T$6) -> 6 | K178: 0.0004601932812 | Q178: Gauteng | S178: 0 | T178: 2 | U178: 0 | V178: 0 | X178: 2 | Y178: 0.0001848941481 | AE178: Gauteng | AG178: -6 | AH178: 2 | AI178: 0 | AJ178: 0 | AL178: -4
A179: 1 | C179: KwaZulu-Natal | E179: =KZN_4!E$174 -> 17 | F179: =KZN_4!F$174 -> 0 | G179: =KZN_4!G$174 -> 0 | H179: =KZN_4!H$174 -> 0 | J179: =OFFSET($D179,0,Settings!$T$6) -> 17 | K179: 0.001303880963 | Q179: KwaZulu-Natal | S179: 15 | T179: 12 | U179: 0 | V179: 0 | X179: 12 | Y179: 0.001109364889 | AE179: KwaZulu-Natal | AG179: -2 | AH179: 12 | AI179: 0 | AJ179: 0 | AL179: -5
A180: 1 | C180: Limpopo | E180: =LIM_4!E$174 -> 24 | F180: =LIM_4!F$174 -> 0 | G180: =LIM_4!G$174 -> 0 | H180: =LIM_4!H$174 -> 0 | J180: =OFFSET($D180,0,Settings!$T$6) -> 24 | K180: 0.001840773125 | Q180: Limpopo | S180: 1 | T180: 6 | U180: 0 | V180: 0 | X180: 6 | Y180: 0.0005546824443 | AE180: Limpopo | AG180: -23 | AH180: 6 | AI180: 0 | AJ180: 0 | AL180: -18
A181: 1 | C181: Mpumalanga | E181: =MPU_4!E$174 -> 5 | F181: =MPU_4!F$174 -> 0 | G181: =MPU_4!G$174 -> 0 | H181: =MPU_4!H$174 -> 0 | J181: =OFFSET($D181,0,Settings!$T$6) -> 5 | K181: 0.000383494401 | Q181: Mpumalanga | S181: 0 | T181: 4 | U181: 0 | V181: 0 | X181: 4 | Y181: 0.0003697882962 | AE181: Mpumalanga | AG181: -5 | AH181: 4 | AI181: 0 | AJ181: 0 | AL181: -1
A182: 1 | C182: Northern Cape | E182: =NC_4!E$174 -> 2 | F182: =NC_4!F$174 -> 0 | G182: =NC_4!G$174 -> 0 | H182: =NC_4!H$174 -> 0 | J182: =OFFSET($D182,0,Settings!$T$6) -> 2 | K182: 0.0001533977604 | Q182: Northern Cape | S182: 1 | T182: 1 | U182: 0 | V182: 0 | X182: 1 | Y182: 9.244707405e-05 | AE182: Northern Cape | AG182: -1 | AH182: 1 | AI182: 0 | AJ182: 0 | AL182: -1
A183: 1 | C183: North West | E183: =NW_4!E$174 -> 1 | F183: =NW_4!F$174 -> 0 | G183: =NW_4!G$174 -> 0 | H183: =NW_4!H$174 -> 0 | J183: =OFFSET($D183,0,Settings!$T$6) -> 1 | K183: 7.66988802e-05 | Q183: North West | S183: 2 | T183: 2 | U183: 0 | V183: 0 | X183: 2 | Y183: 0.0001848941481 | AE183: North West | AG183: 1 | AH183: 2 | AI183: 0 | AJ183: 0 | AL183: 1
A184: 1 | C184: Western Cape | E184: =WC_4!E$174 -> 1 | F184: =WC_4!F$174 -> 0 | G184: =WC_4!G$174 -> 0 | H184: =WC_4!H$174 -> 0 | J184: =OFFSET($D184,0,Settings!$T$6) -> 1 | K184: 7.66988802e-05 | Q184: Western Cape | S184: 1 | T184: 2 | U184: 0 | V184: 0 | X184: 2 | Y184: 0.0001848941481 | AE184: Western Cape | AG184: 0 | AH184: 2 | AI184: 0 | AJ184: 0 | AL184: 1
A185: 0 | C185: 0 | J185: =OFFSET($D185,0,Settings!$T$6) -> 0 | K185: 0 | Q185: 0 | X185: 0 | Y185: 0 | AE185: 0 | AG185: 0 | AH185: 0 | AI185: 0 | AJ185: 0 | AL185: 0
A186: 0 | C186: 0 | J186: =OFFSET($D186,0,Settings!$T$6) -> 0 | K186: 0 | Q186: 0 | X186: 0 | Y186: 0 | AE186: 0 | AG186: 0 | AH186: 0 | AI186: 0 | AJ186: 0 | AL186: 0
A187: 0 | C187: 0 | J187: =OFFSET($D187,0,Settings!$T$6) -> 0 | K187: 0 | Q187: 0 | X187: 0 | Y187: 0 | AE187: 0 | AG187: 0 | AH187: 0 | AI187: 0 | AJ187: 0 | AL187: 0
A188: 0 | C188: 0 | J188: =OFFSET($D188,0,Settings!$T$6) -> 0 | K188: 0 | Q188: 0 | X188: 0 | Y188: 0 | AE188: 0 | AG188: 0 | AH188: 0 | AI188: 0 | AJ188: 0 | AL188: 0
A189: 0 | C189: 0 | J189: =OFFSET($D189,0,Settings!$T$6) -> 0 | K189: 0 | Q189: 0 | X189: 0 | Y189: 0 | AE189: 0 | AG189: 0 | AH189: 0 | AI189: 0 | AJ189: 0 | AL189: 0
A190: 0 | C190: 0 | J190: =OFFSET($D190,0,Settings!$T$6) -> 0 | K190: 0 | Q190: 0 | X190: 0 | Y190: 0 | AE190: 0 | AG190: 0 | AH190: 0 | AI190: 0 | AJ190: 0 | AL190: 0
A191: 0 | C191: 0 | J191: =OFFSET($D191,0,Settings!$T$6) -> 0 | K191: 0 | Q191: 0 | X191: 0 | Y191: 0 | AE191: 0 | AG191: 0 | AH191: 0 | AI191: 0 | AJ191: 0 | AL191: 0
A192: 0 | C192: 0 | J192: =OFFSET($D192,0,Settings!$T$6) -> 0 | K192: 0 | Q192: 0 | X192: 0 | Y192: 0 | AE192: 0 | AG192: 0 | AH192: 0 | AI192: 0 | AJ192: 0 | AL192: 0
A193: 0 | C193: 0 | J193: =OFFSET($D193,0,Settings!$T$6) -> 0 | K193: 0 | Q193: 0 | X193: 0 | Y193: 0 | AE193: 0 | AG193: 0 | AH193: 0 | AI193: 0 | AJ193: 0 | AL193: 0
A194: 0 | C194: 0 | J194: =OFFSET($D194,0,Settings!$T$6) -> 0 | K194: 0 | Q194: 0 | X194: 0 | Y194: 0 | AE194: 0 | AG194: 0 | AH194: 0 | AI194: 0 | AJ194: 0 | AL194: 0
A195: 0 | C195: 0 | J195: =OFFSET($D195,0,Settings!$T$6) -> 0 | K195: 0 | Q195: 0 | X195: 0 | Y195: 0 | AE195: 0 | AG195: 0 | AH195: 0 | AI195: 0 | AJ195: 0 | AL195: 0
A196: 0 | C196: 0 | J196: =OFFSET($D196,0,Settings!$T$6) -> 0 | K196: 0 | Q196: 0 | X196: 0 | Y196: 0 | AE196: 0 | AG196: 0 | AH196: 0 | AI196: 0 | AJ196: 0 | AL196: 0
A197: 1 | C197: Terminated | E197: =EC_4!E197+FS_4!E197+GT_4!E197+KZN_4!E197+LIM_4!E197+MPU_4!E197+NC_4!E197+NW_4!E197+WC_4!E197 -> 6 | F197: =EC_4!F197+FS_4!F197+GT_4!F197+KZN_4!F197+LIM_4!F197+MPU_4!F197+NC_4!F197+NW_4!F197+WC_4!F197 -> 0 | G197: =EC_4!G197+FS_4!G197+GT_4!G197+KZN_4!G197+LIM_4!G197+MPU_4!G197+NC_4!G197+NW_4!G197+WC_4!G197 -> 0 | H197: =EC_4!H197+FS_4!H197+GT_4!H197+KZN_4!H197+LIM_4!H197+MPU_4!H197+NC_4!H197+NW_4!H197+WC_4!H197 -> 0 | J197: =OFFSET($D197,0,Settings!$T$6) -> 6 | K197: 0.0004601932812 | Q197: Terminated | S197: 2 | T197: 6 | U197: 0 | V197: 0 | X197: 6 | Y197: 0.0005546824443 | AE197: Terminated | AG197: -4 | AH197: 6 | AI197: 0 | AJ197: 0 | AL197: 0
A198: 1 | C198: of which: | Q198: of which: | AE198: of which:
A199: =A176 -> 1 | C199: =C176 -> Eastern Cape | E199: =EC_4!E$197 -> 0 | F199: =EC_4!F$197 -> 0 | G199: =EC_4!G$197 -> 0 | H199: =EC_4!H$197 -> 0 | J199: =OFFSET($D199,0,Settings!$T$6) -> 0 | K199: =IFERROR(J199/$J$33,0) -> 0 | Q199: Eastern Cape | S199: 0 | T199: 0 | U199: 0 | V199: 0 | X199: 0 | Y199: 0 | AE199: Eastern Cape | AG199: =IFERROR(S199-E199,0) -> 0 | AH199: =IFERROR(T199-F199,0) -> 0 | AI199: =IFERROR(U199-G199,0) -> 0 | AJ199: =IFERROR(V199-H199,0) -> 0 | AL199: =IFERROR(X199-J199,0) -> 0
A200: =A177 -> 1 | C200: =C177 -> Free State | E200: =FS_4!E$197 -> 0 | F200: =FS_4!F$197 -> 0 | G200: =FS_4!G$197 -> 0 | H200: =FS_4!H$197 -> 0 | J200: =OFFSET($D200,0,Settings!$T$6) -> 0 | K200: 0 | Q200: Free State | S200: 0 | T200: 0 | U200: 0 | V200: 0 | X200: 0 | Y200: 0 | AE200: Free State | AG200: 0 | AH200: 0 | AI200: 0 | AJ200: 0 | AL200: 0
A201: 1 | C201: Gauteng | E201: =GT_4!E$197 -> 1 | F201: =GT_4!F$197 -> 0 | G201: =GT_4!G$197 -> 0 | H201: =GT_4!H$197 -> 0 | J201: =OFFSET($D201,0,Settings!$T$6) -> 1 | K201: 7.66988802e-05 | Q201: Gauteng | S201: 0 | T201: 0 | U201: 0 | V201: 0 | X201: 0 | Y201: 0 | AE201: Gauteng | AG201: -1 | AH201: 0 | AI201: 0 | AJ201: 0 | AL201: -1
A202: 1 | C202: KwaZulu-Natal | E202: =KZN_4!E$197 -> 2 | F202: =KZN_4!F$197 -> 0 | G202: =KZN_4!G$197 -> 0 | H202: =KZN_4!H$197 -> 0 | J202: =OFFSET($D202,0,Settings!$T$6) -> 2 | K202: 0.0001533977604 | Q202: KwaZulu-Natal | S202: 1 | T202: 4 | U202: 0 | V202: 0 | X202: 4 | Y202: 0.0003697882962 | AE202: KwaZulu-Natal | AG202: -1 | AH202: 4 | AI202: 0 | AJ202: 0 | AL202: 2
A203: 1 | C203: Limpopo | E203: =LIM_4!E$197 -> 1 | F203: =LIM_4!F$197 -> 0 | G203: =LIM_4!G$197 -> 0 | H203: =LIM_4!H$197 -> 0 | J203: =OFFSET($D203,0,Settings!$T$6) -> 1 | K203: 7.66988802e-05 | Q203: Limpopo | S203: 0 | T203: 0 | U203: 0 | V203: 0 | X203: 0 | Y203: 0 | AE203: Limpopo | AG203: -1 | AH203: 0 | AI203: 0 | AJ203: 0 | AL203: -1
... 97 more rows

Sheet EC_1
C3: STATEMENT OF RECEIPTS AND PAYMENTS FOR THE SECOND QUARTER ENDED 30 SEPTEMBER 2022 | T3: ="NATIONAL TREASURY: " & C3 -> NATIONAL TREASURY: STATEMENT OF RECEIPTS AND PAYMENTS FOR THE SECOND QUARTER ENDED 30 SEPTEMBER 2022 | AK3: ="VARIANCE FROM NATIONAL TREASURY: " & C3 -> VARIANCE FROM NATIONAL TREASURY: STATEMENT OF RECEIPTS AND PAYMENTS FOR THE SECOND QUARTER ENDED 30 SEPTEMBER 2022
C4: EASTERN CAPE PROVINCE | T4: =C4 -> EASTERN CAPE PROVINCE | AK4: =C4 -> EASTERN CAPE PROVINCE
C6: Provincial departments | D6: =Settings!$R$5 -> 2022/23 | T6: Provincial departments | U6: 2019/20 | AK6: Provincial departments | AL6: 2019/20
D7: Budget | H7: Receipts/Payments by Quarter | M7: Receipts/Payments to Date | U7: Budget | Y7: Payments by Quarter | AD7: Payments to Date | AL7: Budget | AP7: Payments by Quarter | AU7: Payments to Date
D8: Main Budget1. | E8: Adjustments | F8: Adjusted Budget2. | H8: First Quarter | I8: Second Quarter | J8: Third Quarter | K8: Fourth Quarter | M8: Actual Receipts/ Payments | N8: % Actual Receipts/ Payments | U8: Main Budget1. | V8: Adjustments | W8: Adjusted Budget2. | Y8: First Quarter | Z8: Second Quarter | AA8: Third Quarter | AB8: Fourth Quarter | AD8: Actual Payments | AE8: % Actual Payments | AL8: Main Budget1. | AM8: Adjustments | AN8: Adjusted Budget2. | AP8: First Quarter | AQ8: Second Quarter | AR8: Third Quarter | AS8: Fourth Quarter | AU8: Actual Payments | AV8: % Actual Payments
A9: Filter | D9: R'000 | E9: R'000 | F9: R'000 | H9: R'000 | I9: R'000 | J9: R'000 | K9: R'000 | M9: R'000 | N9: % | U9: R'000 | V9: R'000 | W9: R'000 | Y9: R'000 | Z9: R'000 | AA9: R'000 | AB9: R'000 | AD9: R'000 | AE9: % | AL9: R'000 | AM9: R'000 | AN9: R'000 | AP9: R'000 | AQ9: R'000 | AR9: R'000 | AS9: R'000 | AU9: R'000 | AV9: %
A10: 1
A11: 1 | C11: Receipts | T11: Receipts | AK11: Receipts
A12: 1 | C12: Transfers from National Revenue Fund | D12: =SUM(D13:D14) -> 86081366 | E12: =SUM(E13:E14) -> -5067787 | F12: =SUM(F13:F14) -> 81013579 | H12: =SUM(H13:H14) -> 21852168 | I12: =SUM(I13:I14) -> 21863749 | J12: =SUM(J13:J14) -> 0 | K12: =SUM(K13:K14) -> 0 | M12: =SUM(M13:M14) -> 43715917 | N12: =IFERROR(M12/D12,0) -> 0.5078441367 | T12: =C12 -> Transfers from National Revenue Fund | U12: 80903186 | V12: 0 | W12: 80903186 | Y12: 20808702 | Z12: 20464609 | AA12: 0 | AB12: 0 | AD12: 41273311 | AE12: 0.5101568064 | AK12: Transfers from National Revenue Fund | AL12: =SUM(AL13:AL14) -> -5178180 | AM12: =SUM(AM13:AM14) -> 5067787 | AN12: =SUM(AN13:AN14) -> -110393 | AP12: =SUM(AP13:AP14) -> -1043466 | AQ12: =SUM(AQ13:AQ14) -> -1399140 | AR12: =SUM(AR13:AR14) -> 0 | AS12: =SUM(AS13:AS14) -> 0 | AU12: =SUM(AU13:AU14) -> -2442606 | EB12: DoRA(annexure) | EC12: check
A13: 1 | C13: Equitable share of revenue | D13: 72230960 | E13: =SUM(F13-D13) -> -3035707 | F13: 69195253 | H13: 18057741 | I13: 18057741 | M13: =SUM(H13:K13) -> 36115482 | N13: =IFERROR(M13/D13,0) -> 0.5000000277 | T13: =C13 -> Equitable share of revenue | U13: 68824353 | V13: 0 | W13: 68824353 | Y13: 17206089 | Z13: 17206089 | AD13: 34412178 | AE13: 0.5000000218 | AK13: Equitable share of revenue | AL13: =IFERROR(U13-D13,0) -> -3406607 | AM13: 3035707 | AN13: -370900 | AP13: =IFERROR(Y13-H13,0) -> -851652 | AQ13: -851652 | AR13: 0 | AS13: 0 | AU13: =IFERROR(AD13-M13,0) -> -1703304 | EB13: 45961922 | EC13: =D13-EB13 -> 26269038
A14: 1 | C14: Conditional grants | D14: 13850406 | E14: =SUM(F14-D14) -> -2032080 | F14: 11818326 | H14: 3794427 | I14: 3806008 | M14: =SUM(H14:K14) -> 7600435 | N14: =IFERROR(M14/D14,0) -> 0.5487517839 | T14: =C14 -> Conditional grants | U14: 12078833 | V14: 0 | W14: 12078833 | Y14: 3602613 | Z14: 3258520 | AD14: 6861133 | AE14: 0.5680294611 | AK14: Conditional grants | AL14: -1771573 | AM14: 2032080 | AN14: 260507 | AP14: -191814 | AQ14: -547488 | AR14: 0 | AS14: 0 | AU14: =IFERROR(AD14-M14,0) -> -739302 | EB14: 9059840 | EC14: =D14-EB14 -> 4790566
A15: 1 | C15: Provincial own receipts | D15: 1591925 | E15: =SUM(F15-D15) -> -75635 | F15: 1516290 | H15: 291753.3 | I15: 399621 | M15: =SUM(H15:K15) -> 691374.3 | N15: =IFERROR(M15/D15,0) -> 0.4343007993 | T15: =C15 -> Provincial own receipts | U15: 1453671 | V15: 0 | W15: 1453671 | Y15: 394957 | Z15: 712433.8 | AD15: 1107390.8 | AE15: 0.7617891531 | AK15: Provincial own receipts | AL15: -138254 | AM15: 75635 | AN15: -62619 | AP15: 103203.7 | AQ15: 312812.8 | AR15: 0 | AS15: 0 | AU15: =IFERROR(AD15-M15,0) -> 416016.5
A16: 1
A17: 1 | C17: Total receipts | D17: =SUM(D12+D15) -> 87673291 | E17: =SUM(E12+E15) -> -5143422 | F17: =SUM(F12+F15) -> 82529869 | G17: =G12+G15 -> 0 | H17: =SUM(H12+H15) -> 22143921.3 | I17: =SUM(I12+I15) -> 22263370 | J17: =SUM(J12+J15) -> 0 | K17: =SUM(K12+K15) -> 0 | M17: =SUM(M12+M15) -> 44407291.3 | N17: =IFERROR(M17/D17,0) -> 0.5065087759 | T17: Total receipts | U17: 82356857 | V17: 0 | W17: 82356857 | X17: 0 | Y17: 21203659 | Z17: 21177042.8 | AA17: 0 | AD17: 42380701.8 | AE17: 0.5145983388 | AK17: Total receipts | AL17: =AL12+AL15 -> -5316434 | AM17: 5143422 | AN17: -173012 | AO17: 0 | AP17: -940262.3 | AQ17: -1086327.2 | AR17: 0 | AS17: 0 | AU17: =AU12+AU15 -> -2026589.5
A18: 1
A19: 1 | C19: Payments by provincial departments | T19: Payments by provincial departments | AK19: Payments by provincial departments
A20: =IF(LEN(C20)>3,1,0) -> 1 | C20: Education | D20: 38559185 | E20: =SUM(F20-D20) -> -3482447 | F20: 35076738 | H20: 9994888 | I20: 9300784 | M20: =SUM(H20:K20) -> 19295672 | N20: =IFERROR(M20/D20,0) -> 0.5004170083 | T20: =C20 -> Education | U20: 36328510.13 | V20: 0 | W20: 36328510.13 | Y20: 10097264 | Z20: 9310507 | AD20: 19407771 | AE20: 0.5342297532 | AK20: =C20 -> Education | AL20: =IFERROR(U20-D20,0) -> -2230674.87 | AM20: =IFERROR(V20-E20,0) -> 3482447 | AN20: =IFERROR(W20-F20,0) -> 1251772.13 | AP20: =IFERROR(Y20-H20,0) -> 102376 | AQ20: =IFERROR(Z20-I20,0) -> 9723 | AR20: =IFERROR(AA20-J20,0) -> 0 | AS20: =IFERROR(AB20-K20,0) -> 0 | AU20: =IFERROR(AD20-M20,0) -> 112099
A21: 1 | C21: Health | D21: 27362251 | E21: -931663 | F21: 26430588 | H21: 7672557 | I21: 7649397 | M21: =SUM(H21:K21) -> 15321954 | N21: 0.5599668682 | T21: Health | U21: 25189631.98 | V21: 0 | W21: 25189631.98 | Y21: 7451118 | Z21: 6394842 | AD21: 13845960 | AE21: 0.5496690071 | AK21: Health | AL21: -2172619.02 | AM21: 931663 | AN21: -1240956.02 | AP21: -221439 | AQ21: -1254555 | AR21: 0 | AS21: 0 | AU21: -1475994
A22: 1 | C22: Social Development And Special Programmes | D22: 2788194 | E22: 266664 | F22: 3054858 | H22: 639855 | I22: 774191 | M22: 1414046 | N22: 0.5071548106 | T22: Social Development And Special Programmes | U22: 3020607 | V22: 0 | W22: 3020607 | Y22: 536173 | Z22: 889221 | AD22: 1425394 | AE22: 0.4718899215 | AK22: Social Development And Special Programmes | AL22: 232413 | AM22: -266664 | AN22: -34251 | AP22: -103682 | AQ22: 115030 | AR22: 0 | AS22: 0 | AU22: 11348
A23: 1 | C23: Office Of The Premier | D23: 963592 | E23: 68553 | F23: 1032145 | H23: 201088 | I23: 199965 | M23: 401053 | N23: 0.4162062367 | T23: Office Of The Premier | U23: 973083.46 | V23: 0 | W23: 973083.46 | Y23: 161829 | Z23: 186798 | AD23: 348627 | AE23: 0.3582703995 | AK23: Office Of The Premier | AL23: 9491.46 | AM23: -68553 | AN23: -59061.54 | AP23: -39259 | AQ23: -13167 | AR23: 0 | AS23: 0 | AU23: -52426
A24: 1 | C24: Provincial Legislature | D24: 571146 | E24: -17896 | F24: 553250 | H24: 146650 | I24: 155501 | M24: 302151 | N24: 0.5290258533 | T24: Provincial Legislature | U24: 541734 | V24: 0 | W24: 541734 | Y24: 167884 | Z24: 150198 | AD24: 318082 | AE24: 0.5871553198 | AK24: Provincial Legislature | AL24: -29412 | AM24: 17896 | AN24: -11516 | AP24: 21234 | AQ24: -5303 | AR24: 0 | AS24: 0 | AU24: 15931
A25: 1 | C25: Public Works And Infrastructure | D25: 2584294 | E25: -78791 | F25: 2505503 | H25: 603045 | I25: 883982 | M25: 1487027 | N25: 0.5754093768 | T25: Public Works And Infrastructure | U25: 2365265 | V25: 0 | W25: 2365265 | Y25: 451273 | Z25: 729895 | AD25: 1181168 | AE25: 0.4993808305 | AK25: Public Works And Infrastructure | AL25: -219029 | AM25: 78791 | AN25: -140238 | AP25: -151772 | AQ25: -154087 | AR25: 0 | AS25: 0 | AU25: -305859
A26: 1 | C26: Cooperative Governance And Traditional Affairs | D26: 1007859 | E26: -16367.5 | F26: 991491.5 | H26: 238055 | I26: 246558 | M26: 484613 | N26: 0.4808341246 | T26: Cooperative Governance And Traditional Affairs | U26: 1009712.01 | V26: 0 | W26: 1009712.01 | Y26: 227049 | Z26: 245101 | AD26: 472150 | AE26: 0.4676085808 | AK26: Cooperative Governance And Traditional Affairs | AL26: 1853.01 | AM26: 16367.5 | AN26: 18220.51 | AP26: -11006 | AQ26: -1457 | AR26: 0 | AS26: 0 | AU26: -12463
A27: 1 | C27: Rural Development And Agrarian Reform | D27: 2328201 | E27: -32657 | F27: 2295544 | H27: 463474 | I27: 514591 | M27: 978065 | N27: 0.4200947427 | T27: Rural Development And Agrarian Reform | U27: 2340324 | V27: 0 | W27: 2340324 | Y27: 493092 | Z27: 517165 | AD27: 1010257 | AE27: 0.4316739904 | AK27: Rural Development And Agrarian Reform | AL27: 12123 | AM27: 32657 | AN27: 44780 | AP27: 29618 | AQ27: 2574 | AR27: 0 | AS27: 0 | AU27: 32192
A28: 1 | C28: Economic Development, Environmental Affairs And Tourism | D28: 1338282 | E28: 351342 | F28: 1689624 | H28: 445251 | I28: 406397 | M28: 851648 | N28: 0.6363740975 | T28: Economic Development, Environmental Affairs And Tourism | U28: 1481960.31 | V28: 0 | W28: 1481960.31 | Y28: 395425 | Z28: 332243 | AD28: 727668 | AE28: 0.4910171987 | AK28: Economic Development, Environmental Affairs And Tourism | AL28: 143678.31 | AM28: -351342 | AN28: -207663.69 | AP28: -49826 | AQ28: -74154 | AR28: 0 | AS28: 0 | AU28: -123980
A29: 1 | C29: Transport | D29: 4951119.65 | E29: 210437.38 | F29: 5161557.03 | H29: 1155879.5 | I29: 1492920.26 | M29: 2648799.76 | N29: 0.5349900522 | T29: Transport | U29: 4974537.38 | V29: 0 | W29: 4974537.38 | Y29: 915381.0396 | Z29: 1047823.567 | AD29: 1963204.606 | AE29: 0.3946506894 | AK29: Transport | AL29: 23417.73 | AM29: -210437.38 | AN29: -187019.65 | AP29: -240498.4604 | AQ29: -445096.6933 | AR29: 0 | AS29: 0 | AU29: -685595.1537
A30: 1 | C30: Human Settlements | D30: 2448031 | E30: -122883 | F30: 2325148 | H30: 272529 | I30: 912218.95 | M30: =SUM(H30:K30) -> 1184747.95 | N30: 0.4839595373 | T30: Human Settlements | U30: 2443382 | V30: 0 | W30: 2443382 | Y30: 568047 | Z30: 601938 | AD30: 1169985 | AE30: 0.4788383478 | AK30: Human Settlements | AL30: -4649 | AM30: 122883 | AN30: 118234 | AP30: 295518 | AQ30: -310280.95 | AR30: 0 | AS30: 0 | AU30: -14762.95
A31: 1 | C31: Provincial Treasury | D31: 427316 | E31: -20826 | F31: 406490 | H31: 90192 | I31: 98362 | M31: 188554 | N31: 0.4412519073 | T31: Provincial Treasury | U31: 440930 | V31: 0 | W31: 440930 | Y31: 96175 | Z31: 106759 | AD31: 202934 | AE31: 0.4602408546 | AK31: Provincial Treasury | AL31: 13614 | AM31: 20826 | AN31: 34440 | AP31: 5983 | AQ31: 8397 | AR31: 0 | AS31: 0 | AU31: 14380
A32: 1 | C32: Sport, Recreation, Arts And Culture | D32: 990731 | E32: -10503 | F32: 980228 | H32: 219279 | I32: 232147 | M32: 451426 | N32: 0.4556494144 | T32: Sport, Recreation, Arts And Culture | U32: 983069 | V32: 0 | W32: 983069 | Y32: 206375 | Z32: 260736 | AD32: 467111 | AE32: 0.4751558639 | AK32: Sport, Recreation, Arts And Culture | AL32: -7662 | AM32: 10503 | AN32: 2841 | AP32: -12904 | AQ32: 28589 | AR32: 0 | AS32: 0 | AU32: 15685
A33: 1 | C33: Community Safety | D33: 107969 | E33: -2959 | F33: 105010 | H33: 24205 | I33: 29451 | M33: 53656 | N33: 0.49695746 | T33: Community Safety | U33: 105499 | V33: 0 | W33: 105499 | Y33: 22274 | Z33: 25927 | AD33: 48201 | AE33: 0.4568858473 | AK33: Community Safety | AL33: -2470 | AM33: 2959 | AN33: 489 | AP33: -1931 | AQ33: -3524 | AR33: 0 | AS33: 0 | AU33: -5455
A34: 0 | D34: 0 | E34: 0 | F34: 0 | H34: 0 | I34: 0 | M34: 0 | N34: 0 | U34: 0 | V34: 0 | W34: 0 | Y34: 0 | Z34: 0 | AD34: 0 | AE34: 0 | AL34: =U34-D34 -> 0 | AM34: =AN34-AL34 -> 0 | AN34: =W34-F34 -> 0 | AP34: =Y34-H34 -> 0 | AQ34: 0 | AR34: 0 | AS34: 0 | AU34: =SUM(AP34:AQ34) -> 0
A35: 0 | D35: 0 | E35: 0 | F35: 0 | H35: 0 | I35: 0 | M35: 0 | N35: 0 | U35: 0 | V35: 0 | W35: 0 | Y35: 0 | Z35: 0 | AD35: 0 | AE35: 0 | AL35: 0 | AM35: 0 | AN35: 0 | AP35: 0 | AQ35: 0 | AR35: 0 | AS35: 0 | AU35: 0
A36: 0 | C36: =PROPER("") ->  | E36: 0 | F36: 0 | M36: 0 | N36: 0 | U36: 0 | V36: 0 | W36: 0 | Y36: 0 | Z36: 0 | AD36: 0 | AE36: 0 | AL36: 0 | AM36: 0 | AN36: 0 | AP36: 0 | AQ36: 0 | AR36: 0 | AS36: 0 | AU36: 0
A37: 0 | C37: =PROPER("") ->  | E37: 0 | F37: 0 | M37: 0 | N37: 0 | U37: 0 | V37: 0 | W37: 0 | Y37: 0 | Z37: 0 | AD37: 0 | AE37: 0 | AL37: 0 | AM37: 0 | AN37: 0 | AP37: 0 | AQ37: 0 | AR37: 0 | AS37: 0 | AU37: 0
A38: 0 | C38: =PROPER("") ->  | E38: 0 | F38: 0 | M38: 0 | N38: 0 | U38: 0 | V38: 0 | W38: 0 | Y38: 0 | Z38: 0 | AD38: 0 | AE38: 0 | AL38: 0 | AM38: 0 | AN38: 0 | AP38: 0 | AQ38: 0 | AR38: 0 | AS38: 0 | AU38: 0
A39: 0 | C39: =PROPER("") ->  | E39: 0 | F39: 0 | M39: 0 | N39: 0 | U39: 0 | V39: 0 | W39: 0 | Y39: 0 | Z39: 0 | AD39: 0 | AE39: 0 | AL39: 0 | AM39: 0 | AN39: 0 | AP39: 0 | AQ39: 0 | AR39: 0 | AS39: 0 | AU39: 0
A40: 1
A41: 1 | C41: Total payments | D41: =SUM(D20:D39) -> 86428170.65 | E41: =SUM(E20:E39) -> -3819996.12 | F41: =SUM(F20:F39) -> 82608174.53 | H41: =SUM(H20:H39) -> 22166947.5 | I41: =SUM(I20:I39) -> 22896465.21 | J41: =SUM(J20:J39) -> 0 | K41: =SUM(K20:K39) -> 0 | M41: =SUM(M20:M39) -> 45063412.71 | N41: =IFERROR(M41/D41,0) -> 0.5213972756 | T41: Total payments | U41: 82198245.27 | V41: 0 | W41: 82198245.27 | Y41: 21789359.04 | Z41: 20799153.57 | AA41: 0 | AD41: 42588512.61 | AE41: 0.5181194862 | AK41: Total payments | AL41: =SUM(AL20:AL39) -> -4229925.38 | AM41: =SUM(AM20:AM39) -> 3819996.12 | AN41: =SUM(AN20:AN39) -> -409929.26 | AP41: =SUM(AP20:AP39) -> -377588.4604 | AQ41: =SUM(AQ20:AQ39) -> -2097311.643 | AR41: =SUM(AR20:AR39) -> 0 | AS41: =SUM(AS20:AS39) -> 0 | AU41: =SUM(AU20:AU39) -> -2474900.104
A42: 1
A43: 1 | C43: Payments by economic classification | T43: Payments by economic classification | AK43: Payments by economic classification
A44: 1 | C44: Current payments | D44: =SUM(D45:D47) -> 73347696.05 | E44: -4272532.95 | F44: 69075163.1 | G44: 0 | H44: 19054431.83 | I44: =SUM(I45:I47) -> 19303445.7 | J44: 0 | K44: 0 | M44: =SUM(M45:M47) -> 38357877.54 | N44: =IFERROR(M44/D44,0) -> 0.5229595421 | T44: =C44 -> Current payments | U44: 68611109.57 | V44: 0 | W44: 68611109.57 | X44: 0 | Y44: 17881432.79 | Z44: 17346527.07 | AA44: 0 | AB44: 0 | AD44: 35227959.86 | AE44: 0.513443961 | AK44: Current payments | AL44: =SUM(AL45:AL47) -> -4736586.48 | AM44: 4272532.95 | AN44: -464053.53 | AO44: 0 | AP44: -1172999.043 | AQ44: -1956918.631 | AR44: 0 | AS44: 0 | AU44: =SUM(AU45:AU47) -> -3129917.673
A45: 1 | C45: Compensation of employees | D45: 56522478.7 | E45: =SUM(F45-D45) -> -2487222.05 | F45: 54035256.65 | H45: 13700512.53 | I45: 13914403.84 | M45: =SUM(H45:K45) -> 27614916.38 | N45: 0.4885652047 | T45: Compensation of employees | U45: 54152698.94 | V45: 0 | W45: 54152698.94 | Y45: 13341110.73 | Z45: 13672432.37 | AD45: 27013543.1 | AE45: 0.4988401987 | AK45: Compensation of employees | AL45: =IFERROR(U45-D45,0) -> -2369779.76 | AM45: 2487222.05 | AN45: 117442.29 | AP45: =IFERROR(Y45-H45,0) -> -359401.8015 | AQ45: -241971.4738 | AR45: 0 | AS45: 0 | AU45: =IFERROR(AD45-M45,0) -> -601373.2753
A46: 1 | C46: Goods and services | D46: 16825217.35 | E46: =SUM(F46-D46) -> -1785310.9 | F46: 15039906.45 | H46: 5351094.3 | I46: 5360378.76 | M46: =SUM(H46:K46) -> 10711473.06 | N46: =IFERROR(M46/D46,0) -> 0.6366320766 | T46: Goods and services | U46: 14458410.63 | V46: 0 | W46: 14458410.63 | Y46: 4528730.059 | Z46: 3660735.503 | AD46: 8189465.562 | AE46: 0.5664153392 | AK46: Goods and services | AL46: -2366806.72 | AM46: 1785310.9 | AN46: -581495.82 | AP46: -822364.2413 | AQ46: -1699643.257 | AR46: 0 | AS46: 0 | AU46: =IFERROR(AD46-M46,0) -> -2522007.498
A47: 1 | C47: Interest and rent on land | D47: 0 | E47: =SUM(F47-D47) -> 0 | F47: 0 | H47: 2825 | I47: 28663.1 | M47: =SUM(H47:K47) -> 31488.1 | N47: 0 | T47: Interest and rent on land | U47: 0 | V47: 0 | W47: 0 | Y47: 11592 | Z47: 13359.2 | AD47: 24951.2 | AE47: 0 | AK47: Interest and rent on land | AL47: 0 | AM47: 0 | AN47: 0 | AP47: 8767 | AQ47: -15303.9 | AR47: 0 | AS47: 0 | AU47: =IFERROR(AD47-M47,0) -> -6536.9
A48: 1 | C48: Transfers and subsidies | D48: =SUM(D49:D55) -> 8944569 | E48: 58724.43 | F48: 9003293.43 | G48: 0 | H48: 2238541.6 | I48: =SUM(I49:I55) -> 2830383.3 | J48: 0 | K48: 0 | M48: =SUM(M49:M55) -> 5068924.9 | N48: 0.566704209 | T48: Transfers and subsidies | U48: 8844684.83 | V48: 0 | W48: 8844684.83 | X48: 0 | Y48: 2859224.386 | Z48: 2528167.064 | AA48: 0 | AB48: 0 | AD48: 5387391.45 | AE48: 0.6091106188 | AK48: Transfers and subsidies | AL48: =SUM(AL49:AL55) -> -99884.17 | AM48: -58724.43 | AN48: -158608.6 | AO48: 0 | AP48: 620682.7858 | AQ48: -302216.2361 | AR48: 0 | AS48: 0 | AU48: =SUM(AU49:AU55) -> 318466.5497
A49: 1 | C49: Provinces and municipalities | D49: 906747 | E49: =SUM(F49-D49) -> -42248 | F49: 864499 | H49: 99045 | I49: 452000 | M49: =SUM(H49:K49) -> 551045 | N49: 0.6077163751 | T49: Provinces and municipalities | U49: 662586 | V49: 0 | W49: 662586 | Y49: 63574.0934 | Z49: 355413 | AD49: 418987.0934 | AE49: 0.6323512622 | AK49: Provinces and municipalities | AL49: =IFERROR(U49-D49,0) -> -244161 | AM49: 42248 | AN49: -201913 | AP49: =IFERROR(Y49-H49,0) -> -35470.9066 | AQ49: -96587 | AR49: 0 | AS49: 0 | AU49: =IFERROR(AD49-M49,0) -> -132057.9066
A50: 1 | C50: Departmental agencies and accounts | D50: 1245029 | E50: 391057 | F50: 1636086 | H50: 518698 | I50: 371803.2 | M50: 890501.2 | N50: 0.7152453477 | T50: Departmental agencies and accounts | U50: 1331834 | V50: 0 | W50: 1331834 | Y50: 475203.6004 | Z50: 272154.9058 | AD50: 747358.5062 | AE50: 0.5611498927 | AK50: Departmental agencies and accounts | AL50: 86805 | AM50: -391057 | AN50: -304252 | AP50: -43494.39958 | AQ50: -99648.2942 | AR50: 0 | AS50: 0 | AU50: -143142.6938
A51: 1 | C51: Higher education and institutions | D51: 74164 | E51: -3261 | F51: 70903 | H51: 27913 | I51: 16723 | M51: 44636 | N51: 0.6018553476 | T51: Higher education and institutions | U51: 55904 | V51: 0 | W51: 55904 | Y51: 13826 | Z51: 13826 | AD51: 27652 | AE51: 0.4946336577 | AK51: Higher education and institutions | AL51: -18260 | AM51: 3261 | AN51: -14999 | AP51: -14087 | AQ51: -2897 | AR51: 0 | AS51: 0 | AU51: -16984
A52: 1 | C52: Foreign governments and international organisations | D52: 0 | E52: 0 | F52: 0 | H52: 0 | I52: 0 | M52: 0 | N52: 0 | T52: Foreign governments and international organisations | U52: 0 | V52: 0 | W52: 0 | Y52: 0 | Z52: 0 | AD52: 0 | AE52: 0 | AK52: Foreign governments and international organisations | AL52: 0 | AM52: 0 | AN52: 0 | AP52: 0 | AQ52: 0 | AR52: 0 | AS52: 0 | AU52: 0
A53: 1 | C53: Public corporations and private enterprises | D53: 652793 | E53: -32231 | F53: 620562 | H53: 182413.7 | I53: 178899.9 | M53: 361313.6 | N53: 0.5534887782 | T53: Public corporations and private enterprises | U53: 554665 | V53: 0 | W53: 554665 | Y53: 109998.5212 | Z53: 133780.9317 | AD53: 243779.4529 | AE53: 0.4395075459 | AK53: Public corporations and private enterprises | AL53: -98128 | AM53: 32231 | AN53: -65897 | AP53: -72415.17875 | AQ53: -45118.96833 | AR53: 0 | AS53: 0 | AU53: -117534.1471
A54: 1 | C54: Non profit institutions | D54: 3416523 | E54: -167806 | F54: 3248717 | H54: 1028423 | I54: 625861 | M54: 1654284 | N54: 0.484201043 | T54: Non profit institutions | U54: 3573034.73 | V54: 0 | W54: 3573034.73 | Y54: 1116276 | Z54: 1037745 | AD54: 2154021 | AE54: 0.6028547615 | AK54: Non profit institutions | AL54: 156511.73 | AM54: 167806 | AN54: 324317.73 | AP54: 87853 | AQ54: 411884 | AR54: 0 | AS54: 0 | AU54: 499737
A55: 1 | C55: Households | D55: 2649313 | E55: -86786.57 | F55: 2562526.43 | H55: 382048.9 | I55: 1185096.2 | M55: 1567145.1 | N55: 0.5915288605 | T55: Households | U55: 2666661.1 | V55: 0 | W55: 2666661.1 | Y55: 1080346.171 | Z55: 715247.2264 | AD55: 1795593.397 | AE55: 0.6733489296 | AK55: Households | AL55: 17348.1 | AM55: 86786.57 | AN55: 104134.67 | AP55: 698297.2708 | AQ55: -469848.9736 | AR55: 0 | AS55: 0 | AU55: 228448.2972
A56: 1 | C56: Payments for capital assets | D56: =SUM(D57:D63) -> 4135905.6 | E56: 393812.4 | F56: 4529718 | G56: 0 | H56: 873974.2 | I56: =SUM(I57:I63) -> 762636.1 | J56: 0 | K56: 0 | M56: =SUM(M57:M63) -> 1636610.3 | N56: 0.3957078469 | T56: Payments for capital assets | U56: 4742450.96 | V56: 0 | W56: 4742450.96 | X56: 0 | Y56: 1048442.985 | Z56: 924459.4285 | AA56: 0 | AB56: 0 | AD56: 1972902.413 | AE56: 0.4160090277 | AK56: Payments for capital assets | AL56: =SUM(AL57:AL63) -> 606545.36 | AM56: -393812.4 | AN56: 212732.96 | AO56: 0 | AP56: 174468.7845 | AQ56: 161823.3285 | AR56: 0 | AS56: 0 | AU56: =SUM(AU57:AU63) -> 336292.113
A57: 1 | C57: Buildings and other fixed structures | D57: 2921489.6 | E57: =SUM(F57-D57) -> 314301.4 | F57: 3235791 | H57: 346897.8 | I57: 592883 | M57: =SUM(H57:K57) -> 939780.8 | N57: 0.3216786396 | T57: Buildings and other fixed structures | U57: 3635517 | V57: 0 | W57: 3635517 | Y57: 907397.9635 | Z57: 734847.4854 | AD57: 1642245.449 | AE57: 0.4517226708 | AK57: Buildings and other fixed structures | AL57: =IFERROR(U57-D57,0) -> 714027.4 | AM57: -314301.4 | AN57: 399726 | AP57: =IFERROR(Y57-H57,0) -> 560500.1635 | AQ57: 141964.4854 | AR57: 0 | AS57: 0 | AU57: =IFERROR(AD57-M57,0) -> 702464.6489
A58: 1 | C58: Machinery and equipment | D58: 1162058 | E58: 79522 | F58: 1241580 | H58: 490221.6 | I58: 180850.6 | M58: 671072.2 | N58: 0.5774859775 | T58: Machinery and equipment | U58: 1073001.94 | V58: 0 | W58: 1073001.94 | Y58: 129562.021 | Z58: 182905.5488 | AD58: 312467.5698 | AE58: 0.291208765 | AK58: Machinery and equipment | AL58: -89056.06 | AM58: -79522 | AN58: -168578.06 | AP58: -360659.579 | AQ58: 2054.94882 | AR58: 0 | AS58: 0 | AU58: -358604.6302
A59: 1 | C59: Heritage assets | D59: 1000 | E59: 700 | F59: 1700 | H59: 0 | I59: 0 | M59: 0 | N59: 0 | T59: Heritage assets | U59: 500 | V59: 0 | W59: 500 | Y59: 155 | Z59: 0 | AD59: 155 | AE59: 0.31 | AK59: Heritage assets | AL59: -500 | AM59: -700 | AN59: -1200 | AP59: 155 | AQ59: 0 | AR59: 0 | AS59: 0 | AU59: 155
A60: 1 | C60: Specialised military assets | D60: 0 | E60: 0 | F60: 0 | H60: 0 | I60: 0 | M60: 0 | N60: 0 | T60: Specialised military assets | U60: 0 | V60: 0 | W60: 0 | Y60: 0 | Z60: 0 | AD60: 0 | AE60: 0 | AK60: Specialised military assets | AL60: 0 | AM60: 0 | AN60: 0 | AP60: 0 | AQ60: 0 | AR60: 0 | AS60: 0 | AU60: 0
A61: 1 | C61: Biological assets | D61: 11702 | E61: -165 | F61: 11537 | H61: 1451 | I61: 0 | M61: 1451 | N61: 0.1239958981 | T61: Biological assets | U61: 16500 | V61: 0 | W61: 16500 | Y61: 0 | Z61: 87 | AD61: 87 | AE61: 0.005272727273 | AK61: Biological assets | AL61: 4798 | AM61: 165 | AN61: 4963 | AP61: -1451 | AQ61: 87 | AR61: 0 | AS61: 0 | AU61: -1364
A62: 1 | C62: Land and sub-soil assets | D62: 0 | E62: 0 | F62: 0 | H62: 0 | I62: 0 | M62: 0 | N62: 0 | T62: Land and sub-soil assets | U62: 0 | V62: 0 | W62: 0 | Y62: 0 | Z62: 0 | AD62: 0 | AE62: 0 | AK62: Land and sub-soil assets | AL62: 0 | AM62: 0 | AN62: 0 | AP62: 0 | AQ62: 0 | AR62: 0 | AS62: 0 | AU62: 0
A63: 1 | C63: Software and other intangible assets | D63: 39656 | E63: -546 | F63: 39110 | H63: 35403.8 | I63: -11097.5 | M63: 24306.3 | N63: 0.6129286867 | T63: Software and other intangible assets | U63: 16932.02 | V63: 0 | W63: 16932.02 | Y63: 11328 | Z63: 6619.39424 | AD63: 17947.39424 | AE63: 1.059967697 | AK63: Software and other intangible assets | AL63: -22723.98 | AM63: 546 | AN63: -22177.98 | AP63: -24075.8 | AQ63: 17716.89424 | AR63: 0 | AS63: 0 | AU63: -6358.90576
A64: 1 | C64: Payments for financial assets | D64: 0 | E64: 0 | F64: 0 | H64: 0 | I64: 0 | M64: 0 | N64: 0 | T64: Payments for financial assets | U64: 0 | V64: 0 | W64: 0 | Y64: 259 | Z64: 0 | AD64: 259 | AE64: 0 | AK64: Payments for financial assets | AL64: 0 | AM64: 0 | AN64: 0 | AP64: 259 | AQ64: 0 | AR64: 0 | AS64: 0 | AU64: 259
A65: 1
A66: 1 | C66: Total payments | D66: =SUM(D44+D48+D56+D64) -> 86428170.65 | E66: =SUM(E44+E48+E56+E64) -> -3819996.12 | F66: =SUM(F44+F48+F56+F64) -> 82608174.53 | H66: =SUM(H44+H48+H56+H64) -> 22166947.63 | I66: =SUM(I44+I48+I56+I64) -> 22896465.11 | J66: =SUM(J44+J48+J56+J64) -> 0 | K66: =SUM(K44+K48+K56+K64) -> 0 | M66: =SUM(M44+M48+M56+M64) -> 45063412.74 | N66: =IFERROR(M66/D66,0) -> 0.5213972759 | T66: Total payments | U66: 82198245.36 | V66: 0 | W66: 82198245.36 | Y66: 21789359.16 | Z66: 20799153.57 | AD66: 42588512.73 | AE66: 0.5181194871 | AK66: Total payments | AL66: =AL44+AL48+AL56+AL64 -> -4229925.29 | AM66: =AM44+AM48+AM56+AM64 -> 3819996.12 | AN66: =AN44+AN48+AN56+AN64 -> -409929.17 | AP66: =AP44+AP48+AP56+AP64 -> -377588.4725 | AQ66: =AQ44+AQ48+AQ56+AQ64 -> -2097311.538 | AR66: =AR44+AR48+AR56+AR64 -> 0 | AS66: =AS44+AS48+AS56+AS64 -> 0 | AU66: =AU44+AU48+AU56+AU64 -> -2474900.011
A67: 1
A68: 1 | C68: Information submitted by: Daluhlanga Majeke Head Official: Provincial Treasury Eastern Cape Tel No: (040) 609-5612
A69: 1
A70: 1 | B70: 1. | C70: ="Main Budget figures are based on the " & Settings!FinYear & " Estimates of Provincial Revenue and Expenditure tabled in the Provincial Legislature during March " & LEFT(Settings!FinYear,4) & "." -> Main Budget figures are based on the 2022/23 Estimates of Provincial Revenue and Expenditure tabled in the Provincial Legislature during March 2022.
A71: 1
A72: 1
A73: 1
A74: 1 | C74: Signature:……………………………………………………………………………………………..………………………………Date:…………………………………………………………………..
A75: 1 | C75: I, Daluhlanga Majeke certify :
A76: 1 | C76: 1. Amounts set out by provincial department have been checked and verified where necessary; and
A77: 1 | C77: 2. are in compliance with the relevant sections of the Public Finance Management Act, and Section 31(2) of the Division of Revenue Act, 2022 (Act No. 4 of 2022).
A78: 0
A79: 0
A80: 0 | C80: Checks: Depts vs Eco Classification | D80: =D41-D66 -> 0 | E80: 0 | F80: 0 | G80: 0 | H80: =H41-H66 -> -0.132029999 | I80: =I41-I66 -> 0.1050000004 | J80: 0 | K80: 0 | L80: 0 | M80: -0.0270299986 | O80: =O41-O66 -> 0
A81: 0 | C81: Checks: Receipts vs IYM Model | D81: 0 | F81: 0 | H81: 0 | I81: 0 | M81: 0 | O81: =O42-O67 -> 0
A82: 0 | C82: Checks: Depts vs IYM Model | D82: 0 | F82: 0 | H82: 0 | I82: 0 | M82: 0 | O82: =O43-O68 -> 0
A83: 0 | C83: Checks: Depts vs Datafile | D83: -3819996.12 | F83: 0 | H83: 412715.5 | I83: -2035489.843 | J83: 20387856.67 | K83: 18481235.62 | M83: 37246317.94 | O83: =O44-O69 -> 0
A238: 1
A239: 1
A240: 1
A241: 1
A242: 1
A243: 1

Sheet EC_2
